Workbook

Sheet ورقة1
A3: الرقم | B3: التاريخ | C3: اسم الصنف | D3: اسم السند | E3: رقم السند | F3: الوحدة | G3: وارد | H3: صادر | I3: السعر | J3: الإجمالي | K3: كلفة الشراء | L3: ثمن البيع
A4: 1 | B4: 2014-05-01 | C4: فاصوليا | D4: فاتورة شراء | E4: 77 | F4: علبة | G4: 500 | I4: 3.65 | J4: 1825 | K4: =IF(G4="","",G4*I4) -> 1825 | L4: =IF(H4="","",H4*I4) -> 
A5: 2 | B5: 2014-01-01 | C5: طحين | D5: فاتورة بيع | E5: 56 | F5: كيس | H5: 150 | I5: 6 | J5: 900 | L5: 900
A6: 3 | B6: 2014-01-01 | C6: سكر | D6: فاتورة شراء | E6: 23 | F6: كيس | G6: 500 | I6: 7 | J6: 3500 | K6: 3500
A7: 4 | B7: 2014-01-01 | C7: سكر | D7: فاتورة بيع | E7: 566 | F7: كيس | H7: 200 | I7: 8 | J7: 1600 | L7: 1600
A8: 5 | B8: 2014-01-01 | C8: طن | D8: فاتورة شراء | E8: 23 | F8: قطعة | G8: 100 | I8: 0.75 | J8: 75 | K8: 75
A9: 6 | B9: 2014-01-01 | C9: طحين | D9: فاتورة شراء | E9: 124 | F9: قطعة | G9: 200 | I9: 0.9 | J9: 180 | K9: 180
A10: 7 | B10: 2014-01-01 | C10: سكر | D10: فاتورة بيع | E10: 15 | F10: كيس | H10: 50 | I10: 5.75 | J10: 287.5 | L10: 287.5
A11: 8 | B11: 2014-01-01 | C11: سردين | D11: فاتورة شراء | E11: 56 | F11: قطعة | G11: 500 | I11: 0.6 | J11: 300 | K11: 300
A12: 9 | B12: 2014-01-01 | C12: طن | D12: فاتورة بيع | E12: 78 | F12: قطعة | H12: 200 | I12: 0.7 | J12: 140 | L12: 140
A13: 10 | B13: 2014-01-02 | C13: سردين | D13: فاتورة بيع | E13: 55 | F13: قطعة | H13: 40 | I13: 0.35 | J13: 14 | L13: 14
A14: 11 | B14: 2014-03-01 | C14: سردين | D14: فاتورة بيع | E14: 66 | F14: قطعة | H14: 30 | I14: 0.69 | J14: 20.7 | L14: 20.7
A15: 12 | B15: 2014-02-02 | C15: فاصوليا | D15: فاتورة شراء | E15: 566 | F15: كيس | G15: 500 | I15: 9.3 | J15: 4650 | K15: 4650
A16: 13 | B16: 2014-02-01 | C16: لبنة | D16: فاتورة شراء | E16: 256 | F16: كيلو | G16: 1200 | I16: 0.35 | J16: 420 | K16: 420
A17: 14 | B17: 2014-01-03 | C17: جبنة مثلثات | D17: فاتورة شراء | E17: 255 | F17: كرتونة | G17: 150 | I17: 14.35 | J17: 2152.5 | K17: 2152.5
A18: 15 | B18: 2014-05-01 | C18: جبنة مثلثات | D18: فاتورة بيع | E18: 45 | F18: كرتونة | H18: 55 | I18: 5.36 | J18: 294.8 | L18: 294.8
K45: =IF(G45="","",G45*I45) ->  | L45: =IF(H45="","",H45*I45) -> 
K65: =IF(G65="","",G65*I65) ->  | L65: =IF(H65="","",H65*I65) -> 
K129: =IF(G129="","",G129*I129) ->  | L129: =IF(H129="","",H129*I129) -> 
K193: =IF(G193="","",G193*I193) ->  | L193: =IF(H193="","",H193*I193) -> 
K257: =IF(G257="","",G257*I257) ->  | L257: =IF(H257="","",H257*I257) -> 
K321: =IF(G321="","",G321*I321) ->  | L321: =IF(H321="","",H321*I321) -> 
K385: =IF(G385="","",G385*I385) ->  | L385: =IF(H385="","",H385*I385) -> 
K449: =IF(G449="","",G449*I449) ->  | L449: =IF(H449="","",H449*I449) -> 
K513: =IF(G513="","",G513*I513) ->  | L513: =IF(H513="","",H513*I513) -> 
K577: =IF(G577="","",G577*I577) ->  | L577: =IF(H577="","",H577*I577) -> 
K641: =IF(G641="","",G641*I641) ->  | L641: =IF(H641="","",H641*I641) -> 
K705: =IF(G705="","",G705*I705) ->  | L705: =IF(H705="","",H705*I705) -> 
K769: =IF(G769="","",G769*I769) ->  | L769: =IF(H769="","",H769*I769) -> 
K833: =IF(G833="","",G833*I833) ->  | L833: =IF(H833="","",H833*I833) -> 
K897: =IF(G897="","",G897*I897) ->  | L897: =IF(H897="","",H897*I897) -> 
K961: =IF(G961="","",G961*I961) ->  | L961: =IF(H961="","",H961*I961) -> 
K1025: =IF(G1025="","",G1025*I1025) ->  | L1025: =IF(H1025="","",H1025*I1025) -> 
K1089: =IF(G1089="","",G1089*I1089) ->  | L1089: =IF(H1089="","",H1089*I1089) -> 
K1153: =IF(G1153="","",G1153*I1153) ->  | L1153: =IF(H1153="","",H1153*I1153) -> 
K1217: =IF(G1217="","",G1217*I1217) ->  | L1217: =IF(H1217="","",H1217*I1217) -> 
K1281: =IF(G1281="","",G1281*I1281) ->  | L1281: =IF(H1281="","",H1281*I1281) -> 
K1345: =IF(G1345="","",G1345*I1345) ->  | L1345: =IF(H1345="","",H1345*I1345) -> 
K1409: =IF(G1409="","",G1409*I1409) ->  | L1409: =IF(H1409="","",H1409*I1409) -> 
K1473: =IF(G1473="","",G1473*I1473) ->  | L1473: =IF(H1473="","",H1473*I1473) -> 
K1537: =IF(G1537="","",G1537*I1537) ->  | L1537: =IF(H1537="","",H1537*I1537) -> 
K1601: =IF(G1601="","",G1601*I1601) ->  | L1601: =IF(H1601="","",H1601*I1601) -> 
K1665: =IF(G1665="","",G1665*I1665) ->  | L1665: =IF(H1665="","",H1665*I1665) -> 
K1729: =IF(G1729="","",G1729*I1729) ->  | L1729: =IF(H1729="","",H1729*I1729) -> 
K1793: =IF(G1793="","",G1793*I1793) ->  | L1793: =IF(H1793="","",H1793*I1793) -> 
K1857: =IF(G1857="","",G1857*I1857) ->  | L1857: =IF(H1857="","",H1857*I1857) -> 
K1921: =IF(G1921="","",G1921*I1921) ->  | L1921: =IF(H1921="","",H1921*I1921) -> 
K1985: =IF(G1985="","",G1985*I1985) ->  | L1985: =IF(H1985="","",H1985*I1985) -> 
... 38 more rows

Sheet ورقة3 (hidden)
A3: اسم الصنف | B3: الوحدة | C3: رصيد اول المدة | D3: رصيد الحركة | F3: الرصيد الفعلي | H3: قيمة المخزون | I3: مجموع الأسعار | J3: مجموع الكميات | K3: متوسط السعر | L3: مجموع سعر البيع | M3: مجموع الكميات المباعة | N3: متوسط سعر البيع | O3: قمة المبيعات | P3: الفرق بين السعرين | Q3: قيمة الربح
D4: وارد | E4: صادر | H4: =H3000 -> 22788.83007
A5: =IF(بيانات!A4="","",بيانات!A4) -> سكر | B5: =IF(A5="","",IF(A5=بيانات!A4,بيانات!B4)) -> كيس | C5: =IF(A5="","",VLOOKUP(A5,بيانات!$A$4:$C$11363,3,0)) -> 1000 | D5: =IF(A5="","",SUMIFS(ورقة1!$G$4:$G$9994,ورقة1!$C$4:$C$9994,ورقة3!A5)) -> 500 | E5: =IF(A5="","",SUMIFS(ورقة1!$H$4:$H$9994,ورقة1!$C$4:$C$9994,ورقة3!A5)) -> 250 | F5: =IF(A5="","",C5+D5-E5) -> 1250 | H5: =IF(F5="","",F5*K5) -> 7083.333333 | I5: =IF(F5="","",SUMIFS(بيانات!$E$4:$E$5218,بيانات!$A$4:$A$5218,بيانات!A4)+SUMIFS(ورقة1!$K$4:$K$9994,ورقة1!$C$4:$C$9994,ورقة3!A5)) -> 8500 | J5: =IF(F5="","",SUMIFS(بيانات!$C$4:$C$1048576,اسم_الصنف,بيانات!A4)+SUMIFS(ورقة1!$G$4:$G$9994,ورقة1!$C$4:$C$9994,ورقة3!A5)) -> 1500 | K5: =IF(AND(I5="",J5=""),"",I5/J5) -> 5.666666667 | L5: =IF(F5="","",SUMIFS(ورقة1!$L$4:$L$9994,ورقة1!$C$4:$C$9994,ورقة3!A5)) -> 1887.5 | M5: =IF(H5="","",SUMIFS(ورقة1!$H$4:$H$9994,ورقة1!$C$4:$C$9994,ورقة3!A5)) -> 250 | N5: =IF(OR(L5=0,L5="",M5=0,M5=""),"",L5/M5) -> 7.55 | O5: =IF(OR(E5=0,E5=""),"",E5*N5) -> 1887.5 | P5: =IF(N5="","",N5-K5) -> 1.883333333 | Q5: =IF(OR(E5=0,E5=""),"",E5*P5) -> 470.8333333
A6: =IF(بيانات!A5="","",بيانات!A5) -> رز | B6: =IF(A6="","",IF(A6=بيانات!A5,بيانات!B5)) -> كيس | C6: =IF(A6="","",VLOOKUP(A6,بيانات!$A$4:$C$11363,3,0)) -> 500 | D6: =IF(A6="","",SUMIFS(ورقة1!$G$4:$G$9994,ورقة1!$C$4:$C$9994,ورقة3!A6)) -> 0 | E6: =IF(A6="","",SUMIFS(ورقة1!$H$4:$H$9994,ورقة1!$C$4:$C$9994,ورقة3!A6)) -> 0 | F6: 500 | H6: =IF(F6="","",F6*K6) -> 3000 | I6: =IF(F6="","",SUMIFS(بيانات!$E$4:$E$5218,بيانات!$A$4:$A$5218,بيانات!A5)+SUMIFS(ورقة1!$K$4:$K$9994,ورقة1!$C$4:$C$9994,ورقة3!A6)) -> 3000 | J6: =IF(F6="","",SUMIFS(بيانات!$C$4:$C$1048576,اسم_الصنف,بيانات!A5)+SUMIFS(ورقة1!$G$4:$G$9994,ورقة1!$C$4:$C$9994,ورقة3!A6)) -> 500 | K6: =IF(AND(I6="",J6=""),"",I6/J6) -> 6 | L6: =IF(F6="","",SUMIFS(ورقة1!$L$4:$L$9994,ورقة1!$C$4:$C$9994,ورقة3!A6)) -> 0 | M6: =IF(H6="","",SUMIFS(ورقة1!$H$4:$H$9994,ورقة1!$C$4:$C$9994,ورقة3!A6)) -> 0 | N6: =IF(OR(L6=0,L6="",M6=0,M6=""),"",L6/M6) ->  | P6: =IF(N6="","",N6-K6) -> 
A7: =IF(بيانات!A6="","",بيانات!A6) -> طحين | B7: =IF(A7="","",IF(A7=بيانات!A6,بيانات!B6)) -> كيس | C7: =IF(A7="","",VLOOKUP(A7,بيانات!$A$4:$C$11363,3,0)) -> 600 | D7: =IF(A7="","",SUMIFS(ورقة1!$G$4:$G$9994,ورقة1!$C$4:$C$9994,ورقة3!A7)) -> 200 | E7: =IF(A7="","",SUMIFS(ورقة1!$H$4:$H$9994,ورقة1!$C$4:$C$9994,ورقة3!A7)) -> 150 | F7: 650 | H7: 2096.25 | I7: =IF(F7="","",SUMIFS(بيانات!$E$4:$E$5218,بيانات!$A$4:$A$5218,بيانات!A6)+SUMIFS(ورقة1!$K$4:$K$9994,ورقة1!$C$4:$C$9994,ورقة3!A7)) -> 2580 | J7: =IF(F7="","",SUMIFS(بيانات!$C$4:$C$1048576,اسم_الصنف,بيانات!A6)+SUMIFS(ورقة1!$G$4:$G$9994,ورقة1!$C$4:$C$9994,ورقة3!A7)) -> 800 | K7: 3.225 | L7: =IF(F7="","",SUMIFS(ورقة1!$L$4:$L$9994,ورقة1!$C$4:$C$9994,ورقة3!A7)) -> 900 | M7: =IF(H7="","",SUMIFS(ورقة1!$H$4:$H$9994,ورقة1!$C$4:$C$9994,ورقة3!A7)) -> 150 | N7: 6 | O7: 900 | P7: 2.775 | Q7: 416.25
A8: =IF(بيانات!A7="","",بيانات!A7) -> سردين | B8: =IF(A8="","",IF(A8=بيانات!A7,بيانات!B7)) -> قطعة | C8: =IF(A8="","",VLOOKUP(A8,بيانات!$A$4:$C$11363,3,0)) -> 1200 | D8: =IF(A8="","",SUMIFS(ورقة1!$G$4:$G$9994,ورقة1!$C$4:$C$9994,ورقة3!A8)) -> 500 | E8: =IF(A8="","",SUMIFS(ورقة1!$H$4:$H$9994,ورقة1!$C$4:$C$9994,ورقة3!A8)) -> 70 | F8: 1630 | H8: 862.9411765 | I8: =IF(F8="","",SUMIFS(بيانات!$E$4:$E$5218,بيانات!$A$4:$A$5218,بيانات!A7)+SUMIFS(ورقة1!$K$4:$K$9994,ورقة1!$C$4:$C$9994,ورقة3!A8)) -> 900 | J8: =IF(F8="","",SUMIFS(بيانات!$C$4:$C$1048576,اسم_الصنف,بيانات!A7)+SUMIFS(ورقة1!$G$4:$G$9994,ورقة1!$C$4:$C$9994,ورقة3!A8)) -> 1700 | K8: 0.5294117647 | L8: =IF(F8="","",SUMIFS(ورقة1!$L$4:$L$9994,ورقة1!$C$4:$C$9994,ورقة3!A8)) -> 34.7 | M8: =IF(H8="","",SUMIFS(ورقة1!$H$4:$H$9994,ورقة1!$C$4:$C$9994,ورقة3!A8)) -> 70 | N8: 0.4957142857 | O8: 34.7 | P8: -0.03369747899 | Q8: -2.358823529
A9: =IF(بيانات!A8="","",بيانات!A8) -> طن | B9: =IF(A9="","",IF(A9=بيانات!A8,بيانات!B8)) -> قطعة | C9: =IF(A9="","",VLOOKUP(A9,بيانات!$A$4:$C$11363,3,0)) -> 800 | D9: =IF(A9="","",SUMIFS(ورقة1!$G$4:$G$9994,ورقة1!$C$4:$C$9994,ورقة3!A9)) -> 100 | E9: =IF(A9="","",SUMIFS(ورقة1!$H$4:$H$9994,ورقة1!$C$4:$C$9994,ورقة3!A9)) -> 200 | F9: 700 | H9: 400.5555556 | I9: =IF(F9="","",SUMIFS(بيانات!$E$4:$E$5218,بيانات!$A$4:$A$5218,بيانات!A8)+SUMIFS(ورقة1!$K$4:$K$9994,ورقة1!$C$4:$C$9994,ورقة3!A9)) -> 515 | J9: =IF(F9="","",SUMIFS(بيانات!$C$4:$C$1048576,اسم_الصنف,بيانات!A8)+SUMIFS(ورقة1!$G$4:$G$9994,ورقة1!$C$4:$C$9994,ورقة3!A9)) -> 900 | K9: 0.5722222222 | L9: =IF(F9="","",SUMIFS(ورقة1!$L$4:$L$9994,ورقة1!$C$4:$C$9994,ورقة3!A9)) -> 140 | M9: =IF(H9="","",SUMIFS(ورقة1!$H$4:$H$9994,ورقة1!$C$4:$C$9994,ورقة3!A9)) -> 200 | N9: 0.7 | O9: 140 | P9: 0.1277777778 | Q9: 25.55555556
A10: =IF(بيانات!A9="","",بيانات!A9) -> عدس | B10: =IF(A10="","",IF(A10=بيانات!A9,بيانات!B9)) -> كيلو | C10: =IF(A10="","",VLOOKUP(A10,بيانات!$A$4:$C$11363,3,0)) -> 400 | D10: =IF(A10="","",SUMIFS(ورقة1!$G$4:$G$9994,ورقة1!$C$4:$C$9994,ورقة3!A10)) -> 0 | E10: =IF(A10="","",SUMIFS(ورقة1!$H$4:$H$9994,ورقة1!$C$4:$C$9994,ورقة3!A10)) -> 0 | F10: 400 | H10: 240 | I10: =IF(F10="","",SUMIFS(بيانات!$E$4:$E$5218,بيانات!$A$4:$A$5218,بيانات!A9)+SUMIFS(ورقة1!$K$4:$K$9994,ورقة1!$C$4:$C$9994,ورقة3!A10)) -> 240 | J10: =IF(F10="","",SUMIFS(بيانات!$C$4:$C$1048576,اسم_الصنف,بيانات!A9)+SUMIFS(ورقة1!$G$4:$G$9994,ورقة1!$C$4:$C$9994,ورقة3!A10)) -> 400 | K10: 0.6 | L10: =IF(F10="","",SUMIFS(ورقة1!$L$4:$L$9994,ورقة1!$C$4:$C$9994,ورقة3!A10)) -> 0 | M10: =IF(H10="","",SUMIFS(ورقة1!$H$4:$H$9994,ورقة1!$C$4:$C$9994,ورقة3!A10)) -> 0
A11: =IF(بيانات!A10="","",بيانات!A10) -> فاصوليا | B11: =IF(A11="","",IF(A11=بيانات!A10,بيانات!B10)) -> كيلو | C11: =IF(A11="","",VLOOKUP(A11,بيانات!$A$4:$C$11363,3,0)) -> 200 | D11: =IF(A11="","",SUMIFS(ورقة1!$G$4:$G$9994,ورقة1!$C$4:$C$9994,ورقة3!A11)) -> 1000 | E11: =IF(A11="","",SUMIFS(ورقة1!$H$4:$H$9994,ورقة1!$C$4:$C$9994,ورقة3!A11)) -> 0 | F11: 1200 | H11: 6665 | I11: =IF(F11="","",SUMIFS(بيانات!$E$4:$E$5218,بيانات!$A$4:$A$5218,بيانات!A10)+SUMIFS(ورقة1!$K$4:$K$9994,ورقة1!$C$4:$C$9994,ورقة3!A11)) -> 6665 | J11: =IF(F11="","",SUMIFS(بيانات!$C$4:$C$1048576,اسم_الصنف,بيانات!A10)+SUMIFS(ورقة1!$G$4:$G$9994,ورقة1!$C$4:$C$9994,ورقة3!A11)) -> 1200 | K11: 5.554166667 | L11: =IF(F11="","",SUMIFS(ورقة1!$L$4:$L$9994,ورقة1!$C$4:$C$9994,ورقة3!A11)) -> 0 | M11: =IF(H11="","",SUMIFS(ورقة1!$H$4:$H$9994,ورقة1!$C$4:$C$9994,ورقة3!A11)) -> 0
A12: =IF(بيانات!A11="","",بيانات!A11) -> لبنة | B12: =IF(A12="","",IF(A12=بيانات!A11,بيانات!B11)) -> كيلو | C12: =IF(A12="","",VLOOKUP(A12,بيانات!$A$4:$C$11363,3,0)) -> 100 | D12: =IF(A12="","",SUMIFS(ورقة1!$G$4:$G$9994,ورقة1!$C$4:$C$9994,ورقة3!A12)) -> 1200 | E12: =IF(A12="","",SUMIFS(ورقة1!$H$4:$H$9994,ورقة1!$C$4:$C$9994,ورقة3!A12)) -> 0 | F12: 1300 | H12: 530 | I12: =IF(F12="","",SUMIFS(بيانات!$E$4:$E$5218,بيانات!$A$4:$A$5218,بيانات!A11)+SUMIFS(ورقة1!$K$4:$K$9994,ورقة1!$C$4:$C$9994,ورقة3!A12)) -> 530 | J12: =IF(F12="","",SUMIFS(بيانات!$C$4:$C$1048576,اسم_الصنف,بيانات!A11)+SUMIFS(ورقة1!$G$4:$G$9994,ورقة1!$C$4:$C$9994,ورقة3!A12)) -> 1300 | K12: 0.4076923077 | L12: =IF(F12="","",SUMIFS(ورقة1!$L$4:$L$9994,ورقة1!$C$4:$C$9994,ورقة3!A12)) -> 0 | M12: =IF(H12="","",SUMIFS(ورقة1!$H$4:$H$9994,ورقة1!$C$4:$C$9994,ورقة3!A12)) -> 0
A13: =IF(بيانات!A12="","",بيانات!A12) -> لوز | B13: =IF(A13="","",IF(A13=بيانات!A12,بيانات!B12)) -> كيلو | C13: =IF(A13="","",VLOOKUP(A13,بيانات!$A$4:$C$11363,3,0)) -> 150 | D13: =IF(A13="","",SUMIFS(ورقة1!$G$4:$G$9994,ورقة1!$C$4:$C$9994,ورقة3!A13)) -> 0 | E13: =IF(A13="","",SUMIFS(ورقة1!$H$4:$H$9994,ورقة1!$C$4:$C$9994,ورقة3!A13)) -> 0 | F13: 150 | H13: 547.5 | I13: =IF(F13="","",SUMIFS(بيانات!$E$4:$E$5218,بيانات!$A$4:$A$5218,بيانات!A12)+SUMIFS(ورقة1!$K$4:$K$9994,ورقة1!$C$4:$C$9994,ورقة3!A13)) -> 547.5 | J13: =IF(F13="","",SUMIFS(بيانات!$C$4:$C$1048576,اسم_الصنف,بيانات!A12)+SUMIFS(ورقة1!$G$4:$G$9994,ورقة1!$C$4:$C$9994,ورقة3!A13)) -> 150 | K13: 3.65 | L13: =IF(F13="","",SUMIFS(ورقة1!$L$4:$L$9994,ورقة1!$C$4:$C$9994,ورقة3!A13)) -> 0 | M13: =IF(H13="","",SUMIFS(ورقة1!$H$4:$H$9994,ورقة1!$C$4:$C$9994,ورقة3!A13)) -> 0
A14: =IF(بيانات!A13="","",بيانات!A13) -> جبنة مثلثات | B14: =IF(A14="","",IF(A14=بيانات!A13,بيانات!B13)) -> كرتونة | C14: =IF(A14="","",VLOOKUP(A14,بيانات!$A$4:$C$11363,3,0)) -> 0 | D14: =IF(A14="","",SUMIFS(ورقة1!$G$4:$G$9994,ورقة1!$C$4:$C$9994,ورقة3!A14)) -> 150 | E14: =IF(A14="","",SUMIFS(ورقة1!$H$4:$H$9994,ورقة1!$C$4:$C$9994,ورقة3!A14)) -> 55 | F14: 95 | H14: 1363.25 | I14: =IF(F14="","",SUMIFS(بيانات!$E$4:$E$5218,بيانات!$A$4:$A$5218,بيانات!A13)+SUMIFS(ورقة1!$K$4:$K$9994,ورقة1!$C$4:$C$9994,ورقة3!A14)) -> 2152.5 | J14: =IF(F14="","",SUMIFS(بيانات!$C$4:$C$1048576,اسم_الصنف,بيانات!A13)+SUMIFS(ورقة1!$G$4:$G$9994,ورقة1!$C$4:$C$9994,ورقة3!A14)) -> 150 | K14: 14.35 | L14: =IF(F14="","",SUMIFS(ورقة1!$L$4:$L$9994,ورقة1!$C$4:$C$9994,ورقة3!A14)) -> 294.8 | M14: =IF(H14="","",SUMIFS(ورقة1!$H$4:$H$9994,ورقة1!$C$4:$C$9994,ورقة3!A14)) -> 55 | N14: 5.36 | O14: 294.8 | P14: -8.99 | Q14: -494.45
A15: =IF(بيانات!A14="","",بيانات!A14) ->  | B15: =IF(A15="","",IF(A15=بيانات!A14,بيانات!B14)) ->  | C15: =IF(A15="","",VLOOKUP(A15,بيانات!$A$4:$C$11363,3,0)) ->  | D15: =IF(A15="","",SUMIFS(ورقة1!$G$4:$G$9994,ورقة1!$C$4:$C$9994,ورقة3!A15)) ->  | E15: =IF(A15="","",SUMIFS(ورقة1!$H$4:$H$9994,ورقة1!$C$4:$C$9994,ورقة3!A15)) ->  | I15: =IF(F15="","",SUMIFS(بيانات!$E$4:$E$5218,بيانات!$A$4:$A$5218,بيانات!A14)+SUMIFS(ورقة1!$K$4:$K$9994,ورقة1!$C$4:$C$9994,ورقة3!A15)) ->  | J15: =IF(F15="","",SUMIFS(بيانات!$C$4:$C$1048576,اسم_الصنف,بيانات!A14)+SUMIFS(ورقة1!$G$4:$G$9994,ورقة1!$C$4:$C$9994,ورقة3!A15)) ->  | L15: =IF(F15="","",SUMIFS(ورقة1!$L$4:$L$9994,ورقة1!$C$4:$C$9994,ورقة3!A15)) ->  | M15: =IF(H15="","",SUMIFS(ورقة1!$H$4:$H$9994,ورقة1!$C$4:$C$9994,ورقة3!A15)) -> 
A16: =IF(بيانات!A15="","",بيانات!A15) ->  | B16: =IF(A16="","",IF(A16=بيانات!A15,بيانات!B15)) ->  | C16: =IF(A16="","",VLOOKUP(A16,بيانات!$A$4:$C$11363,3,0)) ->  | D16: =IF(A16="","",SUMIFS(ورقة1!$G$4:$G$9994,ورقة1!$C$4:$C$9994,ورقة3!A16)) ->  | E16: =IF(A16="","",SUMIFS(ورقة1!$H$4:$H$9994,ورقة1!$C$4:$C$9994,ورقة3!A16)) ->  | I16: =IF(F16="","",SUMIFS(بيانات!$E$4:$E$5218,بيانات!$A$4:$A$5218,بيانات!A15)+SUMIFS(ورقة1!$K$4:$K$9994,ورقة1!$C$4:$C$9994,ورقة3!A16)) ->  | J16: =IF(F16="","",SUMIFS(بيانات!$C$4:$C$1048576,اسم_الصنف,بيانات!A15)+SUMIFS(ورقة1!$G$4:$G$9994,ورقة1!$C$4:$C$9994,ورقة3!A16)) ->  | L16: =IF(F16="","",SUMIFS(ورقة1!$L$4:$L$9994,ورقة1!$C$4:$C$9994,ورقة3!A16)) ->  | M16: =IF(H16="","",SUMIFS(ورقة1!$H$4:$H$9994,ورقة1!$C$4:$C$9994,ورقة3!A16)) -> 
A17: =IF(بيانات!A16="","",بيانات!A16) ->  | B17: =IF(A17="","",IF(A17=بيانات!A16,بيانات!B16)) ->  | C17: =IF(A17="","",VLOOKUP(A17,بيانات!$A$4:$C$11363,3,0)) ->  | D17: =IF(A17="","",SUMIFS(ورقة1!$G$4:$G$9994,ورقة1!$C$4:$C$9994,ورقة3!A17)) ->  | E17: =IF(A17="","",SUMIFS(ورقة1!$H$4:$H$9994,ورقة1!$C$4:$C$9994,ورقة3!A17)) ->  | I17: =IF(F17="","",SUMIFS(بيانات!$E$4:$E$5218,بيانات!$A$4:$A$5218,بيانات!A16)+SUMIFS(ورقة1!$K$4:$K$9994,ورقة1!$C$4:$C$9994,ورقة3!A17)) ->  | J17: =IF(F17="","",SUMIFS(بيانات!$C$4:$C$1048576,اسم_الصنف,بيانات!A16)+SUMIFS(ورقة1!$G$4:$G$9994,ورقة1!$C$4:$C$9994,ورقة3!A17)) ->  | L17: =IF(F17="","",SUMIFS(ورقة1!$L$4:$L$9994,ورقة1!$C$4:$C$9994,ورقة3!A17)) ->  | M17: =IF(H17="","",SUMIFS(ورقة1!$H$4:$H$9994,ورقة1!$C$4:$C$9994,ورقة3!A17)) -> 
A18: =IF(بيانات!A17="","",بيانات!A17) ->  | B18: =IF(A18="","",IF(A18=بيانات!A17,بيانات!B17)) ->  | C18: =IF(A18="","",VLOOKUP(A18,بيانات!$A$4:$C$11363,3,0)) ->  | D18: =IF(A18="","",SUMIFS(ورقة1!$G$4:$G$9994,ورقة1!$C$4:$C$9994,ورقة3!A18)) ->  | E18: =IF(A18="","",SUMIFS(ورقة1!$H$4:$H$9994,ورقة1!$C$4:$C$9994,ورقة3!A18)) ->  | I18: =IF(F18="","",SUMIFS(بيانات!$E$4:$E$5218,بيانات!$A$4:$A$5218,بيانات!A17)+SUMIFS(ورقة1!$K$4:$K$9994,ورقة1!$C$4:$C$9994,ورقة3!A18)) ->  | J18: =IF(F18="","",SUMIFS(بيانات!$C$4:$C$1048576,اسم_الصنف,بيانات!A17)+SUMIFS(ورقة1!$G$4:$G$9994,ورقة1!$C$4:$C$9994,ورقة3!A18)) ->  | L18: =IF(F18="","",SUMIFS(ورقة1!$L$4:$L$9994,ورقة1!$C$4:$C$9994,ورقة3!A18)) ->  | M18: =IF(H18="","",SUMIFS(ورقة1!$H$4:$H$9994,ورقة1!$C$4:$C$9994,ورقة3!A18)) -> 
A19: =IF(بيانات!A18="","",بيانات!A18) ->  | B19: =IF(A19="","",IF(A19=بيانات!A18,بيانات!B18)) ->  | C19: =IF(A19="","",VLOOKUP(A19,بيانات!$A$4:$C$11363,3,0)) ->  | D19: =IF(A19="","",SUMIFS(ورقة1!$G$4:$G$9994,ورقة1!$C$4:$C$9994,ورقة3!A19)) ->  | E19: =IF(A19="","",SUMIFS(ورقة1!$H$4:$H$9994,ورقة1!$C$4:$C$9994,ورقة3!A19)) ->  | I19: =IF(F19="","",SUMIFS(بيانات!$E$4:$E$5218,بيانات!$A$4:$A$5218,بيانات!A18)+SUMIFS(ورقة1!$K$4:$K$9994,ورقة1!$C$4:$C$9994,ورقة3!A19)) ->  | J19: =IF(F19="","",SUMIFS(بيانات!$C$4:$C$1048576,اسم_الصنف,بيانات!A18)+SUMIFS(ورقة1!$G$4:$G$9994,ورقة1!$C$4:$C$9994,ورقة3!A19)) ->  | L19: =IF(F19="","",SUMIFS(ورقة1!$L$4:$L$9994,ورقة1!$C$4:$C$9994,ورقة3!A19)) ->  | M19: =IF(H19="","",SUMIFS(ورقة1!$H$4:$H$9994,ورقة1!$C$4:$C$9994,ورقة3!A19)) -> 
A20: =IF(بيانات!A19="","",بيانات!A19) ->  | B20: =IF(A20="","",IF(A20=بيانات!A19,بيانات!B19)) ->  | C20: =IF(A20="","",VLOOKUP(A20,بيانات!$A$4:$C$11363,3,0)) ->  | D20: =IF(A20="","",SUMIFS(ورقة1!$G$4:$G$9994,ورقة1!$C$4:$C$9994,ورقة3!A20)) ->  | E20: =IF(A20="","",SUMIFS(ورقة1!$H$4:$H$9994,ورقة1!$C$4:$C$9994,ورقة3!A20)) ->  | I20: =IF(F20="","",SUMIFS(بيانات!$E$4:$E$5218,بيانات!$A$4:$A$5218,بيانات!A19)+SUMIFS(ورقة1!$K$4:$K$9994,ورقة1!$C$4:$C$9994,ورقة3!A20)) ->  | J20: =IF(F20="","",SUMIFS(بيانات!$C$4:$C$1048576,اسم_الصنف,بيانات!A19)+SUMIFS(ورقة1!$G$4:$G$9994,ورقة1!$C$4:$C$9994,ورقة3!A20)) ->  | L20: =IF(F20="","",SUMIFS(ورقة1!$L$4:$L$9994,ورقة1!$C$4:$C$9994,ورقة3!A20)) ->  | M20: =IF(H20="","",SUMIFS(ورقة1!$H$4:$H$9994,ورقة1!$C$4:$C$9994,ورقة3!A20)) -> 
A21: =IF(بيانات!A20="","",بيانات!A20) ->  | B21: =IF(A21="","",IF(A21=بيانات!A20,بيانات!B20)) ->  | C21: =IF(A21="","",VLOOKUP(A21,بيانات!$A$4:$C$11363,3,0)) ->  | D21: =IF(A21="","",SUMIFS(ورقة1!$G$4:$G$9994,ورقة1!$C$4:$C$9994,ورقة3!A21)) ->  | E21: =IF(A21="","",SUMIFS(ورقة1!$H$4:$H$9994,ورقة1!$C$4:$C$9994,ورقة3!A21)) ->  | I21: =IF(F21="","",SUMIFS(بيانات!$E$4:$E$5218,بيانات!$A$4:$A$5218,بيانات!A20)+SUMIFS(ورقة1!$K$4:$K$9994,ورقة1!$C$4:$C$9994,ورقة3!A21)) ->  | J21: =IF(F21="","",SUMIFS(بيانات!$C$4:$C$1048576,اسم_الصنف,بيانات!A20)+SUMIFS(ورقة1!$G$4:$G$9994,ورقة1!$C$4:$C$9994,ورقة3!A21)) ->  | L21: =IF(F21="","",SUMIFS(ورقة1!$L$4:$L$9994,ورقة1!$C$4:$C$9994,ورقة3!A21)) ->  | M21: =IF(H21="","",SUMIFS(ورقة1!$H$4:$H$9994,ورقة1!$C$4:$C$9994,ورقة3!A21)) -> 
A22: =IF(بيانات!A21="","",بيانات!A21) ->  | B22: =IF(A22="","",IF(A22=بيانات!A21,بيانات!B21)) ->  | C22: =IF(A22="","",VLOOKUP(A22,بيانات!$A$4:$C$11363,3,0)) ->  | D22: =IF(A22="","",SUMIFS(ورقة1!$G$4:$G$9994,ورقة1!$C$4:$C$9994,ورقة3!A22)) ->  | E22: =IF(A22="","",SUMIFS(ورقة1!$H$4:$H$9994,ورقة1!$C$4:$C$9994,ورقة3!A22)) ->  | I22: =IF(F22="","",SUMIFS(بيانات!$E$4:$E$5218,بيانات!$A$4:$A$5218,بيانات!A21)+SUMIFS(ورقة1!$K$4:$K$9994,ورقة1!$C$4:$C$9994,ورقة3!A22)) ->  | J22: =IF(F22="","",SUMIFS(بيانات!$C$4:$C$1048576,اسم_الصنف,بيانات!A21)+SUMIFS(ورقة1!$G$4:$G$9994,ورقة1!$C$4:$C$9994,ورقة3!A22)) ->  | L22: =IF(F22="","",SUMIFS(ورقة1!$L$4:$L$9994,ورقة1!$C$4:$C$9994,ورقة3!A22)) ->  | M22: =IF(H22="","",SUMIFS(ورقة1!$H$4:$H$9994,ورقة1!$C$4:$C$9994,ورقة3!A22)) -> 
A23: =IF(بيانات!A22="","",بيانات!A22) ->  | B23: =IF(A23="","",IF(A23=بيانات!A22,بيانات!B22)) ->  | C23: =IF(A23="","",VLOOKUP(A23,بيانات!$A$4:$C$11363,3,0)) ->  | D23: =IF(A23="","",SUMIFS(ورقة1!$G$4:$G$9994,ورقة1!$C$4:$C$9994,ورقة3!A23)) ->  | E23: =IF(A23="","",SUMIFS(ورقة1!$H$4:$H$9994,ورقة1!$C$4:$C$9994,ورقة3!A23)) ->  | I23: =IF(F23="","",SUMIFS(بيانات!$E$4:$E$5218,بيانات!$A$4:$A$5218,بيانات!A22)+SUMIFS(ورقة1!$K$4:$K$9994,ورقة1!$C$4:$C$9994,ورقة3!A23)) ->  | J23: =IF(F23="","",SUMIFS(بيانات!$C$4:$C$1048576,اسم_الصنف,بيانات!A22)+SUMIFS(ورقة1!$G$4:$G$9994,ورقة1!$C$4:$C$9994,ورقة3!A23)) ->  | L23: =IF(F23="","",SUMIFS(ورقة1!$L$4:$L$9994,ورقة1!$C$4:$C$9994,ورقة3!A23)) ->  | M23: =IF(H23="","",SUMIFS(ورقة1!$H$4:$H$9994,ورقة1!$C$4:$C$9994,ورقة3!A23)) -> 
A24: =IF(بيانات!A23="","",بيانات!A23) ->  | B24: =IF(A24="","",IF(A24=بيانات!A23,بيانات!B23)) ->  | C24: =IF(A24="","",VLOOKUP(A24,بيانات!$A$4:$C$11363,3,0)) ->  | D24: =IF(A24="","",SUMIFS(ورقة1!$G$4:$G$9994,ورقة1!$C$4:$C$9994,ورقة3!A24)) ->  | E24: =IF(A24="","",SUMIFS(ورقة1!$H$4:$H$9994,ورقة1!$C$4:$C$9994,ورقة3!A24)) ->  | I24: =IF(F24="","",SUMIFS(بيانات!$E$4:$E$5218,بيانات!$A$4:$A$5218,بيانات!A23)+SUMIFS(ورقة1!$K$4:$K$9994,ورقة1!$C$4:$C$9994,ورقة3!A24)) ->  | J24: =IF(F24="","",SUMIFS(بيانات!$C$4:$C$1048576,اسم_الصنف,بيانات!A23)+SUMIFS(ورقة1!$G$4:$G$9994,ورقة1!$C$4:$C$9994,ورقة3!A24)) ->  | L24: =IF(F24="","",SUMIFS(ورقة1!$L$4:$L$9994,ورقة1!$C$4:$C$9994,ورقة3!A24)) ->  | M24: =IF(H24="","",SUMIFS(ورقة1!$H$4:$H$9994,ورقة1!$C$4:$C$9994,ورقة3!A24)) -> 
A25: =IF(بيانات!A24="","",بيانات!A24) ->  | B25: =IF(A25="","",IF(A25=بيانات!A24,بيانات!B24)) ->  | C25: =IF(A25="","",VLOOKUP(A25,بيانات!$A$4:$C$11363,3,0)) ->  | D25: =IF(A25="","",SUMIFS(ورقة1!$G$4:$G$9994,ورقة1!$C$4:$C$9994,ورقة3!A25)) ->  | E25: =IF(A25="","",SUMIFS(ورقة1!$H$4:$H$9994,ورقة1!$C$4:$C$9994,ورقة3!A25)) ->  | I25: =IF(F25="","",SUMIFS(بيانات!$E$4:$E$5218,بيانات!$A$4:$A$5218,بيانات!A24)+SUMIFS(ورقة1!$K$4:$K$9994,ورقة1!$C$4:$C$9994,ورقة3!A25)) ->  | J25: =IF(F25="","",SUMIFS(بيانات!$C$4:$C$1048576,اسم_الصنف,بيانات!A24)+SUMIFS(ورقة1!$G$4:$G$9994,ورقة1!$C$4:$C$9994,ورقة3!A25)) ->  | L25: =IF(F25="","",SUMIFS(ورقة1!$L$4:$L$9994,ورقة1!$C$4:$C$9994,ورقة3!A25)) ->  | M25: =IF(H25="","",SUMIFS(ورقة1!$H$4:$H$9994,ورقة1!$C$4:$C$9994,ورقة3!A25)) -> 
A26: =IF(بيانات!A25="","",بيانات!A25) ->  | B26: =IF(A26="","",IF(A26=بيانات!A25,بيانات!B25)) ->  | C26: =IF(A26="","",VLOOKUP(A26,بيانات!$A$4:$C$11363,3,0)) ->  | D26: =IF(A26="","",SUMIFS(ورقة1!$G$4:$G$9994,ورقة1!$C$4:$C$9994,ورقة3!A26)) ->  | E26: =IF(A26="","",SUMIFS(ورقة1!$H$4:$H$9994,ورقة1!$C$4:$C$9994,ورقة3!A26)) ->  | I26: =IF(F26="","",SUMIFS(بيانات!$E$4:$E$5218,بيانات!$A$4:$A$5218,بيانات!A25)+SUMIFS(ورقة1!$K$4:$K$9994,ورقة1!$C$4:$C$9994,ورقة3!A26)) ->  | J26: =IF(F26="","",SUMIFS(بيانات!$C$4:$C$1048576,اسم_الصنف,بيانات!A25)+SUMIFS(ورقة1!$G$4:$G$9994,ورقة1!$C$4:$C$9994,ورقة3!A26)) ->  | L26: =IF(F26="","",SUMIFS(ورقة1!$L$4:$L$9994,ورقة1!$C$4:$C$9994,ورقة3!A26)) ->  | M26: =IF(H26="","",SUMIFS(ورقة1!$H$4:$H$9994,ورقة1!$C$4:$C$9994,ورقة3!A26)) -> 
A27: =IF(بيانات!A26="","",بيانات!A26) ->  | B27: =IF(A27="","",IF(A27=بيانات!A26,بيانات!B26)) ->  | C27: =IF(A27="","",VLOOKUP(A27,بيانات!$A$4:$C$11363,3,0)) ->  | D27: =IF(A27="","",SUMIFS(ورقة1!$G$4:$G$9994,ورقة1!$C$4:$C$9994,ورقة3!A27)) ->  | E27: =IF(A27="","",SUMIFS(ورقة1!$H$4:$H$9994,ورقة1!$C$4:$C$9994,ورقة3!A27)) ->  | I27: =IF(F27="","",SUMIFS(بيانات!$E$4:$E$5218,بيانات!$A$4:$A$5218,بيانات!A26)+SUMIFS(ورقة1!$K$4:$K$9994,ورقة1!$C$4:$C$9994,ورقة3!A27)) ->  | J27: =IF(F27="","",SUMIFS(بيانات!$C$4:$C$1048576,اسم_الصنف,بيانات!A26)+SUMIFS(ورقة1!$G$4:$G$9994,ورقة1!$C$4:$C$9994,ورقة3!A27)) ->  | L27: =IF(F27="","",SUMIFS(ورقة1!$L$4:$L$9994,ورقة1!$C$4:$C$9994,ورقة3!A27)) ->  | M27: =IF(H27="","",SUMIFS(ورقة1!$H$4:$H$9994,ورقة1!$C$4:$C$9994,ورقة3!A27)) -> 
A28: =IF(بيانات!A27="","",بيانات!A27) ->  | B28: =IF(A28="","",IF(A28=بيانات!A27,بيانات!B27)) ->  | C28: =IF(A28="","",VLOOKUP(A28,بيانات!$A$4:$C$11363,3,0)) ->  | D28: =IF(A28="","",SUMIFS(ورقة1!$G$4:$G$9994,ورقة1!$C$4:$C$9994,ورقة3!A28)) ->  | E28: =IF(A28="","",SUMIFS(ورقة1!$H$4:$H$9994,ورقة1!$C$4:$C$9994,ورقة3!A28)) ->  | I28: =IF(F28="","",SUMIFS(بيانات!$E$4:$E$5218,بيانات!$A$4:$A$5218,بيانات!A27)+SUMIFS(ورقة1!$K$4:$K$9994,ورقة1!$C$4:$C$9994,ورقة3!A28)) ->  | J28: =IF(F28="","",SUMIFS(بيانات!$C$4:$C$1048576,اسم_الصنف,بيانات!A27)+SUMIFS(ورقة1!$G$4:$G$9994,ورقة1!$C$4:$C$9994,ورقة3!A28)) ->  | L28: =IF(F28="","",SUMIFS(ورقة1!$L$4:$L$9994,ورقة1!$C$4:$C$9994,ورقة3!A28)) ->  | M28: =IF(H28="","",SUMIFS(ورقة1!$H$4:$H$9994,ورقة1!$C$4:$C$9994,ورقة3!A28)) -> 
A29: =IF(بيانات!A28="","",بيانات!A28) ->  | B29: =IF(A29="","",IF(A29=بيانات!A28,بيانات!B28)) ->  | C29: =IF(A29="","",VLOOKUP(A29,بيانات!$A$4:$C$11363,3,0)) ->  | D29: =IF(A29="","",SUMIFS(ورقة1!$G$4:$G$9994,ورقة1!$C$4:$C$9994,ورقة3!A29)) ->  | E29: =IF(A29="","",SUMIFS(ورقة1!$H$4:$H$9994,ورقة1!$C$4:$C$9994,ورقة3!A29)) ->  | I29: =IF(F29="","",SUMIFS(بيانات!$E$4:$E$5218,بيانات!$A$4:$A$5218,بيانات!A28)+SUMIFS(ورقة1!$K$4:$K$9994,ورقة1!$C$4:$C$9994,ورقة3!A29)) ->  | J29: =IF(F29="","",SUMIFS(بيانات!$C$4:$C$1048576,اسم_الصنف,بيانات!A28)+SUMIFS(ورقة1!$G$4:$G$9994,ورقة1!$C$4:$C$9994,ورقة3!A29)) ->  | L29: =IF(F29="","",SUMIFS(ورقة1!$L$4:$L$9994,ورقة1!$C$4:$C$9994,ورقة3!A29)) ->  | M29: =IF(H29="","",SUMIFS(ورقة1!$H$4:$H$9994,ورقة1!$C$4:$C$9994,ورقة3!A29)) -> 
A30: =IF(بيانات!A29="","",بيانات!A29) ->  | B30: =IF(A30="","",IF(A30=بيانات!A29,بيانات!B29)) ->  | C30: =IF(A30="","",VLOOKUP(A30,بيانات!$A$4:$C$11363,3,0)) ->  | D30: =IF(A30="","",SUMIFS(ورقة1!$G$4:$G$9994,ورقة1!$C$4:$C$9994,ورقة3!A30)) ->  | E30: =IF(A30="","",SUMIFS(ورقة1!$H$4:$H$9994,ورقة1!$C$4:$C$9994,ورقة3!A30)) ->  | I30: =IF(F30="","",SUMIFS(بيانات!$E$4:$E$5218,بيانات!$A$4:$A$5218,بيانات!A29)+SUMIFS(ورقة1!$K$4:$K$9994,ورقة1!$C$4:$C$9994,ورقة3!A30)) ->  | J30: =IF(F30="","",SUMIFS(بيانات!$C$4:$C$1048576,اسم_الصنف,بيانات!A29)+SUMIFS(ورقة1!$G$4:$G$9994,ورقة1!$C$4:$C$9994,ورقة3!A30)) ->  | L30: =IF(F30="","",SUMIFS(ورقة1!$L$4:$L$9994,ورقة1!$C$4:$C$9994,ورقة3!A30)) ->  | M30: =IF(H30="","",SUMIFS(ورقة1!$H$4:$H$9994,ورقة1!$C$4:$C$9994,ورقة3!A30)) -> 
A31: =IF(بيانات!A30="","",بيانات!A30) ->  | B31: =IF(A31="","",IF(A31=بيانات!A30,بيانات!B30)) ->  | C31: =IF(A31="","",VLOOKUP(A31,بيانات!$A$4:$C$11363,3,0)) ->  | D31: =IF(A31="","",SUMIFS(ورقة1!$G$4:$G$9994,ورقة1!$C$4:$C$9994,ورقة3!A31)) ->  | E31: =IF(A31="","",SUMIFS(ورقة1!$H$4:$H$9994,ورقة1!$C$4:$C$9994,ورقة3!A31)) ->  | I31: =IF(F31="","",SUMIFS(بيانات!$E$4:$E$5218,بيانات!$A$4:$A$5218,بيانات!A30)+SUMIFS(ورقة1!$K$4:$K$9994,ورقة1!$C$4:$C$9994,ورقة3!A31)) ->  | J31: =IF(F31="","",SUMIFS(بيانات!$C$4:$C$1048576,اسم_الصنف,بيانات!A30)+SUMIFS(ورقة1!$G$4:$G$9994,ورقة1!$C$4:$C$9994,ورقة3!A31)) ->  | L31: =IF(F31="","",SUMIFS(ورقة1!$L$4:$L$9994,ورقة1!$C$4:$C$9994,ورقة3!A31)) ->  | M31: =IF(H31="","",SUMIFS(ورقة1!$H$4:$H$9994,ورقة1!$C$4:$C$9994,ورقة3!A31)) -> 
A32: =IF(بيانات!A31="","",بيانات!A31) ->  | B32: =IF(A32="","",IF(A32=بيانات!A31,بيانات!B31)) ->  | C32: =IF(A32="","",VLOOKUP(A32,بيانات!$A$4:$C$11363,3,0)) ->  | D32: =IF(A32="","",SUMIFS(ورقة1!$G$4:$G$9994,ورقة1!$C$4:$C$9994,ورقة3!A32)) ->  | E32: =IF(A32="","",SUMIFS(ورقة1!$H$4:$H$9994,ورقة1!$C$4:$C$9994,ورقة3!A32)) ->  | I32: =IF(F32="","",SUMIFS(بيانات!$E$4:$E$5218,بيانات!$A$4:$A$5218,بيانات!A31)+SUMIFS(ورقة1!$K$4:$K$9994,ورقة1!$C$4:$C$9994,ورقة3!A32)) ->  | J32: =IF(F32="","",SUMIFS(بيانات!$C$4:$C$1048576,اسم_الصنف,بيانات!A31)+SUMIFS(ورقة1!$G$4:$G$9994,ورقة1!$C$4:$C$9994,ورقة3!A32)) ->  | L32: =IF(F32="","",SUMIFS(ورقة1!$L$4:$L$9994,ورقة1!$C$4:$C$9994,ورقة3!A32)) ->  | M32: =IF(H32="","",SUMIFS(ورقة1!$H$4:$H$9994,ورقة1!$C$4:$C$9994,ورقة3!A32)) -> 
A33: =IF(بيانات!A32="","",بيانات!A32) ->  | B33: =IF(A33="","",IF(A33=بيانات!A32,بيانات!B32)) ->  | C33: =IF(A33="","",VLOOKUP(A33,بيانات!$A$4:$C$11363,3,0)) ->  | D33: =IF(A33="","",SUMIFS(ورقة1!$G$4:$G$9994,ورقة1!$C$4:$C$9994,ورقة3!A33)) ->  | E33: =IF(A33="","",SUMIFS(ورقة1!$H$4:$H$9994,ورقة1!$C$4:$C$9994,ورقة3!A33)) ->  | I33: =IF(F33="","",SUMIFS(بيانات!$E$4:$E$5218,بيانات!$A$4:$A$5218,بيانات!A32)+SUMIFS(ورقة1!$K$4:$K$9994,ورقة1!$C$4:$C$9994,ورقة3!A33)) ->  | J33: =IF(F33="","",SUMIFS(بيانات!$C$4:$C$1048576,اسم_الصنف,بيانات!A32)+SUMIFS(ورقة1!$G$4:$G$9994,ورقة1!$C$4:$C$9994,ورقة3!A33)) ->  | L33: =IF(F33="","",SUMIFS(ورقة1!$L$4:$L$9994,ورقة1!$C$4:$C$9994,ورقة3!A33)) ->  | M33: =IF(H33="","",SUMIFS(ورقة1!$H$4:$H$9994,ورقة1!$C$4:$C$9994,ورقة3!A33)) -> 
A34: =IF(بيانات!A33="","",بيانات!A33) ->  | B34: =IF(A34="","",IF(A34=بيانات!A33,بيانات!B33)) ->  | C34: =IF(A34="","",VLOOKUP(A34,بيانات!$A$4:$C$11363,3,0)) ->  | D34: =IF(A34="","",SUMIFS(ورقة1!$G$4:$G$9994,ورقة1!$C$4:$C$9994,ورقة3!A34)) ->  | E34: =IF(A34="","",SUMIFS(ورقة1!$H$4:$H$9994,ورقة1!$C$4:$C$9994,ورقة3!A34)) ->  | I34: =IF(F34="","",SUMIFS(بيانات!$E$4:$E$5218,بيانات!$A$4:$A$5218,بيانات!A33)+SUMIFS(ورقة1!$K$4:$K$9994,ورقة1!$C$4:$C$9994,ورقة3!A34)) ->  | J34: =IF(F34="","",SUMIFS(بيانات!$C$4:$C$1048576,اسم_الصنف,بيانات!A33)+SUMIFS(ورقة1!$G$4:$G$9994,ورقة1!$C$4:$C$9994,ورقة3!A34)) ->  | L34: =IF(F34="","",SUMIFS(ورقة1!$L$4:$L$9994,ورقة1!$C$4:$C$9994,ورقة3!A34)) ->  | M34: =IF(H34="","",SUMIFS(ورقة1!$H$4:$H$9994,ورقة1!$C$4:$C$9994,ورقة3!A34)) -> 
A35: =IF(بيانات!A34="","",بيانات!A34) ->  | B35: =IF(A35="","",IF(A35=بيانات!A34,بيانات!B34)) ->  | C35: =IF(A35="","",VLOOKUP(A35,بيانات!$A$4:$C$11363,3,0)) ->  | D35: =IF(A35="","",SUMIFS(ورقة1!$G$4:$G$9994,ورقة1!$C$4:$C$9994,ورقة3!A35)) ->  | E35: =IF(A35="","",SUMIFS(ورقة1!$H$4:$H$9994,ورقة1!$C$4:$C$9994,ورقة3!A35)) ->  | I35: =IF(F35="","",SUMIFS(بيانات!$E$4:$E$5218,بيانات!$A$4:$A$5218,بيانات!A34)+SUMIFS(ورقة1!$K$4:$K$9994,ورقة1!$C$4:$C$9994,ورقة3!A35)) ->  | J35: =IF(F35="","",SUMIFS(بيانات!$C$4:$C$1048576,اسم_الصنف,بيانات!A34)+SUMIFS(ورقة1!$G$4:$G$9994,ورقة1!$C$4:$C$9994,ورقة3!A35)) ->  | L35: =IF(F35="","",SUMIFS(ورقة1!$L$4:$L$9994,ورقة1!$C$4:$C$9994,ورقة3!A35)) ->  | M35: =IF(H35="","",SUMIFS(ورقة1!$H$4:$H$9994,ورقة1!$C$4:$C$9994,ورقة3!A35)) -> 
A36: =IF(بيانات!A35="","",بيانات!A35) ->  | B36: =IF(A36="","",IF(A36=بيانات!A35,بيانات!B35)) ->  | C36: =IF(A36="","",VLOOKUP(A36,بيانات!$A$4:$C$11363,3,0)) ->  | D36: =IF(A36="","",SUMIFS(ورقة1!$G$4:$G$9994,ورقة1!$C$4:$C$9994,ورقة3!A36)) ->  | E36: =IF(A36="","",SUMIFS(ورقة1!$H$4:$H$9994,ورقة1!$C$4:$C$9994,ورقة3!A36)) ->  | I36: =IF(F36="","",SUMIFS(بيانات!$E$4:$E$5218,بيانات!$A$4:$A$5218,بيانات!A35)+SUMIFS(ورقة1!$K$4:$K$9994,ورقة1!$C$4:$C$9994,ورقة3!A36)) ->  | J36: =IF(F36="","",SUMIFS(بيانات!$C$4:$C$1048576,اسم_الصنف,بيانات!A35)+SUMIFS(ورقة1!$G$4:$G$9994,ورقة1!$C$4:$C$9994,ورقة3!A36)) ->  | L36: =IF(F36="","",SUMIFS(ورقة1!$L$4:$L$9994,ورقة1!$C$4:$C$9994,ورقة3!A36)) ->  | M36: =IF(H36="","",SUMIFS(ورقة1!$H$4:$H$9994,ورقة1!$C$4:$C$9994,ورقة3!A36)) -> 
A37: =IF(بيانات!A36="","",بيانات!A36) ->  | B37: =IF(A37="","",IF(A37=بيانات!A36,بيانات!B36)) ->  | C37: =IF(A37="","",VLOOKUP(A37,بيانات!$A$4:$C$11363,3,0)) ->  | D37: =IF(A37="","",SUMIFS(ورقة1!$G$4:$G$9994,ورقة1!$C$4:$C$9994,ورقة3!A37)) ->  | E37: =IF(A37="","",SUMIFS(ورقة1!$H$4:$H$9994,ورقة1!$C$4:$C$9994,ورقة3!A37)) ->  | I37: =IF(F37="","",SUMIFS(بيانات!$E$4:$E$5218,بيانات!$A$4:$A$5218,بيانات!A36)+SUMIFS(ورقة1!$K$4:$K$9994,ورقة1!$C$4:$C$9994,ورقة3!A37)) ->  | J37: =IF(F37="","",SUMIFS(بيانات!$C$4:$C$1048576,اسم_الصنف,بيانات!A36)+SUMIFS(ورقة1!$G$4:$G$9994,ورقة1!$C$4:$C$9994,ورقة3!A37)) ->  | L37: =IF(F37="","",SUMIFS(ورقة1!$L$4:$L$9994,ورقة1!$C$4:$C$9994,ورقة3!A37)) ->  | M37: =IF(H37="","",SUMIFS(ورقة1!$H$4:$H$9994,ورقة1!$C$4:$C$9994,ورقة3!A37)) -> 
A38: =IF(بيانات!A37="","",بيانات!A37) ->  | B38: =IF(A38="","",IF(A38=بيانات!A37,بيانات!B37)) ->  | C38: =IF(A38="","",VLOOKUP(A38,بيانات!$A$4:$C$11363,3,0)) ->  | D38: =IF(A38="","",SUMIFS(ورقة1!$G$4:$G$9994,ورقة1!$C$4:$C$9994,ورقة3!A38)) ->  | E38: =IF(A38="","",SUMIFS(ورقة1!$H$4:$H$9994,ورقة1!$C$4:$C$9994,ورقة3!A38)) ->  | I38: =IF(F38="","",SUMIFS(بيانات!$E$4:$E$5218,بيانات!$A$4:$A$5218,بيانات!A37)+SUMIFS(ورقة1!$K$4:$K$9994,ورقة1!$C$4:$C$9994,ورقة3!A38)) ->  | J38: =IF(F38="","",SUMIFS(بيانات!$C$4:$C$1048576,اسم_الصنف,بيانات!A37)+SUMIFS(ورقة1!$G$4:$G$9994,ورقة1!$C$4:$C$9994,ورقة3!A38)) ->  | L38: =IF(F38="","",SUMIFS(ورقة1!$L$4:$L$9994,ورقة1!$C$4:$C$9994,ورقة3!A38)) ->  | M38: =IF(H38="","",SUMIFS(ورقة1!$H$4:$H$9994,ورقة1!$C$4:$C$9994,ورقة3!A38)) -> 
A39: =IF(بيانات!A38="","",بيانات!A38) ->  | B39: =IF(A39="","",IF(A39=بيانات!A38,بيانات!B38)) ->  | C39: =IF(A39="","",VLOOKUP(A39,بيانات!$A$4:$C$11363,3,0)) ->  | D39: =IF(A39="","",SUMIFS(ورقة1!$G$4:$G$9994,ورقة1!$C$4:$C$9994,ورقة3!A39)) ->  | E39: =IF(A39="","",SUMIFS(ورقة1!$H$4:$H$9994,ورقة1!$C$4:$C$9994,ورقة3!A39)) ->  | I39: =IF(F39="","",SUMIFS(بيانات!$E$4:$E$5218,بيانات!$A$4:$A$5218,بيانات!A38)+SUMIFS(ورقة1!$K$4:$K$9994,ورقة1!$C$4:$C$9994,ورقة3!A39)) ->  | J39: =IF(F39="","",SUMIFS(بيانات!$C$4:$C$1048576,اسم_الصنف,بيانات!A38)+SUMIFS(ورقة1!$G$4:$G$9994,ورقة1!$C$4:$C$9994,ورقة3!A39)) ->  | L39: =IF(F39="","",SUMIFS(ورقة1!$L$4:$L$9994,ورقة1!$C$4:$C$9994,ورقة3!A39)) ->  | M39: =IF(H39="","",SUMIFS(ورقة1!$H$4:$H$9994,ورقة1!$C$4:$C$9994,ورقة3!A39)) -> 
A40: =IF(بيانات!A39="","",بيانات!A39) ->  | B40: =IF(A40="","",IF(A40=بيانات!A39,بيانات!B39)) ->  | C40: =IF(A40="","",VLOOKUP(A40,بيانات!$A$4:$C$11363,3,0)) ->  | D40: =IF(A40="","",SUMIFS(ورقة1!$G$4:$G$9994,ورقة1!$C$4:$C$9994,ورقة3!A40)) ->  | E40: =IF(A40="","",SUMIFS(ورقة1!$H$4:$H$9994,ورقة1!$C$4:$C$9994,ورقة3!A40)) ->  | I40: =IF(F40="","",SUMIFS(بيانات!$E$4:$E$5218,بيانات!$A$4:$A$5218,بيانات!A39)+SUMIFS(ورقة1!$K$4:$K$9994,ورقة1!$C$4:$C$9994,ورقة3!A40)) ->  | J40: =IF(F40="","",SUMIFS(بيانات!$C$4:$C$1048576,اسم_الصنف,بيانات!A39)+SUMIFS(ورقة1!$G$4:$G$9994,ورقة1!$C$4:$C$9994,ورقة3!A40)) ->  | L40: =IF(F40="","",SUMIFS(ورقة1!$L$4:$L$9994,ورقة1!$C$4:$C$9994,ورقة3!A40)) ->  | M40: =IF(H40="","",SUMIFS(ورقة1!$H$4:$H$9994,ورقة1!$C$4:$C$9994,ورقة3!A40)) -> 
A41: =IF(بيانات!A40="","",بيانات!A40) ->  | B41: =IF(A41="","",IF(A41=بيانات!A40,بيانات!B40)) ->  | C41: =IF(A41="","",VLOOKUP(A41,بيانات!$A$4:$C$11363,3,0)) ->  | D41: =IF(A41="","",SUMIFS(ورقة1!$G$4:$G$9994,ورقة1!$C$4:$C$9994,ورقة3!A41)) ->  | E41: =IF(A41="","",SUMIFS(ورقة1!$H$4:$H$9994,ورقة1!$C$4:$C$9994,ورقة3!A41)) ->  | I41: =IF(F41="","",SUMIFS(بيانات!$E$4:$E$5218,بيانات!$A$4:$A$5218,بيانات!A40)+SUMIFS(ورقة1!$K$4:$K$9994,ورقة1!$C$4:$C$9994,ورقة3!A41)) ->  | J41: =IF(F41="","",SUMIFS(بيانات!$C$4:$C$1048576,اسم_الصنف,بيانات!A40)+SUMIFS(ورقة1!$G$4:$G$9994,ورقة1!$C$4:$C$9994,ورقة3!A41)) ->  | L41: =IF(F41="","",SUMIFS(ورقة1!$L$4:$L$9994,ورقة1!$C$4:$C$9994,ورقة3!A41)) ->  | M41: =IF(H41="","",SUMIFS(ورقة1!$H$4:$H$9994,ورقة1!$C$4:$C$9994,ورقة3!A41)) -> 
A42: =IF(بيانات!A41="","",بيانات!A41) ->  | B42: =IF(A42="","",IF(A42=بيانات!A41,بيانات!B41)) ->  | C42: =IF(A42="","",VLOOKUP(A42,بيانات!$A$4:$C$11363,3,0)) ->  | D42: =IF(A42="","",SUMIFS(ورقة1!$G$4:$G$9994,ورقة1!$C$4:$C$9994,ورقة3!A42)) ->  | E42: =IF(A42="","",SUMIFS(ورقة1!$H$4:$H$9994,ورقة1!$C$4:$C$9994,ورقة3!A42)) ->  | I42: =IF(F42="","",SUMIFS(بيانات!$E$4:$E$5218,بيانات!$A$4:$A$5218,بيانات!A41)+SUMIFS(ورقة1!$K$4:$K$9994,ورقة1!$C$4:$C$9994,ورقة3!A42)) ->  | J42: =IF(F42="","",SUMIFS(بيانات!$C$4:$C$1048576,اسم_الصنف,بيانات!A41)+SUMIFS(ورقة1!$G$4:$G$9994,ورقة1!$C$4:$C$9994,ورقة3!A42)) ->  | L42: =IF(F42="","",SUMIFS(ورقة1!$L$4:$L$9994,ورقة1!$C$4:$C$9994,ورقة3!A42)) ->  | M42: =IF(H42="","",SUMIFS(ورقة1!$H$4:$H$9994,ورقة1!$C$4:$C$9994,ورقة3!A42)) -> 
A43: =IF(بيانات!A42="","",بيانات!A42) ->  | B43: =IF(A43="","",IF(A43=بيانات!A42,بيانات!B42)) ->  | C43: =IF(A43="","",VLOOKUP(A43,بيانات!$A$4:$C$11363,3,0)) ->  | D43: =IF(A43="","",SUMIFS(ورقة1!$G$4:$G$9994,ورقة1!$C$4:$C$9994,ورقة3!A43)) ->  | E43: =IF(A43="","",SUMIFS(ورقة1!$H$4:$H$9994,ورقة1!$C$4:$C$9994,ورقة3!A43)) ->  | I43: =IF(F43="","",SUMIFS(بيانات!$E$4:$E$5218,بيانات!$A$4:$A$5218,بيانات!A42)+SUMIFS(ورقة1!$K$4:$K$9994,ورقة1!$C$4:$C$9994,ورقة3!A43)) ->  | J43: =IF(F43="","",SUMIFS(بيانات!$C$4:$C$1048576,اسم_الصنف,بيانات!A42)+SUMIFS(ورقة1!$G$4:$G$9994,ورقة1!$C$4:$C$9994,ورقة3!A43)) ->  | L43: =IF(F43="","",SUMIFS(ورقة1!$L$4:$L$9994,ورقة1!$C$4:$C$9994,ورقة3!A43)) ->  | M43: =IF(H43="","",SUMIFS(ورقة1!$H$4:$H$9994,ورقة1!$C$4:$C$9994,ورقة3!A43)) -> 
A44: =IF(بيانات!A43="","",بيانات!A43) ->  | B44: =IF(A44="","",IF(A44=بيانات!A43,بيانات!B43)) ->  | C44: =IF(A44="","",VLOOKUP(A44,بيانات!$A$4:$C$11363,3,0)) ->  | D44: =IF(A44="","",SUMIFS(ورقة1!$G$4:$G$9994,ورقة1!$C$4:$C$9994,ورقة3!A44)) ->  | E44: =IF(A44="","",SUMIFS(ورقة1!$H$4:$H$9994,ورقة1!$C$4:$C$9994,ورقة3!A44)) ->  | I44: =IF(F44="","",SUMIFS(بيانات!$E$4:$E$5218,بيانات!$A$4:$A$5218,بيانات!A43)+SUMIFS(ورقة1!$K$4:$K$9994,ورقة1!$C$4:$C$9994,ورقة3!A44)) ->  | J44: =IF(F44="","",SUMIFS(بيانات!$C$4:$C$1048576,اسم_الصنف,بيانات!A43)+SUMIFS(ورقة1!$G$4:$G$9994,ورقة1!$C$4:$C$9994,ورقة3!A44)) ->  | L44: =IF(F44="","",SUMIFS(ورقة1!$L$4:$L$9994,ورقة1!$C$4:$C$9994,ورقة3!A44)) ->  | M44: =IF(H44="","",SUMIFS(ورقة1!$H$4:$H$9994,ورقة1!$C$4:$C$9994,ورقة3!A44)) -> 
A45: =IF(بيانات!A44="","",بيانات!A44) ->  | B45: =IF(A45="","",IF(A45=بيانات!A44,بيانات!B44)) ->  | C45: =IF(A45="","",VLOOKUP(A45,بيانات!$A$4:$C$11363,3,0)) ->  | D45: =IF(A45="","",SUMIFS(ورقة1!$G$4:$G$9994,ورقة1!$C$4:$C$9994,ورقة3!A45)) ->  | E45: =IF(A45="","",SUMIFS(ورقة1!$H$4:$H$9994,ورقة1!$C$4:$C$9994,ورقة3!A45)) ->  | I45: =IF(F45="","",SUMIFS(بيانات!$E$4:$E$5218,بيانات!$A$4:$A$5218,بيانات!A44)+SUMIFS(ورقة1!$K$4:$K$9994,ورقة1!$C$4:$C$9994,ورقة3!A45)) ->  | J45: =IF(F45="","",SUMIFS(بيانات!$C$4:$C$1048576,اسم_الصنف,بيانات!A44)+SUMIFS(ورقة1!$G$4:$G$9994,ورقة1!$C$4:$C$9994,ورقة3!A45)) ->  | L45: =IF(F45="","",SUMIFS(ورقة1!$L$4:$L$9994,ورقة1!$C$4:$C$9994,ورقة3!A45)) ->  | M45: =IF(H45="","",SUMIFS(ورقة1!$H$4:$H$9994,ورقة1!$C$4:$C$9994,ورقة3!A45)) -> 
A46: =IF(بيانات!A45="","",بيانات!A45) ->  | B46: =IF(A46="","",IF(A46=بيانات!A45,بيانات!B45)) ->  | C46: =IF(A46="","",VLOOKUP(A46,بيانات!$A$4:$C$11363,3,0)) ->  | D46: =IF(A46="","",SUMIFS(ورقة1!$G$4:$G$9994,ورقة1!$C$4:$C$9994,ورقة3!A46)) ->  | E46: =IF(A46="","",SUMIFS(ورقة1!$H$4:$H$9994,ورقة1!$C$4:$C$9994,ورقة3!A46)) ->  | I46: =IF(F46="","",SUMIFS(بيانات!$E$4:$E$5218,بيانات!$A$4:$A$5218,بيانات!A45)+SUMIFS(ورقة1!$K$4:$K$9994,ورقة1!$C$4:$C$9994,ورقة3!A46)) ->  | J46: =IF(F46="","",SUMIFS(بيانات!$C$4:$C$1048576,اسم_الصنف,بيانات!A45)+SUMIFS(ورقة1!$G$4:$G$9994,ورقة1!$C$4:$C$9994,ورقة3!A46)) ->  | L46: =IF(F46="","",SUMIFS(ورقة1!$L$4:$L$9994,ورقة1!$C$4:$C$9994,ورقة3!A46)) ->  | M46: =IF(H46="","",SUMIFS(ورقة1!$H$4:$H$9994,ورقة1!$C$4:$C$9994,ورقة3!A46)) -> 
A47: =IF(بيانات!A46="","",بيانات!A46) ->  | B47: =IF(A47="","",IF(A47=بيانات!A46,بيانات!B46)) ->  | C47: =IF(A47="","",VLOOKUP(A47,بيانات!$A$4:$C$11363,3,0)) ->  | D47: =IF(A47="","",SUMIFS(ورقة1!$G$4:$G$9994,ورقة1!$C$4:$C$9994,ورقة3!A47)) ->  | E47: =IF(A47="","",SUMIFS(ورقة1!$H$4:$H$9994,ورقة1!$C$4:$C$9994,ورقة3!A47)) ->  | I47: =IF(F47="","",SUMIFS(بيانات!$E$4:$E$5218,بيانات!$A$4:$A$5218,بيانات!A46)+SUMIFS(ورقة1!$K$4:$K$9994,ورقة1!$C$4:$C$9994,ورقة3!A47)) ->  | J47: =IF(F47="","",SUMIFS(بيانات!$C$4:$C$1048576,اسم_الصنف,بيانات!A46)+SUMIFS(ورقة1!$G$4:$G$9994,ورقة1!$C$4:$C$9994,ورقة3!A47)) ->  | L47: =IF(F47="","",SUMIFS(ورقة1!$L$4:$L$9994,ورقة1!$C$4:$C$9994,ورقة3!A47)) ->  | M47: =IF(H47="","",SUMIFS(ورقة1!$H$4:$H$9994,ورقة1!$C$4:$C$9994,ورقة3!A47)) -> 
A48: =IF(بيانات!A47="","",بيانات!A47) ->  | B48: =IF(A48="","",IF(A48=بيانات!A47,بيانات!B47)) ->  | C48: =IF(A48="","",VLOOKUP(A48,بيانات!$A$4:$C$11363,3,0)) ->  | D48: =IF(A48="","",SUMIFS(ورقة1!$G$4:$G$9994,ورقة1!$C$4:$C$9994,ورقة3!A48)) ->  | E48: =IF(A48="","",SUMIFS(ورقة1!$H$4:$H$9994,ورقة1!$C$4:$C$9994,ورقة3!A48)) ->  | I48: =IF(F48="","",SUMIFS(بيانات!$E$4:$E$5218,بيانات!$A$4:$A$5218,بيانات!A47)+SUMIFS(ورقة1!$K$4:$K$9994,ورقة1!$C$4:$C$9994,ورقة3!A48)) ->  | J48: =IF(F48="","",SUMIFS(بيانات!$C$4:$C$1048576,اسم_الصنف,بيانات!A47)+SUMIFS(ورقة1!$G$4:$G$9994,ورقة1!$C$4:$C$9994,ورقة3!A48)) ->  | L48: =IF(F48="","",SUMIFS(ورقة1!$L$4:$L$9994,ورقة1!$C$4:$C$9994,ورقة3!A48)) ->  | M48: =IF(H48="","",SUMIFS(ورقة1!$H$4:$H$9994,ورقة1!$C$4:$C$9994,ورقة3!A48)) -> 
A49: =IF(بيانات!A48="","",بيانات!A48) ->  | B49: =IF(A49="","",IF(A49=بيانات!A48,بيانات!B48)) ->  | C49: =IF(A49="","",VLOOKUP(A49,بيانات!$A$4:$C$11363,3,0)) ->  | D49: =IF(A49="","",SUMIFS(ورقة1!$G$4:$G$9994,ورقة1!$C$4:$C$9994,ورقة3!A49)) ->  | E49: =IF(A49="","",SUMIFS(ورقة1!$H$4:$H$9994,ورقة1!$C$4:$C$9994,ورقة3!A49)) ->  | I49: =IF(F49="","",SUMIFS(بيانات!$E$4:$E$5218,بيانات!$A$4:$A$5218,بيانات!A48)+SUMIFS(ورقة1!$K$4:$K$9994,ورقة1!$C$4:$C$9994,ورقة3!A49)) ->  | J49: =IF(F49="","",SUMIFS(بيانات!$C$4:$C$1048576,اسم_الصنف,بيانات!A48)+SUMIFS(ورقة1!$G$4:$G$9994,ورقة1!$C$4:$C$9994,ورقة3!A49)) ->  | L49: =IF(F49="","",SUMIFS(ورقة1!$L$4:$L$9994,ورقة1!$C$4:$C$9994,ورقة3!A49)) ->  | M49: =IF(H49="","",SUMIFS(ورقة1!$H$4:$H$9994,ورقة1!$C$4:$C$9994,ورقة3!A49)) -> 
A50: =IF(بيانات!A49="","",بيانات!A49) ->  | B50: =IF(A50="","",IF(A50=بيانات!A49,بيانات!B49)) ->  | C50: =IF(A50="","",VLOOKUP(A50,بيانات!$A$4:$C$11363,3,0)) ->  | D50: =IF(A50="","",SUMIFS(ورقة1!$G$4:$G$9994,ورقة1!$C$4:$C$9994,ورقة3!A50)) ->  | E50: =IF(A50="","",SUMIFS(ورقة1!$H$4:$H$9994,ورقة1!$C$4:$C$9994,ورقة3!A50)) ->  | I50: =IF(F50="","",SUMIFS(بيانات!$E$4:$E$5218,بيانات!$A$4:$A$5218,بيانات!A49)+SUMIFS(ورقة1!$K$4:$K$9994,ورقة1!$C$4:$C$9994,ورقة3!A50)) ->  | J50: =IF(F50="","",SUMIFS(بيانات!$C$4:$C$1048576,اسم_الصنف,بيانات!A49)+SUMIFS(ورقة1!$G$4:$G$9994,ورقة1!$C$4:$C$9994,ورقة3!A50)) ->  | L50: =IF(F50="","",SUMIFS(ورقة1!$L$4:$L$9994,ورقة1!$C$4:$C$9994,ورقة3!A50)) ->  | M50: =IF(H50="","",SUMIFS(ورقة1!$H$4:$H$9994,ورقة1!$C$4:$C$9994,ورقة3!A50)) -> 
A51: =IF(بيانات!A50="","",بيانات!A50) ->  | B51: =IF(A51="","",IF(A51=بيانات!A50,بيانات!B50)) ->  | C51: =IF(A51="","",VLOOKUP(A51,بيانات!$A$4:$C$11363,3,0)) ->  | D51: =IF(A51="","",SUMIFS(ورقة1!$G$4:$G$9994,ورقة1!$C$4:$C$9994,ورقة3!A51)) ->  | E51: =IF(A51="","",SUMIFS(ورقة1!$H$4:$H$9994,ورقة1!$C$4:$C$9994,ورقة3!A51)) ->  | I51: =IF(F51="","",SUMIFS(بيانات!$E$4:$E$5218,بيانات!$A$4:$A$5218,بيانات!A50)+SUMIFS(ورقة1!$K$4:$K$9994,ورقة1!$C$4:$C$9994,ورقة3!A51)) ->  | J51: =IF(F51="","",SUMIFS(بيانات!$C$4:$C$1048576,اسم_الصنف,بيانات!A50)+SUMIFS(ورقة1!$G$4:$G$9994,ورقة1!$C$4:$C$9994,ورقة3!A51)) ->  | L51: =IF(F51="","",SUMIFS(ورقة1!$L$4:$L$9994,ورقة1!$C$4:$C$9994,ورقة3!A51)) ->  | M51: =IF(H51="","",SUMIFS(ورقة1!$H$4:$H$9994,ورقة1!$C$4:$C$9994,ورقة3!A51)) -> 
A52: =IF(بيانات!A51="","",بيانات!A51) ->  | B52: =IF(A52="","",IF(A52=بيانات!A51,بيانات!B51)) ->  | C52: =IF(A52="","",VLOOKUP(A52,بيانات!$A$4:$C$11363,3,0)) ->  | D52: =IF(A52="","",SUMIFS(ورقة1!$G$4:$G$9994,ورقة1!$C$4:$C$9994,ورقة3!A52)) ->  | E52: =IF(A52="","",SUMIFS(ورقة1!$H$4:$H$9994,ورقة1!$C$4:$C$9994,ورقة3!A52)) ->  | I52: =IF(F52="","",SUMIFS(بيانات!$E$4:$E$5218,بيانات!$A$4:$A$5218,بيانات!A51)+SUMIFS(ورقة1!$K$4:$K$9994,ورقة1!$C$4:$C$9994,ورقة3!A52)) ->  | J52: =IF(F52="","",SUMIFS(بيانات!$C$4:$C$1048576,اسم_الصنف,بيانات!A51)+SUMIFS(ورقة1!$G$4:$G$9994,ورقة1!$C$4:$C$9994,ورقة3!A52)) ->  | L52: =IF(F52="","",SUMIFS(ورقة1!$L$4:$L$9994,ورقة1!$C$4:$C$9994,ورقة3!A52)) ->  | M52: =IF(H52="","",SUMIFS(ورقة1!$H$4:$H$9994,ورقة1!$C$4:$C$9994,ورقة3!A52)) -> 
A53: =IF(بيانات!A52="","",بيانات!A52) ->  | B53: =IF(A53="","",IF(A53=بيانات!A52,بيانات!B52)) ->  | C53: =IF(A53="","",VLOOKUP(A53,بيانات!$A$4:$C$11363,3,0)) ->  | D53: =IF(A53="","",SUMIFS(ورقة1!$G$4:$G$9994,ورقة1!$C$4:$C$9994,ورقة3!A53)) ->  | E53: =IF(A53="","",SUMIFS(ورقة1!$H$4:$H$9994,ورقة1!$C$4:$C$9994,ورقة3!A53)) ->  | I53: =IF(F53="","",SUMIFS(بيانات!$E$4:$E$5218,بيانات!$A$4:$A$5218,بيانات!A52)+SUMIFS(ورقة1!$K$4:$K$9994,ورقة1!$C$4:$C$9994,ورقة3!A53)) ->  | J53: =IF(F53="","",SUMIFS(بيانات!$C$4:$C$1048576,اسم_الصنف,بيانات!A52)+SUMIFS(ورقة1!$G$4:$G$9994,ورقة1!$C$4:$C$9994,ورقة3!A53)) ->  | L53: =IF(F53="","",SUMIFS(ورقة1!$L$4:$L$9994,ورقة1!$C$4:$C$9994,ورقة3!A53)) ->  | M53: =IF(H53="","",SUMIFS(ورقة1!$H$4:$H$9994,ورقة1!$C$4:$C$9994,ورقة3!A53)) -> 
A54: =IF(بيانات!A53="","",بيانات!A53) ->  | B54: =IF(A54="","",IF(A54=بيانات!A53,بيانات!B53)) ->  | C54: =IF(A54="","",VLOOKUP(A54,بيانات!$A$4:$C$11363,3,0)) ->  | D54: =IF(A54="","",SUMIFS(ورقة1!$G$4:$G$9994,ورقة1!$C$4:$C$9994,ورقة3!A54)) ->  | E54: =IF(A54="","",SUMIFS(ورقة1!$H$4:$H$9994,ورقة1!$C$4:$C$9994,ورقة3!A54)) ->  | I54: =IF(F54="","",SUMIFS(بيانات!$E$4:$E$5218,بيانات!$A$4:$A$5218,بيانات!A53)+SUMIFS(ورقة1!$K$4:$K$9994,ورقة1!$C$4:$C$9994,ورقة3!A54)) ->  | J54: =IF(F54="","",SUMIFS(بيانات!$C$4:$C$1048576,اسم_الصنف,بيانات!A53)+SUMIFS(ورقة1!$G$4:$G$9994,ورقة1!$C$4:$C$9994,ورقة3!A54)) ->  | L54: =IF(F54="","",SUMIFS(ورقة1!$L$4:$L$9994,ورقة1!$C$4:$C$9994,ورقة3!A54)) ->  | M54: =IF(H54="","",SUMIFS(ورقة1!$H$4:$H$9994,ورقة1!$C$4:$C$9994,ورقة3!A54)) -> 
A55: =IF(بيانات!A54="","",بيانات!A54) ->  | B55: =IF(A55="","",IF(A55=بيانات!A54,بيانات!B54)) ->  | C55: =IF(A55="","",VLOOKUP(A55,بيانات!$A$4:$C$11363,3,0)) ->  | D55: =IF(A55="","",SUMIFS(ورقة1!$G$4:$G$9994,ورقة1!$C$4:$C$9994,ورقة3!A55)) ->  | E55: =IF(A55="","",SUMIFS(ورقة1!$H$4:$H$9994,ورقة1!$C$4:$C$9994,ورقة3!A55)) ->  | I55: =IF(F55="","",SUMIFS(بيانات!$E$4:$E$5218,بيانات!$A$4:$A$5218,بيانات!A54)+SUMIFS(ورقة1!$K$4:$K$9994,ورقة1!$C$4:$C$9994,ورقة3!A55)) ->  | J55: =IF(F55="","",SUMIFS(بيانات!$C$4:$C$1048576,اسم_الصنف,بيانات!A54)+SUMIFS(ورقة1!$G$4:$G$9994,ورقة1!$C$4:$C$9994,ورقة3!A55)) ->  | L55: =IF(F55="","",SUMIFS(ورقة1!$L$4:$L$9994,ورقة1!$C$4:$C$9994,ورقة3!A55)) ->  | M55: =IF(H55="","",SUMIFS(ورقة1!$H$4:$H$9994,ورقة1!$C$4:$C$9994,ورقة3!A55)) -> 
A56: =IF(بيانات!A55="","",بيانات!A55) ->  | B56: =IF(A56="","",IF(A56=بيانات!A55,بيانات!B55)) ->  | C56: =IF(A56="","",VLOOKUP(A56,بيانات!$A$4:$C$11363,3,0)) ->  | D56: =IF(A56="","",SUMIFS(ورقة1!$G$4:$G$9994,ورقة1!$C$4:$C$9994,ورقة3!A56)) ->  | E56: =IF(A56="","",SUMIFS(ورقة1!$H$4:$H$9994,ورقة1!$C$4:$C$9994,ورقة3!A56)) ->  | I56: =IF(F56="","",SUMIFS(بيانات!$E$4:$E$5218,بيانات!$A$4:$A$5218,بيانات!A55)+SUMIFS(ورقة1!$K$4:$K$9994,ورقة1!$C$4:$C$9994,ورقة3!A56)) ->  | J56: =IF(F56="","",SUMIFS(بيانات!$C$4:$C$1048576,اسم_الصنف,بيانات!A55)+SUMIFS(ورقة1!$G$4:$G$9994,ورقة1!$C$4:$C$9994,ورقة3!A56)) ->  | L56: =IF(F56="","",SUMIFS(ورقة1!$L$4:$L$9994,ورقة1!$C$4:$C$9994,ورقة3!A56)) ->  | M56: =IF(H56="","",SUMIFS(ورقة1!$H$4:$H$9994,ورقة1!$C$4:$C$9994,ورقة3!A56)) -> 
A57: =IF(بيانات!A56="","",بيانات!A56) ->  | B57: =IF(A57="","",IF(A57=بيانات!A56,بيانات!B56)) ->  | C57: =IF(A57="","",VLOOKUP(A57,بيانات!$A$4:$C$11363,3,0)) ->  | D57: =IF(A57="","",SUMIFS(ورقة1!$G$4:$G$9994,ورقة1!$C$4:$C$9994,ورقة3!A57)) ->  | E57: =IF(A57="","",SUMIFS(ورقة1!$H$4:$H$9994,ورقة1!$C$4:$C$9994,ورقة3!A57)) ->  | I57: =IF(F57="","",SUMIFS(بيانات!$E$4:$E$5218,بيانات!$A$4:$A$5218,بيانات!A56)+SUMIFS(ورقة1!$K$4:$K$9994,ورقة1!$C$4:$C$9994,ورقة3!A57)) ->  | J57: =IF(F57="","",SUMIFS(بيانات!$C$4:$C$1048576,اسم_الصنف,بيانات!A56)+SUMIFS(ورقة1!$G$4:$G$9994,ورقة1!$C$4:$C$9994,ورقة3!A57)) ->  | L57: =IF(F57="","",SUMIFS(ورقة1!$L$4:$L$9994,ورقة1!$C$4:$C$9994,ورقة3!A57)) ->  | M57: =IF(H57="","",SUMIFS(ورقة1!$H$4:$H$9994,ورقة1!$C$4:$C$9994,ورقة3!A57)) -> 
A58: =IF(بيانات!A57="","",بيانات!A57) ->  | B58: =IF(A58="","",IF(A58=بيانات!A57,بيانات!B57)) ->  | C58: =IF(A58="","",VLOOKUP(A58,بيانات!$A$4:$C$11363,3,0)) ->  | D58: =IF(A58="","",SUMIFS(ورقة1!$G$4:$G$9994,ورقة1!$C$4:$C$9994,ورقة3!A58)) ->  | E58: =IF(A58="","",SUMIFS(ورقة1!$H$4:$H$9994,ورقة1!$C$4:$C$9994,ورقة3!A58)) ->  | I58: =IF(F58="","",SUMIFS(بيانات!$E$4:$E$5218,بيانات!$A$4:$A$5218,بيانات!A57)+SUMIFS(ورقة1!$K$4:$K$9994,ورقة1!$C$4:$C$9994,ورقة3!A58)) ->  | J58: =IF(F58="","",SUMIFS(بيانات!$C$4:$C$1048576,اسم_الصنف,بيانات!A57)+SUMIFS(ورقة1!$G$4:$G$9994,ورقة1!$C$4:$C$9994,ورقة3!A58)) ->  | L58: =IF(F58="","",SUMIFS(ورقة1!$L$4:$L$9994,ورقة1!$C$4:$C$9994,ورقة3!A58)) ->  | M58: =IF(H58="","",SUMIFS(ورقة1!$H$4:$H$9994,ورقة1!$C$4:$C$9994,ورقة3!A58)) -> 
A59: =IF(بيانات!A58="","",بيانات!A58) ->  | B59: =IF(A59="","",IF(A59=بيانات!A58,بيانات!B58)) ->  | C59: =IF(A59="","",VLOOKUP(A59,بيانات!$A$4:$C$11363,3,0)) ->  | D59: =IF(A59="","",SUMIFS(ورقة1!$G$4:$G$9994,ورقة1!$C$4:$C$9994,ورقة3!A59)) ->  | E59: =IF(A59="","",SUMIFS(ورقة1!$H$4:$H$9994,ورقة1!$C$4:$C$9994,ورقة3!A59)) ->  | I59: =IF(F59="","",SUMIFS(بيانات!$E$4:$E$5218,بيانات!$A$4:$A$5218,بيانات!A58)+SUMIFS(ورقة1!$K$4:$K$9994,ورقة1!$C$4:$C$9994,ورقة3!A59)) ->  | J59: =IF(F59="","",SUMIFS(بيانات!$C$4:$C$1048576,اسم_الصنف,بيانات!A58)+SUMIFS(ورقة1!$G$4:$G$9994,ورقة1!$C$4:$C$9994,ورقة3!A59)) ->  | L59: =IF(F59="","",SUMIFS(ورقة1!$L$4:$L$9994,ورقة1!$C$4:$C$9994,ورقة3!A59)) ->  | M59: =IF(H59="","",SUMIFS(ورقة1!$H$4:$H$9994,ورقة1!$C$4:$C$9994,ورقة3!A59)) -> 
A60: =IF(بيانات!A59="","",بيانات!A59) ->  | B60: =IF(A60="","",IF(A60=بيانات!A59,بيانات!B59)) ->  | C60: =IF(A60="","",VLOOKUP(A60,بيانات!$A$4:$C$11363,3,0)) ->  | D60: =IF(A60="","",SUMIFS(ورقة1!$G$4:$G$9994,ورقة1!$C$4:$C$9994,ورقة3!A60)) ->  | E60: =IF(A60="","",SUMIFS(ورقة1!$H$4:$H$9994,ورقة1!$C$4:$C$9994,ورقة3!A60)) ->  | I60: =IF(F60="","",SUMIFS(بيانات!$E$4:$E$5218,بيانات!$A$4:$A$5218,بيانات!A59)+SUMIFS(ورقة1!$K$4:$K$9994,ورقة1!$C$4:$C$9994,ورقة3!A60)) ->  | J60: =IF(F60="","",SUMIFS(بيانات!$C$4:$C$1048576,اسم_الصنف,بيانات!A59)+SUMIFS(ورقة1!$G$4:$G$9994,ورقة1!$C$4:$C$9994,ورقة3!A60)) ->  | L60: =IF(F60="","",SUMIFS(ورقة1!$L$4:$L$9994,ورقة1!$C$4:$C$9994,ورقة3!A60)) ->  | M60: =IF(H60="","",SUMIFS(ورقة1!$H$4:$H$9994,ورقة1!$C$4:$C$9994,ورقة3!A60)) -> 
A61: =IF(بيانات!A60="","",بيانات!A60) ->  | B61: =IF(A61="","",IF(A61=بيانات!A60,بيانات!B60)) ->  | C61: =IF(A61="","",VLOOKUP(A61,بيانات!$A$4:$C$11363,3,0)) ->  | D61: =IF(A61="","",SUMIFS(ورقة1!$G$4:$G$9994,ورقة1!$C$4:$C$9994,ورقة3!A61)) ->  | E61: =IF(A61="","",SUMIFS(ورقة1!$H$4:$H$9994,ورقة1!$C$4:$C$9994,ورقة3!A61)) ->  | I61: =IF(F61="","",SUMIFS(بيانات!$E$4:$E$5218,بيانات!$A$4:$A$5218,بيانات!A60)+SUMIFS(ورقة1!$K$4:$K$9994,ورقة1!$C$4:$C$9994,ورقة3!A61)) ->  | J61: =IF(F61="","",SUMIFS(بيانات!$C$4:$C$1048576,اسم_الصنف,بيانات!A60)+SUMIFS(ورقة1!$G$4:$G$9994,ورقة1!$C$4:$C$9994,ورقة3!A61)) ->  | L61: =IF(F61="","",SUMIFS(ورقة1!$L$4:$L$9994,ورقة1!$C$4:$C$9994,ورقة3!A61)) ->  | M61: =IF(H61="","",SUMIFS(ورقة1!$H$4:$H$9994,ورقة1!$C$4:$C$9994,ورقة3!A61)) -> 
A62: =IF(بيانات!A61="","",بيانات!A61) ->  | B62: =IF(A62="","",IF(A62=بيانات!A61,بيانات!B61)) ->  | C62: =IF(A62="","",VLOOKUP(A62,بيانات!$A$4:$C$11363,3,0)) ->  | D62: =IF(A62="","",SUMIFS(ورقة1!$G$4:$G$9994,ورقة1!$C$4:$C$9994,ورقة3!A62)) ->  | E62: =IF(A62="","",SUMIFS(ورقة1!$H$4:$H$9994,ورقة1!$C$4:$C$9994,ورقة3!A62)) ->  | I62: =IF(F62="","",SUMIFS(بيانات!$E$4:$E$5218,بيانات!$A$4:$A$5218,بيانات!A61)+SUMIFS(ورقة1!$K$4:$K$9994,ورقة1!$C$4:$C$9994,ورقة3!A62)) ->  | J62: =IF(F62="","",SUMIFS(بيانات!$C$4:$C$1048576,اسم_الصنف,بيانات!A61)+SUMIFS(ورقة1!$G$4:$G$9994,ورقة1!$C$4:$C$9994,ورقة3!A62)) ->  | L62: =IF(F62="","",SUMIFS(ورقة1!$L$4:$L$9994,ورقة1!$C$4:$C$9994,ورقة3!A62)) ->  | M62: =IF(H62="","",SUMIFS(ورقة1!$H$4:$H$9994,ورقة1!$C$4:$C$9994,ورقة3!A62)) -> 
A63: =IF(بيانات!A62="","",بيانات!A62) ->  | B63: =IF(A63="","",IF(A63=بيانات!A62,بيانات!B62)) ->  | C63: =IF(A63="","",VLOOKUP(A63,بيانات!$A$4:$C$11363,3,0)) ->  | D63: =IF(A63="","",SUMIFS(ورقة1!$G$4:$G$9994,ورقة1!$C$4:$C$9994,ورقة3!A63)) ->  | E63: =IF(A63="","",SUMIFS(ورقة1!$H$4:$H$9994,ورقة1!$C$4:$C$9994,ورقة3!A63)) ->  | I63: =IF(F63="","",SUMIFS(بيانات!$E$4:$E$5218,بيانات!$A$4:$A$5218,بيانات!A62)+SUMIFS(ورقة1!$K$4:$K$9994,ورقة1!$C$4:$C$9994,ورقة3!A63)) ->  | J63: =IF(F63="","",SUMIFS(بيانات!$C$4:$C$1048576,اسم_الصنف,بيانات!A62)+SUMIFS(ورقة1!$G$4:$G$9994,ورقة1!$C$4:$C$9994,ورقة3!A63)) ->  | L63: =IF(F63="","",SUMIFS(ورقة1!$L$4:$L$9994,ورقة1!$C$4:$C$9994,ورقة3!A63)) ->  | M63: =IF(H63="","",SUMIFS(ورقة1!$H$4:$H$9994,ورقة1!$C$4:$C$9994,ورقة3!A63)) -> 
A64: =IF(بيانات!A63="","",بيانات!A63) ->  | B64: =IF(A64="","",IF(A64=بيانات!A63,بيانات!B63)) ->  | C64: =IF(A64="","",VLOOKUP(A64,بيانات!$A$4:$C$11363,3,0)) ->  | D64: =IF(A64="","",SUMIFS(ورقة1!$G$4:$G$9994,ورقة1!$C$4:$C$9994,ورقة3!A64)) ->  | E64: =IF(A64="","",SUMIFS(ورقة1!$H$4:$H$9994,ورقة1!$C$4:$C$9994,ورقة3!A64)) ->  | I64: =IF(F64="","",SUMIFS(بيانات!$E$4:$E$5218,بيانات!$A$4:$A$5218,بيانات!A63)+SUMIFS(ورقة1!$K$4:$K$9994,ورقة1!$C$4:$C$9994,ورقة3!A64)) ->  | J64: =IF(F64="","",SUMIFS(بيانات!$C$4:$C$1048576,اسم_الصنف,بيانات!A63)+SUMIFS(ورقة1!$G$4:$G$9994,ورقة1!$C$4:$C$9994,ورقة3!A64)) ->  | L64: =IF(F64="","",SUMIFS(ورقة1!$L$4:$L$9994,ورقة1!$C$4:$C$9994,ورقة3!A64)) ->  | M64: =IF(H64="","",SUMIFS(ورقة1!$H$4:$H$9994,ورقة1!$C$4:$C$9994,ورقة3!A64)) -> 
A65: =IF(بيانات!A64="","",بيانات!A64) ->  | B65: =IF(A65="","",IF(A65=بيانات!A64,بيانات!B64)) ->  | C65: =IF(A65="","",VLOOKUP(A65,بيانات!$A$4:$C$11363,3,0)) ->  | D65: =IF(A65="","",SUMIFS(ورقة1!$G$4:$G$9994,ورقة1!$C$4:$C$9994,ورقة3!A65)) ->  | E65: =IF(A65="","",SUMIFS(ورقة1!$H$4:$H$9994,ورقة1!$C$4:$C$9994,ورقة3!A65)) ->  | I65: =IF(F65="","",SUMIFS(بيانات!$E$4:$E$5218,بيانات!$A$4:$A$5218,بيانات!A64)+SUMIFS(ورقة1!$K$4:$K$9994,ورقة1!$C$4:$C$9994,ورقة3!A65)) ->  | J65: =IF(F65="","",SUMIFS(بيانات!$C$4:$C$1048576,اسم_الصنف,بيانات!A64)+SUMIFS(ورقة1!$G$4:$G$9994,ورقة1!$C$4:$C$9994,ورقة3!A65)) ->  | L65: =IF(F65="","",SUMIFS(ورقة1!$L$4:$L$9994,ورقة1!$C$4:$C$9994,ورقة3!A65)) ->  | M65: =IF(H65="","",SUMIFS(ورقة1!$H$4:$H$9994,ورقة1!$C$4:$C$9994,ورقة3!A65)) -> 
A66: =IF(بيانات!A65="","",بيانات!A65) ->  | B66: =IF(A66="","",IF(A66=بيانات!A65,بيانات!B65)) ->  | C66: =IF(A66="","",VLOOKUP(A66,بيانات!$A$4:$C$11363,3,0)) ->  | D66: =IF(A66="","",SUMIFS(ورقة1!$G$4:$G$9994,ورقة1!$C$4:$C$9994,ورقة3!A66)) ->  | E66: =IF(A66="","",SUMIFS(ورقة1!$H$4:$H$9994,ورقة1!$C$4:$C$9994,ورقة3!A66)) ->  | I66: =IF(F66="","",SUMIFS(بيانات!$E$4:$E$5218,بيانات!$A$4:$A$5218,بيانات!A65)+SUMIFS(ورقة1!$K$4:$K$9994,ورقة1!$C$4:$C$9994,ورقة3!A66)) ->  | J66: =IF(F66="","",SUMIFS(بيانات!$C$4:$C$1048576,اسم_الصنف,بيانات!A65)+SUMIFS(ورقة1!$G$4:$G$9994,ورقة1!$C$4:$C$9994,ورقة3!A66)) ->  | L66: =IF(F66="","",SUMIFS(ورقة1!$L$4:$L$9994,ورقة1!$C$4:$C$9994,ورقة3!A66)) ->  | M66: =IF(H66="","",SUMIFS(ورقة1!$H$4:$H$9994,ورقة1!$C$4:$C$9994,ورقة3!A66)) -> 
A67: =IF(بيانات!A66="","",بيانات!A66) ->  | B67: =IF(A67="","",IF(A67=بيانات!A66,بيانات!B66)) ->  | C67: =IF(A67="","",VLOOKUP(A67,بيانات!$A$4:$C$11363,3,0)) ->  | D67: =IF(A67="","",SUMIFS(ورقة1!$G$4:$G$9994,ورقة1!$C$4:$C$9994,ورقة3!A67)) ->  | E67: =IF(A67="","",SUMIFS(ورقة1!$H$4:$H$9994,ورقة1!$C$4:$C$9994,ورقة3!A67)) ->  | I67: =IF(F67="","",SUMIFS(بيانات!$E$4:$E$5218,بيانات!$A$4:$A$5218,بيانات!A66)+SUMIFS(ورقة1!$K$4:$K$9994,ورقة1!$C$4:$C$9994,ورقة3!A67)) ->  | J67: =IF(F67="","",SUMIFS(بيانات!$C$4:$C$1048576,اسم_الصنف,بيانات!A66)+SUMIFS(ورقة1!$G$4:$G$9994,ورقة1!$C$4:$C$9994,ورقة3!A67)) ->  | L67: =IF(F67="","",SUMIFS(ورقة1!$L$4:$L$9994,ورقة1!$C$4:$C$9994,ورقة3!A67)) ->  | M67: =IF(H67="","",SUMIFS(ورقة1!$H$4:$H$9994,ورقة1!$C$4:$C$9994,ورقة3!A67)) -> 
A68: =IF(بيانات!A67="","",بيانات!A67) ->  | B68: =IF(A68="","",IF(A68=بيانات!A67,بيانات!B67)) ->  | C68: =IF(A68="","",VLOOKUP(A68,بيانات!$A$4:$C$11363,3,0)) ->  | D68: =IF(A68="","",SUMIFS(ورقة1!$G$4:$G$9994,ورقة1!$C$4:$C$9994,ورقة3!A68)) ->  | E68: =IF(A68="","",SUMIFS(ورقة1!$H$4:$H$9994,ورقة1!$C$4:$C$9994,ورقة3!A68)) ->  | I68: =IF(F68="","",SUMIFS(بيانات!$E$4:$E$5218,بيانات!$A$4:$A$5218,بيانات!A67)+SUMIFS(ورقة1!$K$4:$K$9994,ورقة1!$C$4:$C$9994,ورقة3!A68)) ->  | J68: =IF(F68="","",SUMIFS(بيانات!$C$4:$C$1048576,اسم_الصنف,بيانات!A67)+SUMIFS(ورقة1!$G$4:$G$9994,ورقة1!$C$4:$C$9994,ورقة3!A68)) ->  | L68: =IF(F68="","",SUMIFS(ورقة1!$L$4:$L$9994,ورقة1!$C$4:$C$9994,ورقة3!A68)) ->  | M68: =IF(H68="","",SUMIFS(ورقة1!$H$4:$H$9994,ورقة1!$C$4:$C$9994,ورقة3!A68)) -> 
A69: =IF(بيانات!A68="","",بيانات!A68) ->  | B69: =IF(A69="","",IF(A69=بيانات!A68,بيانات!B68)) ->  | C69: =IF(A69="","",VLOOKUP(A69,بيانات!$A$4:$C$11363,3,0)) ->  | D69: =IF(A69="","",SUMIFS(ورقة1!$G$4:$G$9994,ورقة1!$C$4:$C$9994,ورقة3!A69)) ->  | E69: =IF(A69="","",SUMIFS(ورقة1!$H$4:$H$9994,ورقة1!$C$4:$C$9994,ورقة3!A69)) ->  | F69: =IF(A69="","",C69+D69-E69) ->  | I69: =IF(F69="","",SUMIFS(بيانات!$E$4:$E$5218,بيانات!$A$4:$A$5218,بيانات!A68)+SUMIFS(ورقة1!$K$4:$K$9994,ورقة1!$C$4:$C$9994,ورقة3!A69)) ->  | J69: =IF(F69="","",SUMIFS(بيانات!$C$4:$C$1048576,اسم_الصنف,بيانات!A68)+SUMIFS(ورقة1!$G$4:$G$9994,ورقة1!$C$4:$C$9994,ورقة3!A69)) ->  | L69: =IF(F69="","",SUMIFS(ورقة1!$L$4:$L$9994,ورقة1!$C$4:$C$9994,ورقة3!A69)) ->  | M69: =IF(H69="","",SUMIFS(ورقة1!$H$4:$H$9994,ورقة1!$C$4:$C$9994,ورقة3!A69)) ->  | O69: =IF(OR(E69=0,E69=""),"",E69*N69) ->  | Q69: =IF(OR(E69=0,E69=""),"",E69*P69) -> 
A70: =IF(بيانات!A69="","",بيانات!A69) ->  | B70: =IF(A70="","",IF(A70=بيانات!A69,بيانات!B69)) ->  | C70: =IF(A70="","",VLOOKUP(A70,بيانات!$A$4:$C$11363,3,0)) ->  | D70: =IF(A70="","",SUMIFS(ورقة1!$G$4:$G$9994,ورقة1!$C$4:$C$9994,ورقة3!A70)) ->  | E70: =IF(A70="","",SUMIFS(ورقة1!$H$4:$H$9994,ورقة1!$C$4:$C$9994,ورقة3!A70)) ->  | H70: =IF(F70="","",F70*K70) ->  | I70: =IF(F70="","",SUMIFS(بيانات!$E$4:$E$5218,بيانات!$A$4:$A$5218,بيانات!A69)+SUMIFS(ورقة1!$K$4:$K$9994,ورقة1!$C$4:$C$9994,ورقة3!A70)) ->  | J70: =IF(F70="","",SUMIFS(بيانات!$C$4:$C$1048576,اسم_الصنف,بيانات!A69)+SUMIFS(ورقة1!$G$4:$G$9994,ورقة1!$C$4:$C$9994,ورقة3!A70)) ->  | K70: =IF(AND(I70="",J70=""),"",I70/J70) ->  | L70: =IF(F70="","",SUMIFS(ورقة1!$L$4:$L$9994,ورقة1!$C$4:$C$9994,ورقة3!A70)) ->  | M70: =IF(H70="","",SUMIFS(ورقة1!$H$4:$H$9994,ورقة1!$C$4:$C$9994,ورقة3!A70)) ->  | N70: =IF(OR(L70=0,L70="",M70=0,M70=""),"",L70/M70) ->  | P70: =IF(N70="","",N70-K70) -> 
A71: =IF(بيانات!A70="","",بيانات!A70) ->  | B71: =IF(A71="","",IF(A71=بيانات!A70,بيانات!B70)) ->  | C71: =IF(A71="","",VLOOKUP(A71,بيانات!$A$4:$C$11363,3,0)) ->  | D71: =IF(A71="","",SUMIFS(ورقة1!$G$4:$G$9994,ورقة1!$C$4:$C$9994,ورقة3!A71)) ->  | E71: =IF(A71="","",SUMIFS(ورقة1!$H$4:$H$9994,ورقة1!$C$4:$C$9994,ورقة3!A71)) ->  | I71: =IF(F71="","",SUMIFS(بيانات!$E$4:$E$5218,بيانات!$A$4:$A$5218,بيانات!A70)+SUMIFS(ورقة1!$K$4:$K$9994,ورقة1!$C$4:$C$9994,ورقة3!A71)) ->  | J71: =IF(F71="","",SUMIFS(بيانات!$C$4:$C$1048576,اسم_الصنف,بيانات!A70)+SUMIFS(ورقة1!$G$4:$G$9994,ورقة1!$C$4:$C$9994,ورقة3!A71)) ->  | L71: =IF(F71="","",SUMIFS(ورقة1!$L$4:$L$9994,ورقة1!$C$4:$C$9994,ورقة3!A71)) ->  | M71: =IF(H71="","",SUMIFS(ورقة1!$H$4:$H$9994,ورقة1!$C$4:$C$9994,ورقة3!A71)) -> 
A72: =IF(بيانات!A71="","",بيانات!A71) ->  | B72: =IF(A72="","",IF(A72=بيانات!A71,بيانات!B71)) ->  | C72: =IF(A72="","",VLOOKUP(A72,بيانات!$A$4:$C$11363,3,0)) ->  | D72: =IF(A72="","",SUMIFS(ورقة1!$G$4:$G$9994,ورقة1!$C$4:$C$9994,ورقة3!A72)) ->  | E72: =IF(A72="","",SUMIFS(ورقة1!$H$4:$H$9994,ورقة1!$C$4:$C$9994,ورقة3!A72)) ->  | I72: =IF(F72="","",SUMIFS(بيانات!$E$4:$E$5218,بيانات!$A$4:$A$5218,بيانات!A71)+SUMIFS(ورقة1!$K$4:$K$9994,ورقة1!$C$4:$C$9994,ورقة3!A72)) ->  | J72: =IF(F72="","",SUMIFS(بيانات!$C$4:$C$1048576,اسم_الصنف,بيانات!A71)+SUMIFS(ورقة1!$G$4:$G$9994,ورقة1!$C$4:$C$9994,ورقة3!A72)) ->  | L72: =IF(F72="","",SUMIFS(ورقة1!$L$4:$L$9994,ورقة1!$C$4:$C$9994,ورقة3!A72)) ->  | M72: =IF(H72="","",SUMIFS(ورقة1!$H$4:$H$9994,ورقة1!$C$4:$C$9994,ورقة3!A72)) -> 
A73: =IF(بيانات!A72="","",بيانات!A72) ->  | B73: =IF(A73="","",IF(A73=بيانات!A72,بيانات!B72)) ->  | C73: =IF(A73="","",VLOOKUP(A73,بيانات!$A$4:$C$11363,3,0)) ->  | D73: =IF(A73="","",SUMIFS(ورقة1!$G$4:$G$9994,ورقة1!$C$4:$C$9994,ورقة3!A73)) ->  | E73: =IF(A73="","",SUMIFS(ورقة1!$H$4:$H$9994,ورقة1!$C$4:$C$9994,ورقة3!A73)) ->  | I73: =IF(F73="","",SUMIFS(بيانات!$E$4:$E$5218,بيانات!$A$4:$A$5218,بيانات!A72)+SUMIFS(ورقة1!$K$4:$K$9994,ورقة1!$C$4:$C$9994,ورقة3!A73)) ->  | J73: =IF(F73="","",SUMIFS(بيانات!$C$4:$C$1048576,اسم_الصنف,بيانات!A72)+SUMIFS(ورقة1!$G$4:$G$9994,ورقة1!$C$4:$C$9994,ورقة3!A73)) ->  | L73: =IF(F73="","",SUMIFS(ورقة1!$L$4:$L$9994,ورقة1!$C$4:$C$9994,ورقة3!A73)) ->  | M73: =IF(H73="","",SUMIFS(ورقة1!$H$4:$H$9994,ورقة1!$C$4:$C$9994,ورقة3!A73)) -> 
A74: =IF(بيانات!A73="","",بيانات!A73) ->  | B74: =IF(A74="","",IF(A74=بيانات!A73,بيانات!B73)) ->  | C74: =IF(A74="","",VLOOKUP(A74,بيانات!$A$4:$C$11363,3,0)) ->  | D74: =IF(A74="","",SUMIFS(ورقة1!$G$4:$G$9994,ورقة1!$C$4:$C$9994,ورقة3!A74)) ->  | E74: =IF(A74="","",SUMIFS(ورقة1!$H$4:$H$9994,ورقة1!$C$4:$C$9994,ورقة3!A74)) ->  | I74: =IF(F74="","",SUMIFS(بيانات!$E$4:$E$5218,بيانات!$A$4:$A$5218,بيانات!A73)+SUMIFS(ورقة1!$K$4:$K$9994,ورقة1!$C$4:$C$9994,ورقة3!A74)) ->  | J74: =IF(F74="","",SUMIFS(بيانات!$C$4:$C$1048576,اسم_الصنف,بيانات!A73)+SUMIFS(ورقة1!$G$4:$G$9994,ورقة1!$C$4:$C$9994,ورقة3!A74)) ->  | L74: =IF(F74="","",SUMIFS(ورقة1!$L$4:$L$9994,ورقة1!$C$4:$C$9994,ورقة3!A74)) ->  | M74: =IF(H74="","",SUMIFS(ورقة1!$H$4:$H$9994,ورقة1!$C$4:$C$9994,ورقة3!A74)) -> 
A75: =IF(بيانات!A74="","",بيانات!A74) ->  | B75: =IF(A75="","",IF(A75=بيانات!A74,بيانات!B74)) ->  | C75: =IF(A75="","",VLOOKUP(A75,بيانات!$A$4:$C$11363,3,0)) ->  | D75: =IF(A75="","",SUMIFS(ورقة1!$G$4:$G$9994,ورقة1!$C$4:$C$9994,ورقة3!A75)) ->  | E75: =IF(A75="","",SUMIFS(ورقة1!$H$4:$H$9994,ورقة1!$C$4:$C$9994,ورقة3!A75)) ->  | I75: =IF(F75="","",SUMIFS(بيانات!$E$4:$E$5218,بيانات!$A$4:$A$5218,بيانات!A74)+SUMIFS(ورقة1!$K$4:$K$9994,ورقة1!$C$4:$C$9994,ورقة3!A75)) ->  | J75: =IF(F75="","",SUMIFS(بيانات!$C$4:$C$1048576,اسم_الصنف,بيانات!A74)+SUMIFS(ورقة1!$G$4:$G$9994,ورقة1!$C$4:$C$9994,ورقة3!A75)) ->  | L75: =IF(F75="","",SUMIFS(ورقة1!$L$4:$L$9994,ورقة1!$C$4:$C$9994,ورقة3!A75)) ->  | M75: =IF(H75="","",SUMIFS(ورقة1!$H$4:$H$9994,ورقة1!$C$4:$C$9994,ورقة3!A75)) -> 
A76: =IF(بيانات!A75="","",بيانات!A75) ->  | B76: =IF(A76="","",IF(A76=بيانات!A75,بيانات!B75)) ->  | C76: =IF(A76="","",VLOOKUP(A76,بيانات!$A$4:$C$11363,3,0)) ->  | D76: =IF(A76="","",SUMIFS(ورقة1!$G$4:$G$9994,ورقة1!$C$4:$C$9994,ورقة3!A76)) ->  | E76: =IF(A76="","",SUMIFS(ورقة1!$H$4:$H$9994,ورقة1!$C$4:$C$9994,ورقة3!A76)) ->  | I76: =IF(F76="","",SUMIFS(بيانات!$E$4:$E$5218,بيانات!$A$4:$A$5218,بيانات!A75)+SUMIFS(ورقة1!$K$4:$K$9994,ورقة1!$C$4:$C$9994,ورقة3!A76)) ->  | J76: =IF(F76="","",SUMIFS(بيانات!$C$4:$C$1048576,اسم_الصنف,بيانات!A75)+SUMIFS(ورقة1!$G$4:$G$9994,ورقة1!$C$4:$C$9994,ورقة3!A76)) ->  | L76: =IF(F76="","",SUMIFS(ورقة1!$L$4:$L$9994,ورقة1!$C$4:$C$9994,ورقة3!A76)) ->  | M76: =IF(H76="","",SUMIFS(ورقة1!$H$4:$H$9994,ورقة1!$C$4:$C$9994,ورقة3!A76)) -> 
A77: =IF(بيانات!A76="","",بيانات!A76) ->  | B77: =IF(A77="","",IF(A77=بيانات!A76,بيانات!B76)) ->  | C77: =IF(A77="","",VLOOKUP(A77,بيانات!$A$4:$C$11363,3,0)) ->  | D77: =IF(A77="","",SUMIFS(ورقة1!$G$4:$G$9994,ورقة1!$C$4:$C$9994,ورقة3!A77)) ->  | E77: =IF(A77="","",SUMIFS(ورقة1!$H$4:$H$9994,ورقة1!$C$4:$C$9994,ورقة3!A77)) ->  | I77: =IF(F77="","",SUMIFS(بيانات!$E$4:$E$5218,بيانات!$A$4:$A$5218,بيانات!A76)+SUMIFS(ورقة1!$K$4:$K$9994,ورقة1!$C$4:$C$9994,ورقة3!A77)) ->  | J77: =IF(F77="","",SUMIFS(بيانات!$C$4:$C$1048576,اسم_الصنف,بيانات!A76)+SUMIFS(ورقة1!$G$4:$G$9994,ورقة1!$C$4:$C$9994,ورقة3!A77)) ->  | L77: =IF(F77="","",SUMIFS(ورقة1!$L$4:$L$9994,ورقة1!$C$4:$C$9994,ورقة3!A77)) ->  | M77: =IF(H77="","",SUMIFS(ورقة1!$H$4:$H$9994,ورقة1!$C$4:$C$9994,ورقة3!A77)) -> 
A78: =IF(بيانات!A77="","",بيانات!A77) ->  | B78: =IF(A78="","",IF(A78=بيانات!A77,بيانات!B77)) ->  | C78: =IF(A78="","",VLOOKUP(A78,بيانات!$A$4:$C$11363,3,0)) ->  | D78: =IF(A78="","",SUMIFS(ورقة1!$G$4:$G$9994,ورقة1!$C$4:$C$9994,ورقة3!A78)) ->  | E78: =IF(A78="","",SUMIFS(ورقة1!$H$4:$H$9994,ورقة1!$C$4:$C$9994,ورقة3!A78)) ->  | I78: =IF(F78="","",SUMIFS(بيانات!$E$4:$E$5218,بيانات!$A$4:$A$5218,بيانات!A77)+SUMIFS(ورقة1!$K$4:$K$9994,ورقة1!$C$4:$C$9994,ورقة3!A78)) ->  | J78: =IF(F78="","",SUMIFS(بيانات!$C$4:$C$1048576,اسم_الصنف,بيانات!A77)+SUMIFS(ورقة1!$G$4:$G$9994,ورقة1!$C$4:$C$9994,ورقة3!A78)) ->  | L78: =IF(F78="","",SUMIFS(ورقة1!$L$4:$L$9994,ورقة1!$C$4:$C$9994,ورقة3!A78)) ->  | M78: =IF(H78="","",SUMIFS(ورقة1!$H$4:$H$9994,ورقة1!$C$4:$C$9994,ورقة3!A78)) -> 
A79: =IF(بيانات!A78="","",بيانات!A78) ->  | B79: =IF(A79="","",IF(A79=بيانات!A78,بيانات!B78)) ->  | C79: =IF(A79="","",VLOOKUP(A79,بيانات!$A$4:$C$11363,3,0)) ->  | D79: =IF(A79="","",SUMIFS(ورقة1!$G$4:$G$9994,ورقة1!$C$4:$C$9994,ورقة3!A79)) ->  | E79: =IF(A79="","",SUMIFS(ورقة1!$H$4:$H$9994,ورقة1!$C$4:$C$9994,ورقة3!A79)) ->  | I79: =IF(F79="","",SUMIFS(بيانات!$E$4:$E$5218,بيانات!$A$4:$A$5218,بيانات!A78)+SUMIFS(ورقة1!$K$4:$K$9994,ورقة1!$C$4:$C$9994,ورقة3!A79)) ->  | J79: =IF(F79="","",SUMIFS(بيانات!$C$4:$C$1048576,اسم_الصنف,بيانات!A78)+SUMIFS(ورقة1!$G$4:$G$9994,ورقة1!$C$4:$C$9994,ورقة3!A79)) ->  | L79: =IF(F79="","",SUMIFS(ورقة1!$L$4:$L$9994,ورقة1!$C$4:$C$9994,ورقة3!A79)) ->  | M79: =IF(H79="","",SUMIFS(ورقة1!$H$4:$H$9994,ورقة1!$C$4:$C$9994,ورقة3!A79)) -> 
A80: =IF(بيانات!A79="","",بيانات!A79) ->  | B80: =IF(A80="","",IF(A80=بيانات!A79,بيانات!B79)) ->  | C80: =IF(A80="","",VLOOKUP(A80,بيانات!$A$4:$C$11363,3,0)) ->  | D80: =IF(A80="","",SUMIFS(ورقة1!$G$4:$G$9994,ورقة1!$C$4:$C$9994,ورقة3!A80)) ->  | E80: =IF(A80="","",SUMIFS(ورقة1!$H$4:$H$9994,ورقة1!$C$4:$C$9994,ورقة3!A80)) ->  | I80: =IF(F80="","",SUMIFS(بيانات!$E$4:$E$5218,بيانات!$A$4:$A$5218,بيانات!A79)+SUMIFS(ورقة1!$K$4:$K$9994,ورقة1!$C$4:$C$9994,ورقة3!A80)) ->  | J80: =IF(F80="","",SUMIFS(بيانات!$C$4:$C$1048576,اسم_الصنف,بيانات!A79)+SUMIFS(ورقة1!$G$4:$G$9994,ورقة1!$C$4:$C$9994,ورقة3!A80)) ->  | L80: =IF(F80="","",SUMIFS(ورقة1!$L$4:$L$9994,ورقة1!$C$4:$C$9994,ورقة3!A80)) ->  | M80: =IF(H80="","",SUMIFS(ورقة1!$H$4:$H$9994,ورقة1!$C$4:$C$9994,ورقة3!A80)) -> 
A81: =IF(بيانات!A80="","",بيانات!A80) ->  | B81: =IF(A81="","",IF(A81=بيانات!A80,بيانات!B80)) ->  | C81: =IF(A81="","",VLOOKUP(A81,بيانات!$A$4:$C$11363,3,0)) ->  | D81: =IF(A81="","",SUMIFS(ورقة1!$G$4:$G$9994,ورقة1!$C$4:$C$9994,ورقة3!A81)) ->  | E81: =IF(A81="","",SUMIFS(ورقة1!$H$4:$H$9994,ورقة1!$C$4:$C$9994,ورقة3!A81)) ->  | I81: =IF(F81="","",SUMIFS(بيانات!$E$4:$E$5218,بيانات!$A$4:$A$5218,بيانات!A80)+SUMIFS(ورقة1!$K$4:$K$9994,ورقة1!$C$4:$C$9994,ورقة3!A81)) ->  | J81: =IF(F81="","",SUMIFS(بيانات!$C$4:$C$1048576,اسم_الصنف,بيانات!A80)+SUMIFS(ورقة1!$G$4:$G$9994,ورقة1!$C$4:$C$9994,ورقة3!A81)) ->  | L81: =IF(F81="","",SUMIFS(ورقة1!$L$4:$L$9994,ورقة1!$C$4:$C$9994,ورقة3!A81)) ->  | M81: =IF(H81="","",SUMIFS(ورقة1!$H$4:$H$9994,ورقة1!$C$4:$C$9994,ورقة3!A81)) -> 
A82: =IF(بيانات!A81="","",بيانات!A81) ->  | B82: =IF(A82="","",IF(A82=بيانات!A81,بيانات!B81)) ->  | C82: =IF(A82="","",VLOOKUP(A82,بيانات!$A$4:$C$11363,3,0)) ->  | D82: =IF(A82="","",SUMIFS(ورقة1!$G$4:$G$9994,ورقة1!$C$4:$C$9994,ورقة3!A82)) ->  | E82: =IF(A82="","",SUMIFS(ورقة1!$H$4:$H$9994,ورقة1!$C$4:$C$9994,ورقة3!A82)) ->  | I82: =IF(F82="","",SUMIFS(بيانات!$E$4:$E$5218,بيانات!$A$4:$A$5218,بيانات!A81)+SUMIFS(ورقة1!$K$4:$K$9994,ورقة1!$C$4:$C$9994,ورقة3!A82)) ->  | J82: =IF(F82="","",SUMIFS(بيانات!$C$4:$C$1048576,اسم_الصنف,بيانات!A81)+SUMIFS(ورقة1!$G$4:$G$9994,ورقة1!$C$4:$C$9994,ورقة3!A82)) ->  | L82: =IF(F82="","",SUMIFS(ورقة1!$L$4:$L$9994,ورقة1!$C$4:$C$9994,ورقة3!A82)) ->  | M82: =IF(H82="","",SUMIFS(ورقة1!$H$4:$H$9994,ورقة1!$C$4:$C$9994,ورقة3!A82)) -> 
A83: =IF(بيانات!A82="","",بيانات!A82) ->  | B83: =IF(A83="","",IF(A83=بيانات!A82,بيانات!B82)) ->  | C83: =IF(A83="","",VLOOKUP(A83,بيانات!$A$4:$C$11363,3,0)) ->  | D83: =IF(A83="","",SUMIFS(ورقة1!$G$4:$G$9994,ورقة1!$C$4:$C$9994,ورقة3!A83)) ->  | E83: =IF(A83="","",SUMIFS(ورقة1!$H$4:$H$9994,ورقة1!$C$4:$C$9994,ورقة3!A83)) ->  | I83: =IF(F83="","",SUMIFS(بيانات!$E$4:$E$5218,بيانات!$A$4:$A$5218,بيانات!A82)+SUMIFS(ورقة1!$K$4:$K$9994,ورقة1!$C$4:$C$9994,ورقة3!A83)) ->  | J83: =IF(F83="","",SUMIFS(بيانات!$C$4:$C$1048576,اسم_الصنف,بيانات!A82)+SUMIFS(ورقة1!$G$4:$G$9994,ورقة1!$C$4:$C$9994,ورقة3!A83)) ->  | L83: =IF(F83="","",SUMIFS(ورقة1!$L$4:$L$9994,ورقة1!$C$4:$C$9994,ورقة3!A83)) ->  | M83: =IF(H83="","",SUMIFS(ورقة1!$H$4:$H$9994,ورقة1!$C$4:$C$9994,ورقة3!A83)) -> 
A84: =IF(بيانات!A83="","",بيانات!A83) ->  | B84: =IF(A84="","",IF(A84=بيانات!A83,بيانات!B83)) ->  | C84: =IF(A84="","",VLOOKUP(A84,بيانات!$A$4:$C$11363,3,0)) ->  | D84: =IF(A84="","",SUMIFS(ورقة1!$G$4:$G$9994,ورقة1!$C$4:$C$9994,ورقة3!A84)) ->  | E84: =IF(A84="","",SUMIFS(ورقة1!$H$4:$H$9994,ورقة1!$C$4:$C$9994,ورقة3!A84)) ->  | I84: =IF(F84="","",SUMIFS(بيانات!$E$4:$E$5218,بيانات!$A$4:$A$5218,بيانات!A83)+SUMIFS(ورقة1!$K$4:$K$9994,ورقة1!$C$4:$C$9994,ورقة3!A84)) ->  | J84: =IF(F84="","",SUMIFS(بيانات!$C$4:$C$1048576,اسم_الصنف,بيانات!A83)+SUMIFS(ورقة1!$G$4:$G$9994,ورقة1!$C$4:$C$9994,ورقة3!A84)) ->  | L84: =IF(F84="","",SUMIFS(ورقة1!$L$4:$L$9994,ورقة1!$C$4:$C$9994,ورقة3!A84)) ->  | M84: =IF(H84="","",SUMIFS(ورقة1!$H$4:$H$9994,ورقة1!$C$4:$C$9994,ورقة3!A84)) -> 
A85: =IF(بيانات!A84="","",بيانات!A84) ->  | B85: =IF(A85="","",IF(A85=بيانات!A84,بيانات!B84)) ->  | C85: =IF(A85="","",VLOOKUP(A85,بيانات!$A$4:$C$11363,3,0)) ->  | D85: =IF(A85="","",SUMIFS(ورقة1!$G$4:$G$9994,ورقة1!$C$4:$C$9994,ورقة3!A85)) ->  | E85: =IF(A85="","",SUMIFS(ورقة1!$H$4:$H$9994,ورقة1!$C$4:$C$9994,ورقة3!A85)) ->  | I85: =IF(F85="","",SUMIFS(بيانات!$E$4:$E$5218,بيانات!$A$4:$A$5218,بيانات!A84)+SUMIFS(ورقة1!$K$4:$K$9994,ورقة1!$C$4:$C$9994,ورقة3!A85)) ->  | J85: =IF(F85="","",SUMIFS(بيانات!$C$4:$C$1048576,اسم_الصنف,بيانات!A84)+SUMIFS(ورقة1!$G$4:$G$9994,ورقة1!$C$4:$C$9994,ورقة3!A85)) ->  | L85: =IF(F85="","",SUMIFS(ورقة1!$L$4:$L$9994,ورقة1!$C$4:$C$9994,ورقة3!A85)) ->  | M85: =IF(H85="","",SUMIFS(ورقة1!$H$4:$H$9994,ورقة1!$C$4:$C$9994,ورقة3!A85)) -> 
A86: =IF(بيانات!A85="","",بيانات!A85) ->  | B86: =IF(A86="","",IF(A86=بيانات!A85,بيانات!B85)) ->  | C86: =IF(A86="","",VLOOKUP(A86,بيانات!$A$4:$C$11363,3,0)) ->  | D86: =IF(A86="","",SUMIFS(ورقة1!$G$4:$G$9994,ورقة1!$C$4:$C$9994,ورقة3!A86)) ->  | E86: =IF(A86="","",SUMIFS(ورقة1!$H$4:$H$9994,ورقة1!$C$4:$C$9994,ورقة3!A86)) ->  | I86: =IF(F86="","",SUMIFS(بيانات!$E$4:$E$5218,بيانات!$A$4:$A$5218,بيانات!A85)+SUMIFS(ورقة1!$K$4:$K$9994,ورقة1!$C$4:$C$9994,ورقة3!A86)) ->  | J86: =IF(F86="","",SUMIFS(بيانات!$C$4:$C$1048576,اسم_الصنف,بيانات!A85)+SUMIFS(ورقة1!$G$4:$G$9994,ورقة1!$C$4:$C$9994,ورقة3!A86)) ->  | L86: =IF(F86="","",SUMIFS(ورقة1!$L$4:$L$9994,ورقة1!$C$4:$C$9994,ورقة3!A86)) ->  | M86: =IF(H86="","",SUMIFS(ورقة1!$H$4:$H$9994,ورقة1!$C$4:$C$9994,ورقة3!A86)) -> 
A87: =IF(بيانات!A86="","",بيانات!A86) ->  | B87: =IF(A87="","",IF(A87=بيانات!A86,بيانات!B86)) ->  | C87: =IF(A87="","",VLOOKUP(A87,بيانات!$A$4:$C$11363,3,0)) ->  | D87: =IF(A87="","",SUMIFS(ورقة1!$G$4:$G$9994,ورقة1!$C$4:$C$9994,ورقة3!A87)) ->  | E87: =IF(A87="","",SUMIFS(ورقة1!$H$4:$H$9994,ورقة1!$C$4:$C$9994,ورقة3!A87)) ->  | I87: =IF(F87="","",SUMIFS(بيانات!$E$4:$E$5218,بيانات!$A$4:$A$5218,بيانات!A86)+SUMIFS(ورقة1!$K$4:$K$9994,ورقة1!$C$4:$C$9994,ورقة3!A87)) ->  | J87: =IF(F87="","",SUMIFS(بيانات!$C$4:$C$1048576,اسم_الصنف,بيانات!A86)+SUMIFS(ورقة1!$G$4:$G$9994,ورقة1!$C$4:$C$9994,ورقة3!A87)) ->  | L87: =IF(F87="","",SUMIFS(ورقة1!$L$4:$L$9994,ورقة1!$C$4:$C$9994,ورقة3!A87)) ->  | M87: =IF(H87="","",SUMIFS(ورقة1!$H$4:$H$9994,ورقة1!$C$4:$C$9994,ورقة3!A87)) -> 
A88: =IF(بيانات!A87="","",بيانات!A87) ->  | B88: =IF(A88="","",IF(A88=بيانات!A87,بيانات!B87)) ->  | C88: =IF(A88="","",VLOOKUP(A88,بيانات!$A$4:$C$11363,3,0)) ->  | D88: =IF(A88="","",SUMIFS(ورقة1!$G$4:$G$9994,ورقة1!$C$4:$C$9994,ورقة3!A88)) ->  | E88: =IF(A88="","",SUMIFS(ورقة1!$H$4:$H$9994,ورقة1!$C$4:$C$9994,ورقة3!A88)) ->  | I88: =IF(F88="","",SUMIFS(بيانات!$E$4:$E$5218,بيانات!$A$4:$A$5218,بيانات!A87)+SUMIFS(ورقة1!$K$4:$K$9994,ورقة1!$C$4:$C$9994,ورقة3!A88)) ->  | J88: =IF(F88="","",SUMIFS(بيانات!$C$4:$C$1048576,اسم_الصنف,بيانات!A87)+SUMIFS(ورقة1!$G$4:$G$9994,ورقة1!$C$4:$C$9994,ورقة3!A88)) ->  | L88: =IF(F88="","",SUMIFS(ورقة1!$L$4:$L$9994,ورقة1!$C$4:$C$9994,ورقة3!A88)) ->  | M88: =IF(H88="","",SUMIFS(ورقة1!$H$4:$H$9994,ورقة1!$C$4:$C$9994,ورقة3!A88)) -> 
A89: =IF(بيانات!A88="","",بيانات!A88) ->  | B89: =IF(A89="","",IF(A89=بيانات!A88,بيانات!B88)) ->  | C89: =IF(A89="","",VLOOKUP(A89,بيانات!$A$4:$C$11363,3,0)) ->  | D89: =IF(A89="","",SUMIFS(ورقة1!$G$4:$G$9994,ورقة1!$C$4:$C$9994,ورقة3!A89)) ->  | E89: =IF(A89="","",SUMIFS(ورقة1!$H$4:$H$9994,ورقة1!$C$4:$C$9994,ورقة3!A89)) ->  | I89: =IF(F89="","",SUMIFS(بيانات!$E$4:$E$5218,بيانات!$A$4:$A$5218,بيانات!A88)+SUMIFS(ورقة1!$K$4:$K$9994,ورقة1!$C$4:$C$9994,ورقة3!A89)) ->  | J89: =IF(F89="","",SUMIFS(بيانات!$C$4:$C$1048576,اسم_الصنف,بيانات!A88)+SUMIFS(ورقة1!$G$4:$G$9994,ورقة1!$C$4:$C$9994,ورقة3!A89)) ->  | L89: =IF(F89="","",SUMIFS(ورقة1!$L$4:$L$9994,ورقة1!$C$4:$C$9994,ورقة3!A89)) ->  | M89: =IF(H89="","",SUMIFS(ورقة1!$H$4:$H$9994,ورقة1!$C$4:$C$9994,ورقة3!A89)) -> 
A90: =IF(بيانات!A89="","",بيانات!A89) ->  | B90: =IF(A90="","",IF(A90=بيانات!A89,بيانات!B89)) ->  | C90: =IF(A90="","",VLOOKUP(A90,بيانات!$A$4:$C$11363,3,0)) ->  | D90: =IF(A90="","",SUMIFS(ورقة1!$G$4:$G$9994,ورقة1!$C$4:$C$9994,ورقة3!A90)) ->  | E90: =IF(A90="","",SUMIFS(ورقة1!$H$4:$H$9994,ورقة1!$C$4:$C$9994,ورقة3!A90)) ->  | I90: =IF(F90="","",SUMIFS(بيانات!$E$4:$E$5218,بيانات!$A$4:$A$5218,بيانات!A89)+SUMIFS(ورقة1!$K$4:$K$9994,ورقة1!$C$4:$C$9994,ورقة3!A90)) ->  | J90: =IF(F90="","",SUMIFS(بيانات!$C$4:$C$1048576,اسم_الصنف,بيانات!A89)+SUMIFS(ورقة1!$G$4:$G$9994,ورقة1!$C$4:$C$9994,ورقة3!A90)) ->  | L90: =IF(F90="","",SUMIFS(ورقة1!$L$4:$L$9994,ورقة1!$C$4:$C$9994,ورقة3!A90)) ->  | M90: =IF(H90="","",SUMIFS(ورقة1!$H$4:$H$9994,ورقة1!$C$4:$C$9994,ورقة3!A90)) -> 
A91: =IF(بيانات!A90="","",بيانات!A90) ->  | B91: =IF(A91="","",IF(A91=بيانات!A90,بيانات!B90)) ->  | C91: =IF(A91="","",VLOOKUP(A91,بيانات!$A$4:$C$11363,3,0)) ->  | D91: =IF(A91="","",SUMIFS(ورقة1!$G$4:$G$9994,ورقة1!$C$4:$C$9994,ورقة3!A91)) ->  | E91: =IF(A91="","",SUMIFS(ورقة1!$H$4:$H$9994,ورقة1!$C$4:$C$9994,ورقة3!A91)) ->  | I91: =IF(F91="","",SUMIFS(بيانات!$E$4:$E$5218,بيانات!$A$4:$A$5218,بيانات!A90)+SUMIFS(ورقة1!$K$4:$K$9994,ورقة1!$C$4:$C$9994,ورقة3!A91)) ->  | J91: =IF(F91="","",SUMIFS(بيانات!$C$4:$C$1048576,اسم_الصنف,بيانات!A90)+SUMIFS(ورقة1!$G$4:$G$9994,ورقة1!$C$4:$C$9994,ورقة3!A91)) ->  | L91: =IF(F91="","",SUMIFS(ورقة1!$L$4:$L$9994,ورقة1!$C$4:$C$9994,ورقة3!A91)) ->  | M91: =IF(H91="","",SUMIFS(ورقة1!$H$4:$H$9994,ورقة1!$C$4:$C$9994,ورقة3!A91)) -> 
A92: =IF(بيانات!A91="","",بيانات!A91) ->  | B92: =IF(A92="","",IF(A92=بيانات!A91,بيانات!B91)) ->  | C92: =IF(A92="","",VLOOKUP(A92,بيانات!$A$4:$C$11363,3,0)) ->  | D92: =IF(A92="","",SUMIFS(ورقة1!$G$4:$G$9994,ورقة1!$C$4:$C$9994,ورقة3!A92)) ->  | E92: =IF(A92="","",SUMIFS(ورقة1!$H$4:$H$9994,ورقة1!$C$4:$C$9994,ورقة3!A92)) ->  | I92: =IF(F92="","",SUMIFS(بيانات!$E$4:$E$5218,بيانات!$A$4:$A$5218,بيانات!A91)+SUMIFS(ورقة1!$K$4:$K$9994,ورقة1!$C$4:$C$9994,ورقة3!A92)) ->  | J92: =IF(F92="","",SUMIFS(بيانات!$C$4:$C$1048576,اسم_الصنف,بيانات!A91)+SUMIFS(ورقة1!$G$4:$G$9994,ورقة1!$C$4:$C$9994,ورقة3!A92)) ->  | L92: =IF(F92="","",SUMIFS(ورقة1!$L$4:$L$9994,ورقة1!$C$4:$C$9994,ورقة3!A92)) ->  | M92: =IF(H92="","",SUMIFS(ورقة1!$H$4:$H$9994,ورقة1!$C$4:$C$9994,ورقة3!A92)) -> 
A93: =IF(بيانات!A92="","",بيانات!A92) ->  | B93: =IF(A93="","",IF(A93=بيانات!A92,بيانات!B92)) ->  | C93: =IF(A93="","",VLOOKUP(A93,بيانات!$A$4:$C$11363,3,0)) ->  | D93: =IF(A93="","",SUMIFS(ورقة1!$G$4:$G$9994,ورقة1!$C$4:$C$9994,ورقة3!A93)) ->  | E93: =IF(A93="","",SUMIFS(ورقة1!$H$4:$H$9994,ورقة1!$C$4:$C$9994,ورقة3!A93)) ->  | I93: =IF(F93="","",SUMIFS(بيانات!$E$4:$E$5218,بيانات!$A$4:$A$5218,بيانات!A92)+SUMIFS(ورقة1!$K$4:$K$9994,ورقة1!$C$4:$C$9994,ورقة3!A93)) ->  | J93: =IF(F93="","",SUMIFS(بيانات!$C$4:$C$1048576,اسم_الصنف,بيانات!A92)+SUMIFS(ورقة1!$G$4:$G$9994,ورقة1!$C$4:$C$9994,ورقة3!A93)) ->  | L93: =IF(F93="","",SUMIFS(ورقة1!$L$4:$L$9994,ورقة1!$C$4:$C$9994,ورقة3!A93)) ->  | M93: =IF(H93="","",SUMIFS(ورقة1!$H$4:$H$9994,ورقة1!$C$4:$C$9994,ورقة3!A93)) -> 
A94: =IF(بيانات!A93="","",بيانات!A93) ->  | B94: =IF(A94="","",IF(A94=بيانات!A93,بيانات!B93)) ->  | C94: =IF(A94="","",VLOOKUP(A94,بيانات!$A$4:$C$11363,3,0)) ->  | D94: =IF(A94="","",SUMIFS(ورقة1!$G$4:$G$9994,ورقة1!$C$4:$C$9994,ورقة3!A94)) ->  | E94: =IF(A94="","",SUMIFS(ورقة1!$H$4:$H$9994,ورقة1!$C$4:$C$9994,ورقة3!A94)) ->  | I94: =IF(F94="","",SUMIFS(بيانات!$E$4:$E$5218,بيانات!$A$4:$A$5218,بيانات!A93)+SUMIFS(ورقة1!$K$4:$K$9994,ورقة1!$C$4:$C$9994,ورقة3!A94)) ->  | J94: =IF(F94="","",SUMIFS(بيانات!$C$4:$C$1048576,اسم_الصنف,بيانات!A93)+SUMIFS(ورقة1!$G$4:$G$9994,ورقة1!$C$4:$C$9994,ورقة3!A94)) ->  | L94: =IF(F94="","",SUMIFS(ورقة1!$L$4:$L$9994,ورقة1!$C$4:$C$9994,ورقة3!A94)) ->  | M94: =IF(H94="","",SUMIFS(ورقة1!$H$4:$H$9994,ورقة1!$C$4:$C$9994,ورقة3!A94)) -> 
A95: =IF(بيانات!A94="","",بيانات!A94) ->  | B95: =IF(A95="","",IF(A95=بيانات!A94,بيانات!B94)) ->  | C95: =IF(A95="","",VLOOKUP(A95,بيانات!$A$4:$C$11363,3,0)) ->  | D95: =IF(A95="","",SUMIFS(ورقة1!$G$4:$G$9994,ورقة1!$C$4:$C$9994,ورقة3!A95)) ->  | E95: =IF(A95="","",SUMIFS(ورقة1!$H$4:$H$9994,ورقة1!$C$4:$C$9994,ورقة3!A95)) ->  | I95: =IF(F95="","",SUMIFS(بيانات!$E$4:$E$5218,بيانات!$A$4:$A$5218,بيانات!A94)+SUMIFS(ورقة1!$K$4:$K$9994,ورقة1!$C$4:$C$9994,ورقة3!A95)) ->  | J95: =IF(F95="","",SUMIFS(بيانات!$C$4:$C$1048576,اسم_الصنف,بيانات!A94)+SUMIFS(ورقة1!$G$4:$G$9994,ورقة1!$C$4:$C$9994,ورقة3!A95)) ->  | L95: =IF(F95="","",SUMIFS(ورقة1!$L$4:$L$9994,ورقة1!$C$4:$C$9994,ورقة3!A95)) ->  | M95: =IF(H95="","",SUMIFS(ورقة1!$H$4:$H$9994,ورقة1!$C$4:$C$9994,ورقة3!A95)) -> 
A96: =IF(بيانات!A95="","",بيانات!A95) ->  | B96: =IF(A96="","",IF(A96=بيانات!A95,بيانات!B95)) ->  | C96: =IF(A96="","",VLOOKUP(A96,بيانات!$A$4:$C$11363,3,0)) ->  | D96: =IF(A96="","",SUMIFS(ورقة1!$G$4:$G$9994,ورقة1!$C$4:$C$9994,ورقة3!A96)) ->  | E96: =IF(A96="","",SUMIFS(ورقة1!$H$4:$H$9994,ورقة1!$C$4:$C$9994,ورقة3!A96)) ->  | I96: =IF(F96="","",SUMIFS(بيانات!$E$4:$E$5218,بيانات!$A$4:$A$5218,بيانات!A95)+SUMIFS(ورقة1!$K$4:$K$9994,ورقة1!$C$4:$C$9994,ورقة3!A96)) ->  | J96: =IF(F96="","",SUMIFS(بيانات!$C$4:$C$1048576,اسم_الصنف,بيانات!A95)+SUMIFS(ورقة1!$G$4:$G$9994,ورقة1!$C$4:$C$9994,ورقة3!A96)) ->  | L96: =IF(F96="","",SUMIFS(ورقة1!$L$4:$L$9994,ورقة1!$C$4:$C$9994,ورقة3!A96)) ->  | M96: =IF(H96="","",SUMIFS(ورقة1!$H$4:$H$9994,ورقة1!$C$4:$C$9994,ورقة3!A96)) -> 
A97: =IF(بيانات!A96="","",بيانات!A96) ->  | B97: =IF(A97="","",IF(A97=بيانات!A96,بيانات!B96)) ->  | C97: =IF(A97="","",VLOOKUP(A97,بيانات!$A$4:$C$11363,3,0)) ->  | D97: =IF(A97="","",SUMIFS(ورقة1!$G$4:$G$9994,ورقة1!$C$4:$C$9994,ورقة3!A97)) ->  | E97: =IF(A97="","",SUMIFS(ورقة1!$H$4:$H$9994,ورقة1!$C$4:$C$9994,ورقة3!A97)) ->  | I97: =IF(F97="","",SUMIFS(بيانات!$E$4:$E$5218,بيانات!$A$4:$A$5218,بيانات!A96)+SUMIFS(ورقة1!$K$4:$K$9994,ورقة1!$C$4:$C$9994,ورقة3!A97)) ->  | J97: =IF(F97="","",SUMIFS(بيانات!$C$4:$C$1048576,اسم_الصنف,بيانات!A96)+SUMIFS(ورقة1!$G$4:$G$9994,ورقة1!$C$4:$C$9994,ورقة3!A97)) ->  | L97: =IF(F97="","",SUMIFS(ورقة1!$L$4:$L$9994,ورقة1!$C$4:$C$9994,ورقة3!A97)) ->  | M97: =IF(H97="","",SUMIFS(ورقة1!$H$4:$H$9994,ورقة1!$C$4:$C$9994,ورقة3!A97)) -> 
A98: =IF(بيانات!A97="","",بيانات!A97) ->  | B98: =IF(A98="","",IF(A98=بيانات!A97,بيانات!B97)) ->  | C98: =IF(A98="","",VLOOKUP(A98,بيانات!$A$4:$C$11363,3,0)) ->  | D98: =IF(A98="","",SUMIFS(ورقة1!$G$4:$G$9994,ورقة1!$C$4:$C$9994,ورقة3!A98)) ->  | E98: =IF(A98="","",SUMIFS(ورقة1!$H$4:$H$9994,ورقة1!$C$4:$C$9994,ورقة3!A98)) ->  | I98: =IF(F98="","",SUMIFS(بيانات!$E$4:$E$5218,بيانات!$A$4:$A$5218,بيانات!A97)+SUMIFS(ورقة1!$K$4:$K$9994,ورقة1!$C$4:$C$9994,ورقة3!A98)) ->  | J98: =IF(F98="","",SUMIFS(بيانات!$C$4:$C$1048576,اسم_الصنف,بيانات!A97)+SUMIFS(ورقة1!$G$4:$G$9994,ورقة1!$C$4:$C$9994,ورقة3!A98)) ->  | L98: =IF(F98="","",SUMIFS(ورقة1!$L$4:$L$9994,ورقة1!$C$4:$C$9994,ورقة3!A98)) ->  | M98: =IF(H98="","",SUMIFS(ورقة1!$H$4:$H$9994,ورقة1!$C$4:$C$9994,ورقة3!A98)) -> 
A99: =IF(بيانات!A98="","",بيانات!A98) ->  | B99: =IF(A99="","",IF(A99=بيانات!A98,بيانات!B98)) ->  | C99: =IF(A99="","",VLOOKUP(A99,بيانات!$A$4:$C$11363,3,0)) ->  | D99: =IF(A99="","",SUMIFS(ورقة1!$G$4:$G$9994,ورقة1!$C$4:$C$9994,ورقة3!A99)) ->  | E99: =IF(A99="","",SUMIFS(ورقة1!$H$4:$H$9994,ورقة1!$C$4:$C$9994,ورقة3!A99)) ->  | I99: =IF(F99="","",SUMIFS(بيانات!$E$4:$E$5218,بيانات!$A$4:$A$5218,بيانات!A98)+SUMIFS(ورقة1!$K$4:$K$9994,ورقة1!$C$4:$C$9994,ورقة3!A99)) ->  | J99: =IF(F99="","",SUMIFS(بيانات!$C$4:$C$1048576,اسم_الصنف,بيانات!A98)+SUMIFS(ورقة1!$G$4:$G$9994,ورقة1!$C$4:$C$9994,ورقة3!A99)) ->  | L99: =IF(F99="","",SUMIFS(ورقة1!$L$4:$L$9994,ورقة1!$C$4:$C$9994,ورقة3!A99)) ->  | M99: =IF(H99="","",SUMIFS(ورقة1!$H$4:$H$9994,ورقة1!$C$4:$C$9994,ورقة3!A99)) -> 
A100: =IF(بيانات!A99="","",بيانات!A99) ->  | B100: =IF(A100="","",IF(A100=بيانات!A99,بيانات!B99)) ->  | C100: =IF(A100="","",VLOOKUP(A100,بيانات!$A$4:$C$11363,3,0)) ->  | D100: =IF(A100="","",SUMIFS(ورقة1!$G$4:$G$9994,ورقة1!$C$4:$C$9994,ورقة3!A100)) ->  | E100: =IF(A100="","",SUMIFS(ورقة1!$H$4:$H$9994,ورقة1!$C$4:$C$9994,ورقة3!A100)) ->  | I100: =IF(F100="","",SUMIFS(بيانات!$E$4:$E$5218,بيانات!$A$4:$A$5218,بيانات!A99)+SUMIFS(ورقة1!$K$4:$K$9994,ورقة1!$C$4:$C$9994,ورقة3!A100)) ->  | J100: =IF(F100="","",SUMIFS(بيانات!$C$4:$C$1048576,اسم_الصنف,بيانات!A99)+SUMIFS(ورقة1!$G$4:$G$9994,ورقة1!$C$4:$C$9994,ورقة3!A100)) ->  | L100: =IF(F100="","",SUMIFS(ورقة1!$L$4:$L$9994,ورقة1!$C$4:$C$9994,ورقة3!A100)) ->  | M100: =IF(H100="","",SUMIFS(ورقة1!$H$4:$H$9994,ورقة1!$C$4:$C$9994,ورقة3!A100)) -> 
A101: =IF(بيانات!A100="","",بيانات!A100) ->  | B101: =IF(A101="","",IF(A101=بيانات!A100,بيانات!B100)) ->  | C101: =IF(A101="","",VLOOKUP(A101,بيانات!$A$4:$C$11363,3,0)) ->  | D101: =IF(A101="","",SUMIFS(ورقة1!$G$4:$G$9994,ورقة1!$C$4:$C$9994,ورقة3!A101)) ->  | E101: =IF(A101="","",SUMIFS(ورقة1!$H$4:$H$9994,ورقة1!$C$4:$C$9994,ورقة3!A101)) ->  | I101: =IF(F101="","",SUMIFS(بيانات!$E$4:$E$5218,بيانات!$A$4:$A$5218,بيانات!A100)+SUMIFS(ورقة1!$K$4:$K$9994,ورقة1!$C$4:$C$9994,ورقة3!A101)) ->  | J101: =IF(F101="","",SUMIFS(بيانات!$C$4:$C$1048576,اسم_الصنف,بيانات!A100)+SUMIFS(ورقة1!$G$4:$G$9994,ورقة1!$C$4:$C$9994,ورقة3!A101)) ->  | L101: =IF(F101="","",SUMIFS(ورقة1!$L$4:$L$9994,ورقة1!$C$4:$C$9994,ورقة3!A101)) ->  | M101: =IF(H101="","",SUMIFS(ورقة1!$H$4:$H$9994,ورقة1!$C$4:$C$9994,ورقة3!A101)) -> 
A102: =IF(بيانات!A101="","",بيانات!A101) ->  | B102: =IF(A102="","",IF(A102=بيانات!A101,بيانات!B101)) ->  | C102: =IF(A102="","",VLOOKUP(A102,بيانات!$A$4:$C$11363,3,0)) ->  | D102: =IF(A102="","",SUMIFS(ورقة1!$G$4:$G$9994,ورقة1!$C$4:$C$9994,ورقة3!A102)) ->  | E102: =IF(A102="","",SUMIFS(ورقة1!$H$4:$H$9994,ورقة1!$C$4:$C$9994,ورقة3!A102)) ->  | I102: =IF(F102="","",SUMIFS(بيانات!$E$4:$E$5218,بيانات!$A$4:$A$5218,بيانات!A101)+SUMIFS(ورقة1!$K$4:$K$9994,ورقة1!$C$4:$C$9994,ورقة3!A102)) ->  | J102: =IF(F102="","",SUMIFS(بيانات!$C$4:$C$1048576,اسم_الصنف,بيانات!A101)+SUMIFS(ورقة1!$G$4:$G$9994,ورقة1!$C$4:$C$9994,ورقة3!A102)) ->  | L102: =IF(F102="","",SUMIFS(ورقة1!$L$4:$L$9994,ورقة1!$C$4:$C$9994,ورقة3!A102)) ->  | M102: =IF(H102="","",SUMIFS(ورقة1!$H$4:$H$9994,ورقة1!$C$4:$C$9994,ورقة3!A102)) -> 
A103: =IF(بيانات!A102="","",بيانات!A102) ->  | B103: =IF(A103="","",IF(A103=بيانات!A102,بيانات!B102)) ->  | C103: =IF(A103="","",VLOOKUP(A103,بيانات!$A$4:$C$11363,3,0)) ->  | D103: =IF(A103="","",SUMIFS(ورقة1!$G$4:$G$9994,ورقة1!$C$4:$C$9994,ورقة3!A103)) ->  | E103: =IF(A103="","",SUMIFS(ورقة1!$H$4:$H$9994,ورقة1!$C$4:$C$9994,ورقة3!A103)) ->  | I103: =IF(F103="","",SUMIFS(بيانات!$E$4:$E$5218,بيانات!$A$4:$A$5218,بيانات!A102)+SUMIFS(ورقة1!$K$4:$K$9994,ورقة1!$C$4:$C$9994,ورقة3!A103)) ->  | J103: =IF(F103="","",SUMIFS(بيانات!$C$4:$C$1048576,اسم_الصنف,بيانات!A102)+SUMIFS(ورقة1!$G$4:$G$9994,ورقة1!$C$4:$C$9994,ورقة3!A103)) ->  | L103: =IF(F103="","",SUMIFS(ورقة1!$L$4:$L$9994,ورقة1!$C$4:$C$9994,ورقة3!A103)) ->  | M103: =IF(H103="","",SUMIFS(ورقة1!$H$4:$H$9994,ورقة1!$C$4:$C$9994,ورقة3!A103)) -> 
A104: =IF(بيانات!A103="","",بيانات!A103) ->  | B104: =IF(A104="","",IF(A104=بيانات!A103,بيانات!B103)) ->  | C104: =IF(A104="","",VLOOKUP(A104,بيانات!$A$4:$C$11363,3,0)) ->  | D104: =IF(A104="","",SUMIFS(ورقة1!$G$4:$G$9994,ورقة1!$C$4:$C$9994,ورقة3!A104)) ->  | E104: =IF(A104="","",SUMIFS(ورقة1!$H$4:$H$9994,ورقة1!$C$4:$C$9994,ورقة3!A104)) ->  | I104: =IF(F104="","",SUMIFS(بيانات!$E$4:$E$5218,بيانات!$A$4:$A$5218,بيانات!A103)+SUMIFS(ورقة1!$K$4:$K$9994,ورقة1!$C$4:$C$9994,ورقة3!A104)) ->  | J104: =IF(F104="","",SUMIFS(بيانات!$C$4:$C$1048576,اسم_الصنف,بيانات!A103)+SUMIFS(ورقة1!$G$4:$G$9994,ورقة1!$C$4:$C$9994,ورقة3!A104)) ->  | L104: =IF(F104="","",SUMIFS(ورقة1!$L$4:$L$9994,ورقة1!$C$4:$C$9994,ورقة3!A104)) ->  | M104: =IF(H104="","",SUMIFS(ورقة1!$H$4:$H$9994,ورقة1!$C$4:$C$9994,ورقة3!A104)) -> 
A105: =IF(بيانات!A104="","",بيانات!A104) ->  | B105: =IF(A105="","",IF(A105=بيانات!A104,بيانات!B104)) ->  | C105: =IF(A105="","",VLOOKUP(A105,بيانات!$A$4:$C$11363,3,0)) ->  | D105: =IF(A105="","",SUMIFS(ورقة1!$G$4:$G$9994,ورقة1!$C$4:$C$9994,ورقة3!A105)) ->  | E105: =IF(A105="","",SUMIFS(ورقة1!$H$4:$H$9994,ورقة1!$C$4:$C$9994,ورقة3!A105)) ->  | I105: =IF(F105="","",SUMIFS(بيانات!$E$4:$E$5218,بيانات!$A$4:$A$5218,بيانات!A104)+SUMIFS(ورقة1!$K$4:$K$9994,ورقة1!$C$4:$C$9994,ورقة3!A105)) ->  | J105: =IF(F105="","",SUMIFS(بيانات!$C$4:$C$1048576,اسم_الصنف,بيانات!A104)+SUMIFS(ورقة1!$G$4:$G$9994,ورقة1!$C$4:$C$9994,ورقة3!A105)) ->  | L105: =IF(F105="","",SUMIFS(ورقة1!$L$4:$L$9994,ورقة1!$C$4:$C$9994,ورقة3!A105)) ->  | M105: =IF(H105="","",SUMIFS(ورقة1!$H$4:$H$9994,ورقة1!$C$4:$C$9994,ورقة3!A105)) -> 
A106: =IF(بيانات!A105="","",بيانات!A105) ->  | B106: =IF(A106="","",IF(A106=بيانات!A105,بيانات!B105)) ->  | C106: =IF(A106="","",VLOOKUP(A106,بيانات!$A$4:$C$11363,3,0)) ->  | D106: =IF(A106="","",SUMIFS(ورقة1!$G$4:$G$9994,ورقة1!$C$4:$C$9994,ورقة3!A106)) ->  | E106: =IF(A106="","",SUMIFS(ورقة1!$H$4:$H$9994,ورقة1!$C$4:$C$9994,ورقة3!A106)) ->  | I106: =IF(F106="","",SUMIFS(بيانات!$E$4:$E$5218,بيانات!$A$4:$A$5218,بيانات!A105)+SUMIFS(ورقة1!$K$4:$K$9994,ورقة1!$C$4:$C$9994,ورقة3!A106)) ->  | J106: =IF(F106="","",SUMIFS(بيانات!$C$4:$C$1048576,اسم_الصنف,بيانات!A105)+SUMIFS(ورقة1!$G$4:$G$9994,ورقة1!$C$4:$C$9994,ورقة3!A106)) ->  | L106: =IF(F106="","",SUMIFS(ورقة1!$L$4:$L$9994,ورقة1!$C$4:$C$9994,ورقة3!A106)) ->  | M106: =IF(H106="","",SUMIFS(ورقة1!$H$4:$H$9994,ورقة1!$C$4:$C$9994,ورقة3!A106)) -> 
A107: =IF(بيانات!A106="","",بيانات!A106) ->  | B107: =IF(A107="","",IF(A107=بيانات!A106,بيانات!B106)) ->  | C107: =IF(A107="","",VLOOKUP(A107,بيانات!$A$4:$C$11363,3,0)) ->  | D107: =IF(A107="","",SUMIFS(ورقة1!$G$4:$G$9994,ورقة1!$C$4:$C$9994,ورقة3!A107)) ->  | E107: =IF(A107="","",SUMIFS(ورقة1!$H$4:$H$9994,ورقة1!$C$4:$C$9994,ورقة3!A107)) ->  | I107: =IF(F107="","",SUMIFS(بيانات!$E$4:$E$5218,بيانات!$A$4:$A$5218,بيانات!A106)+SUMIFS(ورقة1!$K$4:$K$9994,ورقة1!$C$4:$C$9994,ورقة3!A107)) ->  | J107: =IF(F107="","",SUMIFS(بيانات!$C$4:$C$1048576,اسم_الصنف,بيانات!A106)+SUMIFS(ورقة1!$G$4:$G$9994,ورقة1!$C$4:$C$9994,ورقة3!A107)) ->  | L107: =IF(F107="","",SUMIFS(ورقة1!$L$4:$L$9994,ورقة1!$C$4:$C$9994,ورقة3!A107)) ->  | M107: =IF(H107="","",SUMIFS(ورقة1!$H$4:$H$9994,ورقة1!$C$4:$C$9994,ورقة3!A107)) -> 
A108: =IF(بيانات!A107="","",بيانات!A107) ->  | B108: =IF(A108="","",IF(A108=بيانات!A107,بيانات!B107)) ->  | C108: =IF(A108="","",VLOOKUP(A108,بيانات!$A$4:$C$11363,3,0)) ->  | D108: =IF(A108="","",SUMIFS(ورقة1!$G$4:$G$9994,ورقة1!$C$4:$C$9994,ورقة3!A108)) ->  | E108: =IF(A108="","",SUMIFS(ورقة1!$H$4:$H$9994,ورقة1!$C$4:$C$9994,ورقة3!A108)) ->  | I108: =IF(F108="","",SUMIFS(بيانات!$E$4:$E$5218,بيانات!$A$4:$A$5218,بيانات!A107)+SUMIFS(ورقة1!$K$4:$K$9994,ورقة1!$C$4:$C$9994,ورقة3!A108)) ->  | J108: =IF(F108="","",SUMIFS(بيانات!$C$4:$C$1048576,اسم_الصنف,بيانات!A107)+SUMIFS(ورقة1!$G$4:$G$9994,ورقة1!$C$4:$C$9994,ورقة3!A108)) ->  | L108: =IF(F108="","",SUMIFS(ورقة1!$L$4:$L$9994,ورقة1!$C$4:$C$9994,ورقة3!A108)) ->  | M108: =IF(H108="","",SUMIFS(ورقة1!$H$4:$H$9994,ورقة1!$C$4:$C$9994,ورقة3!A108)) -> 
A109: =IF(بيانات!A108="","",بيانات!A108) ->  | B109: =IF(A109="","",IF(A109=بيانات!A108,بيانات!B108)) ->  | C109: =IF(A109="","",VLOOKUP(A109,بيانات!$A$4:$C$11363,3,0)) ->  | D109: =IF(A109="","",SUMIFS(ورقة1!$G$4:$G$9994,ورقة1!$C$4:$C$9994,ورقة3!A109)) ->  | E109: =IF(A109="","",SUMIFS(ورقة1!$H$4:$H$9994,ورقة1!$C$4:$C$9994,ورقة3!A109)) ->  | I109: =IF(F109="","",SUMIFS(بيانات!$E$4:$E$5218,بيانات!$A$4:$A$5218,بيانات!A108)+SUMIFS(ورقة1!$K$4:$K$9994,ورقة1!$C$4:$C$9994,ورقة3!A109)) ->  | J109: =IF(F109="","",SUMIFS(بيانات!$C$4:$C$1048576,اسم_الصنف,بيانات!A108)+SUMIFS(ورقة1!$G$4:$G$9994,ورقة1!$C$4:$C$9994,ورقة3!A109)) ->  | L109: =IF(F109="","",SUMIFS(ورقة1!$L$4:$L$9994,ورقة1!$C$4:$C$9994,ورقة3!A109)) ->  | M109: =IF(H109="","",SUMIFS(ورقة1!$H$4:$H$9994,ورقة1!$C$4:$C$9994,ورقة3!A109)) -> 
A110: =IF(بيانات!A109="","",بيانات!A109) ->  | B110: =IF(A110="","",IF(A110=بيانات!A109,بيانات!B109)) ->  | C110: =IF(A110="","",VLOOKUP(A110,بيانات!$A$4:$C$11363,3,0)) ->  | D110: =IF(A110="","",SUMIFS(ورقة1!$G$4:$G$9994,ورقة1!$C$4:$C$9994,ورقة3!A110)) ->  | E110: =IF(A110="","",SUMIFS(ورقة1!$H$4:$H$9994,ورقة1!$C$4:$C$9994,ورقة3!A110)) ->  | I110: =IF(F110="","",SUMIFS(بيانات!$E$4:$E$5218,بيانات!$A$4:$A$5218,بيانات!A109)+SUMIFS(ورقة1!$K$4:$K$9994,ورقة1!$C$4:$C$9994,ورقة3!A110)) ->  | J110: =IF(F110="","",SUMIFS(بيانات!$C$4:$C$1048576,اسم_الصنف,بيانات!A109)+SUMIFS(ورقة1!$G$4:$G$9994,ورقة1!$C$4:$C$9994,ورقة3!A110)) ->  | L110: =IF(F110="","",SUMIFS(ورقة1!$L$4:$L$9994,ورقة1!$C$4:$C$9994,ورقة3!A110)) ->  | M110: =IF(H110="","",SUMIFS(ورقة1!$H$4:$H$9994,ورقة1!$C$4:$C$9994,ورقة3!A110)) -> 
A111: =IF(بيانات!A110="","",بيانات!A110) ->  | B111: =IF(A111="","",IF(A111=بيانات!A110,بيانات!B110)) ->  | C111: =IF(A111="","",VLOOKUP(A111,بيانات!$A$4:$C$11363,3,0)) ->  | D111: =IF(A111="","",SUMIFS(ورقة1!$G$4:$G$9994,ورقة1!$C$4:$C$9994,ورقة3!A111)) ->  | E111: =IF(A111="","",SUMIFS(ورقة1!$H$4:$H$9994,ورقة1!$C$4:$C$9994,ورقة3!A111)) ->  | I111: =IF(F111="","",SUMIFS(بيانات!$E$4:$E$5218,بيانات!$A$4:$A$5218,بيانات!A110)+SUMIFS(ورقة1!$K$4:$K$9994,ورقة1!$C$4:$C$9994,ورقة3!A111)) ->  | J111: =IF(F111="","",SUMIFS(بيانات!$C$4:$C$1048576,اسم_الصنف,بيانات!A110)+SUMIFS(ورقة1!$G$4:$G$9994,ورقة1!$C$4:$C$9994,ورقة3!A111)) ->  | L111: =IF(F111="","",SUMIFS(ورقة1!$L$4:$L$9994,ورقة1!$C$4:$C$9994,ورقة3!A111)) ->  | M111: =IF(H111="","",SUMIFS(ورقة1!$H$4:$H$9994,ورقة1!$C$4:$C$9994,ورقة3!A111)) -> 
A112: =IF(بيانات!A111="","",بيانات!A111) ->  | B112: =IF(A112="","",IF(A112=بيانات!A111,بيانات!B111)) ->  | C112: =IF(A112="","",VLOOKUP(A112,بيانات!$A$4:$C$11363,3,0)) ->  | D112: =IF(A112="","",SUMIFS(ورقة1!$G$4:$G$9994,ورقة1!$C$4:$C$9994,ورقة3!A112)) ->  | E112: =IF(A112="","",SUMIFS(ورقة1!$H$4:$H$9994,ورقة1!$C$4:$C$9994,ورقة3!A112)) ->  | I112: =IF(F112="","",SUMIFS(بيانات!$E$4:$E$5218,بيانات!$A$4:$A$5218,بيانات!A111)+SUMIFS(ورقة1!$K$4:$K$9994,ورقة1!$C$4:$C$9994,ورقة3!A112)) ->  | J112: =IF(F112="","",SUMIFS(بيانات!$C$4:$C$1048576,اسم_الصنف,بيانات!A111)+SUMIFS(ورقة1!$G$4:$G$9994,ورقة1!$C$4:$C$9994,ورقة3!A112)) ->  | L112: =IF(F112="","",SUMIFS(ورقة1!$L$4:$L$9994,ورقة1!$C$4:$C$9994,ورقة3!A112)) ->  | M112: =IF(H112="","",SUMIFS(ورقة1!$H$4:$H$9994,ورقة1!$C$4:$C$9994,ورقة3!A112)) -> 
A113: =IF(بيانات!A112="","",بيانات!A112) ->  | B113: =IF(A113="","",IF(A113=بيانات!A112,بيانات!B112)) ->  | C113: =IF(A113="","",VLOOKUP(A113,بيانات!$A$4:$C$11363,3,0)) ->  | D113: =IF(A113="","",SUMIFS(ورقة1!$G$4:$G$9994,ورقة1!$C$4:$C$9994,ورقة3!A113)) ->  | E113: =IF(A113="","",SUMIFS(ورقة1!$H$4:$H$9994,ورقة1!$C$4:$C$9994,ورقة3!A113)) ->  | I113: =IF(F113="","",SUMIFS(بيانات!$E$4:$E$5218,بيانات!$A$4:$A$5218,بيانات!A112)+SUMIFS(ورقة1!$K$4:$K$9994,ورقة1!$C$4:$C$9994,ورقة3!A113)) ->  | J113: =IF(F113="","",SUMIFS(بيانات!$C$4:$C$1048576,اسم_الصنف,بيانات!A112)+SUMIFS(ورقة1!$G$4:$G$9994,ورقة1!$C$4:$C$9994,ورقة3!A113)) ->  | L113: =IF(F113="","",SUMIFS(ورقة1!$L$4:$L$9994,ورقة1!$C$4:$C$9994,ورقة3!A113)) ->  | M113: =IF(H113="","",SUMIFS(ورقة1!$H$4:$H$9994,ورقة1!$C$4:$C$9994,ورقة3!A113)) -> 
A114: =IF(بيانات!A113="","",بيانات!A113) ->  | B114: =IF(A114="","",IF(A114=بيانات!A113,بيانات!B113)) ->  | C114: =IF(A114="","",VLOOKUP(A114,بيانات!$A$4:$C$11363,3,0)) ->  | D114: =IF(A114="","",SUMIFS(ورقة1!$G$4:$G$9994,ورقة1!$C$4:$C$9994,ورقة3!A114)) ->  | E114: =IF(A114="","",SUMIFS(ورقة1!$H$4:$H$9994,ورقة1!$C$4:$C$9994,ورقة3!A114)) ->  | I114: =IF(F114="","",SUMIFS(بيانات!$E$4:$E$5218,بيانات!$A$4:$A$5218,بيانات!A113)+SUMIFS(ورقة1!$K$4:$K$9994,ورقة1!$C$4:$C$9994,ورقة3!A114)) ->  | J114: =IF(F114="","",SUMIFS(بيانات!$C$4:$C$1048576,اسم_الصنف,بيانات!A113)+SUMIFS(ورقة1!$G$4:$G$9994,ورقة1!$C$4:$C$9994,ورقة3!A114)) ->  | L114: =IF(F114="","",SUMIFS(ورقة1!$L$4:$L$9994,ورقة1!$C$4:$C$9994,ورقة3!A114)) ->  | M114: =IF(H114="","",SUMIFS(ورقة1!$H$4:$H$9994,ورقة1!$C$4:$C$9994,ورقة3!A114)) -> 
A115: =IF(بيانات!A114="","",بيانات!A114) ->  | B115: =IF(A115="","",IF(A115=بيانات!A114,بيانات!B114)) ->  | C115: =IF(A115="","",VLOOKUP(A115,بيانات!$A$4:$C$11363,3,0)) ->  | D115: =IF(A115="","",SUMIFS(ورقة1!$G$4:$G$9994,ورقة1!$C$4:$C$9994,ورقة3!A115)) ->  | E115: =IF(A115="","",SUMIFS(ورقة1!$H$4:$H$9994,ورقة1!$C$4:$C$9994,ورقة3!A115)) ->  | I115: =IF(F115="","",SUMIFS(بيانات!$E$4:$E$5218,بيانات!$A$4:$A$5218,بيانات!A114)+SUMIFS(ورقة1!$K$4:$K$9994,ورقة1!$C$4:$C$9994,ورقة3!A115)) ->  | J115: =IF(F115="","",SUMIFS(بيانات!$C$4:$C$1048576,اسم_الصنف,بيانات!A114)+SUMIFS(ورقة1!$G$4:$G$9994,ورقة1!$C$4:$C$9994,ورقة3!A115)) ->  | L115: =IF(F115="","",SUMIFS(ورقة1!$L$4:$L$9994,ورقة1!$C$4:$C$9994,ورقة3!A115)) ->  | M115: =IF(H115="","",SUMIFS(ورقة1!$H$4:$H$9994,ورقة1!$C$4:$C$9994,ورقة3!A115)) -> 
A116: =IF(بيانات!A115="","",بيانات!A115) ->  | B116: =IF(A116="","",IF(A116=بيانات!A115,بيانات!B115)) ->  | C116: =IF(A116="","",VLOOKUP(A116,بيانات!$A$4:$C$11363,3,0)) ->  | D116: =IF(A116="","",SUMIFS(ورقة1!$G$4:$G$9994,ورقة1!$C$4:$C$9994,ورقة3!A116)) ->  | E116: =IF(A116="","",SUMIFS(ورقة1!$H$4:$H$9994,ورقة1!$C$4:$C$9994,ورقة3!A116)) ->  | I116: =IF(F116="","",SUMIFS(بيانات!$E$4:$E$5218,بيانات!$A$4:$A$5218,بيانات!A115)+SUMIFS(ورقة1!$K$4:$K$9994,ورقة1!$C$4:$C$9994,ورقة3!A116)) ->  | J116: =IF(F116="","",SUMIFS(بيانات!$C$4:$C$1048576,اسم_الصنف,بيانات!A115)+SUMIFS(ورقة1!$G$4:$G$9994,ورقة1!$C$4:$C$9994,ورقة3!A116)) ->  | L116: =IF(F116="","",SUMIFS(ورقة1!$L$4:$L$9994,ورقة1!$C$4:$C$9994,ورقة3!A116)) ->  | M116: =IF(H116="","",SUMIFS(ورقة1!$H$4:$H$9994,ورقة1!$C$4:$C$9994,ورقة3!A116)) -> 
A117: =IF(بيانات!A116="","",بيانات!A116) ->  | B117: =IF(A117="","",IF(A117=بيانات!A116,بيانات!B116)) ->  | C117: =IF(A117="","",VLOOKUP(A117,بيانات!$A$4:$C$11363,3,0)) ->  | D117: =IF(A117="","",SUMIFS(ورقة1!$G$4:$G$9994,ورقة1!$C$4:$C$9994,ورقة3!A117)) ->  | E117: =IF(A117="","",SUMIFS(ورقة1!$H$4:$H$9994,ورقة1!$C$4:$C$9994,ورقة3!A117)) ->  | I117: =IF(F117="","",SUMIFS(بيانات!$E$4:$E$5218,بيانات!$A$4:$A$5218,بيانات!A116)+SUMIFS(ورقة1!$K$4:$K$9994,ورقة1!$C$4:$C$9994,ورقة3!A117)) ->  | J117: =IF(F117="","",SUMIFS(بيانات!$C$4:$C$1048576,اسم_الصنف,بيانات!A116)+SUMIFS(ورقة1!$G$4:$G$9994,ورقة1!$C$4:$C$9994,ورقة3!A117)) ->  | L117: =IF(F117="","",SUMIFS(ورقة1!$L$4:$L$9994,ورقة1!$C$4:$C$9994,ورقة3!A117)) ->  | M117: =IF(H117="","",SUMIFS(ورقة1!$H$4:$H$9994,ورقة1!$C$4:$C$9994,ورقة3!A117)) -> 
A118: =IF(بيانات!A117="","",بيانات!A117) ->  | B118: =IF(A118="","",IF(A118=بيانات!A117,بيانات!B117)) ->  | C118: =IF(A118="","",VLOOKUP(A118,بيانات!$A$4:$C$11363,3,0)) ->  | D118: =IF(A118="","",SUMIFS(ورقة1!$G$4:$G$9994,ورقة1!$C$4:$C$9994,ورقة3!A118)) ->  | E118: =IF(A118="","",SUMIFS(ورقة1!$H$4:$H$9994,ورقة1!$C$4:$C$9994,ورقة3!A118)) ->  | I118: =IF(F118="","",SUMIFS(بيانات!$E$4:$E$5218,بيانات!$A$4:$A$5218,بيانات!A117)+SUMIFS(ورقة1!$K$4:$K$9994,ورقة1!$C$4:$C$9994,ورقة3!A118)) ->  | J118: =IF(F118="","",SUMIFS(بيانات!$C$4:$C$1048576,اسم_الصنف,بيانات!A117)+SUMIFS(ورقة1!$G$4:$G$9994,ورقة1!$C$4:$C$9994,ورقة3!A118)) ->  | L118: =IF(F118="","",SUMIFS(ورقة1!$L$4:$L$9994,ورقة1!$C$4:$C$9994,ورقة3!A118)) ->  | M118: =IF(H118="","",SUMIFS(ورقة1!$H$4:$H$9994,ورقة1!$C$4:$C$9994,ورقة3!A118)) -> 
A119: =IF(بيانات!A118="","",بيانات!A118) ->  | B119: =IF(A119="","",IF(A119=بيانات!A118,بيانات!B118)) ->  | C119: =IF(A119="","",VLOOKUP(A119,بيانات!$A$4:$C$11363,3,0)) ->  | D119: =IF(A119="","",SUMIFS(ورقة1!$G$4:$G$9994,ورقة1!$C$4:$C$9994,ورقة3!A119)) ->  | E119: =IF(A119="","",SUMIFS(ورقة1!$H$4:$H$9994,ورقة1!$C$4:$C$9994,ورقة3!A119)) ->  | I119: =IF(F119="","",SUMIFS(بيانات!$E$4:$E$5218,بيانات!$A$4:$A$5218,بيانات!A118)+SUMIFS(ورقة1!$K$4:$K$9994,ورقة1!$C$4:$C$9994,ورقة3!A119)) ->  | J119: =IF(F119="","",SUMIFS(بيانات!$C$4:$C$1048576,اسم_الصنف,بيانات!A118)+SUMIFS(ورقة1!$G$4:$G$9994,ورقة1!$C$4:$C$9994,ورقة3!A119)) ->  | L119: =IF(F119="","",SUMIFS(ورقة1!$L$4:$L$9994,ورقة1!$C$4:$C$9994,ورقة3!A119)) ->  | M119: =IF(H119="","",SUMIFS(ورقة1!$H$4:$H$9994,ورقة1!$C$4:$C$9994,ورقة3!A119)) -> 
A120: =IF(بيانات!A119="","",بيانات!A119) ->  | B120: =IF(A120="","",IF(A120=بيانات!A119,بيانات!B119)) ->  | C120: =IF(A120="","",VLOOKUP(A120,بيانات!$A$4:$C$11363,3,0)) ->  | D120: =IF(A120="","",SUMIFS(ورقة1!$G$4:$G$9994,ورقة1!$C$4:$C$9994,ورقة3!A120)) ->  | E120: =IF(A120="","",SUMIFS(ورقة1!$H$4:$H$9994,ورقة1!$C$4:$C$9994,ورقة3!A120)) ->  | I120: =IF(F120="","",SUMIFS(بيانات!$E$4:$E$5218,بيانات!$A$4:$A$5218,بيانات!A119)+SUMIFS(ورقة1!$K$4:$K$9994,ورقة1!$C$4:$C$9994,ورقة3!A120)) ->  | J120: =IF(F120="","",SUMIFS(بيانات!$C$4:$C$1048576,اسم_الصنف,بيانات!A119)+SUMIFS(ورقة1!$G$4:$G$9994,ورقة1!$C$4:$C$9994,ورقة3!A120)) ->  | L120: =IF(F120="","",SUMIFS(ورقة1!$L$4:$L$9994,ورقة1!$C$4:$C$9994,ورقة3!A120)) ->  | M120: =IF(H120="","",SUMIFS(ورقة1!$H$4:$H$9994,ورقة1!$C$4:$C$9994,ورقة3!A120)) -> 
A121: =IF(بيانات!A120="","",بيانات!A120) ->  | B121: =IF(A121="","",IF(A121=بيانات!A120,بيانات!B120)) ->  | C121: =IF(A121="","",VLOOKUP(A121,بيانات!$A$4:$C$11363,3,0)) ->  | D121: =IF(A121="","",SUMIFS(ورقة1!$G$4:$G$9994,ورقة1!$C$4:$C$9994,ورقة3!A121)) ->  | E121: =IF(A121="","",SUMIFS(ورقة1!$H$4:$H$9994,ورقة1!$C$4:$C$9994,ورقة3!A121)) ->  | I121: =IF(F121="","",SUMIFS(بيانات!$E$4:$E$5218,بيانات!$A$4:$A$5218,بيانات!A120)+SUMIFS(ورقة1!$K$4:$K$9994,ورقة1!$C$4:$C$9994,ورقة3!A121)) ->  | J121: =IF(F121="","",SUMIFS(بيانات!$C$4:$C$1048576,اسم_الصنف,بيانات!A120)+SUMIFS(ورقة1!$G$4:$G$9994,ورقة1!$C$4:$C$9994,ورقة3!A121)) ->  | L121: =IF(F121="","",SUMIFS(ورقة1!$L$4:$L$9994,ورقة1!$C$4:$C$9994,ورقة3!A121)) ->  | M121: =IF(H121="","",SUMIFS(ورقة1!$H$4:$H$9994,ورقة1!$C$4:$C$9994,ورقة3!A121)) -> 
A122: =IF(بيانات!A121="","",بيانات!A121) ->  | B122: =IF(A122="","",IF(A122=بيانات!A121,بيانات!B121)) ->  | C122: =IF(A122="","",VLOOKUP(A122,بيانات!$A$4:$C$11363,3,0)) ->  | D122: =IF(A122="","",SUMIFS(ورقة1!$G$4:$G$9994,ورقة1!$C$4:$C$9994,ورقة3!A122)) ->  | E122: =IF(A122="","",SUMIFS(ورقة1!$H$4:$H$9994,ورقة1!$C$4:$C$9994,ورقة3!A122)) ->  | I122: =IF(F122="","",SUMIFS(بيانات!$E$4:$E$5218,بيانات!$A$4:$A$5218,بيانات!A121)+SUMIFS(ورقة1!$K$4:$K$9994,ورقة1!$C$4:$C$9994,ورقة3!A122)) ->  | J122: =IF(F122="","",SUMIFS(بيانات!$C$4:$C$1048576,اسم_الصنف,بيانات!A121)+SUMIFS(ورقة1!$G$4:$G$9994,ورقة1!$C$4:$C$9994,ورقة3!A122)) ->  | L122: =IF(F122="","",SUMIFS(ورقة1!$L$4:$L$9994,ورقة1!$C$4:$C$9994,ورقة3!A122)) ->  | M122: =IF(H122="","",SUMIFS(ورقة1!$H$4:$H$9994,ورقة1!$C$4:$C$9994,ورقة3!A122)) -> 
A123: =IF(بيانات!A122="","",بيانات!A122) ->  | B123: =IF(A123="","",IF(A123=بيانات!A122,بيانات!B122)) ->  | C123: =IF(A123="","",VLOOKUP(A123,بيانات!$A$4:$C$11363,3,0)) ->  | D123: =IF(A123="","",SUMIFS(ورقة1!$G$4:$G$9994,ورقة1!$C$4:$C$9994,ورقة3!A123)) ->  | E123: =IF(A123="","",SUMIFS(ورقة1!$H$4:$H$9994,ورقة1!$C$4:$C$9994,ورقة3!A123)) ->  | I123: =IF(F123="","",SUMIFS(بيانات!$E$4:$E$5218,بيانات!$A$4:$A$5218,بيانات!A122)+SUMIFS(ورقة1!$K$4:$K$9994,ورقة1!$C$4:$C$9994,ورقة3!A123)) ->  | J123: =IF(F123="","",SUMIFS(بيانات!$C$4:$C$1048576,اسم_الصنف,بيانات!A122)+SUMIFS(ورقة1!$G$4:$G$9994,ورقة1!$C$4:$C$9994,ورقة3!A123)) ->  | L123: =IF(F123="","",SUMIFS(ورقة1!$L$4:$L$9994,ورقة1!$C$4:$C$9994,ورقة3!A123)) ->  | M123: =IF(H123="","",SUMIFS(ورقة1!$H$4:$H$9994,ورقة1!$C$4:$C$9994,ورقة3!A123)) -> 
A124: =IF(بيانات!A123="","",بيانات!A123) ->  | B124: =IF(A124="","",IF(A124=بيانات!A123,بيانات!B123)) ->  | C124: =IF(A124="","",VLOOKUP(A124,بيانات!$A$4:$C$11363,3,0)) ->  | D124: =IF(A124="","",SUMIFS(ورقة1!$G$4:$G$9994,ورقة1!$C$4:$C$9994,ورقة3!A124)) ->  | E124: =IF(A124="","",SUMIFS(ورقة1!$H$4:$H$9994,ورقة1!$C$4:$C$9994,ورقة3!A124)) ->  | I124: =IF(F124="","",SUMIFS(بيانات!$E$4:$E$5218,بيانات!$A$4:$A$5218,بيانات!A123)+SUMIFS(ورقة1!$K$4:$K$9994,ورقة1!$C$4:$C$9994,ورقة3!A124)) ->  | J124: =IF(F124="","",SUMIFS(بيانات!$C$4:$C$1048576,اسم_الصنف,بيانات!A123)+SUMIFS(ورقة1!$G$4:$G$9994,ورقة1!$C$4:$C$9994,ورقة3!A124)) ->  | L124: =IF(F124="","",SUMIFS(ورقة1!$L$4:$L$9994,ورقة1!$C$4:$C$9994,ورقة3!A124)) ->  | M124: =IF(H124="","",SUMIFS(ورقة1!$H$4:$H$9994,ورقة1!$C$4:$C$9994,ورقة3!A124)) -> 
A125: =IF(بيانات!A124="","",بيانات!A124) ->  | B125: =IF(A125="","",IF(A125=بيانات!A124,بيانات!B124)) ->  | C125: =IF(A125="","",VLOOKUP(A125,بيانات!$A$4:$C$11363,3,0)) ->  | D125: =IF(A125="","",SUMIFS(ورقة1!$G$4:$G$9994,ورقة1!$C$4:$C$9994,ورقة3!A125)) ->  | E125: =IF(A125="","",SUMIFS(ورقة1!$H$4:$H$9994,ورقة1!$C$4:$C$9994,ورقة3!A125)) ->  | I125: =IF(F125="","",SUMIFS(بيانات!$E$4:$E$5218,بيانات!$A$4:$A$5218,بيانات!A124)+SUMIFS(ورقة1!$K$4:$K$9994,ورقة1!$C$4:$C$9994,ورقة3!A125)) ->  | J125: =IF(F125="","",SUMIFS(بيانات!$C$4:$C$1048576,اسم_الصنف,بيانات!A124)+SUMIFS(ورقة1!$G$4:$G$9994,ورقة1!$C$4:$C$9994,ورقة3!A125)) ->  | L125: =IF(F125="","",SUMIFS(ورقة1!$L$4:$L$9994,ورقة1!$C$4:$C$9994,ورقة3!A125)) ->  | M125: =IF(H125="","",SUMIFS(ورقة1!$H$4:$H$9994,ورقة1!$C$4:$C$9994,ورقة3!A125)) -> 
A126: =IF(بيانات!A125="","",بيانات!A125) ->  | B126: =IF(A126="","",IF(A126=بيانات!A125,بيانات!B125)) ->  | C126: =IF(A126="","",VLOOKUP(A126,بيانات!$A$4:$C$11363,3,0)) ->  | D126: =IF(A126="","",SUMIFS(ورقة1!$G$4:$G$9994,ورقة1!$C$4:$C$9994,ورقة3!A126)) ->  | E126: =IF(A126="","",SUMIFS(ورقة1!$H$4:$H$9994,ورقة1!$C$4:$C$9994,ورقة3!A126)) ->  | I126: =IF(F126="","",SUMIFS(بيانات!$E$4:$E$5218,بيانات!$A$4:$A$5218,بيانات!A125)+SUMIFS(ورقة1!$K$4:$K$9994,ورقة1!$C$4:$C$9994,ورقة3!A126)) ->  | J126: =IF(F126="","",SUMIFS(بيانات!$C$4:$C$1048576,اسم_الصنف,بيانات!A125)+SUMIFS(ورقة1!$G$4:$G$9994,ورقة1!$C$4:$C$9994,ورقة3!A126)) ->  | L126: =IF(F126="","",SUMIFS(ورقة1!$L$4:$L$9994,ورقة1!$C$4:$C$9994,ورقة3!A126)) ->  | M126: =IF(H126="","",SUMIFS(ورقة1!$H$4:$H$9994,ورقة1!$C$4:$C$9994,ورقة3!A126)) -> 
A127: =IF(بيانات!A126="","",بيانات!A126) ->  | B127: =IF(A127="","",IF(A127=بيانات!A126,بيانات!B126)) ->  | C127: =IF(A127="","",VLOOKUP(A127,بيانات!$A$4:$C$11363,3,0)) ->  | D127: =IF(A127="","",SUMIFS(ورقة1!$G$4:$G$9994,ورقة1!$C$4:$C$9994,ورقة3!A127)) ->  | E127: =IF(A127="","",SUMIFS(ورقة1!$H$4:$H$9994,ورقة1!$C$4:$C$9994,ورقة3!A127)) ->  | I127: =IF(F127="","",SUMIFS(بيانات!$E$4:$E$5218,بيانات!$A$4:$A$5218,بيانات!A126)+SUMIFS(ورقة1!$K$4:$K$9994,ورقة1!$C$4:$C$9994,ورقة3!A127)) ->  | J127: =IF(F127="","",SUMIFS(بيانات!$C$4:$C$1048576,اسم_الصنف,بيانات!A126)+SUMIFS(ورقة1!$G$4:$G$9994,ورقة1!$C$4:$C$9994,ورقة3!A127)) ->  | L127: =IF(F127="","",SUMIFS(ورقة1!$L$4:$L$9994,ورقة1!$C$4:$C$9994,ورقة3!A127)) ->  | M127: =IF(H127="","",SUMIFS(ورقة1!$H$4:$H$9994,ورقة1!$C$4:$C$9994,ورقة3!A127)) -> 
A128: =IF(بيانات!A127="","",بيانات!A127) ->  | B128: =IF(A128="","",IF(A128=بيانات!A127,بيانات!B127)) ->  | C128: =IF(A128="","",VLOOKUP(A128,بيانات!$A$4:$C$11363,3,0)) ->  | D128: =IF(A128="","",SUMIFS(ورقة1!$G$4:$G$9994,ورقة1!$C$4:$C$9994,ورقة3!A128)) ->  | E128: =IF(A128="","",SUMIFS(ورقة1!$H$4:$H$9994,ورقة1!$C$4:$C$9994,ورقة3!A128)) ->  | I128: =IF(F128="","",SUMIFS(بيانات!$E$4:$E$5218,بيانات!$A$4:$A$5218,بيانات!A127)+SUMIFS(ورقة1!$K$4:$K$9994,ورقة1!$C$4:$C$9994,ورقة3!A128)) ->  | J128: =IF(F128="","",SUMIFS(بيانات!$C$4:$C$1048576,اسم_الصنف,بيانات!A127)+SUMIFS(ورقة1!$G$4:$G$9994,ورقة1!$C$4:$C$9994,ورقة3!A128)) ->  | L128: =IF(F128="","",SUMIFS(ورقة1!$L$4:$L$9994,ورقة1!$C$4:$C$9994,ورقة3!A128)) ->  | M128: =IF(H128="","",SUMIFS(ورقة1!$H$4:$H$9994,ورقة1!$C$4:$C$9994,ورقة3!A128)) -> 
A129: =IF(بيانات!A128="","",بيانات!A128) ->  | B129: =IF(A129="","",IF(A129=بيانات!A128,بيانات!B128)) ->  | C129: =IF(A129="","",VLOOKUP(A129,بيانات!$A$4:$C$11363,3,0)) ->  | D129: =IF(A129="","",SUMIFS(ورقة1!$G$4:$G$9994,ورقة1!$C$4:$C$9994,ورقة3!A129)) ->  | E129: =IF(A129="","",SUMIFS(ورقة1!$H$4:$H$9994,ورقة1!$C$4:$C$9994,ورقة3!A129)) ->  | I129: =IF(F129="","",SUMIFS(بيانات!$E$4:$E$5218,بيانات!$A$4:$A$5218,بيانات!A128)+SUMIFS(ورقة1!$K$4:$K$9994,ورقة1!$C$4:$C$9994,ورقة3!A129)) ->  | J129: =IF(F129="","",SUMIFS(بيانات!$C$4:$C$1048576,اسم_الصنف,بيانات!A128)+SUMIFS(ورقة1!$G$4:$G$9994,ورقة1!$C$4:$C$9994,ورقة3!A129)) ->  | L129: =IF(F129="","",SUMIFS(ورقة1!$L$4:$L$9994,ورقة1!$C$4:$C$9994,ورقة3!A129)) ->  | M129: =IF(H129="","",SUMIFS(ورقة1!$H$4:$H$9994,ورقة1!$C$4:$C$9994,ورقة3!A129)) -> 
A130: =IF(بيانات!A129="","",بيانات!A129) ->  | B130: =IF(A130="","",IF(A130=بيانات!A129,بيانات!B129)) ->  | C130: =IF(A130="","",VLOOKUP(A130,بيانات!$A$4:$C$11363,3,0)) ->  | D130: =IF(A130="","",SUMIFS(ورقة1!$G$4:$G$9994,ورقة1!$C$4:$C$9994,ورقة3!A130)) ->  | E130: =IF(A130="","",SUMIFS(ورقة1!$H$4:$H$9994,ورقة1!$C$4:$C$9994,ورقة3!A130)) ->  | I130: =IF(F130="","",SUMIFS(بيانات!$E$4:$E$5218,بيانات!$A$4:$A$5218,بيانات!A129)+SUMIFS(ورقة1!$K$4:$K$9994,ورقة1!$C$4:$C$9994,ورقة3!A130)) ->  | J130: =IF(F130="","",SUMIFS(بيانات!$C$4:$C$1048576,اسم_الصنف,بيانات!A129)+SUMIFS(ورقة1!$G$4:$G$9994,ورقة1!$C$4:$C$9994,ورقة3!A130)) ->  | L130: =IF(F130="","",SUMIFS(ورقة1!$L$4:$L$9994,ورقة1!$C$4:$C$9994,ورقة3!A130)) ->  | M130: =IF(H130="","",SUMIFS(ورقة1!$H$4:$H$9994,ورقة1!$C$4:$C$9994,ورقة3!A130)) -> 
A131: =IF(بيانات!A130="","",بيانات!A130) ->  | B131: =IF(A131="","",IF(A131=بيانات!A130,بيانات!B130)) ->  | C131: =IF(A131="","",VLOOKUP(A131,بيانات!$A$4:$C$11363,3,0)) ->  | D131: =IF(A131="","",SUMIFS(ورقة1!$G$4:$G$9994,ورقة1!$C$4:$C$9994,ورقة3!A131)) ->  | E131: =IF(A131="","",SUMIFS(ورقة1!$H$4:$H$9994,ورقة1!$C$4:$C$9994,ورقة3!A131)) ->  | I131: =IF(F131="","",SUMIFS(بيانات!$E$4:$E$5218,بيانات!$A$4:$A$5218,بيانات!A130)+SUMIFS(ورقة1!$K$4:$K$9994,ورقة1!$C$4:$C$9994,ورقة3!A131)) ->  | J131: =IF(F131="","",SUMIFS(بيانات!$C$4:$C$1048576,اسم_الصنف,بيانات!A130)+SUMIFS(ورقة1!$G$4:$G$9994,ورقة1!$C$4:$C$9994,ورقة3!A131)) ->  | L131: =IF(F131="","",SUMIFS(ورقة1!$L$4:$L$9994,ورقة1!$C$4:$C$9994,ورقة3!A131)) ->  | M131: =IF(H131="","",SUMIFS(ورقة1!$H$4:$H$9994,ورقة1!$C$4:$C$9994,ورقة3!A131)) -> 
A132: =IF(بيانات!A131="","",بيانات!A131) ->  | B132: =IF(A132="","",IF(A132=بيانات!A131,بيانات!B131)) ->  | C132: =IF(A132="","",VLOOKUP(A132,بيانات!$A$4:$C$11363,3,0)) ->  | D132: =IF(A132="","",SUMIFS(ورقة1!$G$4:$G$9994,ورقة1!$C$4:$C$9994,ورقة3!A132)) ->  | E132: =IF(A132="","",SUMIFS(ورقة1!$H$4:$H$9994,ورقة1!$C$4:$C$9994,ورقة3!A132)) ->  | I132: =IF(F132="","",SUMIFS(بيانات!$E$4:$E$5218,بيانات!$A$4:$A$5218,بيانات!A131)+SUMIFS(ورقة1!$K$4:$K$9994,ورقة1!$C$4:$C$9994,ورقة3!A132)) ->  | J132: =IF(F132="","",SUMIFS(بيانات!$C$4:$C$1048576,اسم_الصنف,بيانات!A131)+SUMIFS(ورقة1!$G$4:$G$9994,ورقة1!$C$4:$C$9994,ورقة3!A132)) ->  | L132: =IF(F132="","",SUMIFS(ورقة1!$L$4:$L$9994,ورقة1!$C$4:$C$9994,ورقة3!A132)) ->  | M132: =IF(H132="","",SUMIFS(ورقة1!$H$4:$H$9994,ورقة1!$C$4:$C$9994,ورقة3!A132)) -> 
A133: =IF(بيانات!A132="","",بيانات!A132) ->  | B133: =IF(A133="","",IF(A133=بيانات!A132,بيانات!B132)) ->  | C133: =IF(A133="","",VLOOKUP(A133,بيانات!$A$4:$C$11363,3,0)) ->  | D133: =IF(A133="","",SUMIFS(ورقة1!$G$4:$G$9994,ورقة1!$C$4:$C$9994,ورقة3!A133)) ->  | E133: =IF(A133="","",SUMIFS(ورقة1!$H$4:$H$9994,ورقة1!$C$4:$C$9994,ورقة3!A133)) ->  | F133: =IF(A133="","",C133+D133-E133) ->  | I133: =IF(F133="","",SUMIFS(بيانات!$E$4:$E$5218,بيانات!$A$4:$A$5218,بيانات!A132)+SUMIFS(ورقة1!$K$4:$K$9994,ورقة1!$C$4:$C$9994,ورقة3!A133)) ->  | J133: =IF(F133="","",SUMIFS(بيانات!$C$4:$C$1048576,اسم_الصنف,بيانات!A132)+SUMIFS(ورقة1!$G$4:$G$9994,ورقة1!$C$4:$C$9994,ورقة3!A133)) ->  | L133: =IF(F133="","",SUMIFS(ورقة1!$L$4:$L$9994,ورقة1!$C$4:$C$9994,ورقة3!A133)) ->  | M133: =IF(H133="","",SUMIFS(ورقة1!$H$4:$H$9994,ورقة1!$C$4:$C$9994,ورقة3!A133)) ->  | O133: =IF(OR(E133=0,E133=""),"",E133*N133) ->  | Q133: =IF(OR(E133=0,E133=""),"",E133*P133) -> 
A134: =IF(بيانات!A133="","",بيانات!A133) ->  | B134: =IF(A134="","",IF(A134=بيانات!A133,بيانات!B133)) ->  | C134: =IF(A134="","",VLOOKUP(A134,بيانات!$A$4:$C$11363,3,0)) ->  | D134: =IF(A134="","",SUMIFS(ورقة1!$G$4:$G$9994,ورقة1!$C$4:$C$9994,ورقة3!A134)) ->  | E134: =IF(A134="","",SUMIFS(ورقة1!$H$4:$H$9994,ورقة1!$C$4:$C$9994,ورقة3!A134)) ->  | H134: =IF(F134="","",F134*K134) ->  | I134: =IF(F134="","",SUMIFS(بيانات!$E$4:$E$5218,بيانات!$A$4:$A$5218,بيانات!A133)+SUMIFS(ورقة1!$K$4:$K$9994,ورقة1!$C$4:$C$9994,ورقة3!A134)) ->  | J134: =IF(F134="","",SUMIFS(بيانات!$C$4:$C$1048576,اسم_الصنف,بيانات!A133)+SUMIFS(ورقة1!$G$4:$G$9994,ورقة1!$C$4:$C$9994,ورقة3!A134)) ->  | K134: =IF(AND(I134="",J134=""),"",I134/J134) ->  | L134: =IF(F134="","",SUMIFS(ورقة1!$L$4:$L$9994,ورقة1!$C$4:$C$9994,ورقة3!A134)) ->  | M134: =IF(H134="","",SUMIFS(ورقة1!$H$4:$H$9994,ورقة1!$C$4:$C$9994,ورقة3!A134)) ->  | N134: =IF(OR(L134=0,L134="",M134=0,M134=""),"",L134/M134) ->  | P134: =IF(N134="","",N134-K134) -> 
A135: =IF(بيانات!A134="","",بيانات!A134) ->  | B135: =IF(A135="","",IF(A135=بيانات!A134,بيانات!B134)) ->  | C135: =IF(A135="","",VLOOKUP(A135,بيانات!$A$4:$C$11363,3,0)) ->  | D135: =IF(A135="","",SUMIFS(ورقة1!$G$4:$G$9994,ورقة1!$C$4:$C$9994,ورقة3!A135)) ->  | E135: =IF(A135="","",SUMIFS(ورقة1!$H$4:$H$9994,ورقة1!$C$4:$C$9994,ورقة3!A135)) ->  | I135: =IF(F135="","",SUMIFS(بيانات!$E$4:$E$5218,بيانات!$A$4:$A$5218,بيانات!A134)+SUMIFS(ورقة1!$K$4:$K$9994,ورقة1!$C$4:$C$9994,ورقة3!A135)) ->  | J135: =IF(F135="","",SUMIFS(بيانات!$C$4:$C$1048576,اسم_الصنف,بيانات!A134)+SUMIFS(ورقة1!$G$4:$G$9994,ورقة1!$C$4:$C$9994,ورقة3!A135)) ->  | L135: =IF(F135="","",SUMIFS(ورقة1!$L$4:$L$9994,ورقة1!$C$4:$C$9994,ورقة3!A135)) ->  | M135: =IF(H135="","",SUMIFS(ورقة1!$H$4:$H$9994,ورقة1!$C$4:$C$9994,ورقة3!A135)) -> 
A136: =IF(بيانات!A135="","",بيانات!A135) ->  | B136: =IF(A136="","",IF(A136=بيانات!A135,بيانات!B135)) ->  | C136: =IF(A136="","",VLOOKUP(A136,بيانات!$A$4:$C$11363,3,0)) ->  | D136: =IF(A136="","",SUMIFS(ورقة1!$G$4:$G$9994,ورقة1!$C$4:$C$9994,ورقة3!A136)) ->  | E136: =IF(A136="","",SUMIFS(ورقة1!$H$4:$H$9994,ورقة1!$C$4:$C$9994,ورقة3!A136)) ->  | I136: =IF(F136="","",SUMIFS(بيانات!$E$4:$E$5218,بيانات!$A$4:$A$5218,بيانات!A135)+SUMIFS(ورقة1!$K$4:$K$9994,ورقة1!$C$4:$C$9994,ورقة3!A136)) ->  | J136: =IF(F136="","",SUMIFS(بيانات!$C$4:$C$1048576,اسم_الصنف,بيانات!A135)+SUMIFS(ورقة1!$G$4:$G$9994,ورقة1!$C$4:$C$9994,ورقة3!A136)) ->  | L136: =IF(F136="","",SUMIFS(ورقة1!$L$4:$L$9994,ورقة1!$C$4:$C$9994,ورقة3!A136)) ->  | M136: =IF(H136="","",SUMIFS(ورقة1!$H$4:$H$9994,ورقة1!$C$4:$C$9994,ورقة3!A136)) -> 
A137: =IF(بيانات!A136="","",بيانات!A136) ->  | B137: =IF(A137="","",IF(A137=بيانات!A136,بيانات!B136)) ->  | C137: =IF(A137="","",VLOOKUP(A137,بيانات!$A$4:$C$11363,3,0)) ->  | D137: =IF(A137="","",SUMIFS(ورقة1!$G$4:$G$9994,ورقة1!$C$4:$C$9994,ورقة3!A137)) ->  | E137: =IF(A137="","",SUMIFS(ورقة1!$H$4:$H$9994,ورقة1!$C$4:$C$9994,ورقة3!A137)) ->  | I137: =IF(F137="","",SUMIFS(بيانات!$E$4:$E$5218,بيانات!$A$4:$A$5218,بيانات!A136)+SUMIFS(ورقة1!$K$4:$K$9994,ورقة1!$C$4:$C$9994,ورقة3!A137)) ->  | J137: =IF(F137="","",SUMIFS(بيانات!$C$4:$C$1048576,اسم_الصنف,بيانات!A136)+SUMIFS(ورقة1!$G$4:$G$9994,ورقة1!$C$4:$C$9994,ورقة3!A137)) ->  | L137: =IF(F137="","",SUMIFS(ورقة1!$L$4:$L$9994,ورقة1!$C$4:$C$9994,ورقة3!A137)) ->  | M137: =IF(H137="","",SUMIFS(ورقة1!$H$4:$H$9994,ورقة1!$C$4:$C$9994,ورقة3!A137)) -> 
A138: =IF(بيانات!A137="","",بيانات!A137) ->  | B138: =IF(A138="","",IF(A138=بيانات!A137,بيانات!B137)) ->  | C138: =IF(A138="","",VLOOKUP(A138,بيانات!$A$4:$C$11363,3,0)) ->  | D138: =IF(A138="","",SUMIFS(ورقة1!$G$4:$G$9994,ورقة1!$C$4:$C$9994,ورقة3!A138)) ->  | E138: =IF(A138="","",SUMIFS(ورقة1!$H$4:$H$9994,ورقة1!$C$4:$C$9994,ورقة3!A138)) ->  | I138: =IF(F138="","",SUMIFS(بيانات!$E$4:$E$5218,بيانات!$A$4:$A$5218,بيانات!A137)+SUMIFS(ورقة1!$K$4:$K$9994,ورقة1!$C$4:$C$9994,ورقة3!A138)) ->  | J138: =IF(F138="","",SUMIFS(بيانات!$C$4:$C$1048576,اسم_الصنف,بيانات!A137)+SUMIFS(ورقة1!$G$4:$G$9994,ورقة1!$C$4:$C$9994,ورقة3!A138)) ->  | L138: =IF(F138="","",SUMIFS(ورقة1!$L$4:$L$9994,ورقة1!$C$4:$C$9994,ورقة3!A138)) ->  | M138: =IF(H138="","",SUMIFS(ورقة1!$H$4:$H$9994,ورقة1!$C$4:$C$9994,ورقة3!A138)) -> 
A139: =IF(بيانات!A138="","",بيانات!A138) ->  | B139: =IF(A139="","",IF(A139=بيانات!A138,بيانات!B138)) ->  | C139: =IF(A139="","",VLOOKUP(A139,بيانات!$A$4:$C$11363,3,0)) ->  | D139: =IF(A139="","",SUMIFS(ورقة1!$G$4:$G$9994,ورقة1!$C$4:$C$9994,ورقة3!A139)) ->  | E139: =IF(A139="","",SUMIFS(ورقة1!$H$4:$H$9994,ورقة1!$C$4:$C$9994,ورقة3!A139)) ->  | I139: =IF(F139="","",SUMIFS(بيانات!$E$4:$E$5218,بيانات!$A$4:$A$5218,بيانات!A138)+SUMIFS(ورقة1!$K$4:$K$9994,ورقة1!$C$4:$C$9994,ورقة3!A139)) ->  | J139: =IF(F139="","",SUMIFS(بيانات!$C$4:$C$1048576,اسم_الصنف,بيانات!A138)+SUMIFS(ورقة1!$G$4:$G$9994,ورقة1!$C$4:$C$9994,ورقة3!A139)) ->  | L139: =IF(F139="","",SUMIFS(ورقة1!$L$4:$L$9994,ورقة1!$C$4:$C$9994,ورقة3!A139)) ->  | M139: =IF(H139="","",SUMIFS(ورقة1!$H$4:$H$9994,ورقة1!$C$4:$C$9994,ورقة3!A139)) -> 
A140: =IF(بيانات!A139="","",بيانات!A139) ->  | B140: =IF(A140="","",IF(A140=بيانات!A139,بيانات!B139)) ->  | C140: =IF(A140="","",VLOOKUP(A140,بيانات!$A$4:$C$11363,3,0)) ->  | D140: =IF(A140="","",SUMIFS(ورقة1!$G$4:$G$9994,ورقة1!$C$4:$C$9994,ورقة3!A140)) ->  | E140: =IF(A140="","",SUMIFS(ورقة1!$H$4:$H$9994,ورقة1!$C$4:$C$9994,ورقة3!A140)) ->  | I140: =IF(F140="","",SUMIFS(بيانات!$E$4:$E$5218,بيانات!$A$4:$A$5218,بيانات!A139)+SUMIFS(ورقة1!$K$4:$K$9994,ورقة1!$C$4:$C$9994,ورقة3!A140)) ->  | J140: =IF(F140="","",SUMIFS(بيانات!$C$4:$C$1048576,اسم_الصنف,بيانات!A139)+SUMIFS(ورقة1!$G$4:$G$9994,ورقة1!$C$4:$C$9994,ورقة3!A140)) ->  | L140: =IF(F140="","",SUMIFS(ورقة1!$L$4:$L$9994,ورقة1!$C$4:$C$9994,ورقة3!A140)) ->  | M140: =IF(H140="","",SUMIFS(ورقة1!$H$4:$H$9994,ورقة1!$C$4:$C$9994,ورقة3!A140)) -> 
A141: =IF(بيانات!A140="","",بيانات!A140) ->  | B141: =IF(A141="","",IF(A141=بيانات!A140,بيانات!B140)) ->  | C141: =IF(A141="","",VLOOKUP(A141,بيانات!$A$4:$C$11363,3,0)) ->  | D141: =IF(A141="","",SUMIFS(ورقة1!$G$4:$G$9994,ورقة1!$C$4:$C$9994,ورقة3!A141)) ->  | E141: =IF(A141="","",SUMIFS(ورقة1!$H$4:$H$9994,ورقة1!$C$4:$C$9994,ورقة3!A141)) ->  | I141: =IF(F141="","",SUMIFS(بيانات!$E$4:$E$5218,بيانات!$A$4:$A$5218,بيانات!A140)+SUMIFS(ورقة1!$K$4:$K$9994,ورقة1!$C$4:$C$9994,ورقة3!A141)) ->  | J141: =IF(F141="","",SUMIFS(بيانات!$C$4:$C$1048576,اسم_الصنف,بيانات!A140)+SUMIFS(ورقة1!$G$4:$G$9994,ورقة1!$C$4:$C$9994,ورقة3!A141)) ->  | L141: =IF(F141="","",SUMIFS(ورقة1!$L$4:$L$9994,ورقة1!$C$4:$C$9994,ورقة3!A141)) ->  | M141: =IF(H141="","",SUMIFS(ورقة1!$H$4:$H$9994,ورقة1!$C$4:$C$9994,ورقة3!A141)) -> 
A142: =IF(بيانات!A141="","",بيانات!A141) ->  | B142: =IF(A142="","",IF(A142=بيانات!A141,بيانات!B141)) ->  | C142: =IF(A142="","",VLOOKUP(A142,بيانات!$A$4:$C$11363,3,0)) ->  | D142: =IF(A142="","",SUMIFS(ورقة1!$G$4:$G$9994,ورقة1!$C$4:$C$9994,ورقة3!A142)) ->  | E142: =IF(A142="","",SUMIFS(ورقة1!$H$4:$H$9994,ورقة1!$C$4:$C$9994,ورقة3!A142)) ->  | I142: =IF(F142="","",SUMIFS(بيانات!$E$4:$E$5218,بيانات!$A$4:$A$5218,بيانات!A141)+SUMIFS(ورقة1!$K$4:$K$9994,ورقة1!$C$4:$C$9994,ورقة3!A142)) ->  | J142: =IF(F142="","",SUMIFS(بيانات!$C$4:$C$1048576,اسم_الصنف,بيانات!A141)+SUMIFS(ورقة1!$G$4:$G$9994,ورقة1!$C$4:$C$9994,ورقة3!A142)) ->  | L142: =IF(F142="","",SUMIFS(ورقة1!$L$4:$L$9994,ورقة1!$C$4:$C$9994,ورقة3!A142)) ->  | M142: =IF(H142="","",SUMIFS(ورقة1!$H$4:$H$9994,ورقة1!$C$4:$C$9994,ورقة3!A142)) -> 
A143: =IF(بيانات!A142="","",بيانات!A142) ->  | B143: =IF(A143="","",IF(A143=بيانات!A142,بيانات!B142)) ->  | C143: =IF(A143="","",VLOOKUP(A143,بيانات!$A$4:$C$11363,3,0)) ->  | D143: =IF(A143="","",SUMIFS(ورقة1!$G$4:$G$9994,ورقة1!$C$4:$C$9994,ورقة3!A143)) ->  | E143: =IF(A143="","",SUMIFS(ورقة1!$H$4:$H$9994,ورقة1!$C$4:$C$9994,ورقة3!A143)) ->  | I143: =IF(F143="","",SUMIFS(بيانات!$E$4:$E$5218,بيانات!$A$4:$A$5218,بيانات!A142)+SUMIFS(ورقة1!$K$4:$K$9994,ورقة1!$C$4:$C$9994,ورقة3!A143)) ->  | J143: =IF(F143="","",SUMIFS(بيانات!$C$4:$C$1048576,اسم_الصنف,بيانات!A142)+SUMIFS(ورقة1!$G$4:$G$9994,ورقة1!$C$4:$C$9994,ورقة3!A143)) ->  | L143: =IF(F143="","",SUMIFS(ورقة1!$L$4:$L$9994,ورقة1!$C$4:$C$9994,ورقة3!A143)) ->  | M143: =IF(H143="","",SUMIFS(ورقة1!$H$4:$H$9994,ورقة1!$C$4:$C$9994,ورقة3!A143)) -> 
A144: =IF(بيانات!A143="","",بيانات!A143) ->  | B144: =IF(A144="","",IF(A144=بيانات!A143,بيانات!B143)) ->  | C144: =IF(A144="","",VLOOKUP(A144,بيانات!$A$4:$C$11363,3,0)) ->  | D144: =IF(A144="","",SUMIFS(ورقة1!$G$4:$G$9994,ورقة1!$C$4:$C$9994,ورقة3!A144)) ->  | E144: =IF(A144="","",SUMIFS(ورقة1!$H$4:$H$9994,ورقة1!$C$4:$C$9994,ورقة3!A144)) ->  | I144: =IF(F144="","",SUMIFS(بيانات!$E$4:$E$5218,بيانات!$A$4:$A$5218,بيانات!A143)+SUMIFS(ورقة1!$K$4:$K$9994,ورقة1!$C$4:$C$9994,ورقة3!A144)) ->  | J144: =IF(F144="","",SUMIFS(بيانات!$C$4:$C$1048576,اسم_الصنف,بيانات!A143)+SUMIFS(ورقة1!$G$4:$G$9994,ورقة1!$C$4:$C$9994,ورقة3!A144)) ->  | L144: =IF(F144="","",SUMIFS(ورقة1!$L$4:$L$9994,ورقة1!$C$4:$C$9994,ورقة3!A144)) ->  | M144: =IF(H144="","",SUMIFS(ورقة1!$H$4:$H$9994,ورقة1!$C$4:$C$9994,ورقة3!A144)) -> 
A145: =IF(بيانات!A144="","",بيانات!A144) ->  | B145: =IF(A145="","",IF(A145=بيانات!A144,بيانات!B144)) ->  | C145: =IF(A145="","",VLOOKUP(A145,بيانات!$A$4:$C$11363,3,0)) ->  | D145: =IF(A145="","",SUMIFS(ورقة1!$G$4:$G$9994,ورقة1!$C$4:$C$9994,ورقة3!A145)) ->  | E145: =IF(A145="","",SUMIFS(ورقة1!$H$4:$H$9994,ورقة1!$C$4:$C$9994,ورقة3!A145)) ->  | I145: =IF(F145="","",SUMIFS(بيانات!$E$4:$E$5218,بيانات!$A$4:$A$5218,بيانات!A144)+SUMIFS(ورقة1!$K$4:$K$9994,ورقة1!$C$4:$C$9994,ورقة3!A145)) ->  | J145: =IF(F145="","",SUMIFS(بيانات!$C$4:$C$1048576,اسم_الصنف,بيانات!A144)+SUMIFS(ورقة1!$G$4:$G$9994,ورقة1!$C$4:$C$9994,ورقة3!A145)) ->  | L145: =IF(F145="","",SUMIFS(ورقة1!$L$4:$L$9994,ورقة1!$C$4:$C$9994,ورقة3!A145)) ->  | M145: =IF(H145="","",SUMIFS(ورقة1!$H$4:$H$9994,ورقة1!$C$4:$C$9994,ورقة3!A145)) -> 
A146: =IF(بيانات!A145="","",بيانات!A145) ->  | B146: =IF(A146="","",IF(A146=بيانات!A145,بيانات!B145)) ->  | C146: =IF(A146="","",VLOOKUP(A146,بيانات!$A$4:$C$11363,3,0)) ->  | D146: =IF(A146="","",SUMIFS(ورقة1!$G$4:$G$9994,ورقة1!$C$4:$C$9994,ورقة3!A146)) ->  | E146: =IF(A146="","",SUMIFS(ورقة1!$H$4:$H$9994,ورقة1!$C$4:$C$9994,ورقة3!A146)) ->  | I146: =IF(F146="","",SUMIFS(بيانات!$E$4:$E$5218,بيانات!$A$4:$A$5218,بيانات!A145)+SUMIFS(ورقة1!$K$4:$K$9994,ورقة1!$C$4:$C$9994,ورقة3!A146)) ->  | J146: =IF(F146="","",SUMIFS(بيانات!$C$4:$C$1048576,اسم_الصنف,بيانات!A145)+SUMIFS(ورقة1!$G$4:$G$9994,ورقة1!$C$4:$C$9994,ورقة3!A146)) ->  | L146: =IF(F146="","",SUMIFS(ورقة1!$L$4:$L$9994,ورقة1!$C$4:$C$9994,ورقة3!A146)) ->  | M146: =IF(H146="","",SUMIFS(ورقة1!$H$4:$H$9994,ورقة1!$C$4:$C$9994,ورقة3!A146)) -> 
A147: =IF(بيانات!A146="","",بيانات!A146) ->  | B147: =IF(A147="","",IF(A147=بيانات!A146,بيانات!B146)) ->  | C147: =IF(A147="","",VLOOKUP(A147,بيانات!$A$4:$C$11363,3,0)) ->  | D147: =IF(A147="","",SUMIFS(ورقة1!$G$4:$G$9994,ورقة1!$C$4:$C$9994,ورقة3!A147)) ->  | E147: =IF(A147="","",SUMIFS(ورقة1!$H$4:$H$9994,ورقة1!$C$4:$C$9994,ورقة3!A147)) ->  | I147: =IF(F147="","",SUMIFS(بيانات!$E$4:$E$5218,بيانات!$A$4:$A$5218,بيانات!A146)+SUMIFS(ورقة1!$K$4:$K$9994,ورقة1!$C$4:$C$9994,ورقة3!A147)) ->  | J147: =IF(F147="","",SUMIFS(بيانات!$C$4:$C$1048576,اسم_الصنف,بيانات!A146)+SUMIFS(ورقة1!$G$4:$G$9994,ورقة1!$C$4:$C$9994,ورقة3!A147)) ->  | L147: =IF(F147="","",SUMIFS(ورقة1!$L$4:$L$9994,ورقة1!$C$4:$C$9994,ورقة3!A147)) ->  | M147: =IF(H147="","",SUMIFS(ورقة1!$H$4:$H$9994,ورقة1!$C$4:$C$9994,ورقة3!A147)) -> 
A148: =IF(بيانات!A147="","",بيانات!A147) ->  | B148: =IF(A148="","",IF(A148=بيانات!A147,بيانات!B147)) ->  | C148: =IF(A148="","",VLOOKUP(A148,بيانات!$A$4:$C$11363,3,0)) ->  | D148: =IF(A148="","",SUMIFS(ورقة1!$G$4:$G$9994,ورقة1!$C$4:$C$9994,ورقة3!A148)) ->  | E148: =IF(A148="","",SUMIFS(ورقة1!$H$4:$H$9994,ورقة1!$C$4:$C$9994,ورقة3!A148)) ->  | I148: =IF(F148="","",SUMIFS(بيانات!$E$4:$E$5218,بيانات!$A$4:$A$5218,بيانات!A147)+SUMIFS(ورقة1!$K$4:$K$9994,ورقة1!$C$4:$C$9994,ورقة3!A148)) ->  | J148: =IF(F148="","",SUMIFS(بيانات!$C$4:$C$1048576,اسم_الصنف,بيانات!A147)+SUMIFS(ورقة1!$G$4:$G$9994,ورقة1!$C$4:$C$9994,ورقة3!A148)) ->  | L148: =IF(F148="","",SUMIFS(ورقة1!$L$4:$L$9994,ورقة1!$C$4:$C$9994,ورقة3!A148)) ->  | M148: =IF(H148="","",SUMIFS(ورقة1!$H$4:$H$9994,ورقة1!$C$4:$C$9994,ورقة3!A148)) -> 
A149: =IF(بيانات!A148="","",بيانات!A148) ->  | B149: =IF(A149="","",IF(A149=بيانات!A148,بيانات!B148)) ->  | C149: =IF(A149="","",VLOOKUP(A149,بيانات!$A$4:$C$11363,3,0)) ->  | D149: =IF(A149="","",SUMIFS(ورقة1!$G$4:$G$9994,ورقة1!$C$4:$C$9994,ورقة3!A149)) ->  | E149: =IF(A149="","",SUMIFS(ورقة1!$H$4:$H$9994,ورقة1!$C$4:$C$9994,ورقة3!A149)) ->  | I149: =IF(F149="","",SUMIFS(بيانات!$E$4:$E$5218,بيانات!$A$4:$A$5218,بيانات!A148)+SUMIFS(ورقة1!$K$4:$K$9994,ورقة1!$C$4:$C$9994,ورقة3!A149)) ->  | J149: =IF(F149="","",SUMIFS(بيانات!$C$4:$C$1048576,اسم_الصنف,بيانات!A148)+SUMIFS(ورقة1!$G$4:$G$9994,ورقة1!$C$4:$C$9994,ورقة3!A149)) ->  | L149: =IF(F149="","",SUMIFS(ورقة1!$L$4:$L$9994,ورقة1!$C$4:$C$9994,ورقة3!A149)) ->  | M149: =IF(H149="","",SUMIFS(ورقة1!$H$4:$H$9994,ورقة1!$C$4:$C$9994,ورقة3!A149)) -> 
A150: =IF(بيانات!A149="","",بيانات!A149) ->  | B150: =IF(A150="","",IF(A150=بيانات!A149,بيانات!B149)) ->  | C150: =IF(A150="","",VLOOKUP(A150,بيانات!$A$4:$C$11363,3,0)) ->  | D150: =IF(A150="","",SUMIFS(ورقة1!$G$4:$G$9994,ورقة1!$C$4:$C$9994,ورقة3!A150)) ->  | E150: =IF(A150="","",SUMIFS(ورقة1!$H$4:$H$9994,ورقة1!$C$4:$C$9994,ورقة3!A150)) ->  | I150: =IF(F150="","",SUMIFS(بيانات!$E$4:$E$5218,بيانات!$A$4:$A$5218,بيانات!A149)+SUMIFS(ورقة1!$K$4:$K$9994,ورقة1!$C$4:$C$9994,ورقة3!A150)) ->  | J150: =IF(F150="","",SUMIFS(بيانات!$C$4:$C$1048576,اسم_الصنف,بيانات!A149)+SUMIFS(ورقة1!$G$4:$G$9994,ورقة1!$C$4:$C$9994,ورقة3!A150)) ->  | L150: =IF(F150="","",SUMIFS(ورقة1!$L$4:$L$9994,ورقة1!$C$4:$C$9994,ورقة3!A150)) ->  | M150: =IF(H150="","",SUMIFS(ورقة1!$H$4:$H$9994,ورقة1!$C$4:$C$9994,ورقة3!A150)) -> 
A151: =IF(بيانات!A150="","",بيانات!A150) ->  | B151: =IF(A151="","",IF(A151=بيانات!A150,بيانات!B150)) ->  | C151: =IF(A151="","",VLOOKUP(A151,بيانات!$A$4:$C$11363,3,0)) ->  | D151: =IF(A151="","",SUMIFS(ورقة1!$G$4:$G$9994,ورقة1!$C$4:$C$9994,ورقة3!A151)) ->  | E151: =IF(A151="","",SUMIFS(ورقة1!$H$4:$H$9994,ورقة1!$C$4:$C$9994,ورقة3!A151)) ->  | I151: =IF(F151="","",SUMIFS(بيانات!$E$4:$E$5218,بيانات!$A$4:$A$5218,بيانات!A150)+SUMIFS(ورقة1!$K$4:$K$9994,ورقة1!$C$4:$C$9994,ورقة3!A151)) ->  | J151: =IF(F151="","",SUMIFS(بيانات!$C$4:$C$1048576,اسم_الصنف,بيانات!A150)+SUMIFS(ورقة1!$G$4:$G$9994,ورقة1!$C$4:$C$9994,ورقة3!A151)) ->  | L151: =IF(F151="","",SUMIFS(ورقة1!$L$4:$L$9994,ورقة1!$C$4:$C$9994,ورقة3!A151)) ->  | M151: =IF(H151="","",SUMIFS(ورقة1!$H$4:$H$9994,ورقة1!$C$4:$C$9994,ورقة3!A151)) -> 
A152: =IF(بيانات!A151="","",بيانات!A151) ->  | B152: =IF(A152="","",IF(A152=بيانات!A151,بيانات!B151)) ->  | C152: =IF(A152="","",VLOOKUP(A152,بيانات!$A$4:$C$11363,3,0)) ->  | D152: =IF(A152="","",SUMIFS(ورقة1!$G$4:$G$9994,ورقة1!$C$4:$C$9994,ورقة3!A152)) ->  | E152: =IF(A152="","",SUMIFS(ورقة1!$H$4:$H$9994,ورقة1!$C$4:$C$9994,ورقة3!A152)) ->  | I152: =IF(F152="","",SUMIFS(بيانات!$E$4:$E$5218,بيانات!$A$4:$A$5218,بيانات!A151)+SUMIFS(ورقة1!$K$4:$K$9994,ورقة1!$C$4:$C$9994,ورقة3!A152)) ->  | J152: =IF(F152="","",SUMIFS(بيانات!$C$4:$C$1048576,اسم_الصنف,بيانات!A151)+SUMIFS(ورقة1!$G$4:$G$9994,ورقة1!$C$4:$C$9994,ورقة3!A152)) ->  | L152: =IF(F152="","",SUMIFS(ورقة1!$L$4:$L$9994,ورقة1!$C$4:$C$9994,ورقة3!A152)) ->  | M152: =IF(H152="","",SUMIFS(ورقة1!$H$4:$H$9994,ورقة1!$C$4:$C$9994,ورقة3!A152)) -> 
A153: =IF(بيانات!A152="","",بيانات!A152) ->  | B153: =IF(A153="","",IF(A153=بيانات!A152,بيانات!B152)) ->  | C153: =IF(A153="","",VLOOKUP(A153,بيانات!$A$4:$C$11363,3,0)) ->  | D153: =IF(A153="","",SUMIFS(ورقة1!$G$4:$G$9994,ورقة1!$C$4:$C$9994,ورقة3!A153)) ->  | E153: =IF(A153="","",SUMIFS(ورقة1!$H$4:$H$9994,ورقة1!$C$4:$C$9994,ورقة3!A153)) ->  | I153: =IF(F153="","",SUMIFS(بيانات!$E$4:$E$5218,بيانات!$A$4:$A$5218,بيانات!A152)+SUMIFS(ورقة1!$K$4:$K$9994,ورقة1!$C$4:$C$9994,ورقة3!A153)) ->  | J153: =IF(F153="","",SUMIFS(بيانات!$C$4:$C$1048576,اسم_الصنف,بيانات!A152)+SUMIFS(ورقة1!$G$4:$G$9994,ورقة1!$C$4:$C$9994,ورقة3!A153)) ->  | L153: =IF(F153="","",SUMIFS(ورقة1!$L$4:$L$9994,ورقة1!$C$4:$C$9994,ورقة3!A153)) ->  | M153: =IF(H153="","",SUMIFS(ورقة1!$H$4:$H$9994,ورقة1!$C$4:$C$9994,ورقة3!A153)) -> 
A154: =IF(بيانات!A153="","",بيانات!A153) ->  | B154: =IF(A154="","",IF(A154=بيانات!A153,بيانات!B153)) ->  | C154: =IF(A154="","",VLOOKUP(A154,بيانات!$A$4:$C$11363,3,0)) ->  | D154: =IF(A154="","",SUMIFS(ورقة1!$G$4:$G$9994,ورقة1!$C$4:$C$9994,ورقة3!A154)) ->  | E154: =IF(A154="","",SUMIFS(ورقة1!$H$4:$H$9994,ورقة1!$C$4:$C$9994,ورقة3!A154)) ->  | I154: =IF(F154="","",SUMIFS(بيانات!$E$4:$E$5218,بيانات!$A$4:$A$5218,بيانات!A153)+SUMIFS(ورقة1!$K$4:$K$9994,ورقة1!$C$4:$C$9994,ورقة3!A154)) ->  | J154: =IF(F154="","",SUMIFS(بيانات!$C$4:$C$1048576,اسم_الصنف,بيانات!A153)+SUMIFS(ورقة1!$G$4:$G$9994,ورقة1!$C$4:$C$9994,ورقة3!A154)) ->  | L154: =IF(F154="","",SUMIFS(ورقة1!$L$4:$L$9994,ورقة1!$C$4:$C$9994,ورقة3!A154)) ->  | M154: =IF(H154="","",SUMIFS(ورقة1!$H$4:$H$9994,ورقة1!$C$4:$C$9994,ورقة3!A154)) -> 
A155: =IF(بيانات!A154="","",بيانات!A154) ->  | B155: =IF(A155="","",IF(A155=بيانات!A154,بيانات!B154)) ->  | C155: =IF(A155="","",VLOOKUP(A155,بيانات!$A$4:$C$11363,3,0)) ->  | D155: =IF(A155="","",SUMIFS(ورقة1!$G$4:$G$9994,ورقة1!$C$4:$C$9994,ورقة3!A155)) ->  | E155: =IF(A155="","",SUMIFS(ورقة1!$H$4:$H$9994,ورقة1!$C$4:$C$9994,ورقة3!A155)) ->  | I155: =IF(F155="","",SUMIFS(بيانات!$E$4:$E$5218,بيانات!$A$4:$A$5218,بيانات!A154)+SUMIFS(ورقة1!$K$4:$K$9994,ورقة1!$C$4:$C$9994,ورقة3!A155)) ->  | J155: =IF(F155="","",SUMIFS(بيانات!$C$4:$C$1048576,اسم_الصنف,بيانات!A154)+SUMIFS(ورقة1!$G$4:$G$9994,ورقة1!$C$4:$C$9994,ورقة3!A155)) ->  | L155: =IF(F155="","",SUMIFS(ورقة1!$L$4:$L$9994,ورقة1!$C$4:$C$9994,ورقة3!A155)) ->  | M155: =IF(H155="","",SUMIFS(ورقة1!$H$4:$H$9994,ورقة1!$C$4:$C$9994,ورقة3!A155)) -> 
A156: =IF(بيانات!A155="","",بيانات!A155) ->  | B156: =IF(A156="","",IF(A156=بيانات!A155,بيانات!B155)) ->  | C156: =IF(A156="","",VLOOKUP(A156,بيانات!$A$4:$C$11363,3,0)) ->  | D156: =IF(A156="","",SUMIFS(ورقة1!$G$4:$G$9994,ورقة1!$C$4:$C$9994,ورقة3!A156)) ->  | E156: =IF(A156="","",SUMIFS(ورقة1!$H$4:$H$9994,ورقة1!$C$4:$C$9994,ورقة3!A156)) ->  | I156: =IF(F156="","",SUMIFS(بيانات!$E$4:$E$5218,بيانات!$A$4:$A$5218,بيانات!A155)+SUMIFS(ورقة1!$K$4:$K$9994,ورقة1!$C$4:$C$9994,ورقة3!A156)) ->  | J156: =IF(F156="","",SUMIFS(بيانات!$C$4:$C$1048576,اسم_الصنف,بيانات!A155)+SUMIFS(ورقة1!$G$4:$G$9994,ورقة1!$C$4:$C$9994,ورقة3!A156)) ->  | L156: =IF(F156="","",SUMIFS(ورقة1!$L$4:$L$9994,ورقة1!$C$4:$C$9994,ورقة3!A156)) ->  | M156: =IF(H156="","",SUMIFS(ورقة1!$H$4:$H$9994,ورقة1!$C$4:$C$9994,ورقة3!A156)) -> 
A157: =IF(بيانات!A156="","",بيانات!A156) ->  | B157: =IF(A157="","",IF(A157=بيانات!A156,بيانات!B156)) ->  | C157: =IF(A157="","",VLOOKUP(A157,بيانات!$A$4:$C$11363,3,0)) ->  | D157: =IF(A157="","",SUMIFS(ورقة1!$G$4:$G$9994,ورقة1!$C$4:$C$9994,ورقة3!A157)) ->  | E157: =IF(A157="","",SUMIFS(ورقة1!$H$4:$H$9994,ورقة1!$C$4:$C$9994,ورقة3!A157)) ->  | I157: =IF(F157="","",SUMIFS(بيانات!$E$4:$E$5218,بيانات!$A$4:$A$5218,بيانات!A156)+SUMIFS(ورقة1!$K$4:$K$9994,ورقة1!$C$4:$C$9994,ورقة3!A157)) ->  | J157: =IF(F157="","",SUMIFS(بيانات!$C$4:$C$1048576,اسم_الصنف,بيانات!A156)+SUMIFS(ورقة1!$G$4:$G$9994,ورقة1!$C$4:$C$9994,ورقة3!A157)) ->  | L157: =IF(F157="","",SUMIFS(ورقة1!$L$4:$L$9994,ورقة1!$C$4:$C$9994,ورقة3!A157)) ->  | M157: =IF(H157="","",SUMIFS(ورقة1!$H$4:$H$9994,ورقة1!$C$4:$C$9994,ورقة3!A157)) -> 
A158: =IF(بيانات!A157="","",بيانات!A157) ->  | B158: =IF(A158="","",IF(A158=بيانات!A157,بيانات!B157)) ->  | C158: =IF(A158="","",VLOOKUP(A158,بيانات!$A$4:$C$11363,3,0)) ->  | D158: =IF(A158="","",SUMIFS(ورقة1!$G$4:$G$9994,ورقة1!$C$4:$C$9994,ورقة3!A158)) ->  | E158: =IF(A158="","",SUMIFS(ورقة1!$H$4:$H$9994,ورقة1!$C$4:$C$9994,ورقة3!A158)) ->  | I158: =IF(F158="","",SUMIFS(بيانات!$E$4:$E$5218,بيانات!$A$4:$A$5218,بيانات!A157)+SUMIFS(ورقة1!$K$4:$K$9994,ورقة1!$C$4:$C$9994,ورقة3!A158)) ->  | J158: =IF(F158="","",SUMIFS(بيانات!$C$4:$C$1048576,اسم_الصنف,بيانات!A157)+SUMIFS(ورقة1!$G$4:$G$9994,ورقة1!$C$4:$C$9994,ورقة3!A158)) ->  | L158: =IF(F158="","",SUMIFS(ورقة1!$L$4:$L$9994,ورقة1!$C$4:$C$9994,ورقة3!A158)) ->  | M158: =IF(H158="","",SUMIFS(ورقة1!$H$4:$H$9994,ورقة1!$C$4:$C$9994,ورقة3!A158)) -> 
A159: =IF(بيانات!A158="","",بيانات!A158) ->  | B159: =IF(A159="","",IF(A159=بيانات!A158,بيانات!B158)) ->  | C159: =IF(A159="","",VLOOKUP(A159,بيانات!$A$4:$C$11363,3,0)) ->  | D159: =IF(A159="","",SUMIFS(ورقة1!$G$4:$G$9994,ورقة1!$C$4:$C$9994,ورقة3!A159)) ->  | E159: =IF(A159="","",SUMIFS(ورقة1!$H$4:$H$9994,ورقة1!$C$4:$C$9994,ورقة3!A159)) ->  | I159: =IF(F159="","",SUMIFS(بيانات!$E$4:$E$5218,بيانات!$A$4:$A$5218,بيانات!A158)+SUMIFS(ورقة1!$K$4:$K$9994,ورقة1!$C$4:$C$9994,ورقة3!A159)) ->  | J159: =IF(F159="","",SUMIFS(بيانات!$C$4:$C$1048576,اسم_الصنف,بيانات!A158)+SUMIFS(ورقة1!$G$4:$G$9994,ورقة1!$C$4:$C$9994,ورقة3!A159)) ->  | L159: =IF(F159="","",SUMIFS(ورقة1!$L$4:$L$9994,ورقة1!$C$4:$C$9994,ورقة3!A159)) ->  | M159: =IF(H159="","",SUMIFS(ورقة1!$H$4:$H$9994,ورقة1!$C$4:$C$9994,ورقة3!A159)) -> 
A160: =IF(بيانات!A159="","",بيانات!A159) ->  | B160: =IF(A160="","",IF(A160=بيانات!A159,بيانات!B159)) ->  | C160: =IF(A160="","",VLOOKUP(A160,بيانات!$A$4:$C$11363,3,0)) ->  | D160: =IF(A160="","",SUMIFS(ورقة1!$G$4:$G$9994,ورقة1!$C$4:$C$9994,ورقة3!A160)) ->  | E160: =IF(A160="","",SUMIFS(ورقة1!$H$4:$H$9994,ورقة1!$C$4:$C$9994,ورقة3!A160)) ->  | I160: =IF(F160="","",SUMIFS(بيانات!$E$4:$E$5218,بيانات!$A$4:$A$5218,بيانات!A159)+SUMIFS(ورقة1!$K$4:$K$9994,ورقة1!$C$4:$C$9994,ورقة3!A160)) ->  | J160: =IF(F160="","",SUMIFS(بيانات!$C$4:$C$1048576,اسم_الصنف,بيانات!A159)+SUMIFS(ورقة1!$G$4:$G$9994,ورقة1!$C$4:$C$9994,ورقة3!A160)) ->  | L160: =IF(F160="","",SUMIFS(ورقة1!$L$4:$L$9994,ورقة1!$C$4:$C$9994,ورقة3!A160)) ->  | M160: =IF(H160="","",SUMIFS(ورقة1!$H$4:$H$9994,ورقة1!$C$4:$C$9994,ورقة3!A160)) -> 
A161: =IF(بيانات!A160="","",بيانات!A160) ->  | B161: =IF(A161="","",IF(A161=بيانات!A160,بيانات!B160)) ->  | C161: =IF(A161="","",VLOOKUP(A161,بيانات!$A$4:$C$11363,3,0)) ->  | D161: =IF(A161="","",SUMIFS(ورقة1!$G$4:$G$9994,ورقة1!$C$4:$C$9994,ورقة3!A161)) ->  | E161: =IF(A161="","",SUMIFS(ورقة1!$H$4:$H$9994,ورقة1!$C$4:$C$9994,ورقة3!A161)) ->  | I161: =IF(F161="","",SUMIFS(بيانات!$E$4:$E$5218,بيانات!$A$4:$A$5218,بيانات!A160)+SUMIFS(ورقة1!$K$4:$K$9994,ورقة1!$C$4:$C$9994,ورقة3!A161)) ->  | J161: =IF(F161="","",SUMIFS(بيانات!$C$4:$C$1048576,اسم_الصنف,بيانات!A160)+SUMIFS(ورقة1!$G$4:$G$9994,ورقة1!$C$4:$C$9994,ورقة3!A161)) ->  | L161: =IF(F161="","",SUMIFS(ورقة1!$L$4:$L$9994,ورقة1!$C$4:$C$9994,ورقة3!A161)) ->  | M161: =IF(H161="","",SUMIFS(ورقة1!$H$4:$H$9994,ورقة1!$C$4:$C$9994,ورقة3!A161)) -> 
A162: =IF(بيانات!A161="","",بيانات!A161) ->  | B162: =IF(A162="","",IF(A162=بيانات!A161,بيانات!B161)) ->  | C162: =IF(A162="","",VLOOKUP(A162,بيانات!$A$4:$C$11363,3,0)) ->  | D162: =IF(A162="","",SUMIFS(ورقة1!$G$4:$G$9994,ورقة1!$C$4:$C$9994,ورقة3!A162)) ->  | E162: =IF(A162="","",SUMIFS(ورقة1!$H$4:$H$9994,ورقة1!$C$4:$C$9994,ورقة3!A162)) ->  | I162: =IF(F162="","",SUMIFS(بيانات!$E$4:$E$5218,بيانات!$A$4:$A$5218,بيانات!A161)+SUMIFS(ورقة1!$K$4:$K$9994,ورقة1!$C$4:$C$9994,ورقة3!A162)) ->  | J162: =IF(F162="","",SUMIFS(بيانات!$C$4:$C$1048576,اسم_الصنف,بيانات!A161)+SUMIFS(ورقة1!$G$4:$G$9994,ورقة1!$C$4:$C$9994,ورقة3!A162)) ->  | L162: =IF(F162="","",SUMIFS(ورقة1!$L$4:$L$9994,ورقة1!$C$4:$C$9994,ورقة3!A162)) ->  | M162: =IF(H162="","",SUMIFS(ورقة1!$H$4:$H$9994,ورقة1!$C$4:$C$9994,ورقة3!A162)) -> 
A163: =IF(بيانات!A162="","",بيانات!A162) ->  | B163: =IF(A163="","",IF(A163=بيانات!A162,بيانات!B162)) ->  | C163: =IF(A163="","",VLOOKUP(A163,بيانات!$A$4:$C$11363,3,0)) ->  | D163: =IF(A163="","",SUMIFS(ورقة1!$G$4:$G$9994,ورقة1!$C$4:$C$9994,ورقة3!A163)) ->  | E163: =IF(A163="","",SUMIFS(ورقة1!$H$4:$H$9994,ورقة1!$C$4:$C$9994,ورقة3!A163)) ->  | I163: =IF(F163="","",SUMIFS(بيانات!$E$4:$E$5218,بيانات!$A$4:$A$5218,بيانات!A162)+SUMIFS(ورقة1!$K$4:$K$9994,ورقة1!$C$4:$C$9994,ورقة3!A163)) ->  | J163: =IF(F163="","",SUMIFS(بيانات!$C$4:$C$1048576,اسم_الصنف,بيانات!A162)+SUMIFS(ورقة1!$G$4:$G$9994,ورقة1!$C$4:$C$9994,ورقة3!A163)) ->  | L163: =IF(F163="","",SUMIFS(ورقة1!$L$4:$L$9994,ورقة1!$C$4:$C$9994,ورقة3!A163)) ->  | M163: =IF(H163="","",SUMIFS(ورقة1!$H$4:$H$9994,ورقة1!$C$4:$C$9994,ورقة3!A163)) -> 
A164: =IF(بيانات!A163="","",بيانات!A163) ->  | B164: =IF(A164="","",IF(A164=بيانات!A163,بيانات!B163)) ->  | C164: =IF(A164="","",VLOOKUP(A164,بيانات!$A$4:$C$11363,3,0)) ->  | D164: =IF(A164="","",SUMIFS(ورقة1!$G$4:$G$9994,ورقة1!$C$4:$C$9994,ورقة3!A164)) ->  | E164: =IF(A164="","",SUMIFS(ورقة1!$H$4:$H$9994,ورقة1!$C$4:$C$9994,ورقة3!A164)) ->  | I164: =IF(F164="","",SUMIFS(بيانات!$E$4:$E$5218,بيانات!$A$4:$A$5218,بيانات!A163)+SUMIFS(ورقة1!$K$4:$K$9994,ورقة1!$C$4:$C$9994,ورقة3!A164)) ->  | J164: =IF(F164="","",SUMIFS(بيانات!$C$4:$C$1048576,اسم_الصنف,بيانات!A163)+SUMIFS(ورقة1!$G$4:$G$9994,ورقة1!$C$4:$C$9994,ورقة3!A164)) ->  | L164: =IF(F164="","",SUMIFS(ورقة1!$L$4:$L$9994,ورقة1!$C$4:$C$9994,ورقة3!A164)) ->  | M164: =IF(H164="","",SUMIFS(ورقة1!$H$4:$H$9994,ورقة1!$C$4:$C$9994,ورقة3!A164)) -> 
A165: =IF(بيانات!A164="","",بيانات!A164) ->  | B165: =IF(A165="","",IF(A165=بيانات!A164,بيانات!B164)) ->  | C165: =IF(A165="","",VLOOKUP(A165,بيانات!$A$4:$C$11363,3,0)) ->  | D165: =IF(A165="","",SUMIFS(ورقة1!$G$4:$G$9994,ورقة1!$C$4:$C$9994,ورقة3!A165)) ->  | E165: =IF(A165="","",SUMIFS(ورقة1!$H$4:$H$9994,ورقة1!$C$4:$C$9994,ورقة3!A165)) ->  | I165: =IF(F165="","",SUMIFS(بيانات!$E$4:$E$5218,بيانات!$A$4:$A$5218,بيانات!A164)+SUMIFS(ورقة1!$K$4:$K$9994,ورقة1!$C$4:$C$9994,ورقة3!A165)) ->  | J165: =IF(F165="","",SUMIFS(بيانات!$C$4:$C$1048576,اسم_الصنف,بيانات!A164)+SUMIFS(ورقة1!$G$4:$G$9994,ورقة1!$C$4:$C$9994,ورقة3!A165)) ->  | L165: =IF(F165="","",SUMIFS(ورقة1!$L$4:$L$9994,ورقة1!$C$4:$C$9994,ورقة3!A165)) ->  | M165: =IF(H165="","",SUMIFS(ورقة1!$H$4:$H$9994,ورقة1!$C$4:$C$9994,ورقة3!A165)) -> 
A166: =IF(بيانات!A165="","",بيانات!A165) ->  | B166: =IF(A166="","",IF(A166=بيانات!A165,بيانات!B165)) ->  | C166: =IF(A166="","",VLOOKUP(A166,بيانات!$A$4:$C$11363,3,0)) ->  | D166: =IF(A166="","",SUMIFS(ورقة1!$G$4:$G$9994,ورقة1!$C$4:$C$9994,ورقة3!A166)) ->  | E166: =IF(A166="","",SUMIFS(ورقة1!$H$4:$H$9994,ورقة1!$C$4:$C$9994,ورقة3!A166)) ->  | I166: =IF(F166="","",SUMIFS(بيانات!$E$4:$E$5218,بيانات!$A$4:$A$5218,بيانات!A165)+SUMIFS(ورقة1!$K$4:$K$9994,ورقة1!$C$4:$C$9994,ورقة3!A166)) ->  | J166: =IF(F166="","",SUMIFS(بيانات!$C$4:$C$1048576,اسم_الصنف,بيانات!A165)+SUMIFS(ورقة1!$G$4:$G$9994,ورقة1!$C$4:$C$9994,ورقة3!A166)) ->  | L166: =IF(F166="","",SUMIFS(ورقة1!$L$4:$L$9994,ورقة1!$C$4:$C$9994,ورقة3!A166)) ->  | M166: =IF(H166="","",SUMIFS(ورقة1!$H$4:$H$9994,ورقة1!$C$4:$C$9994,ورقة3!A166)) -> 
A167: =IF(بيانات!A166="","",بيانات!A166) ->  | B167: =IF(A167="","",IF(A167=بيانات!A166,بيانات!B166)) ->  | C167: =IF(A167="","",VLOOKUP(A167,بيانات!$A$4:$C$11363,3,0)) ->  | D167: =IF(A167="","",SUMIFS(ورقة1!$G$4:$G$9994,ورقة1!$C$4:$C$9994,ورقة3!A167)) ->  | E167: =IF(A167="","",SUMIFS(ورقة1!$H$4:$H$9994,ورقة1!$C$4:$C$9994,ورقة3!A167)) ->  | I167: =IF(F167="","",SUMIFS(بيانات!$E$4:$E$5218,بيانات!$A$4:$A$5218,بيانات!A166)+SUMIFS(ورقة1!$K$4:$K$9994,ورقة1!$C$4:$C$9994,ورقة3!A167)) ->  | J167: =IF(F167="","",SUMIFS(بيانات!$C$4:$C$1048576,اسم_الصنف,بيانات!A166)+SUMIFS(ورقة1!$G$4:$G$9994,ورقة1!$C$4:$C$9994,ورقة3!A167)) ->  | L167: =IF(F167="","",SUMIFS(ورقة1!$L$4:$L$9994,ورقة1!$C$4:$C$9994,ورقة3!A167)) ->  | M167: =IF(H167="","",SUMIFS(ورقة1!$H$4:$H$9994,ورقة1!$C$4:$C$9994,ورقة3!A167)) -> 
A168: =IF(بيانات!A167="","",بيانات!A167) ->  | B168: =IF(A168="","",IF(A168=بيانات!A167,بيانات!B167)) ->  | C168: =IF(A168="","",VLOOKUP(A168,بيانات!$A$4:$C$11363,3,0)) ->  | D168: =IF(A168="","",SUMIFS(ورقة1!$G$4:$G$9994,ورقة1!$C$4:$C$9994,ورقة3!A168)) ->  | E168: =IF(A168="","",SUMIFS(ورقة1!$H$4:$H$9994,ورقة1!$C$4:$C$9994,ورقة3!A168)) ->  | I168: =IF(F168="","",SUMIFS(بيانات!$E$4:$E$5218,بيانات!$A$4:$A$5218,بيانات!A167)+SUMIFS(ورقة1!$K$4:$K$9994,ورقة1!$C$4:$C$9994,ورقة3!A168)) ->  | J168: =IF(F168="","",SUMIFS(بيانات!$C$4:$C$1048576,اسم_الصنف,بيانات!A167)+SUMIFS(ورقة1!$G$4:$G$9994,ورقة1!$C$4:$C$9994,ورقة3!A168)) ->  | L168: =IF(F168="","",SUMIFS(ورقة1!$L$4:$L$9994,ورقة1!$C$4:$C$9994,ورقة3!A168)) ->  | M168: =IF(H168="","",SUMIFS(ورقة1!$H$4:$H$9994,ورقة1!$C$4:$C$9994,ورقة3!A168)) -> 
A169: =IF(بيانات!A168="","",بيانات!A168) ->  | B169: =IF(A169="","",IF(A169=بيانات!A168,بيانات!B168)) ->  | C169: =IF(A169="","",VLOOKUP(A169,بيانات!$A$4:$C$11363,3,0)) ->  | D169: =IF(A169="","",SUMIFS(ورقة1!$G$4:$G$9994,ورقة1!$C$4:$C$9994,ورقة3!A169)) ->  | E169: =IF(A169="","",SUMIFS(ورقة1!$H$4:$H$9994,ورقة1!$C$4:$C$9994,ورقة3!A169)) ->  | I169: =IF(F169="","",SUMIFS(بيانات!$E$4:$E$5218,بيانات!$A$4:$A$5218,بيانات!A168)+SUMIFS(ورقة1!$K$4:$K$9994,ورقة1!$C$4:$C$9994,ورقة3!A169)) ->  | J169: =IF(F169="","",SUMIFS(بيانات!$C$4:$C$1048576,اسم_الصنف,بيانات!A168)+SUMIFS(ورقة1!$G$4:$G$9994,ورقة1!$C$4:$C$9994,ورقة3!A169)) ->  | L169: =IF(F169="","",SUMIFS(ورقة1!$L$4:$L$9994,ورقة1!$C$4:$C$9994,ورقة3!A169)) ->  | M169: =IF(H169="","",SUMIFS(ورقة1!$H$4:$H$9994,ورقة1!$C$4:$C$9994,ورقة3!A169)) -> 
A170: =IF(بيانات!A169="","",بيانات!A169) ->  | B170: =IF(A170="","",IF(A170=بيانات!A169,بيانات!B169)) ->  | C170: =IF(A170="","",VLOOKUP(A170,بيانات!$A$4:$C$11363,3,0)) ->  | D170: =IF(A170="","",SUMIFS(ورقة1!$G$4:$G$9994,ورقة1!$C$4:$C$9994,ورقة3!A170)) ->  | E170: =IF(A170="","",SUMIFS(ورقة1!$H$4:$H$9994,ورقة1!$C$4:$C$9994,ورقة3!A170)) ->  | I170: =IF(F170="","",SUMIFS(بيانات!$E$4:$E$5218,بيانات!$A$4:$A$5218,بيانات!A169)+SUMIFS(ورقة1!$K$4:$K$9994,ورقة1!$C$4:$C$9994,ورقة3!A170)) ->  | J170: =IF(F170="","",SUMIFS(بيانات!$C$4:$C$1048576,اسم_الصنف,بيانات!A169)+SUMIFS(ورقة1!$G$4:$G$9994,ورقة1!$C$4:$C$9994,ورقة3!A170)) ->  | L170: =IF(F170="","",SUMIFS(ورقة1!$L$4:$L$9994,ورقة1!$C$4:$C$9994,ورقة3!A170)) ->  | M170: =IF(H170="","",SUMIFS(ورقة1!$H$4:$H$9994,ورقة1!$C$4:$C$9994,ورقة3!A170)) -> 
A171: =IF(بيانات!A170="","",بيانات!A170) ->  | B171: =IF(A171="","",IF(A171=بيانات!A170,بيانات!B170)) ->  | C171: =IF(A171="","",VLOOKUP(A171,بيانات!$A$4:$C$11363,3,0)) ->  | D171: =IF(A171="","",SUMIFS(ورقة1!$G$4:$G$9994,ورقة1!$C$4:$C$9994,ورقة3!A171)) ->  | E171: =IF(A171="","",SUMIFS(ورقة1!$H$4:$H$9994,ورقة1!$C$4:$C$9994,ورقة3!A171)) ->  | I171: =IF(F171="","",SUMIFS(بيانات!$E$4:$E$5218,بيانات!$A$4:$A$5218,بيانات!A170)+SUMIFS(ورقة1!$K$4:$K$9994,ورقة1!$C$4:$C$9994,ورقة3!A171)) ->  | J171: =IF(F171="","",SUMIFS(بيانات!$C$4:$C$1048576,اسم_الصنف,بيانات!A170)+SUMIFS(ورقة1!$G$4:$G$9994,ورقة1!$C$4:$C$9994,ورقة3!A171)) ->  | L171: =IF(F171="","",SUMIFS(ورقة1!$L$4:$L$9994,ورقة1!$C$4:$C$9994,ورقة3!A171)) ->  | M171: =IF(H171="","",SUMIFS(ورقة1!$H$4:$H$9994,ورقة1!$C$4:$C$9994,ورقة3!A171)) -> 
A172: =IF(بيانات!A171="","",بيانات!A171) ->  | B172: =IF(A172="","",IF(A172=بيانات!A171,بيانات!B171)) ->  | C172: =IF(A172="","",VLOOKUP(A172,بيانات!$A$4:$C$11363,3,0)) ->  | D172: =IF(A172="","",SUMIFS(ورقة1!$G$4:$G$9994,ورقة1!$C$4:$C$9994,ورقة3!A172)) ->  | E172: =IF(A172="","",SUMIFS(ورقة1!$H$4:$H$9994,ورقة1!$C$4:$C$9994,ورقة3!A172)) ->  | I172: =IF(F172="","",SUMIFS(بيانات!$E$4:$E$5218,بيانات!$A$4:$A$5218,بيانات!A171)+SUMIFS(ورقة1!$K$4:$K$9994,ورقة1!$C$4:$C$9994,ورقة3!A172)) ->  | J172: =IF(F172="","",SUMIFS(بيانات!$C$4:$C$1048576,اسم_الصنف,بيانات!A171)+SUMIFS(ورقة1!$G$4:$G$9994,ورقة1!$C$4:$C$9994,ورقة3!A172)) ->  | L172: =IF(F172="","",SUMIFS(ورقة1!$L$4:$L$9994,ورقة1!$C$4:$C$9994,ورقة3!A172)) ->  | M172: =IF(H172="","",SUMIFS(ورقة1!$H$4:$H$9994,ورقة1!$C$4:$C$9994,ورقة3!A172)) -> 
A173: =IF(بيانات!A172="","",بيانات!A172) ->  | B173: =IF(A173="","",IF(A173=بيانات!A172,بيانات!B172)) ->  | C173: =IF(A173="","",VLOOKUP(A173,بيانات!$A$4:$C$11363,3,0)) ->  | D173: =IF(A173="","",SUMIFS(ورقة1!$G$4:$G$9994,ورقة1!$C$4:$C$9994,ورقة3!A173)) ->  | E173: =IF(A173="","",SUMIFS(ورقة1!$H$4:$H$9994,ورقة1!$C$4:$C$9994,ورقة3!A173)) ->  | I173: =IF(F173="","",SUMIFS(بيانات!$E$4:$E$5218,بيانات!$A$4:$A$5218,بيانات!A172)+SUMIFS(ورقة1!$K$4:$K$9994,ورقة1!$C$4:$C$9994,ورقة3!A173)) ->  | J173: =IF(F173="","",SUMIFS(بيانات!$C$4:$C$1048576,اسم_الصنف,بيانات!A172)+SUMIFS(ورقة1!$G$4:$G$9994,ورقة1!$C$4:$C$9994,ورقة3!A173)) ->  | L173: =IF(F173="","",SUMIFS(ورقة1!$L$4:$L$9994,ورقة1!$C$4:$C$9994,ورقة3!A173)) ->  | M173: =IF(H173="","",SUMIFS(ورقة1!$H$4:$H$9994,ورقة1!$C$4:$C$9994,ورقة3!A173)) -> 
A174: =IF(بيانات!A173="","",بيانات!A173) ->  | B174: =IF(A174="","",IF(A174=بيانات!A173,بيانات!B173)) ->  | C174: =IF(A174="","",VLOOKUP(A174,بيانات!$A$4:$C$11363,3,0)) ->  | D174: =IF(A174="","",SUMIFS(ورقة1!$G$4:$G$9994,ورقة1!$C$4:$C$9994,ورقة3!A174)) ->  | E174: =IF(A174="","",SUMIFS(ورقة1!$H$4:$H$9994,ورقة1!$C$4:$C$9994,ورقة3!A174)) ->  | I174: =IF(F174="","",SUMIFS(بيانات!$E$4:$E$5218,بيانات!$A$4:$A$5218,بيانات!A173)+SUMIFS(ورقة1!$K$4:$K$9994,ورقة1!$C$4:$C$9994,ورقة3!A174)) ->  | J174: =IF(F174="","",SUMIFS(بيانات!$C$4:$C$1048576,اسم_الصنف,بيانات!A173)+SUMIFS(ورقة1!$G$4:$G$9994,ورقة1!$C$4:$C$9994,ورقة3!A174)) ->  | L174: =IF(F174="","",SUMIFS(ورقة1!$L$4:$L$9994,ورقة1!$C$4:$C$9994,ورقة3!A174)) ->  | M174: =IF(H174="","",SUMIFS(ورقة1!$H$4:$H$9994,ورقة1!$C$4:$C$9994,ورقة3!A174)) -> 
A175: =IF(بيانات!A174="","",بيانات!A174) ->  | B175: =IF(A175="","",IF(A175=بيانات!A174,بيانات!B174)) ->  | C175: =IF(A175="","",VLOOKUP(A175,بيانات!$A$4:$C$11363,3,0)) ->  | D175: =IF(A175="","",SUMIFS(ورقة1!$G$4:$G$9994,ورقة1!$C$4:$C$9994,ورقة3!A175)) ->  | E175: =IF(A175="","",SUMIFS(ورقة1!$H$4:$H$9994,ورقة1!$C$4:$C$9994,ورقة3!A175)) ->  | I175: =IF(F175="","",SUMIFS(بيانات!$E$4:$E$5218,بيانات!$A$4:$A$5218,بيانات!A174)+SUMIFS(ورقة1!$K$4:$K$9994,ورقة1!$C$4:$C$9994,ورقة3!A175)) ->  | J175: =IF(F175="","",SUMIFS(بيانات!$C$4:$C$1048576,اسم_الصنف,بيانات!A174)+SUMIFS(ورقة1!$G$4:$G$9994,ورقة1!$C$4:$C$9994,ورقة3!A175)) ->  | L175: =IF(F175="","",SUMIFS(ورقة1!$L$4:$L$9994,ورقة1!$C$4:$C$9994,ورقة3!A175)) ->  | M175: =IF(H175="","",SUMIFS(ورقة1!$H$4:$H$9994,ورقة1!$C$4:$C$9994,ورقة3!A175)) -> 
A176: =IF(بيانات!A175="","",بيانات!A175) ->  | B176: =IF(A176="","",IF(A176=بيانات!A175,بيانات!B175)) ->  | C176: =IF(A176="","",VLOOKUP(A176,بيانات!$A$4:$C$11363,3,0)) ->  | D176: =IF(A176="","",SUMIFS(ورقة1!$G$4:$G$9994,ورقة1!$C$4:$C$9994,ورقة3!A176)) ->  | E176: =IF(A176="","",SUMIFS(ورقة1!$H$4:$H$9994,ورقة1!$C$4:$C$9994,ورقة3!A176)) ->  | I176: =IF(F176="","",SUMIFS(بيانات!$E$4:$E$5218,بيانات!$A$4:$A$5218,بيانات!A175)+SUMIFS(ورقة1!$K$4:$K$9994,ورقة1!$C$4:$C$9994,ورقة3!A176)) ->  | J176: =IF(F176="","",SUMIFS(بيانات!$C$4:$C$1048576,اسم_الصنف,بيانات!A175)+SUMIFS(ورقة1!$G$4:$G$9994,ورقة1!$C$4:$C$9994,ورقة3!A176)) ->  | L176: =IF(F176="","",SUMIFS(ورقة1!$L$4:$L$9994,ورقة1!$C$4:$C$9994,ورقة3!A176)) ->  | M176: =IF(H176="","",SUMIFS(ورقة1!$H$4:$H$9994,ورقة1!$C$4:$C$9994,ورقة3!A176)) -> 
A177: =IF(بيانات!A176="","",بيانات!A176) ->  | B177: =IF(A177="","",IF(A177=بيانات!A176,بيانات!B176)) ->  | C177: =IF(A177="","",VLOOKUP(A177,بيانات!$A$4:$C$11363,3,0)) ->  | D177: =IF(A177="","",SUMIFS(ورقة1!$G$4:$G$9994,ورقة1!$C$4:$C$9994,ورقة3!A177)) ->  | E177: =IF(A177="","",SUMIFS(ورقة1!$H$4:$H$9994,ورقة1!$C$4:$C$9994,ورقة3!A177)) ->  | I177: =IF(F177="","",SUMIFS(بيانات!$E$4:$E$5218,بيانات!$A$4:$A$5218,بيانات!A176)+SUMIFS(ورقة1!$K$4:$K$9994,ورقة1!$C$4:$C$9994,ورقة3!A177)) ->  | J177: =IF(F177="","",SUMIFS(بيانات!$C$4:$C$1048576,اسم_الصنف,بيانات!A176)+SUMIFS(ورقة1!$G$4:$G$9994,ورقة1!$C$4:$C$9994,ورقة3!A177)) ->  | L177: =IF(F177="","",SUMIFS(ورقة1!$L$4:$L$9994,ورقة1!$C$4:$C$9994,ورقة3!A177)) ->  | M177: =IF(H177="","",SUMIFS(ورقة1!$H$4:$H$9994,ورقة1!$C$4:$C$9994,ورقة3!A177)) -> 
A178: =IF(بيانات!A177="","",بيانات!A177) ->  | B178: =IF(A178="","",IF(A178=بيانات!A177,بيانات!B177)) ->  | C178: =IF(A178="","",VLOOKUP(A178,بيانات!$A$4:$C$11363,3,0)) ->  | D178: =IF(A178="","",SUMIFS(ورقة1!$G$4:$G$9994,ورقة1!$C$4:$C$9994,ورقة3!A178)) ->  | E178: =IF(A178="","",SUMIFS(ورقة1!$H$4:$H$9994,ورقة1!$C$4:$C$9994,ورقة3!A178)) ->  | I178: =IF(F178="","",SUMIFS(بيانات!$E$4:$E$5218,بيانات!$A$4:$A$5218,بيانات!A177)+SUMIFS(ورقة1!$K$4:$K$9994,ورقة1!$C$4:$C$9994,ورقة3!A178)) ->  | J178: =IF(F178="","",SUMIFS(بيانات!$C$4:$C$1048576,اسم_الصنف,بيانات!A177)+SUMIFS(ورقة1!$G$4:$G$9994,ورقة1!$C$4:$C$9994,ورقة3!A178)) ->  | L178: =IF(F178="","",SUMIFS(ورقة1!$L$4:$L$9994,ورقة1!$C$4:$C$9994,ورقة3!A178)) ->  | M178: =IF(H178="","",SUMIFS(ورقة1!$H$4:$H$9994,ورقة1!$C$4:$C$9994,ورقة3!A178)) -> 
A179: =IF(بيانات!A178="","",بيانات!A178) ->  | B179: =IF(A179="","",IF(A179=بيانات!A178,بيانات!B178)) ->  | C179: =IF(A179="","",VLOOKUP(A179,بيانات!$A$4:$C$11363,3,0)) ->  | D179: =IF(A179="","",SUMIFS(ورقة1!$G$4:$G$9994,ورقة1!$C$4:$C$9994,ورقة3!A179)) ->  | E179: =IF(A179="","",SUMIFS(ورقة1!$H$4:$H$9994,ورقة1!$C$4:$C$9994,ورقة3!A179)) ->  | I179: =IF(F179="","",SUMIFS(بيانات!$E$4:$E$5218,بيانات!$A$4:$A$5218,بيانات!A178)+SUMIFS(ورقة1!$K$4:$K$9994,ورقة1!$C$4:$C$9994,ورقة3!A179)) ->  | J179: =IF(F179="","",SUMIFS(بيانات!$C$4:$C$1048576,اسم_الصنف,بيانات!A178)+SUMIFS(ورقة1!$G$4:$G$9994,ورقة1!$C$4:$C$9994,ورقة3!A179)) ->  | L179: =IF(F179="","",SUMIFS(ورقة1!$L$4:$L$9994,ورقة1!$C$4:$C$9994,ورقة3!A179)) ->  | M179: =IF(H179="","",SUMIFS(ورقة1!$H$4:$H$9994,ورقة1!$C$4:$C$9994,ورقة3!A179)) -> 
A180: =IF(بيانات!A179="","",بيانات!A179) ->  | B180: =IF(A180="","",IF(A180=بيانات!A179,بيانات!B179)) ->  | C180: =IF(A180="","",VLOOKUP(A180,بيانات!$A$4:$C$11363,3,0)) ->  | D180: =IF(A180="","",SUMIFS(ورقة1!$G$4:$G$9994,ورقة1!$C$4:$C$9994,ورقة3!A180)) ->  | E180: =IF(A180="","",SUMIFS(ورقة1!$H$4:$H$9994,ورقة1!$C$4:$C$9994,ورقة3!A180)) ->  | I180: =IF(F180="","",SUMIFS(بيانات!$E$4:$E$5218,بيانات!$A$4:$A$5218,بيانات!A179)+SUMIFS(ورقة1!$K$4:$K$9994,ورقة1!$C$4:$C$9994,ورقة3!A180)) ->  | J180: =IF(F180="","",SUMIFS(بيانات!$C$4:$C$1048576,اسم_الصنف,بيانات!A179)+SUMIFS(ورقة1!$G$4:$G$9994,ورقة1!$C$4:$C$9994,ورقة3!A180)) ->  | L180: =IF(F180="","",SUMIFS(ورقة1!$L$4:$L$9994,ورقة1!$C$4:$C$9994,ورقة3!A180)) ->  | M180: =IF(H180="","",SUMIFS(ورقة1!$H$4:$H$9994,ورقة1!$C$4:$C$9994,ورقة3!A180)) -> 
A181: =IF(بيانات!A180="","",بيانات!A180) ->  | B181: =IF(A181="","",IF(A181=بيانات!A180,بيانات!B180)) ->  | C181: =IF(A181="","",VLOOKUP(A181,بيانات!$A$4:$C$11363,3,0)) ->  | D181: =IF(A181="","",SUMIFS(ورقة1!$G$4:$G$9994,ورقة1!$C$4:$C$9994,ورقة3!A181)) ->  | E181: =IF(A181="","",SUMIFS(ورقة1!$H$4:$H$9994,ورقة1!$C$4:$C$9994,ورقة3!A181)) ->  | I181: =IF(F181="","",SUMIFS(بيانات!$E$4:$E$5218,بيانات!$A$4:$A$5218,بيانات!A180)+SUMIFS(ورقة1!$K$4:$K$9994,ورقة1!$C$4:$C$9994,ورقة3!A181)) ->  | J181: =IF(F181="","",SUMIFS(بيانات!$C$4:$C$1048576,اسم_الصنف,بيانات!A180)+SUMIFS(ورقة1!$G$4:$G$9994,ورقة1!$C$4:$C$9994,ورقة3!A181)) ->  | L181: =IF(F181="","",SUMIFS(ورقة1!$L$4:$L$9994,ورقة1!$C$4:$C$9994,ورقة3!A181)) ->  | M181: =IF(H181="","",SUMIFS(ورقة1!$H$4:$H$9994,ورقة1!$C$4:$C$9994,ورقة3!A181)) -> 
A182: =IF(بيانات!A181="","",بيانات!A181) ->  | B182: =IF(A182="","",IF(A182=بيانات!A181,بيانات!B181)) ->  | C182: =IF(A182="","",VLOOKUP(A182,بيانات!$A$4:$C$11363,3,0)) ->  | D182: =IF(A182="","",SUMIFS(ورقة1!$G$4:$G$9994,ورقة1!$C$4:$C$9994,ورقة3!A182)) ->  | E182: =IF(A182="","",SUMIFS(ورقة1!$H$4:$H$9994,ورقة1!$C$4:$C$9994,ورقة3!A182)) ->  | I182: =IF(F182="","",SUMIFS(بيانات!$E$4:$E$5218,بيانات!$A$4:$A$5218,بيانات!A181)+SUMIFS(ورقة1!$K$4:$K$9994,ورقة1!$C$4:$C$9994,ورقة3!A182)) ->  | J182: =IF(F182="","",SUMIFS(بيانات!$C$4:$C$1048576,اسم_الصنف,بيانات!A181)+SUMIFS(ورقة1!$G$4:$G$9994,ورقة1!$C$4:$C$9994,ورقة3!A182)) ->  | L182: =IF(F182="","",SUMIFS(ورقة1!$L$4:$L$9994,ورقة1!$C$4:$C$9994,ورقة3!A182)) ->  | M182: =IF(H182="","",SUMIFS(ورقة1!$H$4:$H$9994,ورقة1!$C$4:$C$9994,ورقة3!A182)) -> 
A183: =IF(بيانات!A182="","",بيانات!A182) ->  | B183: =IF(A183="","",IF(A183=بيانات!A182,بيانات!B182)) ->  | C183: =IF(A183="","",VLOOKUP(A183,بيانات!$A$4:$C$11363,3,0)) ->  | D183: =IF(A183="","",SUMIFS(ورقة1!$G$4:$G$9994,ورقة1!$C$4:$C$9994,ورقة3!A183)) ->  | E183: =IF(A183="","",SUMIFS(ورقة1!$H$4:$H$9994,ورقة1!$C$4:$C$9994,ورقة3!A183)) ->  | I183: =IF(F183="","",SUMIFS(بيانات!$E$4:$E$5218,بيانات!$A$4:$A$5218,بيانات!A182)+SUMIFS(ورقة1!$K$4:$K$9994,ورقة1!$C$4:$C$9994,ورقة3!A183)) ->  | J183: =IF(F183="","",SUMIFS(بيانات!$C$4:$C$1048576,اسم_الصنف,بيانات!A182)+SUMIFS(ورقة1!$G$4:$G$9994,ورقة1!$C$4:$C$9994,ورقة3!A183)) ->  | L183: =IF(F183="","",SUMIFS(ورقة1!$L$4:$L$9994,ورقة1!$C$4:$C$9994,ورقة3!A183)) ->  | M183: =IF(H183="","",SUMIFS(ورقة1!$H$4:$H$9994,ورقة1!$C$4:$C$9994,ورقة3!A183)) -> 
A184: =IF(بيانات!A183="","",بيانات!A183) ->  | B184: =IF(A184="","",IF(A184=بيانات!A183,بيانات!B183)) ->  | C184: =IF(A184="","",VLOOKUP(A184,بيانات!$A$4:$C$11363,3,0)) ->  | D184: =IF(A184="","",SUMIFS(ورقة1!$G$4:$G$9994,ورقة1!$C$4:$C$9994,ورقة3!A184)) ->  | E184: =IF(A184="","",SUMIFS(ورقة1!$H$4:$H$9994,ورقة1!$C$4:$C$9994,ورقة3!A184)) ->  | I184: =IF(F184="","",SUMIFS(بيانات!$E$4:$E$5218,بيانات!$A$4:$A$5218,بيانات!A183)+SUMIFS(ورقة1!$K$4:$K$9994,ورقة1!$C$4:$C$9994,ورقة3!A184)) ->  | J184: =IF(F184="","",SUMIFS(بيانات!$C$4:$C$1048576,اسم_الصنف,بيانات!A183)+SUMIFS(ورقة1!$G$4:$G$9994,ورقة1!$C$4:$C$9994,ورقة3!A184)) ->  | L184: =IF(F184="","",SUMIFS(ورقة1!$L$4:$L$9994,ورقة1!$C$4:$C$9994,ورقة3!A184)) ->  | M184: =IF(H184="","",SUMIFS(ورقة1!$H$4:$H$9994,ورقة1!$C$4:$C$9994,ورقة3!A184)) -> 
A185: =IF(بيانات!A184="","",بيانات!A184) ->  | B185: =IF(A185="","",IF(A185=بيانات!A184,بيانات!B184)) ->  | C185: =IF(A185="","",VLOOKUP(A185,بيانات!$A$4:$C$11363,3,0)) ->  | D185: =IF(A185="","",SUMIFS(ورقة1!$G$4:$G$9994,ورقة1!$C$4:$C$9994,ورقة3!A185)) ->  | E185: =IF(A185="","",SUMIFS(ورقة1!$H$4:$H$9994,ورقة1!$C$4:$C$9994,ورقة3!A185)) ->  | I185: =IF(F185="","",SUMIFS(بيانات!$E$4:$E$5218,بيانات!$A$4:$A$5218,بيانات!A184)+SUMIFS(ورقة1!$K$4:$K$9994,ورقة1!$C$4:$C$9994,ورقة3!A185)) ->  | J185: =IF(F185="","",SUMIFS(بيانات!$C$4:$C$1048576,اسم_الصنف,بيانات!A184)+SUMIFS(ورقة1!$G$4:$G$9994,ورقة1!$C$4:$C$9994,ورقة3!A185)) ->  | L185: =IF(F185="","",SUMIFS(ورقة1!$L$4:$L$9994,ورقة1!$C$4:$C$9994,ورقة3!A185)) ->  | M185: =IF(H185="","",SUMIFS(ورقة1!$H$4:$H$9994,ورقة1!$C$4:$C$9994,ورقة3!A185)) -> 
A186: =IF(بيانات!A185="","",بيانات!A185) ->  | B186: =IF(A186="","",IF(A186=بيانات!A185,بيانات!B185)) ->  | C186: =IF(A186="","",VLOOKUP(A186,بيانات!$A$4:$C$11363,3,0)) ->  | D186: =IF(A186="","",SUMIFS(ورقة1!$G$4:$G$9994,ورقة1!$C$4:$C$9994,ورقة3!A186)) ->  | E186: =IF(A186="","",SUMIFS(ورقة1!$H$4:$H$9994,ورقة1!$C$4:$C$9994,ورقة3!A186)) ->  | I186: =IF(F186="","",SUMIFS(بيانات!$E$4:$E$5218,بيانات!$A$4:$A$5218,بيانات!A185)+SUMIFS(ورقة1!$K$4:$K$9994,ورقة1!$C$4:$C$9994,ورقة3!A186)) ->  | J186: =IF(F186="","",SUMIFS(بيانات!$C$4:$C$1048576,اسم_الصنف,بيانات!A185)+SUMIFS(ورقة1!$G$4:$G$9994,ورقة1!$C$4:$C$9994,ورقة3!A186)) ->  | L186: =IF(F186="","",SUMIFS(ورقة1!$L$4:$L$9994,ورقة1!$C$4:$C$9994,ورقة3!A186)) ->  | M186: =IF(H186="","",SUMIFS(ورقة1!$H$4:$H$9994,ورقة1!$C$4:$C$9994,ورقة3!A186)) -> 
A187: =IF(بيانات!A186="","",بيانات!A186) ->  | B187: =IF(A187="","",IF(A187=بيانات!A186,بيانات!B186)) ->  | C187: =IF(A187="","",VLOOKUP(A187,بيانات!$A$4:$C$11363,3,0)) ->  | D187: =IF(A187="","",SUMIFS(ورقة1!$G$4:$G$9994,ورقة1!$C$4:$C$9994,ورقة3!A187)) ->  | E187: =IF(A187="","",SUMIFS(ورقة1!$H$4:$H$9994,ورقة1!$C$4:$C$9994,ورقة3!A187)) ->  | I187: =IF(F187="","",SUMIFS(بيانات!$E$4:$E$5218,بيانات!$A$4:$A$5218,بيانات!A186)+SUMIFS(ورقة1!$K$4:$K$9994,ورقة1!$C$4:$C$9994,ورقة3!A187)) ->  | J187: =IF(F187="","",SUMIFS(بيانات!$C$4:$C$1048576,اسم_الصنف,بيانات!A186)+SUMIFS(ورقة1!$G$4:$G$9994,ورقة1!$C$4:$C$9994,ورقة3!A187)) ->  | L187: =IF(F187="","",SUMIFS(ورقة1!$L$4:$L$9994,ورقة1!$C$4:$C$9994,ورقة3!A187)) ->  | M187: =IF(H187="","",SUMIFS(ورقة1!$H$4:$H$9994,ورقة1!$C$4:$C$9994,ورقة3!A187)) -> 
A188: =IF(بيانات!A187="","",بيانات!A187) ->  | B188: =IF(A188="","",IF(A188=بيانات!A187,بيانات!B187)) ->  | C188: =IF(A188="","",VLOOKUP(A188,بيانات!$A$4:$C$11363,3,0)) ->  | D188: =IF(A188="","",SUMIFS(ورقة1!$G$4:$G$9994,ورقة1!$C$4:$C$9994,ورقة3!A188)) ->  | E188: =IF(A188="","",SUMIFS(ورقة1!$H$4:$H$9994,ورقة1!$C$4:$C$9994,ورقة3!A188)) ->  | I188: =IF(F188="","",SUMIFS(بيانات!$E$4:$E$5218,بيانات!$A$4:$A$5218,بيانات!A187)+SUMIFS(ورقة1!$K$4:$K$9994,ورقة1!$C$4:$C$9994,ورقة3!A188)) ->  | J188: =IF(F188="","",SUMIFS(بيانات!$C$4:$C$1048576,اسم_الصنف,بيانات!A187)+SUMIFS(ورقة1!$G$4:$G$9994,ورقة1!$C$4:$C$9994,ورقة3!A188)) ->  | L188: =IF(F188="","",SUMIFS(ورقة1!$L$4:$L$9994,ورقة1!$C$4:$C$9994,ورقة3!A188)) ->  | M188: =IF(H188="","",SUMIFS(ورقة1!$H$4:$H$9994,ورقة1!$C$4:$C$9994,ورقة3!A188)) -> 
A189: =IF(بيانات!A188="","",بيانات!A188) ->  | B189: =IF(A189="","",IF(A189=بيانات!A188,بيانات!B188)) ->  | C189: =IF(A189="","",VLOOKUP(A189,بيانات!$A$4:$C$11363,3,0)) ->  | D189: =IF(A189="","",SUMIFS(ورقة1!$G$4:$G$9994,ورقة1!$C$4:$C$9994,ورقة3!A189)) ->  | E189: =IF(A189="","",SUMIFS(ورقة1!$H$4:$H$9994,ورقة1!$C$4:$C$9994,ورقة3!A189)) ->  | I189: =IF(F189="","",SUMIFS(بيانات!$E$4:$E$5218,بيانات!$A$4:$A$5218,بيانات!A188)+SUMIFS(ورقة1!$K$4:$K$9994,ورقة1!$C$4:$C$9994,ورقة3!A189)) ->  | J189: =IF(F189="","",SUMIFS(بيانات!$C$4:$C$1048576,اسم_الصنف,بيانات!A188)+SUMIFS(ورقة1!$G$4:$G$9994,ورقة1!$C$4:$C$9994,ورقة3!A189)) ->  | L189: =IF(F189="","",SUMIFS(ورقة1!$L$4:$L$9994,ورقة1!$C$4:$C$9994,ورقة3!A189)) ->  | M189: =IF(H189="","",SUMIFS(ورقة1!$H$4:$H$9994,ورقة1!$C$4:$C$9994,ورقة3!A189)) -> 
A190: =IF(بيانات!A189="","",بيانات!A189) ->  | B190: =IF(A190="","",IF(A190=بيانات!A189,بيانات!B189)) ->  | C190: =IF(A190="","",VLOOKUP(A190,بيانات!$A$4:$C$11363,3,0)) ->  | D190: =IF(A190="","",SUMIFS(ورقة1!$G$4:$G$9994,ورقة1!$C$4:$C$9994,ورقة3!A190)) ->  | E190: =IF(A190="","",SUMIFS(ورقة1!$H$4:$H$9994,ورقة1!$C$4:$C$9994,ورقة3!A190)) ->  | I190: =IF(F190="","",SUMIFS(بيانات!$E$4:$E$5218,بيانات!$A$4:$A$5218,بيانات!A189)+SUMIFS(ورقة1!$K$4:$K$9994,ورقة1!$C$4:$C$9994,ورقة3!A190)) ->  | J190: =IF(F190="","",SUMIFS(بيانات!$C$4:$C$1048576,اسم_الصنف,بيانات!A189)+SUMIFS(ورقة1!$G$4:$G$9994,ورقة1!$C$4:$C$9994,ورقة3!A190)) ->  | L190: =IF(F190="","",SUMIFS(ورقة1!$L$4:$L$9994,ورقة1!$C$4:$C$9994,ورقة3!A190)) ->  | M190: =IF(H190="","",SUMIFS(ورقة1!$H$4:$H$9994,ورقة1!$C$4:$C$9994,ورقة3!A190)) -> 
A191: =IF(بيانات!A190="","",بيانات!A190) ->  | B191: =IF(A191="","",IF(A191=بيانات!A190,بيانات!B190)) ->  | C191: =IF(A191="","",VLOOKUP(A191,بيانات!$A$4:$C$11363,3,0)) ->  | D191: =IF(A191="","",SUMIFS(ورقة1!$G$4:$G$9994,ورقة1!$C$4:$C$9994,ورقة3!A191)) ->  | E191: =IF(A191="","",SUMIFS(ورقة1!$H$4:$H$9994,ورقة1!$C$4:$C$9994,ورقة3!A191)) ->  | I191: =IF(F191="","",SUMIFS(بيانات!$E$4:$E$5218,بيانات!$A$4:$A$5218,بيانات!A190)+SUMIFS(ورقة1!$K$4:$K$9994,ورقة1!$C$4:$C$9994,ورقة3!A191)) ->  | J191: =IF(F191="","",SUMIFS(بيانات!$C$4:$C$1048576,اسم_الصنف,بيانات!A190)+SUMIFS(ورقة1!$G$4:$G$9994,ورقة1!$C$4:$C$9994,ورقة3!A191)) ->  | L191: =IF(F191="","",SUMIFS(ورقة1!$L$4:$L$9994,ورقة1!$C$4:$C$9994,ورقة3!A191)) ->  | M191: =IF(H191="","",SUMIFS(ورقة1!$H$4:$H$9994,ورقة1!$C$4:$C$9994,ورقة3!A191)) -> 
A192: =IF(بيانات!A191="","",بيانات!A191) ->  | B192: =IF(A192="","",IF(A192=بيانات!A191,بيانات!B191)) ->  | C192: =IF(A192="","",VLOOKUP(A192,بيانات!$A$4:$C$11363,3,0)) ->  | D192: =IF(A192="","",SUMIFS(ورقة1!$G$4:$G$9994,ورقة1!$C$4:$C$9994,ورقة3!A192)) ->  | E192: =IF(A192="","",SUMIFS(ورقة1!$H$4:$H$9994,ورقة1!$C$4:$C$9994,ورقة3!A192)) ->  | I192: =IF(F192="","",SUMIFS(بيانات!$E$4:$E$5218,بيانات!$A$4:$A$5218,بيانات!A191)+SUMIFS(ورقة1!$K$4:$K$9994,ورقة1!$C$4:$C$9994,ورقة3!A192)) ->  | J192: =IF(F192="","",SUMIFS(بيانات!$C$4:$C$1048576,اسم_الصنف,بيانات!A191)+SUMIFS(ورقة1!$G$4:$G$9994,ورقة1!$C$4:$C$9994,ورقة3!A192)) ->  | L192: =IF(F192="","",SUMIFS(ورقة1!$L$4:$L$9994,ورقة1!$C$4:$C$9994,ورقة3!A192)) ->  | M192: =IF(H192="","",SUMIFS(ورقة1!$H$4:$H$9994,ورقة1!$C$4:$C$9994,ورقة3!A192)) -> 
A193: =IF(بيانات!A192="","",بيانات!A192) ->  | B193: =IF(A193="","",IF(A193=بيانات!A192,بيانات!B192)) ->  | C193: =IF(A193="","",VLOOKUP(A193,بيانات!$A$4:$C$11363,3,0)) ->  | D193: =IF(A193="","",SUMIFS(ورقة1!$G$4:$G$9994,ورقة1!$C$4:$C$9994,ورقة3!A193)) ->  | E193: =IF(A193="","",SUMIFS(ورقة1!$H$4:$H$9994,ورقة1!$C$4:$C$9994,ورقة3!A193)) ->  | I193: =IF(F193="","",SUMIFS(بيانات!$E$4:$E$5218,بيانات!$A$4:$A$5218,بيانات!A192)+SUMIFS(ورقة1!$K$4:$K$9994,ورقة1!$C$4:$C$9994,ورقة3!A193)) ->  | J193: =IF(F193="","",SUMIFS(بيانات!$C$4:$C$1048576,اسم_الصنف,بيانات!A192)+SUMIFS(ورقة1!$G$4:$G$9994,ورقة1!$C$4:$C$9994,ورقة3!A193)) ->  | L193: =IF(F193="","",SUMIFS(ورقة1!$L$4:$L$9994,ورقة1!$C$4:$C$9994,ورقة3!A193)) ->  | M193: =IF(H193="","",SUMIFS(ورقة1!$H$4:$H$9994,ورقة1!$C$4:$C$9994,ورقة3!A193)) -> 
A194: =IF(بيانات!A193="","",بيانات!A193) ->  | B194: =IF(A194="","",IF(A194=بيانات!A193,بيانات!B193)) ->  | C194: =IF(A194="","",VLOOKUP(A194,بيانات!$A$4:$C$11363,3,0)) ->  | D194: =IF(A194="","",SUMIFS(ورقة1!$G$4:$G$9994,ورقة1!$C$4:$C$9994,ورقة3!A194)) ->  | E194: =IF(A194="","",SUMIFS(ورقة1!$H$4:$H$9994,ورقة1!$C$4:$C$9994,ورقة3!A194)) ->  | I194: =IF(F194="","",SUMIFS(بيانات!$E$4:$E$5218,بيانات!$A$4:$A$5218,بيانات!A193)+SUMIFS(ورقة1!$K$4:$K$9994,ورقة1!$C$4:$C$9994,ورقة3!A194)) ->  | J194: =IF(F194="","",SUMIFS(بيانات!$C$4:$C$1048576,اسم_الصنف,بيانات!A193)+SUMIFS(ورقة1!$G$4:$G$9994,ورقة1!$C$4:$C$9994,ورقة3!A194)) ->  | L194: =IF(F194="","",SUMIFS(ورقة1!$L$4:$L$9994,ورقة1!$C$4:$C$9994,ورقة3!A194)) ->  | M194: =IF(H194="","",SUMIFS(ورقة1!$H$4:$H$9994,ورقة1!$C$4:$C$9994,ورقة3!A194)) -> 
A195: =IF(بيانات!A194="","",بيانات!A194) ->  | B195: =IF(A195="","",IF(A195=بيانات!A194,بيانات!B194)) ->  | C195: =IF(A195="","",VLOOKUP(A195,بيانات!$A$4:$C$11363,3,0)) ->  | D195: =IF(A195="","",SUMIFS(ورقة1!$G$4:$G$9994,ورقة1!$C$4:$C$9994,ورقة3!A195)) ->  | E195: =IF(A195="","",SUMIFS(ورقة1!$H$4:$H$9994,ورقة1!$C$4:$C$9994,ورقة3!A195)) ->  | I195: =IF(F195="","",SUMIFS(بيانات!$E$4:$E$5218,بيانات!$A$4:$A$5218,بيانات!A194)+SUMIFS(ورقة1!$K$4:$K$9994,ورقة1!$C$4:$C$9994,ورقة3!A195)) ->  | J195: =IF(F195="","",SUMIFS(بيانات!$C$4:$C$1048576,اسم_الصنف,بيانات!A194)+SUMIFS(ورقة1!$G$4:$G$9994,ورقة1!$C$4:$C$9994,ورقة3!A195)) ->  | L195: =IF(F195="","",SUMIFS(ورقة1!$L$4:$L$9994,ورقة1!$C$4:$C$9994,ورقة3!A195)) ->  | M195: =IF(H195="","",SUMIFS(ورقة1!$H$4:$H$9994,ورقة1!$C$4:$C$9994,ورقة3!A195)) -> 
A196: =IF(بيانات!A195="","",بيانات!A195) ->  | B196: =IF(A196="","",IF(A196=بيانات!A195,بيانات!B195)) ->  | C196: =IF(A196="","",VLOOKUP(A196,بيانات!$A$4:$C$11363,3,0)) ->  | D196: =IF(A196="","",SUMIFS(ورقة1!$G$4:$G$9994,ورقة1!$C$4:$C$9994,ورقة3!A196)) ->  | E196: =IF(A196="","",SUMIFS(ورقة1!$H$4:$H$9994,ورقة1!$C$4:$C$9994,ورقة3!A196)) ->  | I196: =IF(F196="","",SUMIFS(بيانات!$E$4:$E$5218,بيانات!$A$4:$A$5218,بيانات!A195)+SUMIFS(ورقة1!$K$4:$K$9994,ورقة1!$C$4:$C$9994,ورقة3!A196)) ->  | J196: =IF(F196="","",SUMIFS(بيانات!$C$4:$C$1048576,اسم_الصنف,بيانات!A195)+SUMIFS(ورقة1!$G$4:$G$9994,ورقة1!$C$4:$C$9994,ورقة3!A196)) ->  | L196: =IF(F196="","",SUMIFS(ورقة1!$L$4:$L$9994,ورقة1!$C$4:$C$9994,ورقة3!A196)) ->  | M196: =IF(H196="","",SUMIFS(ورقة1!$H$4:$H$9994,ورقة1!$C$4:$C$9994,ورقة3!A196)) -> 
A197: =IF(بيانات!A196="","",بيانات!A196) ->  | B197: =IF(A197="","",IF(A197=بيانات!A196,بيانات!B196)) ->  | C197: =IF(A197="","",VLOOKUP(A197,بيانات!$A$4:$C$11363,3,0)) ->  | D197: =IF(A197="","",SUMIFS(ورقة1!$G$4:$G$9994,ورقة1!$C$4:$C$9994,ورقة3!A197)) ->  | E197: =IF(A197="","",SUMIFS(ورقة1!$H$4:$H$9994,ورقة1!$C$4:$C$9994,ورقة3!A197)) ->  | F197: =IF(A197="","",C197+D197-E197) ->  | I197: =IF(F197="","",SUMIFS(بيانات!$E$4:$E$5218,بيانات!$A$4:$A$5218,بيانات!A196)+SUMIFS(ورقة1!$K$4:$K$9994,ورقة1!$C$4:$C$9994,ورقة3!A197)) ->  | J197: =IF(F197="","",SUMIFS(بيانات!$C$4:$C$1048576,اسم_الصنف,بيانات!A196)+SUMIFS(ورقة1!$G$4:$G$9994,ورقة1!$C$4:$C$9994,ورقة3!A197)) ->  | L197: =IF(F197="","",SUMIFS(ورقة1!$L$4:$L$9994,ورقة1!$C$4:$C$9994,ورقة3!A197)) ->  | M197: =IF(H197="","",SUMIFS(ورقة1!$H$4:$H$9994,ورقة1!$C$4:$C$9994,ورقة3!A197)) ->  | O197: =IF(OR(E197=0,E197=""),"",E197*N197) ->  | Q197: =IF(OR(E197=0,E197=""),"",E197*P197) -> 
A198: =IF(بيانات!A197="","",بيانات!A197) ->  | B198: =IF(A198="","",IF(A198=بيانات!A197,بيانات!B197)) ->  | C198: =IF(A198="","",VLOOKUP(A198,بيانات!$A$4:$C$11363,3,0)) ->  | D198: =IF(A198="","",SUMIFS(ورقة1!$G$4:$G$9994,ورقة1!$C$4:$C$9994,ورقة3!A198)) ->  | E198: =IF(A198="","",SUMIFS(ورقة1!$H$4:$H$9994,ورقة1!$C$4:$C$9994,ورقة3!A198)) ->  | H198: =IF(F198="","",F198*K198) ->  | I198: =IF(F198="","",SUMIFS(بيانات!$E$4:$E$5218,بيانات!$A$4:$A$5218,بيانات!A197)+SUMIFS(ورقة1!$K$4:$K$9994,ورقة1!$C$4:$C$9994,ورقة3!A198)) ->  | J198: =IF(F198="","",SUMIFS(بيانات!$C$4:$C$1048576,اسم_الصنف,بيانات!A197)+SUMIFS(ورقة1!$G$4:$G$9994,ورقة1!$C$4:$C$9994,ورقة3!A198)) ->  | K198: =IF(AND(I198="",J198=""),"",I198/J198) ->  | L198: =IF(F198="","",SUMIFS(ورقة1!$L$4:$L$9994,ورقة1!$C$4:$C$9994,ورقة3!A198)) ->  | M198: =IF(H198="","",SUMIFS(ورقة1!$H$4:$H$9994,ورقة1!$C$4:$C$9994,ورقة3!A198)) ->  | N198: =IF(OR(L198=0,L198="",M198=0,M198=""),"",L198/M198) ->  | P198: =IF(N198="","",N198-K198) -> 
A199: =IF(بيانات!A198="","",بيانات!A198) ->  | B199: =IF(A199="","",IF(A199=بيانات!A198,بيانات!B198)) ->  | C199: =IF(A199="","",VLOOKUP(A199,بيانات!$A$4:$C$11363,3,0)) ->  | D199: =IF(A199="","",SUMIFS(ورقة1!$G$4:$G$9994,ورقة1!$C$4:$C$9994,ورقة3!A199)) ->  | E199: =IF(A199="","",SUMIFS(ورقة1!$H$4:$H$9994,ورقة1!$C$4:$C$9994,ورقة3!A199)) ->  | I199: =IF(F199="","",SUMIFS(بيانات!$E$4:$E$5218,بيانات!$A$4:$A$5218,بيانات!A198)+SUMIFS(ورقة1!$K$4:$K$9994,ورقة1!$C$4:$C$9994,ورقة3!A199)) ->  | J199: =IF(F199="","",SUMIFS(بيانات!$C$4:$C$1048576,اسم_الصنف,بيانات!A198)+SUMIFS(ورقة1!$G$4:$G$9994,ورقة1!$C$4:$C$9994,ورقة3!A199)) ->  | L199: =IF(F199="","",SUMIFS(ورقة1!$L$4:$L$9994,ورقة1!$C$4:$C$9994,ورقة3!A199)) ->  | M199: =IF(H199="","",SUMIFS(ورقة1!$H$4:$H$9994,ورقة1!$C$4:$C$9994,ورقة3!A199)) -> 
A200: =IF(بيانات!A199="","",بيانات!A199) ->  | B200: =IF(A200="","",IF(A200=بيانات!A199,بيانات!B199)) ->  | C200: =IF(A200="","",VLOOKUP(A200,بيانات!$A$4:$C$11363,3,0)) ->  | D200: =IF(A200="","",SUMIFS(ورقة1!$G$4:$G$9994,ورقة1!$C$4:$C$9994,ورقة3!A200)) ->  | E200: =IF(A200="","",SUMIFS(ورقة1!$H$4:$H$9994,ورقة1!$C$4:$C$9994,ورقة3!A200)) ->  | I200: =IF(F200="","",SUMIFS(بيانات!$E$4:$E$5218,بيانات!$A$4:$A$5218,بيانات!A199)+SUMIFS(ورقة1!$K$4:$K$9994,ورقة1!$C$4:$C$9994,ورقة3!A200)) ->  | J200: =IF(F200="","",SUMIFS(بيانات!$C$4:$C$1048576,اسم_الصنف,بيانات!A199)+SUMIFS(ورقة1!$G$4:$G$9994,ورقة1!$C$4:$C$9994,ورقة3!A200)) ->  | L200: =IF(F200="","",SUMIFS(ورقة1!$L$4:$L$9994,ورقة1!$C$4:$C$9994,ورقة3!A200)) ->  | M200: =IF(H200="","",SUMIFS(ورقة1!$H$4:$H$9994,ورقة1!$C$4:$C$9994,ورقة3!A200)) -> 
A201: =IF(بيانات!A200="","",بيانات!A200) ->  | B201: =IF(A201="","",IF(A201=بيانات!A200,بيانات!B200)) ->  | C201: =IF(A201="","",VLOOKUP(A201,بيانات!$A$4:$C$11363,3,0)) ->  | D201: =IF(A201="","",SUMIFS(ورقة1!$G$4:$G$9994,ورقة1!$C$4:$C$9994,ورقة3!A201)) ->  | E201: =IF(A201="","",SUMIFS(ورقة1!$H$4:$H$9994,ورقة1!$C$4:$C$9994,ورقة3!A201)) ->  | I201: =IF(F201="","",SUMIFS(بيانات!$E$4:$E$5218,بيانات!$A$4:$A$5218,بيانات!A200)+SUMIFS(ورقة1!$K$4:$K$9994,ورقة1!$C$4:$C$9994,ورقة3!A201)) ->  | J201: =IF(F201="","",SUMIFS(بيانات!$C$4:$C$1048576,اسم_الصنف,بيانات!A200)+SUMIFS(ورقة1!$G$4:$G$9994,ورقة1!$C$4:$C$9994,ورقة3!A201)) ->  | L201: =IF(F201="","",SUMIFS(ورقة1!$L$4:$L$9994,ورقة1!$C$4:$C$9994,ورقة3!A201)) ->  | M201: =IF(H201="","",SUMIFS(ورقة1!$H$4:$H$9994,ورقة1!$C$4:$C$9994,ورقة3!A201)) -> 
A202: =IF(بيانات!A201="","",بيانات!A201) ->  | B202: =IF(A202="","",IF(A202=بيانات!A201,بيانات!B201)) ->  | C202: =IF(A202="","",VLOOKUP(A202,بيانات!$A$4:$C$11363,3,0)) ->  | D202: =IF(A202="","",SUMIFS(ورقة1!$G$4:$G$9994,ورقة1!$C$4:$C$9994,ورقة3!A202)) ->  | E202: =IF(A202="","",SUMIFS(ورقة1!$H$4:$H$9994,ورقة1!$C$4:$C$9994,ورقة3!A202)) ->  | I202: =IF(F202="","",SUMIFS(بيانات!$E$4:$E$5218,بيانات!$A$4:$A$5218,بيانات!A201)+SUMIFS(ورقة1!$K$4:$K$9994,ورقة1!$C$4:$C$9994,ورقة3!A202)) ->  | J202: =IF(F202="","",SUMIFS(بيانات!$C$4:$C$1048576,اسم_الصنف,بيانات!A201)+SUMIFS(ورقة1!$G$4:$G$9994,ورقة1!$C$4:$C$9994,ورقة3!A202)) ->  | L202: =IF(F202="","",SUMIFS(ورقة1!$L$4:$L$9994,ورقة1!$C$4:$C$9994,ورقة3!A202)) ->  | M202: =IF(H202="","",SUMIFS(ورقة1!$H$4:$H$9994,ورقة1!$C$4:$C$9994,ورقة3!A202)) -> 
... 3374 more rows

Sheet بيانات
A3: اسم الصنف | B3: الوحدة | C3: رصيد اول المدة | D3: سعر الشراء | E3: الكلفة | F3: سعر البيع | G3: اسم السند | H3: الوحدة
A4: سكر | B4: كيس | C4: 1000 | D4: 5 | E4: =IF(A4="","",C4*D4) -> 5000 | G4: فاتورة بيع | H4: قطعة
A5: رز | B5: كيس | C5: 500 | D5: 6 | E5: =IF(A5="","",C5*D5) -> 3000 | G5: فاتورة شراء | H5: علبة
A6: طحين | B6: كيس | C6: 600 | D6: 4 | E6: 2400 | G6: مردودات مبيعات | H6: برميل
A7: سردين | B7: قطعة | C7: 1200 | D7: 0.5 | E7: 600 | G7: مردودات مشتريات | H7: كيلو
A8: طن | B8: قطعة | C8: 800 | D8: 0.55 | E8: 440 | H8: لتر
A9: عدس | B9: كيلو | C9: 400 | D9: 0.6 | E9: 240 | H9: كرتونة
A10: فاصوليا | B10: كيلو | C10: 200 | D10: 0.95 | E10: 190 | H10: كيس
A11: لبنة | B11: كيلو | C11: 100 | D11: 1.1 | E11: 110
A12: لوز | B12: كيلو | C12: 150 | D12: 3.65 | E12: 547.5
A13: جبنة مثلثات | B13: كرتونة | C13: 0 | D13: 0.3 | E13: 0
E69: =IF(A69="","",C69*D69) -> 
E133: =IF(A133="","",C133*D133) -> 
E197: =IF(A197="","",C197*D197) -> 
E261: =IF(A261="","",C261*D261) -> 
E325: =IF(A325="","",C325*D325) -> 
E389: =IF(A389="","",C389*D389) -> 
E453: =IF(A453="","",C453*D453) -> 
E517: =IF(A517="","",C517*D517) -> 
E581: =IF(A581="","",C581*D581) -> 
E645: =IF(A645="","",C645*D645) -> 
E709: =IF(A709="","",C709*D709) -> 
E773: =IF(A773="","",C773*D773) -> 
E837: =IF(A837="","",C837*D837) -> 
E901: =IF(A901="","",C901*D901) -> 
E965: =IF(A965="","",C965*D965) -> 
E1029: =IF(A1029="","",C1029*D1029) -> 
E1093: =IF(A1093="","",C1093*D1093) -> 
E1157: =IF(A1157="","",C1157*D1157) -> 
E1221: =IF(A1221="","",C1221*D1221) -> 
E1285: =IF(A1285="","",C1285*D1285) -> 
E1349: =IF(A1349="","",C1349*D1349) -> 
E1413: =IF(A1413="","",C1413*D1413) -> 
E1477: =IF(A1477="","",C1477*D1477) -> 
E1541: =IF(A1541="","",C1541*D1541) -> 
E1605: =IF(A1605="","",C1605*D1605) -> 
E1669: =IF(A1669="","",C1669*D1669) -> 
E1733: =IF(A1733="","",C1733*D1733) -> 
E1797: =IF(A1797="","",C1797*D1797) -> 
E1861: =IF(A1861="","",C1861*D1861) -> 
E1925: =IF(A1925="","",C1925*D1925) -> 
E1989: =IF(A1989="","",C1989*D1989) -> 
E2053: =IF(A2053="","",C2053*D2053) -> 
E2117: =IF(A2117="","",C2117*D2117) -> 
E2181: =IF(A2181="","",C2181*D2181) -> 
E2245: =IF(A2245="","",C2245*D2245) -> 
E2309: =IF(A2309="","",C2309*D2309) -> 
E2373: =IF(A2373="","",C2373*D2373) -> 
E2437: =IF(A2437="","",C2437*D2437) -> 
E2501: =IF(A2501="","",C2501*D2501) -> 
E2565: =IF(A2565="","",C2565*D2565) -> 
E2629: =IF(A2629="","",C2629*D2629) -> 
E2693: =IF(A2693="","",C2693*D2693) -> 
E2757: =IF(A2757="","",C2757*D2757) -> 
E2821: =IF(A2821="","",C2821*D2821) -> 
E2885: =IF(A2885="","",C2885*D2885) -> 
E2949: =IF(A2949="","",C2949*D2949) -> 
E3013: =IF(A3013="","",C3013*D3013) -> 
E3077: =IF(A3077="","",C3077*D3077) -> 
E3141: =IF(A3141="","",C3141*D3141) -> 
E3205: =IF(A3205="","",C3205*D3205) -> 
E3269: =IF(A3269="","",C3269*D3269) -> 
E3333: =IF(A3333="","",C3333*D3333) -> 
E3397: =IF(A3397="","",C3397*D3397) -> 
E3461: =IF(A3461="","",C3461*D3461) -> 
E3525: =IF(A3525="","",C3525*D3525) -> 
E3589: =IF(A3589="","",C3589*D3589) -> 
E3653: =IF(A3653="","",C3653*D3653) -> 
E3717: =IF(A3717="","",C3717*D3717) -> 
E3781: =IF(A3781="","",C3781*D3781) -> 
E3845: =IF(A3845="","",C3845*D3845) -> 
E3909: =IF(A3909="","",C3909*D3909) -> 
E3973: =IF(A3973="","",C3973*D3973) -> 
E4037: =IF(A4037="","",C4037*D4037) -> 
E4101: =IF(A4101="","",C4101*D4101) -> 
E4165: =IF(A4165="","",C4165*D4165) -> 
E4229: =IF(A4229="","",C4229*D4229) -> 
E4293: =IF(A4293="","",C4293*D4293) -> 
E4357: =IF(A4357="","",C4357*D4357) -> 
E4421: =IF(A4421="","",C4421*D4421) -> 
E4485: =IF(A4485="","",C4485*D4485) -> 
E4549: =IF(A4549="","",C4549*D4549) -> 
E4613: =IF(A4613="","",C4613*D4613) -> 
E4677: =IF(A4677="","",C4677*D4677) -> 
E4741: =IF(A4741="","",C4741*D4741) -> 
E4805: =IF(A4805="","",C4805*D4805) -> 
E4869: =IF(A4869="","",C4869*D4869) -> 
E4933: =IF(A4933="","",C4933*D4933) -> 
E4997: =IF(A4997="","",C4997*D4997) -> 
E5061: =IF(A5061="","",C5061*D5061) -> 
E5125: =IF(A5125="","",C5125*D5125) -> 
E5189: =IF(A5189="","",C5189*D5189) -> 

Sheet sheet2 (hidden)
A3: اسم الصنف | B3: الوحدة | C3: رصيد اول المدة | D3: رصيد الحركة | F3: الرصيد الفعلي
D4: وارد | E4: صادر
A5: =IF(بيانات!A4="","",بيانات!A4) -> سكر | B5: =IF(A5="","",IF(A5=بيانات!A4,بيانات!B4)) -> كيس | C5: =IF(A5="","",VLOOKUP(A5,بيانات!$A$4:$C$11363,3,0)) -> 1000 | D5: =IF(A5="","",SUMIFS(ورقة1!$G$4:$G$9994,ورقة1!$C$4:$C$9994,ورقة3!A5)) -> 500 | E5: =IF(A5="","",SUMIFS(ورقة1!$H$4:$H$9994,ورقة1!$C$4:$C$9994,ورقة3!A5)) -> 250 | F5: =IF(A5="","",C5+D5-E5) -> 1250
A6: =IF(بيانات!A5="","",بيانات!A5) -> رز | B6: =IF(A6="","",IF(A6=بيانات!A5,بيانات!B5)) -> كيس | C6: =IF(A6="","",VLOOKUP(A6,بيانات!$A$4:$C$11363,3,0)) -> 500 | D6: =IF(A6="","",SUMIFS(ورقة1!$G$4:$G$9994,ورقة1!$C$4:$C$9994,ورقة3!A6)) -> 0 | E6: =IF(A6="","",SUMIFS(ورقة1!$H$4:$H$9994,ورقة1!$C$4:$C$9994,ورقة3!A6)) -> 0 | F6: 500
A7: =IF(بيانات!A6="","",بيانات!A6) -> طحين | B7: =IF(A7="","",IF(A7=بيانات!A6,بيانات!B6)) -> كيس | C7: =IF(A7="","",VLOOKUP(A7,بيانات!$A$4:$C$11363,3,0)) -> 600 | D7: =IF(A7="","",SUMIFS(ورقة1!$G$4:$G$9994,ورقة1!$C$4:$C$9994,ورقة3!A7)) -> 200 | E7: =IF(A7="","",SUMIFS(ورقة1!$H$4:$H$9994,ورقة1!$C$4:$C$9994,ورقة3!A7)) -> 150 | F7: 650
A8: =IF(بيانات!A7="","",بيانات!A7) -> سردين | B8: =IF(A8="","",IF(A8=بيانات!A7,بيانات!B7)) -> قطعة | C8: =IF(A8="","",VLOOKUP(A8,بيانات!$A$4:$C$11363,3,0)) -> 1200 | D8: =IF(A8="","",SUMIFS(ورقة1!$G$4:$G$9994,ورقة1!$C$4:$C$9994,ورقة3!A8)) -> 500 | E8: =IF(A8="","",SUMIFS(ورقة1!$H$4:$H$9994,ورقة1!$C$4:$C$9994,ورقة3!A8)) -> 70 | F8: 1630
A9: =IF(بيانات!A8="","",بيانات!A8) -> طن | B9: =IF(A9="","",IF(A9=بيانات!A8,بيانات!B8)) -> قطعة | C9: =IF(A9="","",VLOOKUP(A9,بيانات!$A$4:$C$11363,3,0)) -> 800 | D9: =IF(A9="","",SUMIFS(ورقة1!$G$4:$G$9994,ورقة1!$C$4:$C$9994,ورقة3!A9)) -> 100 | E9: =IF(A9="","",SUMIFS(ورقة1!$H$4:$H$9994,ورقة1!$C$4:$C$9994,ورقة3!A9)) -> 200 | F9: 700
A10: =IF(بيانات!A9="","",بيانات!A9) -> عدس | B10: =IF(A10="","",IF(A10=بيانات!A9,بيانات!B9)) -> كيلو | C10: =IF(A10="","",VLOOKUP(A10,بيانات!$A$4:$C$11363,3,0)) -> 400 | D10: =IF(A10="","",SUMIFS(ورقة1!$G$4:$G$9994,ورقة1!$C$4:$C$9994,ورقة3!A10)) -> 0 | E10: =IF(A10="","",SUMIFS(ورقة1!$H$4:$H$9994,ورقة1!$C$4:$C$9994,ورقة3!A10)) -> 0 | F10: 400
A11: =IF(بيانات!A10="","",بيانات!A10) -> فاصوليا | B11: =IF(A11="","",IF(A11=بيانات!A10,بيانات!B10)) -> كيلو | C11: =IF(A11="","",VLOOKUP(A11,بيانات!$A$4:$C$11363,3,0)) -> 200 | D11: =IF(A11="","",SUMIFS(ورقة1!$G$4:$G$9994,ورقة1!$C$4:$C$9994,ورقة3!A11)) -> 1000 | E11: =IF(A11="","",SUMIFS(ورقة1!$H$4:$H$9994,ورقة1!$C$4:$C$9994,ورقة3!A11)) -> 0 | F11: 1200
A12: =IF(بيانات!A11="","",بيانات!A11) -> لبنة | B12: =IF(A12="","",IF(A12=بيانات!A11,بيانات!B11)) -> كيلو | C12: =IF(A12="","",VLOOKUP(A12,بيانات!$A$4:$C$11363,3,0)) -> 100 | D12: =IF(A12="","",SUMIFS(ورقة1!$G$4:$G$9994,ورقة1!$C$4:$C$9994,ورقة3!A12)) -> 1200 | E12: =IF(A12="","",SUMIFS(ورقة1!$H$4:$H$9994,ورقة1!$C$4:$C$9994,ورقة3!A12)) -> 0 | F12: 1300
A13: =IF(بيانات!A12="","",بيانات!A12) -> لوز | B13: =IF(A13="","",IF(A13=بيانات!A12,بيانات!B12)) -> كيلو | C13: =IF(A13="","",VLOOKUP(A13,بيانات!$A$4:$C$11363,3,0)) -> 150 | D13: =IF(A13="","",SUMIFS(ورقة1!$G$4:$G$9994,ورقة1!$C$4:$C$9994,ورقة3!A13)) -> 0 | E13: =IF(A13="","",SUMIFS(ورقة1!$H$4:$H$9994,ورقة1!$C$4:$C$9994,ورقة3!A13)) -> 0 | F13: 150
A14: =IF(بيانات!A13="","",بيانات!A13) -> جبنة مثلثات | B14: =IF(A14="","",IF(A14=بيانات!A13,بيانات!B13)) -> كرتونة | C14: =IF(A14="","",VLOOKUP(A14,بيانات!$A$4:$C$11363,3,0)) -> 0 | D14: =IF(A14="","",SUMIFS(ورقة1!$G$4:$G$9994,ورقة1!$C$4:$C$9994,ورقة3!A14)) -> 150 | E14: =IF(A14="","",SUMIFS(ورقة1!$H$4:$H$9994,ورقة1!$C$4:$C$9994,ورقة3!A14)) -> 55 | F14: 95
A15: =IF(بيانات!A14="","",بيانات!A14) ->  | B15: =IF(A15="","",IF(A15=بيانات!A14,بيانات!B14)) ->  | C15: =IF(A15="","",VLOOKUP(A15,بيانات!$A$4:$C$11363,3,0)) ->  | D15: =IF(A15="","",SUMIFS(ورقة1!$G$4:$G$9994,ورقة1!$C$4:$C$9994,ورقة3!A15)) ->  | E15: =IF(A15="","",SUMIFS(ورقة1!$H$4:$H$9994,ورقة1!$C$4:$C$9994,ورقة3!A15)) -> 
A16: =IF(بيانات!A15="","",بيانات!A15) ->  | B16: =IF(A16="","",IF(A16=بيانات!A15,بيانات!B15)) ->  | C16: =IF(A16="","",VLOOKUP(A16,بيانات!$A$4:$C$11363,3,0)) ->  | D16: =IF(A16="","",SUMIFS(ورقة1!$G$4:$G$9994,ورقة1!$C$4:$C$9994,ورقة3!A16)) ->  | E16: =IF(A16="","",SUMIFS(ورقة1!$H$4:$H$9994,ورقة1!$C$4:$C$9994,ورقة3!A16)) -> 
A17: =IF(بيانات!A16="","",بيانات!A16) ->  | B17: =IF(A17="","",IF(A17=بيانات!A16,بيانات!B16)) ->  | C17: =IF(A17="","",VLOOKUP(A17,بيانات!$A$4:$C$11363,3,0)) ->  | D17: =IF(A17="","",SUMIFS(ورقة1!$G$4:$G$9994,ورقة1!$C$4:$C$9994,ورقة3!A17)) ->  | E17: =IF(A17="","",SUMIFS(ورقة1!$H$4:$H$9994,ورقة1!$C$4:$C$9994,ورقة3!A17)) -> 
A18: =IF(بيانات!A17="","",بيانات!A17) ->  | B18: =IF(A18="","",IF(A18=بيانات!A17,بيانات!B17)) ->  | C18: =IF(A18="","",VLOOKUP(A18,بيانات!$A$4:$C$11363,3,0)) ->  | D18: =IF(A18="","",SUMIFS(ورقة1!$G$4:$G$9994,ورقة1!$C$4:$C$9994,ورقة3!A18)) ->  | E18: =IF(A18="","",SUMIFS(ورقة1!$H$4:$H$9994,ورقة1!$C$4:$C$9994,ورقة3!A18)) -> 
A19: =IF(بيانات!A18="","",بيانات!A18) ->  | B19: =IF(A19="","",IF(A19=بيانات!A18,بيانات!B18)) ->  | C19: =IF(A19="","",VLOOKUP(A19,بيانات!$A$4:$C$11363,3,0)) ->  | D19: =IF(A19="","",SUMIFS(ورقة1!$G$4:$G$9994,ورقة1!$C$4:$C$9994,ورقة3!A19)) ->  | E19: =IF(A19="","",SUMIFS(ورقة1!$H$4:$H$9994,ورقة1!$C$4:$C$9994,ورقة3!A19)) -> 
A20: =IF(بيانات!A19="","",بيانات!A19) ->  | B20: =IF(A20="","",IF(A20=بيانات!A19,بيانات!B19)) ->  | C20: =IF(A20="","",VLOOKUP(A20,بيانات!$A$4:$C$11363,3,0)) ->  | D20: =IF(A20="","",SUMIFS(ورقة1!$G$4:$G$9994,ورقة1!$C$4:$C$9994,ورقة3!A20)) ->  | E20: =IF(A20="","",SUMIFS(ورقة1!$H$4:$H$9994,ورقة1!$C$4:$C$9994,ورقة3!A20)) -> 
A21: =IF(بيانات!A20="","",بيانات!A20) ->  | B21: =IF(A21="","",IF(A21=بيانات!A20,بيانات!B20)) ->  | C21: =IF(A21="","",VLOOKUP(A21,بيانات!$A$4:$C$11363,3,0)) ->  | D21: =IF(A21="","",SUMIFS(ورقة1!$G$4:$G$9994,ورقة1!$C$4:$C$9994,ورقة3!A21)) ->  | E21: =IF(A21="","",SUMIFS(ورقة1!$H$4:$H$9994,ورقة1!$C$4:$C$9994,ورقة3!A21)) -> 
A22: =IF(بيانات!A21="","",بيانات!A21) ->  | B22: =IF(A22="","",IF(A22=بيانات!A21,بيانات!B21)) ->  | C22: =IF(A22="","",VLOOKUP(A22,بيانات!$A$4:$C$11363,3,0)) ->  | D22: =IF(A22="","",SUMIFS(ورقة1!$G$4:$G$9994,ورقة1!$C$4:$C$9994,ورقة3!A22)) ->  | E22: =IF(A22="","",SUMIFS(ورقة1!$H$4:$H$9994,ورقة1!$C$4:$C$9994,ورقة3!A22)) -> 
A23: =IF(بيانات!A22="","",بيانات!A22) ->  | B23: =IF(A23="","",IF(A23=بيانات!A22,بيانات!B22)) ->  | C23: =IF(A23="","",VLOOKUP(A23,بيانات!$A$4:$C$11363,3,0)) ->  | D23: =IF(A23="","",SUMIFS(ورقة1!$G$4:$G$9994,ورقة1!$C$4:$C$9994,ورقة3!A23)) ->  | E23: =IF(A23="","",SUMIFS(ورقة1!$H$4:$H$9994,ورقة1!$C$4:$C$9994,ورقة3!A23)) -> 
A24: =IF(بيانات!A23="","",بيانات!A23) ->  | B24: =IF(A24="","",IF(A24=بيانات!A23,بيانات!B23)) ->  | C24: =IF(A24="","",VLOOKUP(A24,بيانات!$A$4:$C$11363,3,0)) ->  | D24: =IF(A24="","",SUMIFS(ورقة1!$G$4:$G$9994,ورقة1!$C$4:$C$9994,ورقة3!A24)) ->  | E24: =IF(A24="","",SUMIFS(ورقة1!$H$4:$H$9994,ورقة1!$C$4:$C$9994,ورقة3!A24)) -> 
A25: =IF(بيانات!A24="","",بيانات!A24) ->  | B25: =IF(A25="","",IF(A25=بيانات!A24,بيانات!B24)) ->  | C25: =IF(A25="","",VLOOKUP(A25,بيانات!$A$4:$C$11363,3,0)) ->  | D25: =IF(A25="","",SUMIFS(ورقة1!$G$4:$G$9994,ورقة1!$C$4:$C$9994,ورقة3!A25)) ->  | E25: =IF(A25="","",SUMIFS(ورقة1!$H$4:$H$9994,ورقة1!$C$4:$C$9994,ورقة3!A25)) -> 
A26: =IF(بيانات!A25="","",بيانات!A25) ->  | B26: =IF(A26="","",IF(A26=بيانات!A25,بيانات!B25)) ->  | C26: =IF(A26="","",VLOOKUP(A26,بيانات!$A$4:$C$11363,3,0)) ->  | D26: =IF(A26="","",SUMIFS(ورقة1!$G$4:$G$9994,ورقة1!$C$4:$C$9994,ورقة3!A26)) ->  | E26: =IF(A26="","",SUMIFS(ورقة1!$H$4:$H$9994,ورقة1!$C$4:$C$9994,ورقة3!A26)) -> 
A27: =IF(بيانات!A26="","",بيانات!A26) ->  | B27: =IF(A27="","",IF(A27=بيانات!A26,بيانات!B26)) ->  | C27: =IF(A27="","",VLOOKUP(A27,بيانات!$A$4:$C$11363,3,0)) ->  | D27: =IF(A27="","",SUMIFS(ورقة1!$G$4:$G$9994,ورقة1!$C$4:$C$9994,ورقة3!A27)) ->  | E27: =IF(A27="","",SUMIFS(ورقة1!$H$4:$H$9994,ورقة1!$C$4:$C$9994,ورقة3!A27)) -> 
A28: =IF(بيانات!A27="","",بيانات!A27) ->  | B28: =IF(A28="","",IF(A28=بيانات!A27,بيانات!B27)) ->  | C28: =IF(A28="","",VLOOKUP(A28,بيانات!$A$4:$C$11363,3,0)) ->  | D28: =IF(A28="","",SUMIFS(ورقة1!$G$4:$G$9994,ورقة1!$C$4:$C$9994,ورقة3!A28)) ->  | E28: =IF(A28="","",SUMIFS(ورقة1!$H$4:$H$9994,ورقة1!$C$4:$C$9994,ورقة3!A28)) -> 
A29: =IF(بيانات!A28="","",بيانات!A28) ->  | B29: =IF(A29="","",IF(A29=بيانات!A28,بيانات!B28)) ->  | C29: =IF(A29="","",VLOOKUP(A29,بيانات!$A$4:$C$11363,3,0)) ->  | D29: =IF(A29="","",SUMIFS(ورقة1!$G$4:$G$9994,ورقة1!$C$4:$C$9994,ورقة3!A29)) ->  | E29: =IF(A29="","",SUMIFS(ورقة1!$H$4:$H$9994,ورقة1!$C$4:$C$9994,ورقة3!A29)) -> 
A30: =IF(بيانات!A29="","",بيانات!A29) ->  | B30: =IF(A30="","",IF(A30=بيانات!A29,بيانات!B29)) ->  | C30: =IF(A30="","",VLOOKUP(A30,بيانات!$A$4:$C$11363,3,0)) ->  | D30: =IF(A30="","",SUMIFS(ورقة1!$G$4:$G$9994,ورقة1!$C$4:$C$9994,ورقة3!A30)) ->  | E30: =IF(A30="","",SUMIFS(ورقة1!$H$4:$H$9994,ورقة1!$C$4:$C$9994,ورقة3!A30)) -> 
A31: =IF(بيانات!A30="","",بيانات!A30) ->  | B31: =IF(A31="","",IF(A31=بيانات!A30,بيانات!B30)) ->  | C31: =IF(A31="","",VLOOKUP(A31,بيانات!$A$4:$C$11363,3,0)) ->  | D31: =IF(A31="","",SUMIFS(ورقة1!$G$4:$G$9994,ورقة1!$C$4:$C$9994,ورقة3!A31)) ->  | E31: =IF(A31="","",SUMIFS(ورقة1!$H$4:$H$9994,ورقة1!$C$4:$C$9994,ورقة3!A31)) -> 
A32: =IF(بيانات!A31="","",بيانات!A31) ->  | B32: =IF(A32="","",IF(A32=بيانات!A31,بيانات!B31)) ->  | C32: =IF(A32="","",VLOOKUP(A32,بيانات!$A$4:$C$11363,3,0)) ->  | D32: =IF(A32="","",SUMIFS(ورقة1!$G$4:$G$9994,ورقة1!$C$4:$C$9994,ورقة3!A32)) ->  | E32: =IF(A32="","",SUMIFS(ورقة1!$H$4:$H$9994,ورقة1!$C$4:$C$9994,ورقة3!A32)) -> 
A33: =IF(بيانات!A32="","",بيانات!A32) ->  | B33: =IF(A33="","",IF(A33=بيانات!A32,بيانات!B32)) ->  | C33: =IF(A33="","",VLOOKUP(A33,بيانات!$A$4:$C$11363,3,0)) ->  | D33: =IF(A33="","",SUMIFS(ورقة1!$G$4:$G$9994,ورقة1!$C$4:$C$9994,ورقة3!A33)) ->  | E33: =IF(A33="","",SUMIFS(ورقة1!$H$4:$H$9994,ورقة1!$C$4:$C$9994,ورقة3!A33)) -> 
A34: =IF(بيانات!A33="","",بيانات!A33) ->  | B34: =IF(A34="","",IF(A34=بيانات!A33,بيانات!B33)) ->  | C34: =IF(A34="","",VLOOKUP(A34,بيانات!$A$4:$C$11363,3,0)) ->  | D34: =IF(A34="","",SUMIFS(ورقة1!$G$4:$G$9994,ورقة1!$C$4:$C$9994,ورقة3!A34)) ->  | E34: =IF(A34="","",SUMIFS(ورقة1!$H$4:$H$9994,ورقة1!$C$4:$C$9994,ورقة3!A34)) -> 
A35: =IF(بيانات!A34="","",بيانات!A34) ->  | B35: =IF(A35="","",IF(A35=بيانات!A34,بيانات!B34)) ->  | C35: =IF(A35="","",VLOOKUP(A35,بيانات!$A$4:$C$11363,3,0)) ->  | D35: =IF(A35="","",SUMIFS(ورقة1!$G$4:$G$9994,ورقة1!$C$4:$C$9994,ورقة3!A35)) ->  | E35: =IF(A35="","",SUMIFS(ورقة1!$H$4:$H$9994,ورقة1!$C$4:$C$9994,ورقة3!A35)) -> 
A36: =IF(بيانات!A35="","",بيانات!A35) ->  | B36: =IF(A36="","",IF(A36=بيانات!A35,بيانات!B35)) ->  | C36: =IF(A36="","",VLOOKUP(A36,بيانات!$A$4:$C$11363,3,0)) ->  | D36: =IF(A36="","",SUMIFS(ورقة1!$G$4:$G$9994,ورقة1!$C$4:$C$9994,ورقة3!A36)) ->  | E36: =IF(A36="","",SUMIFS(ورقة1!$H$4:$H$9994,ورقة1!$C$4:$C$9994,ورقة3!A36)) -> 
A37: =IF(بيانات!A36="","",بيانات!A36) ->  | B37: =IF(A37="","",IF(A37=بيانات!A36,بيانات!B36)) ->  | C37: =IF(A37="","",VLOOKUP(A37,بيانات!$A$4:$C$11363,3,0)) ->  | D37: =IF(A37="","",SUMIFS(ورقة1!$G$4:$G$9994,ورقة1!$C$4:$C$9994,ورقة3!A37)) ->  | E37: =IF(A37="","",SUMIFS(ورقة1!$H$4:$H$9994,ورقة1!$C$4:$C$9994,ورقة3!A37)) -> 
A38: =IF(بيانات!A37="","",بيانات!A37) ->  | B38: =IF(A38="","",IF(A38=بيانات!A37,بيانات!B37)) ->  | C38: =IF(A38="","",VLOOKUP(A38,بيانات!$A$4:$C$11363,3,0)) ->  | D38: =IF(A38="","",SUMIFS(ورقة1!$G$4:$G$9994,ورقة1!$C$4:$C$9994,ورقة3!A38)) ->  | E38: =IF(A38="","",SUMIFS(ورقة1!$H$4:$H$9994,ورقة1!$C$4:$C$9994,ورقة3!A38)) -> 
A39: =IF(بيانات!A38="","",بيانات!A38) ->  | B39: =IF(A39="","",IF(A39=بيانات!A38,بيانات!B38)) ->  | C39: =IF(A39="","",VLOOKUP(A39,بيانات!$A$4:$C$11363,3,0)) ->  | D39: =IF(A39="","",SUMIFS(ورقة1!$G$4:$G$9994,ورقة1!$C$4:$C$9994,ورقة3!A39)) ->  | E39: =IF(A39="","",SUMIFS(ورقة1!$H$4:$H$9994,ورقة1!$C$4:$C$9994,ورقة3!A39)) -> 
A40: =IF(بيانات!A39="","",بيانات!A39) ->  | B40: =IF(A40="","",IF(A40=بيانات!A39,بيانات!B39)) ->  | C40: =IF(A40="","",VLOOKUP(A40,بيانات!$A$4:$C$11363,3,0)) ->  | D40: =IF(A40="","",SUMIFS(ورقة1!$G$4:$G$9994,ورقة1!$C$4:$C$9994,ورقة3!A40)) ->  | E40: =IF(A40="","",SUMIFS(ورقة1!$H$4:$H$9994,ورقة1!$C$4:$C$9994,ورقة3!A40)) -> 
A41: =IF(بيانات!A40="","",بيانات!A40) ->  | B41: =IF(A41="","",IF(A41=بيانات!A40,بيانات!B40)) ->  | C41: =IF(A41="","",VLOOKUP(A41,بيانات!$A$4:$C$11363,3,0)) ->  | D41: =IF(A41="","",SUMIFS(ورقة1!$G$4:$G$9994,ورقة1!$C$4:$C$9994,ورقة3!A41)) ->  | E41: =IF(A41="","",SUMIFS(ورقة1!$H$4:$H$9994,ورقة1!$C$4:$C$9994,ورقة3!A41)) -> 
A42: =IF(بيانات!A41="","",بيانات!A41) ->  | B42: =IF(A42="","",IF(A42=بيانات!A41,بيانات!B41)) ->  | C42: =IF(A42="","",VLOOKUP(A42,بيانات!$A$4:$C$11363,3,0)) ->  | D42: =IF(A42="","",SUMIFS(ورقة1!$G$4:$G$9994,ورقة1!$C$4:$C$9994,ورقة3!A42)) ->  | E42: =IF(A42="","",SUMIFS(ورقة1!$H$4:$H$9994,ورقة1!$C$4:$C$9994,ورقة3!A42)) -> 
A43: =IF(بيانات!A42="","",بيانات!A42) ->  | B43: =IF(A43="","",IF(A43=بيانات!A42,بيانات!B42)) ->  | C43: =IF(A43="","",VLOOKUP(A43,بيانات!$A$4:$C$11363,3,0)) ->  | D43: =IF(A43="","",SUMIFS(ورقة1!$G$4:$G$9994,ورقة1!$C$4:$C$9994,ورقة3!A43)) ->  | E43: =IF(A43="","",SUMIFS(ورقة1!$H$4:$H$9994,ورقة1!$C$4:$C$9994,ورقة3!A43)) -> 
A44: =IF(بيانات!A43="","",بيانات!A43) ->  | B44: =IF(A44="","",IF(A44=بيانات!A43,بيانات!B43)) ->  | C44: =IF(A44="","",VLOOKUP(A44,بيانات!$A$4:$C$11363,3,0)) ->  | D44: =IF(A44="","",SUMIFS(ورقة1!$G$4:$G$9994,ورقة1!$C$4:$C$9994,ورقة3!A44)) ->  | E44: =IF(A44="","",SUMIFS(ورقة1!$H$4:$H$9994,ورقة1!$C$4:$C$9994,ورقة3!A44)) -> 
A45: =IF(بيانات!A44="","",بيانات!A44) ->  | B45: =IF(A45="","",IF(A45=بيانات!A44,بيانات!B44)) ->  | C45: =IF(A45="","",VLOOKUP(A45,بيانات!$A$4:$C$11363,3,0)) ->  | D45: =IF(A45="","",SUMIFS(ورقة1!$G$4:$G$9994,ورقة1!$C$4:$C$9994,ورقة3!A45)) ->  | E45: =IF(A45="","",SUMIFS(ورقة1!$H$4:$H$9994,ورقة1!$C$4:$C$9994,ورقة3!A45)) -> 
A46: =IF(بيانات!A45="","",بيانات!A45) ->  | B46: =IF(A46="","",IF(A46=بيانات!A45,بيانات!B45)) ->  | C46: =IF(A46="","",VLOOKUP(A46,بيانات!$A$4:$C$11363,3,0)) ->  | D46: =IF(A46="","",SUMIFS(ورقة1!$G$4:$G$9994,ورقة1!$C$4:$C$9994,ورقة3!A46)) ->  | E46: =IF(A46="","",SUMIFS(ورقة1!$H$4:$H$9994,ورقة1!$C$4:$C$9994,ورقة3!A46)) -> 
A47: =IF(بيانات!A46="","",بيانات!A46) ->  | B47: =IF(A47="","",IF(A47=بيانات!A46,بيانات!B46)) ->  | C47: =IF(A47="","",VLOOKUP(A47,بيانات!$A$4:$C$11363,3,0)) ->  | D47: =IF(A47="","",SUMIFS(ورقة1!$G$4:$G$9994,ورقة1!$C$4:$C$9994,ورقة3!A47)) ->  | E47: =IF(A47="","",SUMIFS(ورقة1!$H$4:$H$9994,ورقة1!$C$4:$C$9994,ورقة3!A47)) -> 
A48: =IF(بيانات!A47="","",بيانات!A47) ->  | B48: =IF(A48="","",IF(A48=بيانات!A47,بيانات!B47)) ->  | C48: =IF(A48="","",VLOOKUP(A48,بيانات!$A$4:$C$11363,3,0)) ->  | D48: =IF(A48="","",SUMIFS(ورقة1!$G$4:$G$9994,ورقة1!$C$4:$C$9994,ورقة3!A48)) ->  | E48: =IF(A48="","",SUMIFS(ورقة1!$H$4:$H$9994,ورقة1!$C$4:$C$9994,ورقة3!A48)) -> 
A49: =IF(بيانات!A48="","",بيانات!A48) ->  | B49: =IF(A49="","",IF(A49=بيانات!A48,بيانات!B48)) ->  | C49: =IF(A49="","",VLOOKUP(A49,بيانات!$A$4:$C$11363,3,0)) ->  | D49: =IF(A49="","",SUMIFS(ورقة1!$G$4:$G$9994,ورقة1!$C$4:$C$9994,ورقة3!A49)) ->  | E49: =IF(A49="","",SUMIFS(ورقة1!$H$4:$H$9994,ورقة1!$C$4:$C$9994,ورقة3!A49)) -> 
A50: =IF(بيانات!A49="","",بيانات!A49) ->  | B50: =IF(A50="","",IF(A50=بيانات!A49,بيانات!B49)) ->  | C50: =IF(A50="","",VLOOKUP(A50,بيانات!$A$4:$C$11363,3,0)) ->  | D50: =IF(A50="","",SUMIFS(ورقة1!$G$4:$G$9994,ورقة1!$C$4:$C$9994,ورقة3!A50)) ->  | E50: =IF(A50="","",SUMIFS(ورقة1!$H$4:$H$9994,ورقة1!$C$4:$C$9994,ورقة3!A50)) -> 
A51: =IF(بيانات!A50="","",بيانات!A50) ->  | B51: =IF(A51="","",IF(A51=بيانات!A50,بيانات!B50)) ->  | C51: =IF(A51="","",VLOOKUP(A51,بيانات!$A$4:$C$11363,3,0)) ->  | D51: =IF(A51="","",SUMIFS(ورقة1!$G$4:$G$9994,ورقة1!$C$4:$C$9994,ورقة3!A51)) ->  | E51: =IF(A51="","",SUMIFS(ورقة1!$H$4:$H$9994,ورقة1!$C$4:$C$9994,ورقة3!A51)) -> 
A52: =IF(بيانات!A51="","",بيانات!A51) ->  | B52: =IF(A52="","",IF(A52=بيانات!A51,بيانات!B51)) ->  | C52: =IF(A52="","",VLOOKUP(A52,بيانات!$A$4:$C$11363,3,0)) ->  | D52: =IF(A52="","",SUMIFS(ورقة1!$G$4:$G$9994,ورقة1!$C$4:$C$9994,ورقة3!A52)) ->  | E52: =IF(A52="","",SUMIFS(ورقة1!$H$4:$H$9994,ورقة1!$C$4:$C$9994,ورقة3!A52)) -> 
A53: =IF(بيانات!A52="","",بيانات!A52) ->  | B53: =IF(A53="","",IF(A53=بيانات!A52,بيانات!B52)) ->  | C53: =IF(A53="","",VLOOKUP(A53,بيانات!$A$4:$C$11363,3,0)) ->  | D53: =IF(A53="","",SUMIFS(ورقة1!$G$4:$G$9994,ورقة1!$C$4:$C$9994,ورقة3!A53)) ->  | E53: =IF(A53="","",SUMIFS(ورقة1!$H$4:$H$9994,ورقة1!$C$4:$C$9994,ورقة3!A53)) -> 
A54: =IF(بيانات!A53="","",بيانات!A53) ->  | B54: =IF(A54="","",IF(A54=بيانات!A53,بيانات!B53)) ->  | C54: =IF(A54="","",VLOOKUP(A54,بيانات!$A$4:$C$11363,3,0)) ->  | D54: =IF(A54="","",SUMIFS(ورقة1!$G$4:$G$9994,ورقة1!$C$4:$C$9994,ورقة3!A54)) ->  | E54: =IF(A54="","",SUMIFS(ورقة1!$H$4:$H$9994,ورقة1!$C$4:$C$9994,ورقة3!A54)) -> 
A55: =IF(بيانات!A54="","",بيانات!A54) ->  | B55: =IF(A55="","",IF(A55=بيانات!A54,بيانات!B54)) ->  | C55: =IF(A55="","",VLOOKUP(A55,بيانات!$A$4:$C$11363,3,0)) ->  | D55: =IF(A55="","",SUMIFS(ورقة1!$G$4:$G$9994,ورقة1!$C$4:$C$9994,ورقة3!A55)) ->  | E55: =IF(A55="","",SUMIFS(ورقة1!$H$4:$H$9994,ورقة1!$C$4:$C$9994,ورقة3!A55)) -> 
A56: =IF(بيانات!A55="","",بيانات!A55) ->  | B56: =IF(A56="","",IF(A56=بيانات!A55,بيانات!B55)) ->  | C56: =IF(A56="","",VLOOKUP(A56,بيانات!$A$4:$C$11363,3,0)) ->  | D56: =IF(A56="","",SUMIFS(ورقة1!$G$4:$G$9994,ورقة1!$C$4:$C$9994,ورقة3!A56)) ->  | E56: =IF(A56="","",SUMIFS(ورقة1!$H$4:$H$9994,ورقة1!$C$4:$C$9994,ورقة3!A56)) -> 
A57: =IF(بيانات!A56="","",بيانات!A56) ->  | B57: =IF(A57="","",IF(A57=بيانات!A56,بيانات!B56)) ->  | C57: =IF(A57="","",VLOOKUP(A57,بيانات!$A$4:$C$11363,3,0)) ->  | D57: =IF(A57="","",SUMIFS(ورقة1!$G$4:$G$9994,ورقة1!$C$4:$C$9994,ورقة3!A57)) ->  | E57: =IF(A57="","",SUMIFS(ورقة1!$H$4:$H$9994,ورقة1!$C$4:$C$9994,ورقة3!A57)) -> 
A58: =IF(بيانات!A57="","",بيانات!A57) ->  | B58: =IF(A58="","",IF(A58=بيانات!A57,بيانات!B57)) ->  | C58: =IF(A58="","",VLOOKUP(A58,بيانات!$A$4:$C$11363,3,0)) ->  | D58: =IF(A58="","",SUMIFS(ورقة1!$G$4:$G$9994,ورقة1!$C$4:$C$9994,ورقة3!A58)) ->  | E58: =IF(A58="","",SUMIFS(ورقة1!$H$4:$H$9994,ورقة1!$C$4:$C$9994,ورقة3!A58)) -> 
A59: =IF(بيانات!A58="","",بيانات!A58) ->  | B59: =IF(A59="","",IF(A59=بيانات!A58,بيانات!B58)) ->  | C59: =IF(A59="","",VLOOKUP(A59,بيانات!$A$4:$C$11363,3,0)) ->  | D59: =IF(A59="","",SUMIFS(ورقة1!$G$4:$G$9994,ورقة1!$C$4:$C$9994,ورقة3!A59)) ->  | E59: =IF(A59="","",SUMIFS(ورقة1!$H$4:$H$9994,ورقة1!$C$4:$C$9994,ورقة3!A59)) -> 
A60: =IF(بيانات!A59="","",بيانات!A59) ->  | B60: =IF(A60="","",IF(A60=بيانات!A59,بيانات!B59)) ->  | C60: =IF(A60="","",VLOOKUP(A60,بيانات!$A$4:$C$11363,3,0)) ->  | D60: =IF(A60="","",SUMIFS(ورقة1!$G$4:$G$9994,ورقة1!$C$4:$C$9994,ورقة3!A60)) ->  | E60: =IF(A60="","",SUMIFS(ورقة1!$H$4:$H$9994,ورقة1!$C$4:$C$9994,ورقة3!A60)) -> 
A61: =IF(بيانات!A60="","",بيانات!A60) ->  | B61: =IF(A61="","",IF(A61=بيانات!A60,بيانات!B60)) ->  | C61: =IF(A61="","",VLOOKUP(A61,بيانات!$A$4:$C$11363,3,0)) ->  | D61: =IF(A61="","",SUMIFS(ورقة1!$G$4:$G$9994,ورقة1!$C$4:$C$9994,ورقة3!A61)) ->  | E61: =IF(A61="","",SUMIFS(ورقة1!$H$4:$H$9994,ورقة1!$C$4:$C$9994,ورقة3!A61)) -> 
A62: =IF(بيانات!A61="","",بيانات!A61) ->  | B62: =IF(A62="","",IF(A62=بيانات!A61,بيانات!B61)) ->  | C62: =IF(A62="","",VLOOKUP(A62,بيانات!$A$4:$C$11363,3,0)) ->  | D62: =IF(A62="","",SUMIFS(ورقة1!$G$4:$G$9994,ورقة1!$C$4:$C$9994,ورقة3!A62)) ->  | E62: =IF(A62="","",SUMIFS(ورقة1!$H$4:$H$9994,ورقة1!$C$4:$C$9994,ورقة3!A62)) -> 
A63: =IF(بيانات!A62="","",بيانات!A62) ->  | B63: =IF(A63="","",IF(A63=بيانات!A62,بيانات!B62)) ->  | C63: =IF(A63="","",VLOOKUP(A63,بيانات!$A$4:$C$11363,3,0)) ->  | D63: =IF(A63="","",SUMIFS(ورقة1!$G$4:$G$9994,ورقة1!$C$4:$C$9994,ورقة3!A63)) ->  | E63: =IF(A63="","",SUMIFS(ورقة1!$H$4:$H$9994,ورقة1!$C$4:$C$9994,ورقة3!A63)) -> 
A64: =IF(بيانات!A63="","",بيانات!A63) ->  | B64: =IF(A64="","",IF(A64=بيانات!A63,بيانات!B63)) ->  | C64: =IF(A64="","",VLOOKUP(A64,بيانات!$A$4:$C$11363,3,0)) ->  | D64: =IF(A64="","",SUMIFS(ورقة1!$G$4:$G$9994,ورقة1!$C$4:$C$9994,ورقة3!A64)) ->  | E64: =IF(A64="","",SUMIFS(ورقة1!$H$4:$H$9994,ورقة1!$C$4:$C$9994,ورقة3!A64)) -> 
A65: =IF(بيانات!A64="","",بيانات!A64) ->  | B65: =IF(A65="","",IF(A65=بيانات!A64,بيانات!B64)) ->  | C65: =IF(A65="","",VLOOKUP(A65,بيانات!$A$4:$C$11363,3,0)) ->  | D65: =IF(A65="","",SUMIFS(ورقة1!$G$4:$G$9994,ورقة1!$C$4:$C$9994,ورقة3!A65)) ->  | E65: =IF(A65="","",SUMIFS(ورقة1!$H$4:$H$9994,ورقة1!$C$4:$C$9994,ورقة3!A65)) -> 
A66: =IF(بيانات!A65="","",بيانات!A65) ->  | B66: =IF(A66="","",IF(A66=بيانات!A65,بيانات!B65)) ->  | C66: =IF(A66="","",VLOOKUP(A66,بيانات!$A$4:$C$11363,3,0)) ->  | D66: =IF(A66="","",SUMIFS(ورقة1!$G$4:$G$9994,ورقة1!$C$4:$C$9994,ورقة3!A66)) ->  | E66: =IF(A66="","",SUMIFS(ورقة1!$H$4:$H$9994,ورقة1!$C$4:$C$9994,ورقة3!A66)) -> 
A67: =IF(بيانات!A66="","",بيانات!A66) ->  | B67: =IF(A67="","",IF(A67=بيانات!A66,بيانات!B66)) ->  | C67: =IF(A67="","",VLOOKUP(A67,بيانات!$A$4:$C$11363,3,0)) ->  | D67: =IF(A67="","",SUMIFS(ورقة1!$G$4:$G$9994,ورقة1!$C$4:$C$9994,ورقة3!A67)) ->  | E67: =IF(A67="","",SUMIFS(ورقة1!$H$4:$H$9994,ورقة1!$C$4:$C$9994,ورقة3!A67)) -> 
A68: =IF(بيانات!A67="","",بيانات!A67) ->  | B68: =IF(A68="","",IF(A68=بيانات!A67,بيانات!B67)) ->  | C68: =IF(A68="","",VLOOKUP(A68,بيانات!$A$4:$C$11363,3,0)) ->  | D68: =IF(A68="","",SUMIFS(ورقة1!$G$4:$G$9994,ورقة1!$C$4:$C$9994,ورقة3!A68)) ->  | E68: =IF(A68="","",SUMIFS(ورقة1!$H$4:$H$9994,ورقة1!$C$4:$C$9994,ورقة3!A68)) -> 
A69: =IF(بيانات!A68="","",بيانات!A68) ->  | B69: =IF(A69="","",IF(A69=بيانات!A68,بيانات!B68)) ->  | C69: =IF(A69="","",VLOOKUP(A69,بيانات!$A$4:$C$11363,3,0)) ->  | D69: =IF(A69="","",SUMIFS(ورقة1!$G$4:$G$9994,ورقة1!$C$4:$C$9994,ورقة3!A69)) ->  | E69: =IF(A69="","",SUMIFS(ورقة1!$H$4:$H$9994,ورقة1!$C$4:$C$9994,ورقة3!A69)) ->  | F69: =IF(A69="","",C69+D69-E69) -> 
A70: =IF(بيانات!A69="","",بيانات!A69) ->  | B70: =IF(A70="","",IF(A70=بيانات!A69,بيانات!B69)) ->  | C70: =IF(A70="","",VLOOKUP(A70,بيانات!$A$4:$C$11363,3,0)) ->  | D70: =IF(A70="","",SUMIFS(ورقة1!$G$4:$G$9994,ورقة1!$C$4:$C$9994,ورقة3!A70)) ->  | E70: =IF(A70="","",SUMIFS(ورقة1!$H$4:$H$9994,ورقة1!$C$4:$C$9994,ورقة3!A70)) -> 
A71: =IF(بيانات!A70="","",بيانات!A70) ->  | B71: =IF(A71="","",IF(A71=بيانات!A70,بيانات!B70)) ->  | C71: =IF(A71="","",VLOOKUP(A71,بيانات!$A$4:$C$11363,3,0)) ->  | D71: =IF(A71="","",SUMIFS(ورقة1!$G$4:$G$9994,ورقة1!$C$4:$C$9994,ورقة3!A71)) ->  | E71: =IF(A71="","",SUMIFS(ورقة1!$H$4:$H$9994,ورقة1!$C$4:$C$9994,ورقة3!A71)) -> 
A72: =IF(بيانات!A71="","",بيانات!A71) ->  | B72: =IF(A72="","",IF(A72=بيانات!A71,بيانات!B71)) ->  | C72: =IF(A72="","",VLOOKUP(A72,بيانات!$A$4:$C$11363,3,0)) ->  | D72: =IF(A72="","",SUMIFS(ورقة1!$G$4:$G$9994,ورقة1!$C$4:$C$9994,ورقة3!A72)) ->  | E72: =IF(A72="","",SUMIFS(ورقة1!$H$4:$H$9994,ورقة1!$C$4:$C$9994,ورقة3!A72)) -> 
A73: =IF(بيانات!A72="","",بيانات!A72) ->  | B73: =IF(A73="","",IF(A73=بيانات!A72,بيانات!B72)) ->  | C73: =IF(A73="","",VLOOKUP(A73,بيانات!$A$4:$C$11363,3,0)) ->  | D73: =IF(A73="","",SUMIFS(ورقة1!$G$4:$G$9994,ورقة1!$C$4:$C$9994,ورقة3!A73)) ->  | E73: =IF(A73="","",SUMIFS(ورقة1!$H$4:$H$9994,ورقة1!$C$4:$C$9994,ورقة3!A73)) -> 
A74: =IF(بيانات!A73="","",بيانات!A73) ->  | B74: =IF(A74="","",IF(A74=بيانات!A73,بيانات!B73)) ->  | C74: =IF(A74="","",VLOOKUP(A74,بيانات!$A$4:$C$11363,3,0)) ->  | D74: =IF(A74="","",SUMIFS(ورقة1!$G$4:$G$9994,ورقة1!$C$4:$C$9994,ورقة3!A74)) ->  | E74: =IF(A74="","",SUMIFS(ورقة1!$H$4:$H$9994,ورقة1!$C$4:$C$9994,ورقة3!A74)) -> 
A75: =IF(بيانات!A74="","",بيانات!A74) ->  | B75: =IF(A75="","",IF(A75=بيانات!A74,بيانات!B74)) ->  | C75: =IF(A75="","",VLOOKUP(A75,بيانات!$A$4:$C$11363,3,0)) ->  | D75: =IF(A75="","",SUMIFS(ورقة1!$G$4:$G$9994,ورقة1!$C$4:$C$9994,ورقة3!A75)) ->  | E75: =IF(A75="","",SUMIFS(ورقة1!$H$4:$H$9994,ورقة1!$C$4:$C$9994,ورقة3!A75)) -> 
A76: =IF(بيانات!A75="","",بيانات!A75) ->  | B76: =IF(A76="","",IF(A76=بيانات!A75,بيانات!B75)) ->  | C76: =IF(A76="","",VLOOKUP(A76,بيانات!$A$4:$C$11363,3,0)) ->  | D76: =IF(A76="","",SUMIFS(ورقة1!$G$4:$G$9994,ورقة1!$C$4:$C$9994,ورقة3!A76)) ->  | E76: =IF(A76="","",SUMIFS(ورقة1!$H$4:$H$9994,ورقة1!$C$4:$C$9994,ورقة3!A76)) -> 
A77: =IF(بيانات!A76="","",بيانات!A76) ->  | B77: =IF(A77="","",IF(A77=بيانات!A76,بيانات!B76)) ->  | C77: =IF(A77="","",VLOOKUP(A77,بيانات!$A$4:$C$11363,3,0)) ->  | D77: =IF(A77="","",SUMIFS(ورقة1!$G$4:$G$9994,ورقة1!$C$4:$C$9994,ورقة3!A77)) ->  | E77: =IF(A77="","",SUMIFS(ورقة1!$H$4:$H$9994,ورقة1!$C$4:$C$9994,ورقة3!A77)) -> 
A78: =IF(بيانات!A77="","",بيانات!A77) ->  | B78: =IF(A78="","",IF(A78=بيانات!A77,بيانات!B77)) ->  | C78: =IF(A78="","",VLOOKUP(A78,بيانات!$A$4:$C$11363,3,0)) ->  | D78: =IF(A78="","",SUMIFS(ورقة1!$G$4:$G$9994,ورقة1!$C$4:$C$9994,ورقة3!A78)) ->  | E78: =IF(A78="","",SUMIFS(ورقة1!$H$4:$H$9994,ورقة1!$C$4:$C$9994,ورقة3!A78)) -> 
A79: =IF(بيانات!A78="","",بيانات!A78) ->  | B79: =IF(A79="","",IF(A79=بيانات!A78,بيانات!B78)) ->  | C79: =IF(A79="","",VLOOKUP(A79,بيانات!$A$4:$C$11363,3,0)) ->  | D79: =IF(A79="","",SUMIFS(ورقة1!$G$4:$G$9994,ورقة1!$C$4:$C$9994,ورقة3!A79)) ->  | E79: =IF(A79="","",SUMIFS(ورقة1!$H$4:$H$9994,ورقة1!$C$4:$C$9994,ورقة3!A79)) -> 
A80: =IF(بيانات!A79="","",بيانات!A79) ->  | B80: =IF(A80="","",IF(A80=بيانات!A79,بيانات!B79)) ->  | C80: =IF(A80="","",VLOOKUP(A80,بيانات!$A$4:$C$11363,3,0)) ->  | D80: =IF(A80="","",SUMIFS(ورقة1!$G$4:$G$9994,ورقة1!$C$4:$C$9994,ورقة3!A80)) ->  | E80: =IF(A80="","",SUMIFS(ورقة1!$H$4:$H$9994,ورقة1!$C$4:$C$9994,ورقة3!A80)) -> 
A81: =IF(بيانات!A80="","",بيانات!A80) ->  | B81: =IF(A81="","",IF(A81=بيانات!A80,بيانات!B80)) ->  | C81: =IF(A81="","",VLOOKUP(A81,بيانات!$A$4:$C$11363,3,0)) ->  | D81: =IF(A81="","",SUMIFS(ورقة1!$G$4:$G$9994,ورقة1!$C$4:$C$9994,ورقة3!A81)) ->  | E81: =IF(A81="","",SUMIFS(ورقة1!$H$4:$H$9994,ورقة1!$C$4:$C$9994,ورقة3!A81)) -> 
A82: =IF(بيانات!A81="","",بيانات!A81) ->  | B82: =IF(A82="","",IF(A82=بيانات!A81,بيانات!B81)) ->  | C82: =IF(A82="","",VLOOKUP(A82,بيانات!$A$4:$C$11363,3,0)) ->  | D82: =IF(A82="","",SUMIFS(ورقة1!$G$4:$G$9994,ورقة1!$C$4:$C$9994,ورقة3!A82)) ->  | E82: =IF(A82="","",SUMIFS(ورقة1!$H$4:$H$9994,ورقة1!$C$4:$C$9994,ورقة3!A82)) -> 
A83: =IF(بيانات!A82="","",بيانات!A82) ->  | B83: =IF(A83="","",IF(A83=بيانات!A82,بيانات!B82)) ->  | C83: =IF(A83="","",VLOOKUP(A83,بيانات!$A$4:$C$11363,3,0)) ->  | D83: =IF(A83="","",SUMIFS(ورقة1!$G$4:$G$9994,ورقة1!$C$4:$C$9994,ورقة3!A83)) ->  | E83: =IF(A83="","",SUMIFS(ورقة1!$H$4:$H$9994,ورقة1!$C$4:$C$9994,ورقة3!A83)) -> 
A84: =IF(بيانات!A83="","",بيانات!A83) ->  | B84: =IF(A84="","",IF(A84=بيانات!A83,بيانات!B83)) ->  | C84: =IF(A84="","",VLOOKUP(A84,بيانات!$A$4:$C$11363,3,0)) ->  | D84: =IF(A84="","",SUMIFS(ورقة1!$G$4:$G$9994,ورقة1!$C$4:$C$9994,ورقة3!A84)) ->  | E84: =IF(A84="","",SUMIFS(ورقة1!$H$4:$H$9994,ورقة1!$C$4:$C$9994,ورقة3!A84)) -> 
A85: =IF(بيانات!A84="","",بيانات!A84) ->  | B85: =IF(A85="","",IF(A85=بيانات!A84,بيانات!B84)) ->  | C85: =IF(A85="","",VLOOKUP(A85,بيانات!$A$4:$C$11363,3,0)) ->  | D85: =IF(A85="","",SUMIFS(ورقة1!$G$4:$G$9994,ورقة1!$C$4:$C$9994,ورقة3!A85)) ->  | E85: =IF(A85="","",SUMIFS(ورقة1!$H$4:$H$9994,ورقة1!$C$4:$C$9994,ورقة3!A85)) -> 
A86: =IF(بيانات!A85="","",بيانات!A85) ->  | B86: =IF(A86="","",IF(A86=بيانات!A85,بيانات!B85)) ->  | C86: =IF(A86="","",VLOOKUP(A86,بيانات!$A$4:$C$11363,3,0)) ->  | D86: =IF(A86="","",SUMIFS(ورقة1!$G$4:$G$9994,ورقة1!$C$4:$C$9994,ورقة3!A86)) ->  | E86: =IF(A86="","",SUMIFS(ورقة1!$H$4:$H$9994,ورقة1!$C$4:$C$9994,ورقة3!A86)) -> 
A87: =IF(بيانات!A86="","",بيانات!A86) ->  | B87: =IF(A87="","",IF(A87=بيانات!A86,بيانات!B86)) ->  | C87: =IF(A87="","",VLOOKUP(A87,بيانات!$A$4:$C$11363,3,0)) ->  | D87: =IF(A87="","",SUMIFS(ورقة1!$G$4:$G$9994,ورقة1!$C$4:$C$9994,ورقة3!A87)) ->  | E87: =IF(A87="","",SUMIFS(ورقة1!$H$4:$H$9994,ورقة1!$C$4:$C$9994,ورقة3!A87)) -> 
A88: =IF(بيانات!A87="","",بيانات!A87) ->  | B88: =IF(A88="","",IF(A88=بيانات!A87,بيانات!B87)) ->  | C88: =IF(A88="","",VLOOKUP(A88,بيانات!$A$4:$C$11363,3,0)) ->  | D88: =IF(A88="","",SUMIFS(ورقة1!$G$4:$G$9994,ورقة1!$C$4:$C$9994,ورقة3!A88)) ->  | E88: =IF(A88="","",SUMIFS(ورقة1!$H$4:$H$9994,ورقة1!$C$4:$C$9994,ورقة3!A88)) -> 
A89: =IF(بيانات!A88="","",بيانات!A88) ->  | B89: =IF(A89="","",IF(A89=بيانات!A88,بيانات!B88)) ->  | C89: =IF(A89="","",VLOOKUP(A89,بيانات!$A$4:$C$11363,3,0)) ->  | D89: =IF(A89="","",SUMIFS(ورقة1!$G$4:$G$9994,ورقة1!$C$4:$C$9994,ورقة3!A89)) ->  | E89: =IF(A89="","",SUMIFS(ورقة1!$H$4:$H$9994,ورقة1!$C$4:$C$9994,ورقة3!A89)) -> 
A90: =IF(بيانات!A89="","",بيانات!A89) ->  | B90: =IF(A90="","",IF(A90=بيانات!A89,بيانات!B89)) ->  | C90: =IF(A90="","",VLOOKUP(A90,بيانات!$A$4:$C$11363,3,0)) ->  | D90: =IF(A90="","",SUMIFS(ورقة1!$G$4:$G$9994,ورقة1!$C$4:$C$9994,ورقة3!A90)) ->  | E90: =IF(A90="","",SUMIFS(ورقة1!$H$4:$H$9994,ورقة1!$C$4:$C$9994,ورقة3!A90)) -> 
A91: =IF(بيانات!A90="","",بيانات!A90) ->  | B91: =IF(A91="","",IF(A91=بيانات!A90,بيانات!B90)) ->  | C91: =IF(A91="","",VLOOKUP(A91,بيانات!$A$4:$C$11363,3,0)) ->  | D91: =IF(A91="","",SUMIFS(ورقة1!$G$4:$G$9994,ورقة1!$C$4:$C$9994,ورقة3!A91)) ->  | E91: =IF(A91="","",SUMIFS(ورقة1!$H$4:$H$9994,ورقة1!$C$4:$C$9994,ورقة3!A91)) -> 
A92: =IF(بيانات!A91="","",بيانات!A91) ->  | B92: =IF(A92="","",IF(A92=بيانات!A91,بيانات!B91)) ->  | C92: =IF(A92="","",VLOOKUP(A92,بيانات!$A$4:$C$11363,3,0)) ->  | D92: =IF(A92="","",SUMIFS(ورقة1!$G$4:$G$9994,ورقة1!$C$4:$C$9994,ورقة3!A92)) ->  | E92: =IF(A92="","",SUMIFS(ورقة1!$H$4:$H$9994,ورقة1!$C$4:$C$9994,ورقة3!A92)) -> 
A93: =IF(بيانات!A92="","",بيانات!A92) ->  | B93: =IF(A93="","",IF(A93=بيانات!A92,بيانات!B92)) ->  | C93: =IF(A93="","",VLOOKUP(A93,بيانات!$A$4:$C$11363,3,0)) ->  | D93: =IF(A93="","",SUMIFS(ورقة1!$G$4:$G$9994,ورقة1!$C$4:$C$9994,ورقة3!A93)) ->  | E93: =IF(A93="","",SUMIFS(ورقة1!$H$4:$H$9994,ورقة1!$C$4:$C$9994,ورقة3!A93)) -> 
A94: =IF(بيانات!A93="","",بيانات!A93) ->  | B94: =IF(A94="","",IF(A94=بيانات!A93,بيانات!B93)) ->  | C94: =IF(A94="","",VLOOKUP(A94,بيانات!$A$4:$C$11363,3,0)) ->  | D94: =IF(A94="","",SUMIFS(ورقة1!$G$4:$G$9994,ورقة1!$C$4:$C$9994,ورقة3!A94)) ->  | E94: =IF(A94="","",SUMIFS(ورقة1!$H$4:$H$9994,ورقة1!$C$4:$C$9994,ورقة3!A94)) -> 
A95: =IF(بيانات!A94="","",بيانات!A94) ->  | B95: =IF(A95="","",IF(A95=بيانات!A94,بيانات!B94)) ->  | C95: =IF(A95="","",VLOOKUP(A95,بيانات!$A$4:$C$11363,3,0)) ->  | D95: =IF(A95="","",SUMIFS(ورقة1!$G$4:$G$9994,ورقة1!$C$4:$C$9994,ورقة3!A95)) ->  | E95: =IF(A95="","",SUMIFS(ورقة1!$H$4:$H$9994,ورقة1!$C$4:$C$9994,ورقة3!A95)) -> 
A96: =IF(بيانات!A95="","",بيانات!A95) ->  | B96: =IF(A96="","",IF(A96=بيانات!A95,بيانات!B95)) ->  | C96: =IF(A96="","",VLOOKUP(A96,بيانات!$A$4:$C$11363,3,0)) ->  | D96: =IF(A96="","",SUMIFS(ورقة1!$G$4:$G$9994,ورقة1!$C$4:$C$9994,ورقة3!A96)) ->  | E96: =IF(A96="","",SUMIFS(ورقة1!$H$4:$H$9994,ورقة1!$C$4:$C$9994,ورقة3!A96)) -> 
A97: =IF(بيانات!A96="","",بيانات!A96) ->  | B97: =IF(A97="","",IF(A97=بيانات!A96,بيانات!B96)) ->  | C97: =IF(A97="","",VLOOKUP(A97,بيانات!$A$4:$C$11363,3,0)) ->  | D97: =IF(A97="","",SUMIFS(ورقة1!$G$4:$G$9994,ورقة1!$C$4:$C$9994,ورقة3!A97)) ->  | E97: =IF(A97="","",SUMIFS(ورقة1!$H$4:$H$9994,ورقة1!$C$4:$C$9994,ورقة3!A97)) -> 
A98: =IF(بيانات!A97="","",بيانات!A97) ->  | B98: =IF(A98="","",IF(A98=بيانات!A97,بيانات!B97)) ->  | C98: =IF(A98="","",VLOOKUP(A98,بيانات!$A$4:$C$11363,3,0)) ->  | D98: =IF(A98="","",SUMIFS(ورقة1!$G$4:$G$9994,ورقة1!$C$4:$C$9994,ورقة3!A98)) ->  | E98: =IF(A98="","",SUMIFS(ورقة1!$H$4:$H$9994,ورقة1!$C$4:$C$9994,ورقة3!A98)) -> 
A99: =IF(بيانات!A98="","",بيانات!A98) ->  | B99: =IF(A99="","",IF(A99=بيانات!A98,بيانات!B98)) ->  | C99: =IF(A99="","",VLOOKUP(A99,بيانات!$A$4:$C$11363,3,0)) ->  | D99: =IF(A99="","",SUMIFS(ورقة1!$G$4:$G$9994,ورقة1!$C$4:$C$9994,ورقة3!A99)) ->  | E99: =IF(A99="","",SUMIFS(ورقة1!$H$4:$H$9994,ورقة1!$C$4:$C$9994,ورقة3!A99)) -> 
A100: =IF(بيانات!A99="","",بيانات!A99) ->  | B100: =IF(A100="","",IF(A100=بيانات!A99,بيانات!B99)) ->  | C100: =IF(A100="","",VLOOKUP(A100,بيانات!$A$4:$C$11363,3,0)) ->  | D100: =IF(A100="","",SUMIFS(ورقة1!$G$4:$G$9994,ورقة1!$C$4:$C$9994,ورقة3!A100)) ->  | E100: =IF(A100="","",SUMIFS(ورقة1!$H$4:$H$9994,ورقة1!$C$4:$C$9994,ورقة3!A100)) -> 
A101: =IF(بيانات!A100="","",بيانات!A100) ->  | B101: =IF(A101="","",IF(A101=بيانات!A100,بيانات!B100)) ->  | C101: =IF(A101="","",VLOOKUP(A101,بيانات!$A$4:$C$11363,3,0)) ->  | D101: =IF(A101="","",SUMIFS(ورقة1!$G$4:$G$9994,ورقة1!$C$4:$C$9994,ورقة3!A101)) ->  | E101: =IF(A101="","",SUMIFS(ورقة1!$H$4:$H$9994,ورقة1!$C$4:$C$9994,ورقة3!A101)) -> 
A102: =IF(بيانات!A101="","",بيانات!A101) ->  | B102: =IF(A102="","",IF(A102=بيانات!A101,بيانات!B101)) ->  | C102: =IF(A102="","",VLOOKUP(A102,بيانات!$A$4:$C$11363,3,0)) ->  | D102: =IF(A102="","",SUMIFS(ورقة1!$G$4:$G$9994,ورقة1!$C$4:$C$9994,ورقة3!A102)) ->  | E102: =IF(A102="","",SUMIFS(ورقة1!$H$4:$H$9994,ورقة1!$C$4:$C$9994,ورقة3!A102)) -> 
A103: =IF(بيانات!A102="","",بيانات!A102) ->  | B103: =IF(A103="","",IF(A103=بيانات!A102,بيانات!B102)) ->  | C103: =IF(A103="","",VLOOKUP(A103,بيانات!$A$4:$C$11363,3,0)) ->  | D103: =IF(A103="","",SUMIFS(ورقة1!$G$4:$G$9994,ورقة1!$C$4:$C$9994,ورقة3!A103)) ->  | E103: =IF(A103="","",SUMIFS(ورقة1!$H$4:$H$9994,ورقة1!$C$4:$C$9994,ورقة3!A103)) -> 
A104: =IF(بيانات!A103="","",بيانات!A103) ->  | B104: =IF(A104="","",IF(A104=بيانات!A103,بيانات!B103)) ->  | C104: =IF(A104="","",VLOOKUP(A104,بيانات!$A$4:$C$11363,3,0)) ->  | D104: =IF(A104="","",SUMIFS(ورقة1!$G$4:$G$9994,ورقة1!$C$4:$C$9994,ورقة3!A104)) ->  | E104: =IF(A104="","",SUMIFS(ورقة1!$H$4:$H$9994,ورقة1!$C$4:$C$9994,ورقة3!A104)) -> 
A105: =IF(بيانات!A104="","",بيانات!A104) ->  | B105: =IF(A105="","",IF(A105=بيانات!A104,بيانات!B104)) ->  | C105: =IF(A105="","",VLOOKUP(A105,بيانات!$A$4:$C$11363,3,0)) ->  | D105: =IF(A105="","",SUMIFS(ورقة1!$G$4:$G$9994,ورقة1!$C$4:$C$9994,ورقة3!A105)) ->  | E105: =IF(A105="","",SUMIFS(ورقة1!$H$4:$H$9994,ورقة1!$C$4:$C$9994,ورقة3!A105)) -> 
A106: =IF(بيانات!A105="","",بيانات!A105) ->  | B106: =IF(A106="","",IF(A106=بيانات!A105,بيانات!B105)) ->  | C106: =IF(A106="","",VLOOKUP(A106,بيانات!$A$4:$C$11363,3,0)) ->  | D106: =IF(A106="","",SUMIFS(ورقة1!$G$4:$G$9994,ورقة1!$C$4:$C$9994,ورقة3!A106)) ->  | E106: =IF(A106="","",SUMIFS(ورقة1!$H$4:$H$9994,ورقة1!$C$4:$C$9994,ورقة3!A106)) -> 
A107: =IF(بيانات!A106="","",بيانات!A106) ->  | B107: =IF(A107="","",IF(A107=بيانات!A106,بيانات!B106)) ->  | C107: =IF(A107="","",VLOOKUP(A107,بيانات!$A$4:$C$11363,3,0)) ->  | D107: =IF(A107="","",SUMIFS(ورقة1!$G$4:$G$9994,ورقة1!$C$4:$C$9994,ورقة3!A107)) ->  | E107: =IF(A107="","",SUMIFS(ورقة1!$H$4:$H$9994,ورقة1!$C$4:$C$9994,ورقة3!A107)) -> 
A108: =IF(بيانات!A107="","",بيانات!A107) ->  | B108: =IF(A108="","",IF(A108=بيانات!A107,بيانات!B107)) ->  | C108: =IF(A108="","",VLOOKUP(A108,بيانات!$A$4:$C$11363,3,0)) ->  | D108: =IF(A108="","",SUMIFS(ورقة1!$G$4:$G$9994,ورقة1!$C$4:$C$9994,ورقة3!A108)) ->  | E108: =IF(A108="","",SUMIFS(ورقة1!$H$4:$H$9994,ورقة1!$C$4:$C$9994,ورقة3!A108)) -> 
A109: =IF(بيانات!A108="","",بيانات!A108) ->  | B109: =IF(A109="","",IF(A109=بيانات!A108,بيانات!B108)) ->  | C109: =IF(A109="","",VLOOKUP(A109,بيانات!$A$4:$C$11363,3,0)) ->  | D109: =IF(A109="","",SUMIFS(ورقة1!$G$4:$G$9994,ورقة1!$C$4:$C$9994,ورقة3!A109)) ->  | E109: =IF(A109="","",SUMIFS(ورقة1!$H$4:$H$9994,ورقة1!$C$4:$C$9994,ورقة3!A109)) -> 
A110: =IF(بيانات!A109="","",بيانات!A109) ->  | B110: =IF(A110="","",IF(A110=بيانات!A109,بيانات!B109)) ->  | C110: =IF(A110="","",VLOOKUP(A110,بيانات!$A$4:$C$11363,3,0)) ->  | D110: =IF(A110="","",SUMIFS(ورقة1!$G$4:$G$9994,ورقة1!$C$4:$C$9994,ورقة3!A110)) ->  | E110: =IF(A110="","",SUMIFS(ورقة1!$H$4:$H$9994,ورقة1!$C$4:$C$9994,ورقة3!A110)) -> 
A111: =IF(بيانات!A110="","",بيانات!A110) ->  | B111: =IF(A111="","",IF(A111=بيانات!A110,بيانات!B110)) ->  | C111: =IF(A111="","",VLOOKUP(A111,بيانات!$A$4:$C$11363,3,0)) ->  | D111: =IF(A111="","",SUMIFS(ورقة1!$G$4:$G$9994,ورقة1!$C$4:$C$9994,ورقة3!A111)) ->  | E111: =IF(A111="","",SUMIFS(ورقة1!$H$4:$H$9994,ورقة1!$C$4:$C$9994,ورقة3!A111)) -> 
A112: =IF(بيانات!A111="","",بيانات!A111) ->  | B112: =IF(A112="","",IF(A112=بيانات!A111,بيانات!B111)) ->  | C112: =IF(A112="","",VLOOKUP(A112,بيانات!$A$4:$C$11363,3,0)) ->  | D112: =IF(A112="","",SUMIFS(ورقة1!$G$4:$G$9994,ورقة1!$C$4:$C$9994,ورقة3!A112)) ->  | E112: =IF(A112="","",SUMIFS(ورقة1!$H$4:$H$9994,ورقة1!$C$4:$C$9994,ورقة3!A112)) -> 
A113: =IF(بيانات!A112="","",بيانات!A112) ->  | B113: =IF(A113="","",IF(A113=بيانات!A112,بيانات!B112)) ->  | C113: =IF(A113="","",VLOOKUP(A113,بيانات!$A$4:$C$11363,3,0)) ->  | D113: =IF(A113="","",SUMIFS(ورقة1!$G$4:$G$9994,ورقة1!$C$4:$C$9994,ورقة3!A113)) ->  | E113: =IF(A113="","",SUMIFS(ورقة1!$H$4:$H$9994,ورقة1!$C$4:$C$9994,ورقة3!A113)) -> 
A114: =IF(بيانات!A113="","",بيانات!A113) ->  | B114: =IF(A114="","",IF(A114=بيانات!A113,بيانات!B113)) ->  | C114: =IF(A114="","",VLOOKUP(A114,بيانات!$A$4:$C$11363,3,0)) ->  | D114: =IF(A114="","",SUMIFS(ورقة1!$G$4:$G$9994,ورقة1!$C$4:$C$9994,ورقة3!A114)) ->  | E114: =IF(A114="","",SUMIFS(ورقة1!$H$4:$H$9994,ورقة1!$C$4:$C$9994,ورقة3!A114)) -> 
A115: =IF(بيانات!A114="","",بيانات!A114) ->  | B115: =IF(A115="","",IF(A115=بيانات!A114,بيانات!B114)) ->  | C115: =IF(A115="","",VLOOKUP(A115,بيانات!$A$4:$C$11363,3,0)) ->  | D115: =IF(A115="","",SUMIFS(ورقة1!$G$4:$G$9994,ورقة1!$C$4:$C$9994,ورقة3!A115)) ->  | E115: =IF(A115="","",SUMIFS(ورقة1!$H$4:$H$9994,ورقة1!$C$4:$C$9994,ورقة3!A115)) -> 
A116: =IF(بيانات!A115="","",بيانات!A115) ->  | B116: =IF(A116="","",IF(A116=بيانات!A115,بيانات!B115)) ->  | C116: =IF(A116="","",VLOOKUP(A116,بيانات!$A$4:$C$11363,3,0)) ->  | D116: =IF(A116="","",SUMIFS(ورقة1!$G$4:$G$9994,ورقة1!$C$4:$C$9994,ورقة3!A116)) ->  | E116: =IF(A116="","",SUMIFS(ورقة1!$H$4:$H$9994,ورقة1!$C$4:$C$9994,ورقة3!A116)) -> 
A117: =IF(بيانات!A116="","",بيانات!A116) ->  | B117: =IF(A117="","",IF(A117=بيانات!A116,بيانات!B116)) ->  | C117: =IF(A117="","",VLOOKUP(A117,بيانات!$A$4:$C$11363,3,0)) ->  | D117: =IF(A117="","",SUMIFS(ورقة1!$G$4:$G$9994,ورقة1!$C$4:$C$9994,ورقة3!A117)) ->  | E117: =IF(A117="","",SUMIFS(ورقة1!$H$4:$H$9994,ورقة1!$C$4:$C$9994,ورقة3!A117)) -> 
A118: =IF(بيانات!A117="","",بيانات!A117) ->  | B118: =IF(A118="","",IF(A118=بيانات!A117,بيانات!B117)) ->  | C118: =IF(A118="","",VLOOKUP(A118,بيانات!$A$4:$C$11363,3,0)) ->  | D118: =IF(A118="","",SUMIFS(ورقة1!$G$4:$G$9994,ورقة1!$C$4:$C$9994,ورقة3!A118)) ->  | E118: =IF(A118="","",SUMIFS(ورقة1!$H$4:$H$9994,ورقة1!$C$4:$C$9994,ورقة3!A118)) -> 
A119: =IF(بيانات!A118="","",بيانات!A118) ->  | B119: =IF(A119="","",IF(A119=بيانات!A118,بيانات!B118)) ->  | C119: =IF(A119="","",VLOOKUP(A119,بيانات!$A$4:$C$11363,3,0)) ->  | D119: =IF(A119="","",SUMIFS(ورقة1!$G$4:$G$9994,ورقة1!$C$4:$C$9994,ورقة3!A119)) ->  | E119: =IF(A119="","",SUMIFS(ورقة1!$H$4:$H$9994,ورقة1!$C$4:$C$9994,ورقة3!A119)) -> 
A120: =IF(بيانات!A119="","",بيانات!A119) ->  | B120: =IF(A120="","",IF(A120=بيانات!A119,بيانات!B119)) ->  | C120: =IF(A120="","",VLOOKUP(A120,بيانات!$A$4:$C$11363,3,0)) ->  | D120: =IF(A120="","",SUMIFS(ورقة1!$G$4:$G$9994,ورقة1!$C$4:$C$9994,ورقة3!A120)) ->  | E120: =IF(A120="","",SUMIFS(ورقة1!$H$4:$H$9994,ورقة1!$C$4:$C$9994,ورقة3!A120)) -> 
A121: =IF(بيانات!A120="","",بيانات!A120) ->  | B121: =IF(A121="","",IF(A121=بيانات!A120,بيانات!B120)) ->  | C121: =IF(A121="","",VLOOKUP(A121,بيانات!$A$4:$C$11363,3,0)) ->  | D121: =IF(A121="","",SUMIFS(ورقة1!$G$4:$G$9994,ورقة1!$C$4:$C$9994,ورقة3!A121)) ->  | E121: =IF(A121="","",SUMIFS(ورقة1!$H$4:$H$9994,ورقة1!$C$4:$C$9994,ورقة3!A121)) -> 
A122: =IF(بيانات!A121="","",بيانات!A121) ->  | B122: =IF(A122="","",IF(A122=بيانات!A121,بيانات!B121)) ->  | C122: =IF(A122="","",VLOOKUP(A122,بيانات!$A$4:$C$11363,3,0)) ->  | D122: =IF(A122="","",SUMIFS(ورقة1!$G$4:$G$9994,ورقة1!$C$4:$C$9994,ورقة3!A122)) ->  | E122: =IF(A122="","",SUMIFS(ورقة1!$H$4:$H$9994,ورقة1!$C$4:$C$9994,ورقة3!A122)) -> 
A123: =IF(بيانات!A122="","",بيانات!A122) ->  | B123: =IF(A123="","",IF(A123=بيانات!A122,بيانات!B122)) ->  | C123: =IF(A123="","",VLOOKUP(A123,بيانات!$A$4:$C$11363,3,0)) ->  | D123: =IF(A123="","",SUMIFS(ورقة1!$G$4:$G$9994,ورقة1!$C$4:$C$9994,ورقة3!A123)) ->  | E123: =IF(A123="","",SUMIFS(ورقة1!$H$4:$H$9994,ورقة1!$C$4:$C$9994,ورقة3!A123)) -> 
A124: =IF(بيانات!A123="","",بيانات!A123) ->  | B124: =IF(A124="","",IF(A124=بيانات!A123,بيانات!B123)) ->  | C124: =IF(A124="","",VLOOKUP(A124,بيانات!$A$4:$C$11363,3,0)) ->  | D124: =IF(A124="","",SUMIFS(ورقة1!$G$4:$G$9994,ورقة1!$C$4:$C$9994,ورقة3!A124)) ->  | E124: =IF(A124="","",SUMIFS(ورقة1!$H$4:$H$9994,ورقة1!$C$4:$C$9994,ورقة3!A124)) -> 
A125: =IF(بيانات!A124="","",بيانات!A124) ->  | B125: =IF(A125="","",IF(A125=بيانات!A124,بيانات!B124)) ->  | C125: =IF(A125="","",VLOOKUP(A125,بيانات!$A$4:$C$11363,3,0)) ->  | D125: =IF(A125="","",SUMIFS(ورقة1!$G$4:$G$9994,ورقة1!$C$4:$C$9994,ورقة3!A125)) ->  | E125: =IF(A125="","",SUMIFS(ورقة1!$H$4:$H$9994,ورقة1!$C$4:$C$9994,ورقة3!A125)) -> 
A126: =IF(بيانات!A125="","",بيانات!A125) ->  | B126: =IF(A126="","",IF(A126=بيانات!A125,بيانات!B125)) ->  | C126: =IF(A126="","",VLOOKUP(A126,بيانات!$A$4:$C$11363,3,0)) ->  | D126: =IF(A126="","",SUMIFS(ورقة1!$G$4:$G$9994,ورقة1!$C$4:$C$9994,ورقة3!A126)) ->  | E126: =IF(A126="","",SUMIFS(ورقة1!$H$4:$H$9994,ورقة1!$C$4:$C$9994,ورقة3!A126)) -> 
A127: =IF(بيانات!A126="","",بيانات!A126) ->  | B127: =IF(A127="","",IF(A127=بيانات!A126,بيانات!B126)) ->  | C127: =IF(A127="","",VLOOKUP(A127,بيانات!$A$4:$C$11363,3,0)) ->  | D127: =IF(A127="","",SUMIFS(ورقة1!$G$4:$G$9994,ورقة1!$C$4:$C$9994,ورقة3!A127)) ->  | E127: =IF(A127="","",SUMIFS(ورقة1!$H$4:$H$9994,ورقة1!$C$4:$C$9994,ورقة3!A127)) -> 
A128: =IF(بيانات!A127="","",بيانات!A127) ->  | B128: =IF(A128="","",IF(A128=بيانات!A127,بيانات!B127)) ->  | C128: =IF(A128="","",VLOOKUP(A128,بيانات!$A$4:$C$11363,3,0)) ->  | D128: =IF(A128="","",SUMIFS(ورقة1!$G$4:$G$9994,ورقة1!$C$4:$C$9994,ورقة3!A128)) ->  | E128: =IF(A128="","",SUMIFS(ورقة1!$H$4:$H$9994,ورقة1!$C$4:$C$9994,ورقة3!A128)) -> 
A129: =IF(بيانات!A128="","",بيانات!A128) ->  | B129: =IF(A129="","",IF(A129=بيانات!A128,بيانات!B128)) ->  | C129: =IF(A129="","",VLOOKUP(A129,بيانات!$A$4:$C$11363,3,0)) ->  | D129: =IF(A129="","",SUMIFS(ورقة1!$G$4:$G$9994,ورقة1!$C$4:$C$9994,ورقة3!A129)) ->  | E129: =IF(A129="","",SUMIFS(ورقة1!$H$4:$H$9994,ورقة1!$C$4:$C$9994,ورقة3!A129)) -> 
A130: =IF(بيانات!A129="","",بيانات!A129) ->  | B130: =IF(A130="","",IF(A130=بيانات!A129,بيانات!B129)) ->  | C130: =IF(A130="","",VLOOKUP(A130,بيانات!$A$4:$C$11363,3,0)) ->  | D130: =IF(A130="","",SUMIFS(ورقة1!$G$4:$G$9994,ورقة1!$C$4:$C$9994,ورقة3!A130)) ->  | E130: =IF(A130="","",SUMIFS(ورقة1!$H$4:$H$9994,ورقة1!$C$4:$C$9994,ورقة3!A130)) -> 
A131: =IF(بيانات!A130="","",بيانات!A130) ->  | B131: =IF(A131="","",IF(A131=بيانات!A130,بيانات!B130)) ->  | C131: =IF(A131="","",VLOOKUP(A131,بيانات!$A$4:$C$11363,3,0)) ->  | D131: =IF(A131="","",SUMIFS(ورقة1!$G$4:$G$9994,ورقة1!$C$4:$C$9994,ورقة3!A131)) ->  | E131: =IF(A131="","",SUMIFS(ورقة1!$H$4:$H$9994,ورقة1!$C$4:$C$9994,ورقة3!A131)) -> 
A132: =IF(بيانات!A131="","",بيانات!A131) ->  | B132: =IF(A132="","",IF(A132=بيانات!A131,بيانات!B131)) ->  | C132: =IF(A132="","",VLOOKUP(A132,بيانات!$A$4:$C$11363,3,0)) ->  | D132: =IF(A132="","",SUMIFS(ورقة1!$G$4:$G$9994,ورقة1!$C$4:$C$9994,ورقة3!A132)) ->  | E132: =IF(A132="","",SUMIFS(ورقة1!$H$4:$H$9994,ورقة1!$C$4:$C$9994,ورقة3!A132)) -> 
A133: =IF(بيانات!A132="","",بيانات!A132) ->  | B133: =IF(A133="","",IF(A133=بيانات!A132,بيانات!B132)) ->  | C133: =IF(A133="","",VLOOKUP(A133,بيانات!$A$4:$C$11363,3,0)) ->  | D133: =IF(A133="","",SUMIFS(ورقة1!$G$4:$G$9994,ورقة1!$C$4:$C$9994,ورقة3!A133)) ->  | E133: =IF(A133="","",SUMIFS(ورقة1!$H$4:$H$9994,ورقة1!$C$4:$C$9994,ورقة3!A133)) ->  | F133: =IF(A133="","",C133+D133-E133) -> 
A134: =IF(بيانات!A133="","",بيانات!A133) ->  | B134: =IF(A134="","",IF(A134=بيانات!A133,بيانات!B133)) ->  | C134: =IF(A134="","",VLOOKUP(A134,بيانات!$A$4:$C$11363,3,0)) ->  | D134: =IF(A134="","",SUMIFS(ورقة1!$G$4:$G$9994,ورقة1!$C$4:$C$9994,ورقة3!A134)) ->  | E134: =IF(A134="","",SUMIFS(ورقة1!$H$4:$H$9994,ورقة1!$C$4:$C$9994,ورقة3!A134)) -> 
A135: =IF(بيانات!A134="","",بيانات!A134) ->  | B135: =IF(A135="","",IF(A135=بيانات!A134,بيانات!B134)) ->  | C135: =IF(A135="","",VLOOKUP(A135,بيانات!$A$4:$C$11363,3,0)) ->  | D135: =IF(A135="","",SUMIFS(ورقة1!$G$4:$G$9994,ورقة1!$C$4:$C$9994,ورقة3!A135)) ->  | E135: =IF(A135="","",SUMIFS(ورقة1!$H$4:$H$9994,ورقة1!$C$4:$C$9994,ورقة3!A135)) -> 
A136: =IF(بيانات!A135="","",بيانات!A135) ->  | B136: =IF(A136="","",IF(A136=بيانات!A135,بيانات!B135)) ->  | C136: =IF(A136="","",VLOOKUP(A136,بيانات!$A$4:$C$11363,3,0)) ->  | D136: =IF(A136="","",SUMIFS(ورقة1!$G$4:$G$9994,ورقة1!$C$4:$C$9994,ورقة3!A136)) ->  | E136: =IF(A136="","",SUMIFS(ورقة1!$H$4:$H$9994,ورقة1!$C$4:$C$9994,ورقة3!A136)) -> 
A137: =IF(بيانات!A136="","",بيانات!A136) ->  | B137: =IF(A137="","",IF(A137=بيانات!A136,بيانات!B136)) ->  | C137: =IF(A137="","",VLOOKUP(A137,بيانات!$A$4:$C$11363,3,0)) ->  | D137: =IF(A137="","",SUMIFS(ورقة1!$G$4:$G$9994,ورقة1!$C$4:$C$9994,ورقة3!A137)) ->  | E137: =IF(A137="","",SUMIFS(ورقة1!$H$4:$H$9994,ورقة1!$C$4:$C$9994,ورقة3!A137)) -> 
A138: =IF(بيانات!A137="","",بيانات!A137) ->  | B138: =IF(A138="","",IF(A138=بيانات!A137,بيانات!B137)) ->  | C138: =IF(A138="","",VLOOKUP(A138,بيانات!$A$4:$C$11363,3,0)) ->  | D138: =IF(A138="","",SUMIFS(ورقة1!$G$4:$G$9994,ورقة1!$C$4:$C$9994,ورقة3!A138)) ->  | E138: =IF(A138="","",SUMIFS(ورقة1!$H$4:$H$9994,ورقة1!$C$4:$C$9994,ورقة3!A138)) -> 
A139: =IF(بيانات!A138="","",بيانات!A138) ->  | B139: =IF(A139="","",IF(A139=بيانات!A138,بيانات!B138)) ->  | C139: =IF(A139="","",VLOOKUP(A139,بيانات!$A$4:$C$11363,3,0)) ->  | D139: =IF(A139="","",SUMIFS(ورقة1!$G$4:$G$9994,ورقة1!$C$4:$C$9994,ورقة3!A139)) ->  | E139: =IF(A139="","",SUMIFS(ورقة1!$H$4:$H$9994,ورقة1!$C$4:$C$9994,ورقة3!A139)) -> 
A140: =IF(بيانات!A139="","",بيانات!A139) ->  | B140: =IF(A140="","",IF(A140=بيانات!A139,بيانات!B139)) ->  | C140: =IF(A140="","",VLOOKUP(A140,بيانات!$A$4:$C$11363,3,0)) ->  | D140: =IF(A140="","",SUMIFS(ورقة1!$G$4:$G$9994,ورقة1!$C$4:$C$9994,ورقة3!A140)) ->  | E140: =IF(A140="","",SUMIFS(ورقة1!$H$4:$H$9994,ورقة1!$C$4:$C$9994,ورقة3!A140)) -> 
A141: =IF(بيانات!A140="","",بيانات!A140) ->  | B141: =IF(A141="","",IF(A141=بيانات!A140,بيانات!B140)) ->  | C141: =IF(A141="","",VLOOKUP(A141,بيانات!$A$4:$C$11363,3,0)) ->  | D141: =IF(A141="","",SUMIFS(ورقة1!$G$4:$G$9994,ورقة1!$C$4:$C$9994,ورقة3!A141)) ->  | E141: =IF(A141="","",SUMIFS(ورقة1!$H$4:$H$9994,ورقة1!$C$4:$C$9994,ورقة3!A141)) -> 
A142: =IF(بيانات!A141="","",بيانات!A141) ->  | B142: =IF(A142="","",IF(A142=بيانات!A141,بيانات!B141)) ->  | C142: =IF(A142="","",VLOOKUP(A142,بيانات!$A$4:$C$11363,3,0)) ->  | D142: =IF(A142="","",SUMIFS(ورقة1!$G$4:$G$9994,ورقة1!$C$4:$C$9994,ورقة3!A142)) ->  | E142: =IF(A142="","",SUMIFS(ورقة1!$H$4:$H$9994,ورقة1!$C$4:$C$9994,ورقة3!A142)) -> 
A143: =IF(بيانات!A142="","",بيانات!A142) ->  | B143: =IF(A143="","",IF(A143=بيانات!A142,بيانات!B142)) ->  | C143: =IF(A143="","",VLOOKUP(A143,بيانات!$A$4:$C$11363,3,0)) ->  | D143: =IF(A143="","",SUMIFS(ورقة1!$G$4:$G$9994,ورقة1!$C$4:$C$9994,ورقة3!A143)) ->  | E143: =IF(A143="","",SUMIFS(ورقة1!$H$4:$H$9994,ورقة1!$C$4:$C$9994,ورقة3!A143)) -> 
A144: =IF(بيانات!A143="","",بيانات!A143) ->  | B144: =IF(A144="","",IF(A144=بيانات!A143,بيانات!B143)) ->  | C144: =IF(A144="","",VLOOKUP(A144,بيانات!$A$4:$C$11363,3,0)) ->  | D144: =IF(A144="","",SUMIFS(ورقة1!$G$4:$G$9994,ورقة1!$C$4:$C$9994,ورقة3!A144)) ->  | E144: =IF(A144="","",SUMIFS(ورقة1!$H$4:$H$9994,ورقة1!$C$4:$C$9994,ورقة3!A144)) -> 
A145: =IF(بيانات!A144="","",بيانات!A144) ->  | B145: =IF(A145="","",IF(A145=بيانات!A144,بيانات!B144)) ->  | C145: =IF(A145="","",VLOOKUP(A145,بيانات!$A$4:$C$11363,3,0)) ->  | D145: =IF(A145="","",SUMIFS(ورقة1!$G$4:$G$9994,ورقة1!$C$4:$C$9994,ورقة3!A145)) ->  | E145: =IF(A145="","",SUMIFS(ورقة1!$H$4:$H$9994,ورقة1!$C$4:$C$9994,ورقة3!A145)) -> 
A146: =IF(بيانات!A145="","",بيانات!A145) ->  | B146: =IF(A146="","",IF(A146=بيانات!A145,بيانات!B145)) ->  | C146: =IF(A146="","",VLOOKUP(A146,بيانات!$A$4:$C$11363,3,0)) ->  | D146: =IF(A146="","",SUMIFS(ورقة1!$G$4:$G$9994,ورقة1!$C$4:$C$9994,ورقة3!A146)) ->  | E146: =IF(A146="","",SUMIFS(ورقة1!$H$4:$H$9994,ورقة1!$C$4:$C$9994,ورقة3!A146)) -> 
A147: =IF(بيانات!A146="","",بيانات!A146) ->  | B147: =IF(A147="","",IF(A147=بيانات!A146,بيانات!B146)) ->  | C147: =IF(A147="","",VLOOKUP(A147,بيانات!$A$4:$C$11363,3,0)) ->  | D147: =IF(A147="","",SUMIFS(ورقة1!$G$4:$G$9994,ورقة1!$C$4:$C$9994,ورقة3!A147)) ->  | E147: =IF(A147="","",SUMIFS(ورقة1!$H$4:$H$9994,ورقة1!$C$4:$C$9994,ورقة3!A147)) -> 
A148: =IF(بيانات!A147="","",بيانات!A147) ->  | B148: =IF(A148="","",IF(A148=بيانات!A147,بيانات!B147)) ->  | C148: =IF(A148="","",VLOOKUP(A148,بيانات!$A$4:$C$11363,3,0)) ->  | D148: =IF(A148="","",SUMIFS(ورقة1!$G$4:$G$9994,ورقة1!$C$4:$C$9994,ورقة3!A148)) ->  | E148: =IF(A148="","",SUMIFS(ورقة1!$H$4:$H$9994,ورقة1!$C$4:$C$9994,ورقة3!A148)) -> 
A149: =IF(بيانات!A148="","",بيانات!A148) ->  | B149: =IF(A149="","",IF(A149=بيانات!A148,بيانات!B148)) ->  | C149: =IF(A149="","",VLOOKUP(A149,بيانات!$A$4:$C$11363,3,0)) ->  | D149: =IF(A149="","",SUMIFS(ورقة1!$G$4:$G$9994,ورقة1!$C$4:$C$9994,ورقة3!A149)) ->  | E149: =IF(A149="","",SUMIFS(ورقة1!$H$4:$H$9994,ورقة1!$C$4:$C$9994,ورقة3!A149)) -> 
A150: =IF(بيانات!A149="","",بيانات!A149) ->  | B150: =IF(A150="","",IF(A150=بيانات!A149,بيانات!B149)) ->  | C150: =IF(A150="","",VLOOKUP(A150,بيانات!$A$4:$C$11363,3,0)) ->  | D150: =IF(A150="","",SUMIFS(ورقة1!$G$4:$G$9994,ورقة1!$C$4:$C$9994,ورقة3!A150)) ->  | E150: =IF(A150="","",SUMIFS(ورقة1!$H$4:$H$9994,ورقة1!$C$4:$C$9994,ورقة3!A150)) -> 
A151: =IF(بيانات!A150="","",بيانات!A150) ->  | B151: =IF(A151="","",IF(A151=بيانات!A150,بيانات!B150)) ->  | C151: =IF(A151="","",VLOOKUP(A151,بيانات!$A$4:$C$11363,3,0)) ->  | D151: =IF(A151="","",SUMIFS(ورقة1!$G$4:$G$9994,ورقة1!$C$4:$C$9994,ورقة3!A151)) ->  | E151: =IF(A151="","",SUMIFS(ورقة1!$H$4:$H$9994,ورقة1!$C$4:$C$9994,ورقة3!A151)) -> 
A152: =IF(بيانات!A151="","",بيانات!A151) ->  | B152: =IF(A152="","",IF(A152=بيانات!A151,بيانات!B151)) ->  | C152: =IF(A152="","",VLOOKUP(A152,بيانات!$A$4:$C$11363,3,0)) ->  | D152: =IF(A152="","",SUMIFS(ورقة1!$G$4:$G$9994,ورقة1!$C$4:$C$9994,ورقة3!A152)) ->  | E152: =IF(A152="","",SUMIFS(ورقة1!$H$4:$H$9994,ورقة1!$C$4:$C$9994,ورقة3!A152)) -> 
A153: =IF(بيانات!A152="","",بيانات!A152) ->  | B153: =IF(A153="","",IF(A153=بيانات!A152,بيانات!B152)) ->  | C153: =IF(A153="","",VLOOKUP(A153,بيانات!$A$4:$C$11363,3,0)) ->  | D153: =IF(A153="","",SUMIFS(ورقة1!$G$4:$G$9994,ورقة1!$C$4:$C$9994,ورقة3!A153)) ->  | E153: =IF(A153="","",SUMIFS(ورقة1!$H$4:$H$9994,ورقة1!$C$4:$C$9994,ورقة3!A153)) -> 
A154: =IF(بيانات!A153="","",بيانات!A153) ->  | B154: =IF(A154="","",IF(A154=بيانات!A153,بيانات!B153)) ->  | C154: =IF(A154="","",VLOOKUP(A154,بيانات!$A$4:$C$11363,3,0)) ->  | D154: =IF(A154="","",SUMIFS(ورقة1!$G$4:$G$9994,ورقة1!$C$4:$C$9994,ورقة3!A154)) ->  | E154: =IF(A154="","",SUMIFS(ورقة1!$H$4:$H$9994,ورقة1!$C$4:$C$9994,ورقة3!A154)) -> 
A155: =IF(بيانات!A154="","",بيانات!A154) ->  | B155: =IF(A155="","",IF(A155=بيانات!A154,بيانات!B154)) ->  | C155: =IF(A155="","",VLOOKUP(A155,بيانات!$A$4:$C$11363,3,0)) ->  | D155: =IF(A155="","",SUMIFS(ورقة1!$G$4:$G$9994,ورقة1!$C$4:$C$9994,ورقة3!A155)) ->  | E155: =IF(A155="","",SUMIFS(ورقة1!$H$4:$H$9994,ورقة1!$C$4:$C$9994,ورقة3!A155)) -> 
A156: =IF(بيانات!A155="","",بيانات!A155) ->  | B156: =IF(A156="","",IF(A156=بيانات!A155,بيانات!B155)) ->  | C156: =IF(A156="","",VLOOKUP(A156,بيانات!$A$4:$C$11363,3,0)) ->  | D156: =IF(A156="","",SUMIFS(ورقة1!$G$4:$G$9994,ورقة1!$C$4:$C$9994,ورقة3!A156)) ->  | E156: =IF(A156="","",SUMIFS(ورقة1!$H$4:$H$9994,ورقة1!$C$4:$C$9994,ورقة3!A156)) -> 
A157: =IF(بيانات!A156="","",بيانات!A156) ->  | B157: =IF(A157="","",IF(A157=بيانات!A156,بيانات!B156)) ->  | C157: =IF(A157="","",VLOOKUP(A157,بيانات!$A$4:$C$11363,3,0)) ->  | D157: =IF(A157="","",SUMIFS(ورقة1!$G$4:$G$9994,ورقة1!$C$4:$C$9994,ورقة3!A157)) ->  | E157: =IF(A157="","",SUMIFS(ورقة1!$H$4:$H$9994,ورقة1!$C$4:$C$9994,ورقة3!A157)) -> 
A158: =IF(بيانات!A157="","",بيانات!A157) ->  | B158: =IF(A158="","",IF(A158=بيانات!A157,بيانات!B157)) ->  | C158: =IF(A158="","",VLOOKUP(A158,بيانات!$A$4:$C$11363,3,0)) ->  | D158: =IF(A158="","",SUMIFS(ورقة1!$G$4:$G$9994,ورقة1!$C$4:$C$9994,ورقة3!A158)) ->  | E158: =IF(A158="","",SUMIFS(ورقة1!$H$4:$H$9994,ورقة1!$C$4:$C$9994,ورقة3!A158)) -> 
A159: =IF(بيانات!A158="","",بيانات!A158) ->  | B159: =IF(A159="","",IF(A159=بيانات!A158,بيانات!B158)) ->  | C159: =IF(A159="","",VLOOKUP(A159,بيانات!$A$4:$C$11363,3,0)) ->  | D159: =IF(A159="","",SUMIFS(ورقة1!$G$4:$G$9994,ورقة1!$C$4:$C$9994,ورقة3!A159)) ->  | E159: =IF(A159="","",SUMIFS(ورقة1!$H$4:$H$9994,ورقة1!$C$4:$C$9994,ورقة3!A159)) -> 
A160: =IF(بيانات!A159="","",بيانات!A159) ->  | B160: =IF(A160="","",IF(A160=بيانات!A159,بيانات!B159)) ->  | C160: =IF(A160="","",VLOOKUP(A160,بيانات!$A$4:$C$11363,3,0)) ->  | D160: =IF(A160="","",SUMIFS(ورقة1!$G$4:$G$9994,ورقة1!$C$4:$C$9994,ورقة3!A160)) ->  | E160: =IF(A160="","",SUMIFS(ورقة1!$H$4:$H$9994,ورقة1!$C$4:$C$9994,ورقة3!A160)) -> 
A161: =IF(بيانات!A160="","",بيانات!A160) ->  | B161: =IF(A161="","",IF(A161=بيانات!A160,بيانات!B160)) ->  | C161: =IF(A161="","",VLOOKUP(A161,بيانات!$A$4:$C$11363,3,0)) ->  | D161: =IF(A161="","",SUMIFS(ورقة1!$G$4:$G$9994,ورقة1!$C$4:$C$9994,ورقة3!A161)) ->  | E161: =IF(A161="","",SUMIFS(ورقة1!$H$4:$H$9994,ورقة1!$C$4:$C$9994,ورقة3!A161)) -> 
A162: =IF(بيانات!A161="","",بيانات!A161) ->  | B162: =IF(A162="","",IF(A162=بيانات!A161,بيانات!B161)) ->  | C162: =IF(A162="","",VLOOKUP(A162,بيانات!$A$4:$C$11363,3,0)) ->  | D162: =IF(A162="","",SUMIFS(ورقة1!$G$4:$G$9994,ورقة1!$C$4:$C$9994,ورقة3!A162)) ->  | E162: =IF(A162="","",SUMIFS(ورقة1!$H$4:$H$9994,ورقة1!$C$4:$C$9994,ورقة3!A162)) -> 
A163: =IF(بيانات!A162="","",بيانات!A162) ->  | B163: =IF(A163="","",IF(A163=بيانات!A162,بيانات!B162)) ->  | C163: =IF(A163="","",VLOOKUP(A163,بيانات!$A$4:$C$11363,3,0)) ->  | D163: =IF(A163="","",SUMIFS(ورقة1!$G$4:$G$9994,ورقة1!$C$4:$C$9994,ورقة3!A163)) ->  | E163: =IF(A163="","",SUMIFS(ورقة1!$H$4:$H$9994,ورقة1!$C$4:$C$9994,ورقة3!A163)) -> 
A164: =IF(بيانات!A163="","",بيانات!A163) ->  | B164: =IF(A164="","",IF(A164=بيانات!A163,بيانات!B163)) ->  | C164: =IF(A164="","",VLOOKUP(A164,بيانات!$A$4:$C$11363,3,0)) ->  | D164: =IF(A164="","",SUMIFS(ورقة1!$G$4:$G$9994,ورقة1!$C$4:$C$9994,ورقة3!A164)) ->  | E164: =IF(A164="","",SUMIFS(ورقة1!$H$4:$H$9994,ورقة1!$C$4:$C$9994,ورقة3!A164)) -> 
A165: =IF(بيانات!A164="","",بيانات!A164) ->  | B165: =IF(A165="","",IF(A165=بيانات!A164,بيانات!B164)) ->  | C165: =IF(A165="","",VLOOKUP(A165,بيانات!$A$4:$C$11363,3,0)) ->  | D165: =IF(A165="","",SUMIFS(ورقة1!$G$4:$G$9994,ورقة1!$C$4:$C$9994,ورقة3!A165)) ->  | E165: =IF(A165="","",SUMIFS(ورقة1!$H$4:$H$9994,ورقة1!$C$4:$C$9994,ورقة3!A165)) -> 
A166: =IF(بيانات!A165="","",بيانات!A165) ->  | B166: =IF(A166="","",IF(A166=بيانات!A165,بيانات!B165)) ->  | C166: =IF(A166="","",VLOOKUP(A166,بيانات!$A$4:$C$11363,3,0)) ->  | D166: =IF(A166="","",SUMIFS(ورقة1!$G$4:$G$9994,ورقة1!$C$4:$C$9994,ورقة3!A166)) ->  | E166: =IF(A166="","",SUMIFS(ورقة1!$H$4:$H$9994,ورقة1!$C$4:$C$9994,ورقة3!A166)) -> 
A167: =IF(بيانات!A166="","",بيانات!A166) ->  | B167: =IF(A167="","",IF(A167=بيانات!A166,بيانات!B166)) ->  | C167: =IF(A167="","",VLOOKUP(A167,بيانات!$A$4:$C$11363,3,0)) ->  | D167: =IF(A167="","",SUMIFS(ورقة1!$G$4:$G$9994,ورقة1!$C$4:$C$9994,ورقة3!A167)) ->  | E167: =IF(A167="","",SUMIFS(ورقة1!$H$4:$H$9994,ورقة1!$C$4:$C$9994,ورقة3!A167)) -> 
A168: =IF(بيانات!A167="","",بيانات!A167) ->  | B168: =IF(A168="","",IF(A168=بيانات!A167,بيانات!B167)) ->  | C168: =IF(A168="","",VLOOKUP(A168,بيانات!$A$4:$C$11363,3,0)) ->  | D168: =IF(A168="","",SUMIFS(ورقة1!$G$4:$G$9994,ورقة1!$C$4:$C$9994,ورقة3!A168)) ->  | E168: =IF(A168="","",SUMIFS(ورقة1!$H$4:$H$9994,ورقة1!$C$4:$C$9994,ورقة3!A168)) -> 
A169: =IF(بيانات!A168="","",بيانات!A168) ->  | B169: =IF(A169="","",IF(A169=بيانات!A168,بيانات!B168)) ->  | C169: =IF(A169="","",VLOOKUP(A169,بيانات!$A$4:$C$11363,3,0)) ->  | D169: =IF(A169="","",SUMIFS(ورقة1!$G$4:$G$9994,ورقة1!$C$4:$C$9994,ورقة3!A169)) ->  | E169: =IF(A169="","",SUMIFS(ورقة1!$H$4:$H$9994,ورقة1!$C$4:$C$9994,ورقة3!A169)) -> 
A170: =IF(بيانات!A169="","",بيانات!A169) ->  | B170: =IF(A170="","",IF(A170=بيانات!A169,بيانات!B169)) ->  | C170: =IF(A170="","",VLOOKUP(A170,بيانات!$A$4:$C$11363,3,0)) ->  | D170: =IF(A170="","",SUMIFS(ورقة1!$G$4:$G$9994,ورقة1!$C$4:$C$9994,ورقة3!A170)) ->  | E170: =IF(A170="","",SUMIFS(ورقة1!$H$4:$H$9994,ورقة1!$C$4:$C$9994,ورقة3!A170)) -> 
A171: =IF(بيانات!A170="","",بيانات!A170) ->  | B171: =IF(A171="","",IF(A171=بيانات!A170,بيانات!B170)) ->  | C171: =IF(A171="","",VLOOKUP(A171,بيانات!$A$4:$C$11363,3,0)) ->  | D171: =IF(A171="","",SUMIFS(ورقة1!$G$4:$G$9994,ورقة1!$C$4:$C$9994,ورقة3!A171)) ->  | E171: =IF(A171="","",SUMIFS(ورقة1!$H$4:$H$9994,ورقة1!$C$4:$C$9994,ورقة3!A171)) -> 
A172: =IF(بيانات!A171="","",بيانات!A171) ->  | B172: =IF(A172="","",IF(A172=بيانات!A171,بيانات!B171)) ->  | C172: =IF(A172="","",VLOOKUP(A172,بيانات!$A$4:$C$11363,3,0)) ->  | D172: =IF(A172="","",SUMIFS(ورقة1!$G$4:$G$9994,ورقة1!$C$4:$C$9994,ورقة3!A172)) ->  | E172: =IF(A172="","",SUMIFS(ورقة1!$H$4:$H$9994,ورقة1!$C$4:$C$9994,ورقة3!A172)) -> 
A173: =IF(بيانات!A172="","",بيانات!A172) ->  | B173: =IF(A173="","",IF(A173=بيانات!A172,بيانات!B172)) ->  | C173: =IF(A173="","",VLOOKUP(A173,بيانات!$A$4:$C$11363,3,0)) ->  | D173: =IF(A173="","",SUMIFS(ورقة1!$G$4:$G$9994,ورقة1!$C$4:$C$9994,ورقة3!A173)) ->  | E173: =IF(A173="","",SUMIFS(ورقة1!$H$4:$H$9994,ورقة1!$C$4:$C$9994,ورقة3!A173)) -> 
A174: =IF(بيانات!A173="","",بيانات!A173) ->  | B174: =IF(A174="","",IF(A174=بيانات!A173,بيانات!B173)) ->  | C174: =IF(A174="","",VLOOKUP(A174,بيانات!$A$4:$C$11363,3,0)) ->  | D174: =IF(A174="","",SUMIFS(ورقة1!$G$4:$G$9994,ورقة1!$C$4:$C$9994,ورقة3!A174)) ->  | E174: =IF(A174="","",SUMIFS(ورقة1!$H$4:$H$9994,ورقة1!$C$4:$C$9994,ورقة3!A174)) -> 
A175: =IF(بيانات!A174="","",بيانات!A174) ->  | B175: =IF(A175="","",IF(A175=بيانات!A174,بيانات!B174)) ->  | C175: =IF(A175="","",VLOOKUP(A175,بيانات!$A$4:$C$11363,3,0)) ->  | D175: =IF(A175="","",SUMIFS(ورقة1!$G$4:$G$9994,ورقة1!$C$4:$C$9994,ورقة3!A175)) ->  | E175: =IF(A175="","",SUMIFS(ورقة1!$H$4:$H$9994,ورقة1!$C$4:$C$9994,ورقة3!A175)) -> 
A176: =IF(بيانات!A175="","",بيانات!A175) ->  | B176: =IF(A176="","",IF(A176=بيانات!A175,بيانات!B175)) ->  | C176: =IF(A176="","",VLOOKUP(A176,بيانات!$A$4:$C$11363,3,0)) ->  | D176: =IF(A176="","",SUMIFS(ورقة1!$G$4:$G$9994,ورقة1!$C$4:$C$9994,ورقة3!A176)) ->  | E176: =IF(A176="","",SUMIFS(ورقة1!$H$4:$H$9994,ورقة1!$C$4:$C$9994,ورقة3!A176)) -> 
A177: =IF(بيانات!A176="","",بيانات!A176) ->  | B177: =IF(A177="","",IF(A177=بيانات!A176,بيانات!B176)) ->  | C177: =IF(A177="","",VLOOKUP(A177,بيانات!$A$4:$C$11363,3,0)) ->  | D177: =IF(A177="","",SUMIFS(ورقة1!$G$4:$G$9994,ورقة1!$C$4:$C$9994,ورقة3!A177)) ->  | E177: =IF(A177="","",SUMIFS(ورقة1!$H$4:$H$9994,ورقة1!$C$4:$C$9994,ورقة3!A177)) -> 
A178: =IF(بيانات!A177="","",بيانات!A177) ->  | B178: =IF(A178="","",IF(A178=بيانات!A177,بيانات!B177)) ->  | C178: =IF(A178="","",VLOOKUP(A178,بيانات!$A$4:$C$11363,3,0)) ->  | D178: =IF(A178="","",SUMIFS(ورقة1!$G$4:$G$9994,ورقة1!$C$4:$C$9994,ورقة3!A178)) ->  | E178: =IF(A178="","",SUMIFS(ورقة1!$H$4:$H$9994,ورقة1!$C$4:$C$9994,ورقة3!A178)) -> 
A179: =IF(بيانات!A178="","",بيانات!A178) ->  | B179: =IF(A179="","",IF(A179=بيانات!A178,بيانات!B178)) ->  | C179: =IF(A179="","",VLOOKUP(A179,بيانات!$A$4:$C$11363,3,0)) ->  | D179: =IF(A179="","",SUMIFS(ورقة1!$G$4:$G$9994,ورقة1!$C$4:$C$9994,ورقة3!A179)) ->  | E179: =IF(A179="","",SUMIFS(ورقة1!$H$4:$H$9994,ورقة1!$C$4:$C$9994,ورقة3!A179)) -> 
A180: =IF(بيانات!A179="","",بيانات!A179) ->  | B180: =IF(A180="","",IF(A180=بيانات!A179,بيانات!B179)) ->  | C180: =IF(A180="","",VLOOKUP(A180,بيانات!$A$4:$C$11363,3,0)) ->  | D180: =IF(A180="","",SUMIFS(ورقة1!$G$4:$G$9994,ورقة1!$C$4:$C$9994,ورقة3!A180)) ->  | E180: =IF(A180="","",SUMIFS(ورقة1!$H$4:$H$9994,ورقة1!$C$4:$C$9994,ورقة3!A180)) -> 
A181: =IF(بيانات!A180="","",بيانات!A180) ->  | B181: =IF(A181="","",IF(A181=بيانات!A180,بيانات!B180)) ->  | C181: =IF(A181="","",VLOOKUP(A181,بيانات!$A$4:$C$11363,3,0)) ->  | D181: =IF(A181="","",SUMIFS(ورقة1!$G$4:$G$9994,ورقة1!$C$4:$C$9994,ورقة3!A181)) ->  | E181: =IF(A181="","",SUMIFS(ورقة1!$H$4:$H$9994,ورقة1!$C$4:$C$9994,ورقة3!A181)) -> 
A182: =IF(بيانات!A181="","",بيانات!A181) ->  | B182: =IF(A182="","",IF(A182=بيانات!A181,بيانات!B181)) ->  | C182: =IF(A182="","",VLOOKUP(A182,بيانات!$A$4:$C$11363,3,0)) ->  | D182: =IF(A182="","",SUMIFS(ورقة1!$G$4:$G$9994,ورقة1!$C$4:$C$9994,ورقة3!A182)) ->  | E182: =IF(A182="","",SUMIFS(ورقة1!$H$4:$H$9994,ورقة1!$C$4:$C$9994,ورقة3!A182)) -> 
A183: =IF(بيانات!A182="","",بيانات!A182) ->  | B183: =IF(A183="","",IF(A183=بيانات!A182,بيانات!B182)) ->  | C183: =IF(A183="","",VLOOKUP(A183,بيانات!$A$4:$C$11363,3,0)) ->  | D183: =IF(A183="","",SUMIFS(ورقة1!$G$4:$G$9994,ورقة1!$C$4:$C$9994,ورقة3!A183)) ->  | E183: =IF(A183="","",SUMIFS(ورقة1!$H$4:$H$9994,ورقة1!$C$4:$C$9994,ورقة3!A183)) -> 
A184: =IF(بيانات!A183="","",بيانات!A183) ->  | B184: =IF(A184="","",IF(A184=بيانات!A183,بيانات!B183)) ->  | C184: =IF(A184="","",VLOOKUP(A184,بيانات!$A$4:$C$11363,3,0)) ->  | D184: =IF(A184="","",SUMIFS(ورقة1!$G$4:$G$9994,ورقة1!$C$4:$C$9994,ورقة3!A184)) ->  | E184: =IF(A184="","",SUMIFS(ورقة1!$H$4:$H$9994,ورقة1!$C$4:$C$9994,ورقة3!A184)) -> 
A185: =IF(بيانات!A184="","",بيانات!A184) ->  | B185: =IF(A185="","",IF(A185=بيانات!A184,بيانات!B184)) ->  | C185: =IF(A185="","",VLOOKUP(A185,بيانات!$A$4:$C$11363,3,0)) ->  | D185: =IF(A185="","",SUMIFS(ورقة1!$G$4:$G$9994,ورقة1!$C$4:$C$9994,ورقة3!A185)) ->  | E185: =IF(A185="","",SUMIFS(ورقة1!$H$4:$H$9994,ورقة1!$C$4:$C$9994,ورقة3!A185)) -> 
A186: =IF(بيانات!A185="","",بيانات!A185) ->  | B186: =IF(A186="","",IF(A186=بيانات!A185,بيانات!B185)) ->  | C186: =IF(A186="","",VLOOKUP(A186,بيانات!$A$4:$C$11363,3,0)) ->  | D186: =IF(A186="","",SUMIFS(ورقة1!$G$4:$G$9994,ورقة1!$C$4:$C$9994,ورقة3!A186)) ->  | E186: =IF(A186="","",SUMIFS(ورقة1!$H$4:$H$9994,ورقة1!$C$4:$C$9994,ورقة3!A186)) -> 
A187: =IF(بيانات!A186="","",بيانات!A186) ->  | B187: =IF(A187="","",IF(A187=بيانات!A186,بيانات!B186)) ->  | C187: =IF(A187="","",VLOOKUP(A187,بيانات!$A$4:$C$11363,3,0)) ->  | D187: =IF(A187="","",SUMIFS(ورقة1!$G$4:$G$9994,ورقة1!$C$4:$C$9994,ورقة3!A187)) ->  | E187: =IF(A187="","",SUMIFS(ورقة1!$H$4:$H$9994,ورقة1!$C$4:$C$9994,ورقة3!A187)) -> 
A188: =IF(بيانات!A187="","",بيانات!A187) ->  | B188: =IF(A188="","",IF(A188=بيانات!A187,بيانات!B187)) ->  | C188: =IF(A188="","",VLOOKUP(A188,بيانات!$A$4:$C$11363,3,0)) ->  | D188: =IF(A188="","",SUMIFS(ورقة1!$G$4:$G$9994,ورقة1!$C$4:$C$9994,ورقة3!A188)) ->  | E188: =IF(A188="","",SUMIFS(ورقة1!$H$4:$H$9994,ورقة1!$C$4:$C$9994,ورقة3!A188)) -> 
A189: =IF(بيانات!A188="","",بيانات!A188) ->  | B189: =IF(A189="","",IF(A189=بيانات!A188,بيانات!B188)) ->  | C189: =IF(A189="","",VLOOKUP(A189,بيانات!$A$4:$C$11363,3,0)) ->  | D189: =IF(A189="","",SUMIFS(ورقة1!$G$4:$G$9994,ورقة1!$C$4:$C$9994,ورقة3!A189)) ->  | E189: =IF(A189="","",SUMIFS(ورقة1!$H$4:$H$9994,ورقة1!$C$4:$C$9994,ورقة3!A189)) -> 
A190: =IF(بيانات!A189="","",بيانات!A189) ->  | B190: =IF(A190="","",IF(A190=بيانات!A189,بيانات!B189)) ->  | C190: =IF(A190="","",VLOOKUP(A190,بيانات!$A$4:$C$11363,3,0)) ->  | D190: =IF(A190="","",SUMIFS(ورقة1!$G$4:$G$9994,ورقة1!$C$4:$C$9994,ورقة3!A190)) ->  | E190: =IF(A190="","",SUMIFS(ورقة1!$H$4:$H$9994,ورقة1!$C$4:$C$9994,ورقة3!A190)) -> 
A191: =IF(بيانات!A190="","",بيانات!A190) ->  | B191: =IF(A191="","",IF(A191=بيانات!A190,بيانات!B190)) ->  | C191: =IF(A191="","",VLOOKUP(A191,بيانات!$A$4:$C$11363,3,0)) ->  | D191: =IF(A191="","",SUMIFS(ورقة1!$G$4:$G$9994,ورقة1!$C$4:$C$9994,ورقة3!A191)) ->  | E191: =IF(A191="","",SUMIFS(ورقة1!$H$4:$H$9994,ورقة1!$C$4:$C$9994,ورقة3!A191)) -> 
A192: =IF(بيانات!A191="","",بيانات!A191) ->  | B192: =IF(A192="","",IF(A192=بيانات!A191,بيانات!B191)) ->  | C192: =IF(A192="","",VLOOKUP(A192,بيانات!$A$4:$C$11363,3,0)) ->  | D192: =IF(A192="","",SUMIFS(ورقة1!$G$4:$G$9994,ورقة1!$C$4:$C$9994,ورقة3!A192)) ->  | E192: =IF(A192="","",SUMIFS(ورقة1!$H$4:$H$9994,ورقة1!$C$4:$C$9994,ورقة3!A192)) -> 
A193: =IF(بيانات!A192="","",بيانات!A192) ->  | B193: =IF(A193="","",IF(A193=بيانات!A192,بيانات!B192)) ->  | C193: =IF(A193="","",VLOOKUP(A193,بيانات!$A$4:$C$11363,3,0)) ->  | D193: =IF(A193="","",SUMIFS(ورقة1!$G$4:$G$9994,ورقة1!$C$4:$C$9994,ورقة3!A193)) ->  | E193: =IF(A193="","",SUMIFS(ورقة1!$H$4:$H$9994,ورقة1!$C$4:$C$9994,ورقة3!A193)) -> 
A194: =IF(بيانات!A193="","",بيانات!A193) ->  | B194: =IF(A194="","",IF(A194=بيانات!A193,بيانات!B193)) ->  | C194: =IF(A194="","",VLOOKUP(A194,بيانات!$A$4:$C$11363,3,0)) ->  | D194: =IF(A194="","",SUMIFS(ورقة1!$G$4:$G$9994,ورقة1!$C$4:$C$9994,ورقة3!A194)) ->  | E194: =IF(A194="","",SUMIFS(ورقة1!$H$4:$H$9994,ورقة1!$C$4:$C$9994,ورقة3!A194)) -> 
A195: =IF(بيانات!A194="","",بيانات!A194) ->  | B195: =IF(A195="","",IF(A195=بيانات!A194,بيانات!B194)) ->  | C195: =IF(A195="","",VLOOKUP(A195,بيانات!$A$4:$C$11363,3,0)) ->  | D195: =IF(A195="","",SUMIFS(ورقة1!$G$4:$G$9994,ورقة1!$C$4:$C$9994,ورقة3!A195)) ->  | E195: =IF(A195="","",SUMIFS(ورقة1!$H$4:$H$9994,ورقة1!$C$4:$C$9994,ورقة3!A195)) -> 
A196: =IF(بيانات!A195="","",بيانات!A195) ->  | B196: =IF(A196="","",IF(A196=بيانات!A195,بيانات!B195)) ->  | C196: =IF(A196="","",VLOOKUP(A196,بيانات!$A$4:$C$11363,3,0)) ->  | D196: =IF(A196="","",SUMIFS(ورقة1!$G$4:$G$9994,ورقة1!$C$4:$C$9994,ورقة3!A196)) ->  | E196: =IF(A196="","",SUMIFS(ورقة1!$H$4:$H$9994,ورقة1!$C$4:$C$9994,ورقة3!A196)) -> 
A197: =IF(بيانات!A196="","",بيانات!A196) ->  | B197: =IF(A197="","",IF(A197=بيانات!A196,بيانات!B196)) ->  | C197: =IF(A197="","",VLOOKUP(A197,بيانات!$A$4:$C$11363,3,0)) ->  | D197: =IF(A197="","",SUMIFS(ورقة1!$G$4:$G$9994,ورقة1!$C$4:$C$9994,ورقة3!A197)) ->  | E197: =IF(A197="","",SUMIFS(ورقة1!$H$4:$H$9994,ورقة1!$C$4:$C$9994,ورقة3!A197)) ->  | F197: =IF(A197="","",C197+D197-E197) -> 
A198: =IF(بيانات!A197="","",بيانات!A197) ->  | B198: =IF(A198="","",IF(A198=بيانات!A197,بيانات!B197)) ->  | C198: =IF(A198="","",VLOOKUP(A198,بيانات!$A$4:$C$11363,3,0)) ->  | D198: =IF(A198="","",SUMIFS(ورقة1!$G$4:$G$9994,ورقة1!$C$4:$C$9994,ورقة3!A198)) ->  | E198: =IF(A198="","",SUMIFS(ورقة1!$H$4:$H$9994,ورقة1!$C$4:$C$9994,ورقة3!A198)) -> 
A199: =IF(بيانات!A198="","",بيانات!A198) ->  | B199: =IF(A199="","",IF(A199=بيانات!A198,بيانات!B198)) ->  | C199: =IF(A199="","",VLOOKUP(A199,بيانات!$A$4:$C$11363,3,0)) ->  | D199: =IF(A199="","",SUMIFS(ورقة1!$G$4:$G$9994,ورقة1!$C$4:$C$9994,ورقة3!A199)) ->  | E199: =IF(A199="","",SUMIFS(ورقة1!$H$4:$H$9994,ورقة1!$C$4:$C$9994,ورقة3!A199)) -> 
A200: =IF(بيانات!A199="","",بيانات!A199) ->  | B200: =IF(A200="","",IF(A200=بيانات!A199,بيانات!B199)) ->  | C200: =IF(A200="","",VLOOKUP(A200,بيانات!$A$4:$C$11363,3,0)) ->  | D200: =IF(A200="","",SUMIFS(ورقة1!$G$4:$G$9994,ورقة1!$C$4:$C$9994,ورقة3!A200)) ->  | E200: =IF(A200="","",SUMIFS(ورقة1!$H$4:$H$9994,ورقة1!$C$4:$C$9994,ورقة3!A200)) -> 
A201: =IF(بيانات!A200="","",بيانات!A200) ->  | B201: =IF(A201="","",IF(A201=بيانات!A200,بيانات!B200)) ->  | C201: =IF(A201="","",VLOOKUP(A201,بيانات!$A$4:$C$11363,3,0)) ->  | D201: =IF(A201="","",SUMIFS(ورقة1!$G$4:$G$9994,ورقة1!$C$4:$C$9994,ورقة3!A201)) ->  | E201: =IF(A201="","",SUMIFS(ورقة1!$H$4:$H$9994,ورقة1!$C$4:$C$9994,ورقة3!A201)) -> 
A202: =IF(بيانات!A201="","",بيانات!A201) ->  | B202: =IF(A202="","",IF(A202=بيانات!A201,بيانات!B201)) ->  | C202: =IF(A202="","",VLOOKUP(A202,بيانات!$A$4:$C$11363,3,0)) ->  | D202: =IF(A202="","",SUMIFS(ورقة1!$G$4:$G$9994,ورقة1!$C$4:$C$9994,ورقة3!A202)) ->  | E202: =IF(A202="","",SUMIFS(ورقة1!$H$4:$H$9994,ورقة1!$C$4:$C$9994,ورقة3!A202)) -> 
... 3192 more rows

Sheet sheet1
A3: الرقم | B3: التاريخ | C3: اسم الصنف | D3: اسم السند | E3: رقم السند | F3: الوحدة | G3: داخل | H3: خارج | I3: السعر | J3: أجمالي السعر
A4: 3 | B4: 2014-01-01 | C4: سكر | D4: فاتورة شراء | E4: 23 | F4: كيس | G4: 500 | I4: 7 | J4: 3500
A5: 4 | B5: 2014-01-01 | C5: سكر | D5: فاتورة بيع | E5: 566 | F5: كيس | H5: 200 | I5: 8 | J5: 1600
A6: 7 | B6: 2014-01-01 | C6: سكر | D6: فاتورة بيع | E6: 15 | F6: كيس | H6: 50 | I6: 5.75 | J6: 287.5
I7: الاجمالي | J7: 5387.5

Sheet كشف الحساب
A1: اسم المادة | B1: طحين
A2: من تاريخ | B2: 2014-01-01 | D2: الوارد | E2: =SUM(G6:G1048576) -> 200 | F2: الصادر | G2: =SUM(H6:H1048576) -> 150 | H2: الرصيد | I2: =E2-G2 -> 50
A3: الى تاريخ | B3: 2014-01-03
A5: الرقم | B5: التاريخ | C5: اسم الصنف | D5: اسم السند | E5: رقم السند | F5: الوحدة | G5: وارد | H5: صادر | I5: السعر | J5: الإجمالي
A6: 2 | B6: 2014-01-01 | C6: طحين | D6: فاتورة بيع | E6: 56 | F6: كيس | H6: 150 | I6: 6 | J6: 900
A7: 6 | B7: 2014-01-01 | C7: طحين | D7: فاتورة شراء | E7: 124 | F7: قطعة | G7: 200 | I7: 0.9 | J7: 180
